Workbook

Sheet Prices
A1: Historical data based on vendor data; subject to special notification | D1: GREY = Calculated prices derived from OFPC | E1: =E6&" "&E8 -> COB HLH | F1: =E6&" "&F8 -> COB LLH | G1: =G6&" "&G8 -> Palo Verde HLH | H1: =G6&" "&H8 -> Palo Verde LLH | I1: =I6&" "&I8 -> Mid-Columbia HLH | J1: =I6&" "&J8 -> Mid-Columbia LLH | K1: =K6&" "&K8 -> NP 15 HLH | L1: =K6&" "&L8 -> NP 15 LLH | M1: =M6&" "&M8 -> SP 15 HLH | N1: =M6&" "&N8 -> SP 15 LLH | O1: =O6&" "&O8 -> Mona HLH | P1: =O6&" "&P8 -> Mona LLH | Q1: =Q6&" "&Q8 -> Four Corners HLH | R1: =Q6&" "&R8 -> Four Corners LLH | S1: =S6&S8 -> PACEWHLH | T1: =S6&T8 -> PACEWLLH | U1: =U6&U8 -> PACEUHLH | V1: =U6&V8 -> PACEULLH | W1: =W6&W8 -> PACWHLH | X1: =W6&X8 -> PACWLLH | Y1: =Y6&Y8 -> GONDERHLH | Z1: =Y6&Z8 -> GONDERLLH | AA1: =AA6&" "&AA8 -> MEAD HLH | AB1: =AA6&" "&AB8 -> MEAD LLH | AC1: =AC6&AC8 -> BORAH (KGB)HLH | AD1: =AC6&AD8 -> BORAH (KGB)LLH | AE1: =AE6&AE8 -> NOBHLH | AF1: =AE6&AF8 -> NOBLLH | AG1: =AG6 -> Henry Hub Gas | AH1: =AH6 -> SOCALBOR | AI1: =AI6 -> SANJUAN | AJ1: Opal Gas | AK1: Questar | AL1: QST_CG | AM1: =AM6 -> Cheyenne | AN1: Malin Gas | AO1: Stanfield Gas | AP1: SUMAS | AQ1: AECO | AR1: GADSBY | AS1: WV_PLANT | AT1: LTLMTN | AU1: Currant Creek | AV1: Lakeside | AW1: Z_CHEBRN | AX1: GOSH | AY1: QPCS | AZ1: Hermiston | BA1: Kingsgate | BB1: =BB6 -> PG&E | BI1: Base Price Curve | BJ1: Stanfield | BK1: Sumas | BL1: Stanfield | BM1: Sumas | BP1: Opal | BQ1: =INDEX('POD Mapping'!$E$3:$E$52,MATCH(+$AO4,'POD Mapping'!$C$3:$C$52,0),1) -> NG_IF_STANFLD | BR1: =INDEX('POD Mapping'!$E$3:$E$52,MATCH(+$AN4,'POD Mapping'!$C$3:$C$52,0),1) -> NG_NGI_MALIN | BS1: =INDEX('POD Mapping'!$E$3:$E$52,MATCH(+$AK4,'POD Mapping'!$C$3:$C$52,0),1) -> NG_IF_QST_ROX | BT1: =INDEX('POD Mapping'!$E$3:$E$52,MATCH(+$AM4,'POD Mapping'!$C$3:$C$52,0),1) -> NG_IF_CHEY | BU1: =INDEX('POD Mapping'!$E$3:$E$52,MATCH(+$AK4,'POD Mapping'!$C$3:$C$52,0),1) -> NG_IF_QST_ROX | BV1: =INDEX('POD Mapping'!$E$3:$E$52,MATCH(+$AJ4,'POD Mapping'!$C$3:$C$52,0),1) -> NG_IF_NWPL_ROCKIES | BX1: COB | BY1: PV | BZ1: MidC | CA1: SP | CB1: FC | CC1: NP | CD1: MidC | CE1: PV | CF1: PV | CO1: Base Price Curve | CQ1: =INDEX('POD Mapping'!$E$3:$E$52,MATCH(+$AI4,'POD Mapping'!$C$3:$C$52,0),1) -> NG_IF_SAN_JUAN | CR1: =INDEX('POD Mapping'!$E$3:$E$52,MATCH(+$AM4,'POD Mapping'!$C$3:$C$52,0),1) -> NG_IF_CHEY | CS1: =INDEX('POD Mapping'!$E$3:$E$52,MATCH(+$AK4,'POD Mapping'!$C$3:$C$52,0),1) -> NG_IF_QST_ROX | CT1: =INDEX('POD Mapping'!$E$3:$E$52,MATCH(+$AK4,'POD Mapping'!$C$3:$C$52,0),1) -> NG_IF_QST_ROX | CU1: =INDEX('POD Mapping'!$E$3:$E$52,MATCH(+$AK4,'POD Mapping'!$C$3:$C$52,0),1) -> NG_IF_QST_ROX | CV1: =INDEX('POD Mapping'!$E$3:$E$52,MATCH(+$AM4,'POD Mapping'!$C$3:$C$52,0),1) -> NG_IF_CHEY | CW1: =INDEX('POD Mapping'!$E$3:$E$52,MATCH(+$AJ4,'POD Mapping'!$C$3:$C$52,0),1) -> NG_IF_NWPL_ROCKIES
D2: Data Type: | E2: Endur | F2: Endur | G2: Endur | H2: Endur | I2: Endur | J2: Endur | K2: Endur | L2: Endur | M2: Endur | N2: Endur | O2: Endur | P2: Endur | Q2: Endur | R2: Endur | S2: Endur | T2: Endur | U2: Endur | V2: Endur | W2: Endur | X2: Endur | Y2: Endur | Z2: Endur | AA2: Endur | AB2: Endur | AC2: Endur | AD2: Endur | AE2: Endur | AF2: Endur | AG2: Endur | AH2: Endur | AI2: Endur | AJ2: Endur | AK2: Endur | AL2: Endur | AM2: Endur | AN2: Endur | AO2: Endur | AP2: Endur | AQ2: Endur | AR2: Endur | AS2: Endur | AT2: Endur | AU2: Endur | AV2: Endur | AW2: Endur | AX2: Endur | AY2: Endur | AZ2: Endur | BA2: Endur | BB2: Endur | BI2: Fuel and L&U (%) | BJ2: 0.0125 | BK2: =BJ2 -> 0.0125 | BL2: =BJ2 -> 0.0125 | BM2: =BJ2 -> 0.0125 | BP2: 0.0197 | BQ2: 0.0125 | BR2: 0.00034476 | BS2: 0.02 | BT2: 0.0241 | BU2: 0.003618181818 | BV2: 0.0045 | CO2: Fuel and L&U (%) | CQ2: 0.0281 | CR2: 0.0241 | CS2: 0.0197 | CT2: 0.00362 | CU2: 0.0197 | CV2: 0.0256 | CW2: 0.0092
A3: Quote Date | B3: 2017-04-26 | C3: =" (" & INDEX({"Sunday","Monday","Tuesday","Wednesday","Thursday","Friday","Saturday"},WEEKDAY(ValuationDate)) & ")" -> (Wednesday) | D3: Commodity: | E3: ELEC | F3: ELEC | G3: ELEC | H3: ELEC | I3: ELEC | J3: ELEC | K3: ELEC | L3: ELEC | M3: ELEC | N3: ELEC | O3: ELEC | P3: ELEC | Q3: ELEC | R3: ELEC | S3: ELEC | T3: ELEC | U3: ELEC | V3: ELEC | W3: ELEC | X3: ELEC | Y3: ELEC | Z3: ELEC | AA3: ELEC | AB3: ELEC | AC3: ELEC | AD3: ELEC | AE3: ELEC | AF3: ELEC | AG3: NG | AH3: NG | AI3: NG | AJ3: NG | AK3: NG | AL3: NG | AM3: NG | AN3: NG | AO3: NG | AP3: NG | AQ3: NG | AR3: NG | AS3: NG | AT3: NG | AU3: NG | AV3: NG | AW3: NG | AX3: NG | AY3: NG | AZ3: NG | BA3: NG | BB3: NG | BI3: Total Variable Charges ($/MMBtu) | BJ3: 0.0314 | BK3: =BJ3 -> 0.0314 | BL3: =BJ3 -> 0.0314 | BM3: =BJ3 -> 0.0314 | BP3: 0.00407 | BQ3: 0.0314 | BR3: 0.00161216 | BS3: 0.00407 | BT3: 0.0218 | BU3: 0.0024 | BV3: 0.0604 | BX3: Flat Pricing | CO3: Total Variable Charges ($/MMBtu) | CQ3: 0.249 | CR3: 0.0218 | CS3: 0.00407 | CT3: 0.0024 | CU3: 0.00407 | CV3: 0.04569 | CW3: 0.334 | CX3: (Assumes full interruptible rate)
B4: =IF(ISNA(MATCH(ValuationDate,RolloverDates,0)),"","Roll Over Day") ->  | D4: POD: | E4: COB N-S | F4: COB N-S | G4: PV | H4: PV | I4: MID-C | J4: MID-C | K4: NP15 | L4: NP15 | M4: SP15 | N4: SP15 | O4: MONA | P4: MONA | Q4: 4C | R4: 4C | S4: PACEW | T4: PACEW | U4: PACEU | V4: PACEU | W4: PACW | X4: PACW | Y4: GON | Z4: GON | AA4: MEAD 230 | AB4: MEAD 230 | AC4: BORAH | AD4: BORAH | AE4: NOB | AF4: NOB | AG4: HENRYHUB | AH4: SOCALBOR | AI4: SANJUAN | AJ4: ROCKOPAL | AK4: QST | AL4: QST_CG | AM4: Cheyenne | AN4: MALINGAS | AO4: STANFLD5 | AP4: SUMAS5 | AQ4: AECO | AR4: GADSBY | AS4: WV_PLANT | AT4: LTLMTN | AU4: CURRCRK | AV4: LAKESIDE | AW4: Z_CHEBRN | AX4: GOSH | AY4: QPCS | AZ4: Hermiston | BA4: Kingsgate | BB4: PG&E | BI4: Business Tax | CO4: Location Basis to Base Price Curve | CQ4: 0 | CR4: 0 | CS4: -0.00325 | CT4: -0.00325 | CU4: -0.00325 | CV4: 0 | CW4: 0
D5: 2005-05-31 | BI5: Consumption Tax Multiplier | BL5: 1.03852 | BM5: 1.03852 | BQ5: IRP 2015 "Greenfield"
E6: COB | G6: Palo Verde | I6: Mid-Columbia | K6: NP 15 | M6: SP 15 | O6: Mona | Q6: Four Corners | S6: PACEW | U6: PACEU | W6: PACW | Y6: GONDER | AA6: MEAD | AC6: BORAH (KGB) | AE6: NOB | AG6: Henry Hub Gas | AH6: SOCALBOR | AI6: SANJUAN | AJ6: Opal Gas | AK6: Questar | AL6: QST_CG | AM6: Cheyenne | AN6: Malin Gas | AO6: Stanfield Gas | AP6: SUMAS | AQ6: AECO | AR6: GADSBY | AS6: WV_PLANT | AT6: LTLMTN | AU6: Currant Creek | AV6: Lakeside | AW6: Z_CHEBRN | AX6: GOSH | AY6: QPCS | AZ6: Hermiston | BA6: Kingsgate | BB6: PG&E | BI6: Pipeline | BJ6: Williams / Northwest Pipeline | BK6: Williams / Northwest Pipeline | BL6: Williams / Northwest Pipeline | BM6: Williams / Northwest Pipeline | BN6: Average | BP6: Questar Pipe | BQ6: Williams / Northwest Pipeline | BR6: Gas Transmission Northwest | BS6: Questar North | BT6: Tallgrass, FKA Kinder Morgan Interstate | BU6: Questar Overthrust Wamsutter | BV6: Ruby Pipeline | CG6: IRP 2015 "Brownfield" Conversion | CO6: Pipeline | CQ6: Kinder Morgan / El Paso | CR6: Tallgrass, FKA Kinder Morgan Interstate | CS6: Questar South | CT6: Questar Overthrust Wamsutter | CU6: Questar North | CV6: WBI Energy | CW6: CGI
E7: Forward Prices | G7: Forward Prices | I7: Forward Prices | K7: Forward Prices | M7: Forward Prices | O7: Forward Prices | Q7: Forward Prices | S7: Forward Prices | U7: Forward Prices | W7: Forward Prices | Y7: Forward Prices | AA7: Forward Prices | AC7: Forward Prices | AE7: Forward Prices | AG7: Fwd Price | AH7: Fwd Price | AI7: Fwd Price | AJ7: Fwd Price | AK7: Fwd Price | AL7: Fwd Price | AM7: Fwd Price | AN7: Fwd Price | AO7: Fwd Price | AP7: Fwd Price | AQ7: Fwd Price | AR7: Fwd Price | AS7: Fwd Price | AT7: Fwd Price | AU7: Fwd Price | AV7: Fwd Price | AW7: Fwd Price | AX7: Fwd Price | AY7: Fwd Price | AZ7: Fwd Price | BA7: Fwd Price | BB7: Fwd Price | BQ7: Resource Location | BX7: COB | BY7: PV | BZ7: MidC | CA7: SP15 | CB7: 4C | CC7: NP15 | CD7: NOB | CE7: Mead | CF7: MONA | CG7: Average annual $ / MMBtu: | CP7: Monthly $ / MMBtu:
B8: Start | C8: End | D8: Peak Type: | E8: HLH | F8: LLH | G8: HLH | H8: LLH | I8: HLH | J8: LLH | K8: HLH | L8: LLH | M8: HLH | N8: LLH | O8: HLH | P8: LLH | Q8: HLH | R8: LLH | S8: HLH | T8: LLH | U8: HLH | V8: LLH | W8: HLH | X8: LLH | Y8: HLH | Z8: LLH | AA8: HLH | AB8: LLH | AC8: HLH | AD8: LLH | AE8: HLH | AF8: LLH | AG8: Flat | AH8: Flat | AI8: Flat | AJ8: Flat | AK8: Flat | AL8: Flat | AM8: Flat | AN8: Flat | AO8: Flat | AP8: Flat | AQ8: Flat | AR8: Flat | AS8: Flat | AT8: Flat | AU8: Flat | AV8: Flat | AW8: Flat | AX8: Flat | AY8: Flat | AZ8: Flat | BA8: Flat | BB8: Flat | BJ8: OR E | BK8: OR W | BL8: WA E | BM8: WA W | BN8: West | BP8: East | BQ8: Pacific NW | BR8: Southern Oregon/ California | BS8: Utah | BT8: WY-NE | BU8: WY-SW | BV8: Goshen, ID | BX8: Flat | BY8: Flat | BZ8: Flat | CA8: Flat | CB8: Flat | CC8: Flat | CD8: Flat | CE8: Flat | CF8: Flat | CH8: =CS8 -> Hunter / Huntington | CI8: =CT8 -> Bridger | CJ8: =CU8 -> Naughton | CK8: =CR8 -> Johnston | CL8: =CV8 -> Wyodak | CM8: =CQ8 -> Cholla | CQ8: Cholla | CR8: Johnston | CS8: Hunter / Huntington | CT8: Bridger | CU8: Naughton | CV8: Wyodak | CW8: Craig
B9: 2016-01-01 | C9: =EOMONTH(B9,0) -> 2016-01-31 | D9: =+B9 -> 2016-01-01 | E9: =INDEX('ICE Prices'!$E$9:$AS$20,MATCH($C9,'ICE Prices'!$C$9:$C$20,0),MATCH(E$1,'ICE Prices'!$E$1:$AS$1,0)) -> 23.33 | F9: =INDEX('ICE Prices'!$E$9:$AS$20,MATCH($C9,'ICE Prices'!$C$9:$C$20,0),MATCH(F$1,'ICE Prices'!$E$1:$AS$1,0)) -> 22.74325581 | G9: =INDEX('ICE Prices'!$E$9:$AS$20,MATCH($C9,'ICE Prices'!$C$9:$C$20,0),MATCH(G$1,'ICE Prices'!$E$1:$AS$1,0)) -> 21.3128 | H9: =INDEX('ICE Prices'!$E$9:$AS$20,MATCH($C9,'ICE Prices'!$C$9:$C$20,0),MATCH(H$1,'ICE Prices'!$E$1:$AS$1,0)) -> 19.8744186 | I9: =INDEX('ICE Prices'!$E$9:$AS$20,MATCH($C9,'ICE Prices'!$C$9:$C$20,0),MATCH(I$1,'ICE Prices'!$E$1:$AS$1,0)) -> 22.762 | J9: =INDEX('ICE Prices'!$E$9:$AS$20,MATCH($C9,'ICE Prices'!$C$9:$C$20,0),MATCH(J$1,'ICE Prices'!$E$1:$AS$1,0)) -> 21.87697674 | O9: =INDEX('ICE Prices'!$E$9:$AS$20,MATCH($C9,'ICE Prices'!$C$9:$C$20,0),MATCH(O$1,'ICE Prices'!$E$1:$AS$1,0)) -> 20.68 | P9: =INDEX('ICE Prices'!$E$9:$AS$20,MATCH($C9,'ICE Prices'!$C$9:$C$20,0),MATCH(P$1,'ICE Prices'!$E$1:$AS$1,0)) -> 19.58139535 | Q9: =INDEX('ICE Prices'!$E$9:$AS$20,MATCH($C9,'ICE Prices'!$C$9:$C$20,0),MATCH(Q$1,'ICE Prices'!$E$1:$AS$1,0)) -> 21.2668 | R9: =INDEX('ICE Prices'!$E$9:$AS$20,MATCH($C9,'ICE Prices'!$C$9:$C$20,0),MATCH(R$1,'ICE Prices'!$E$1:$AS$1,0)) -> 20.46511628 | AA9: =INDEX('ICE Prices'!$E$9:$AS$20,MATCH($C9,'ICE Prices'!$C$9:$C$20,0),MATCH(AA$1,'ICE Prices'!$E$1:$AS$1,0)) -> 23.0372 | AB9: =INDEX('ICE Prices'!$E$9:$AS$20,MATCH($C9,'ICE Prices'!$C$9:$C$20,0),MATCH(AB$1,'ICE Prices'!$E$1:$AS$1,0)) -> 20.57348837 | AE9: =(AE21/$E21)*E9 -> 23.48033978 | AF9: =(AF21/$F21)*F9 -> 23.27959765 | AG9: =INDEX('ICE Prices'!$E$9:$AS$20,MATCH($C9,'ICE Prices'!$C$9:$C$20,0),MATCH(AG$1,'ICE Prices'!$E$1:$AS$1,0)) -> 2.271935484 | AH9: =INDEX('ICE Prices'!$E$9:$AS$20,MATCH($C9,'ICE Prices'!$C$9:$C$20,0),MATCH(AH$1,'ICE Prices'!$E$1:$AS$1,0)) -> 2.35983871 | AI9: =INDEX('ICE Prices'!$E$9:$AS$20,MATCH($C9,'ICE Prices'!$C$9:$C$20,0),MATCH(AI$1,'ICE Prices'!$E$1:$AS$1,0)) -> 2.246612903 | AJ9: =INDEX('ICE Prices'!$E$9:$AS$20,MATCH($C9,'ICE Prices'!$C$9:$C$20,0),MATCH(AJ$1,'ICE Prices'!$E$1:$AS$1,0)) -> 2.247741935 | AK9: =INDEX('ICE Prices'!$E$9:$AS$20,MATCH($C9,'ICE Prices'!$C$9:$C$20,0),MATCH(AK$1,'ICE Prices'!$E$1:$AS$1,0)) -> 2.226964286 | AL9: =(AL21/$AJ21)*AJ9 -> 2.328067733 | AM9: =INDEX('ICE Prices'!$E$9:$AS$20,MATCH($C9,'ICE Prices'!$C$9:$C$20,0),MATCH(AM$1,'ICE Prices'!$E$1:$AS$1,0)) -> 2.199677419 | AN9: =INDEX('ICE Prices'!$E$9:$AS$20,MATCH($C9,'ICE Prices'!$C$9:$C$20,0),MATCH(AN$1,'ICE Prices'!$E$1:$AS$1,0)) -> 2.304032258 | AO9: =INDEX('ICE Prices'!$E$9:$AS$20,MATCH($C9,'ICE Prices'!$C$9:$C$20,0),MATCH(AO$1,'ICE Prices'!$E$1:$AS$1,0)) -> 2.269677419 | AP9: =INDEX('ICE Prices'!$E$9:$AS$20,MATCH($C9,'ICE Prices'!$C$9:$C$20,0),MATCH(AP$1,'ICE Prices'!$E$1:$AS$1,0)) -> 2.274032258 | AQ9: =INDEX('ICE Prices'!$E$9:$AS$20,MATCH($C9,'ICE Prices'!$C$9:$C$20,0),MATCH(AQ$1,'ICE Prices'!$E$1:$AS$1,0)) -> 1.679948387 | AR9: =(AR21/$AJ21)*AJ9 -> 2.429296643 | AS9: =(AS21/$AJ21)*AJ9 -> 2.30006545 | AT9: =(AT21/$AJ21)*AJ9 -> 2.462163172 | AU9: =(AU21/$AJ21)*AJ9 -> 2.316104316 | AV9: =(AV21/$AJ21)*AJ9 -> 2.299342386 | AW9: =(AW21/AS21)*AS9 -> 2.450396955 | AX9: =(AX21/$AJ21)*AJ9 -> 2.299933984 | AY9: =(AY21/$AJ21)*AJ9 -> 2.254315241 | AZ9: =AO9 -> 2.269677419 | BA9: =INDEX('ICE Prices'!$E$9:$AS$20,MATCH($C9,'ICE Prices'!$C$9:$C$20,0),MATCH(BA$1,'ICE Prices'!$E$1:$AS$1,0)) -> 2.119032258 | BB9: =INDEX('ICE Prices'!$E$9:$AS$20,MATCH($C9,'ICE Prices'!$C$9:$C$20,0),MATCH(BB$1,'ICE Prices'!$E$1:$AS$1,0)) -> 2.601935484 | BJ9: =AO9*(1/(1-BJ$2))+BJ$3 -> 2.329807513 | BK9: =AP9*(1/(1-BK$2))+BK$3 -> 2.334217477 | BL9: =(AO9+BL$3)*BL$5+((1/(1-BL$2)-1)*AO9+BL$4*AO9) -> 2.418445015 | BM9: =(AP9+BM$3)*BM$5+((1/(1-BM$2)-1)*AP9+BM$4*AP9) -> 2.423022727 | BN9: =(BJ9+BK9+BL9+BM9)/4 -> 2.376373183 | BP9: =AJ9*(1/(1-BP$2))+BP$3 -> 2.296982308 | BQ9: =AO9*(1/(1-BQ$2))+BQ$3 -> 2.329807513 | BR9: =AN9*(1/(1-BR$2))+BR$3 -> 2.30643903 | BS9: =AK9*(1/(1-BS$2))+BS$3 -> 2.276482536 | BT9: =AM9*(1/(1-BT$2))+BT$3 -> 2.27579879 | BU9: =AK9*(1/(1-BU$2))+BU$3 -> 2.237451107 | BV9: =AJ9*(1/(1-BV$2))+BV$3 -> 2.318302497 | BX9: =[2]!mGetRate(BX$1,$B9,EOMONTH($B9,0)+1,"FLAT",E9,F9) -> 23.05870968 | BY9: =[2]!mGetRate(BY$1,$B9,EOMONTH($B9,0)+1,"FLAT",G9,H9) -> 20.64774194 | BZ9: =[2]!mGetRate(BZ$1,$B9,EOMONTH($B9,0)+1,"FLAT",I9,J9) -> 22.3527957 | CB9: =[2]!mGetRate(CB$1,$B9,EOMONTH($B9,0)+1,"FLAT",Q9,R9) -> 20.89612903 | CD9: =[2]!mGetRate(CD$1,$B9,EOMONTH($B9,0)+1,"FLAT",AE9,AF9) -> 23.38752352 | CE9: =[2]!mGetRate(CE$1,$B9,EOMONTH($B9,0)+1,"FLAT",AA9,AB9) -> 21.89806452 | CF9: =[2]!mGetRate(CF$1,$B9,EOMONTH($B9,0)+1,"FLAT",O9,P9) -> 20.17204301 | CG9: 2016 | CH9: =AVERAGEIF($CO$9:$CO$506,$CG9,CS$9:CS$506) -> 2.313144778 | CI9: =AVERAGEIF($CO$9:$CO$506,$CG9,CT$9:CT$506) -> 2.274209957 | CJ9: =AVERAGEIF($CO$9:$CO$506,$CG9,CU$9:CU$506) -> 2.313144778 | CK9: =AVERAGEIF($CO$9:$CO$506,$CG9,CR$9:CR$506) -> 2.351374395 | CL9: =AVERAGEIF($CO$9:$CO$506,$CG9,CV$9:CV$506) -> 2.378850563 | CM9: =AVERAGEIF($CO$9:$CO$506,$CG9,CQ$9:CQ$506) -> 2.606391541 | CO9: =YEAR($CP9) -> 2016 | CP9: =+B9 -> 2016-01-01 | CQ9: =(($AI9+CQ$4)*(1/(1-CQ$2))+CQ$3) -> 2.560567963 | CR9: =(($AM9+CR$4)*(1/(1-CR$2))+CR$3) -> 2.27579879 | CS9: =(($AK9+CS$4)*(1/(1-CS$2))+CS$3) -> 2.272471801 | CT9: =(($AK9+CT$4)*(1/(1-CT$2))+CT$3) -> 2.234193378 | CU9: =(($AK9+CU$4)*(1/(1-CU$2))+CU$3) -> 2.272471801 | CV9: =(($AM9+CV$4)*(1/(1-CV$2))+CV$3) -> 2.303158616 | CW9: =(($AJ9+CW$4)*(1/(1-CW$2))+CW$3) -> 2.602613177
B10: =EDATE(B9,1) -> 2016-02-01 | C10: 2016-02-29 | D10: =+B10 -> 2016-02-01 | E10: =INDEX('ICE Prices'!$E$9:$AS$20,MATCH($C10,'ICE Prices'!$C$9:$C$20,0),MATCH(E$1,'ICE Prices'!$E$1:$AS$1,0)) -> 18.0972 | F10: =INDEX('ICE Prices'!$E$9:$AS$20,MATCH($C10,'ICE Prices'!$C$9:$C$20,0),MATCH(F$1,'ICE Prices'!$E$1:$AS$1,0)) -> 17.04081081 | G10: =INDEX('ICE Prices'!$E$9:$AS$20,MATCH($C10,'ICE Prices'!$C$9:$C$20,0),MATCH(G$1,'ICE Prices'!$E$1:$AS$1,0)) -> 18.9044 | H10: =INDEX('ICE Prices'!$E$9:$AS$20,MATCH($C10,'ICE Prices'!$C$9:$C$20,0),MATCH(H$1,'ICE Prices'!$E$1:$AS$1,0)) -> 16.94351351 | I10: =INDEX('ICE Prices'!$E$9:$AS$20,MATCH($C10,'ICE Prices'!$C$9:$C$20,0),MATCH(I$1,'ICE Prices'!$E$1:$AS$1,0)) -> 16.6992 | J10: =INDEX('ICE Prices'!$E$9:$AS$20,MATCH($C10,'ICE Prices'!$C$9:$C$20,0),MATCH(J$1,'ICE Prices'!$E$1:$AS$1,0)) -> 15.72054054 | O10: =INDEX('ICE Prices'!$E$9:$AS$20,MATCH($C10,'ICE Prices'!$C$9:$C$20,0),MATCH(O$1,'ICE Prices'!$E$1:$AS$1,0)) -> 18.5 | P10: =INDEX('ICE Prices'!$E$9:$AS$20,MATCH($C10,'ICE Prices'!$C$9:$C$20,0),MATCH(P$1,'ICE Prices'!$E$1:$AS$1,0)) -> 19.08783784 | Q10: =INDEX('ICE Prices'!$E$9:$AS$20,MATCH($C10,'ICE Prices'!$C$9:$C$20,0),MATCH(Q$1,'ICE Prices'!$E$1:$AS$1,0)) -> 18.62 | R10: =INDEX('ICE Prices'!$E$9:$AS$20,MATCH($C10,'ICE Prices'!$C$9:$C$20,0),MATCH(R$1,'ICE Prices'!$E$1:$AS$1,0)) -> 18.14864865 | AA10: =INDEX('ICE Prices'!$E$9:$AS$20,MATCH($C10,'ICE Prices'!$C$9:$C$20,0),MATCH(AA$1,'ICE Prices'!$E$1:$AS$1,0)) -> 19.842 | AB10: =INDEX('ICE Prices'!$E$9:$AS$20,MATCH($C10,'ICE Prices'!$C$9:$C$20,0),MATCH(AB$1,'ICE Prices'!$E$1:$AS$1,0)) -> 17.99864865 | AE10: =(AE22/$E22)*E10 -> 18.75395323 | AF10: =(AF22/$F22)*F10 -> 18.05240334 | AG10: =INDEX('ICE Prices'!$E$9:$AS$20,MATCH($C10,'ICE Prices'!$C$9:$C$20,0),MATCH(AG$1,'ICE Prices'!$E$1:$AS$1,0)) -> 1.96862069 | AH10: =INDEX('ICE Prices'!$E$9:$AS$20,MATCH($C10,'ICE Prices'!$C$9:$C$20,0),MATCH(AH$1,'ICE Prices'!$E$1:$AS$1,0)) -> 1.854655172 | AI10: =INDEX('ICE Prices'!$E$9:$AS$20,MATCH($C10,'ICE Prices'!$C$9:$C$20,0),MATCH(AI$1,'ICE Prices'!$E$1:$AS$1,0)) -> 1.775517241 | AJ10: =INDEX('ICE Prices'!$E$9:$AS$20,MATCH($C10,'ICE Prices'!$C$9:$C$20,0),MATCH(AJ$1,'ICE Prices'!$E$1:$AS$1,0)) -> 1.760517241 | AK10: =INDEX('ICE Prices'!$E$9:$AS$20,MATCH($C10,'ICE Prices'!$C$9:$C$20,0),MATCH(AK$1,'ICE Prices'!$E$1:$AS$1,0)) -> 1.804411765 | AL10: =(AL22/$AJ22)*AJ10 -> 1.823887531 | AM10: =INDEX('ICE Prices'!$E$9:$AS$20,MATCH($C10,'ICE Prices'!$C$9:$C$20,0),MATCH(AM$1,'ICE Prices'!$E$1:$AS$1,0)) -> 1.76362069 | AN10: =INDEX('ICE Prices'!$E$9:$AS$20,MATCH($C10,'ICE Prices'!$C$9:$C$20,0),MATCH(AN$1,'ICE Prices'!$E$1:$AS$1,0)) -> 1.798965517 | AO10: =INDEX('ICE Prices'!$E$9:$AS$20,MATCH($C10,'ICE Prices'!$C$9:$C$20,0),MATCH(AO$1,'ICE Prices'!$E$1:$AS$1,0)) -> 1.726896552 | AP10: =INDEX('ICE Prices'!$E$9:$AS$20,MATCH($C10,'ICE Prices'!$C$9:$C$20,0),MATCH(AP$1,'ICE Prices'!$E$1:$AS$1,0)) -> 1.652758621 | AQ10: =INDEX('ICE Prices'!$E$9:$AS$20,MATCH($C10,'ICE Prices'!$C$9:$C$20,0),MATCH(AQ$1,'ICE Prices'!$E$1:$AS$1,0)) -> 1.31177931 | AR10: =(AR22/$AJ22)*AJ10 -> 1.903712226 | AS10: =(AS22/$AJ22)*AJ10 -> 1.801705326 | AT10: =(AT22/$AJ22)*AJ10 -> 1.929747677 | AU10: =(AU22/$AJ22)*AJ10 -> 1.814254414 | AV10: =(AV22/$AJ22)*AJ10 -> 1.801184617 | AW10: =(AW22/AS22)*AS10 -> 1.811911223 | AX10: =(AX22/$AJ22)*AJ10 -> 1.801601184 | AY10: =(AY22/$AJ22)*AJ10 -> 1.765724332 | AZ10: =AO10 -> 1.726896552 | BA10: =INDEX('ICE Prices'!$E$9:$AS$20,MATCH($C10,'ICE Prices'!$C$9:$C$20,0),MATCH(BA$1,'ICE Prices'!$E$1:$AS$1,0)) -> 1.600862069 | BB10: =INDEX('ICE Prices'!$E$9:$AS$20,MATCH($C10,'ICE Prices'!$C$9:$C$20,0),MATCH(BB$1,'ICE Prices'!$E$1:$AS$1,0)) -> 2.090862069 | BJ10: =AO10*(1/(1-BJ$2))+BJ$3 -> 1.780156002 | BK10: =AP10*(1/(1-BK$2))+BK$3 -> 1.705079616 | BL10: =(AO10+BL$3)*BL$5+((1/(1-BL$2)-1)*AO10+BL$4*AO10) -> 1.847885585 | BM10: =(AP10+BM$3)*BM$5+((1/(1-BM$2)-1)*AP10+BM$4*AP10) -> 1.769953406 | BN10: =(BJ10+BK10+BL10+BM10)/4 -> 1.775768652 | BP10: =AJ10*(1/(1-BP$2))+BP$3 -> 1.7999664 | BQ10: =AO10*(1/(1-BQ$2))+BQ$3 -> 1.780156002 | BR10: =AN10*(1/(1-BR$2))+BR$3 -> 1.801198102 | BS10: =AK10*(1/(1-BS$2))+BS$3 -> 1.845306495 | BT10: =AM10*(1/(1-BT$2))+BT$3 -> 1.828973573 | BU10: =AK10*(1/(1-BU$2))+BU$3 -> 1.813364162 | BV10: =AJ10*(1/(1-BV$2))+BV$3 -> 1.828875381 | BX10: =[2]!mGetRate(BX$1,$B10,EOMONTH($B10,0)+1,"FLAT",E10,F10) -> 17.64793103 | BY10: =[2]!mGetRate(BY$1,$B10,EOMONTH($B10,0)+1,"FLAT",G10,H10) -> 18.07045977 | BZ10: =[2]!mGetRate(BZ$1,$B10,EOMONTH($B10,0)+1,"FLAT",I10,J10) -> 16.28298851 | CA10: =IF(ValuationDate>$D10,"",[2]!mGetRate(CA$1,$B10,EOMONTH($B10,0)+1,"FLAT",M10,N10)) ->  | CB10: =[2]!mGetRate(CB$1,$B10,EOMONTH($B10,0)+1,"FLAT",Q10,R10) -> 18.41954023 | CC10: =IF(ValuationDate>$D10,"",[2]!mGetRate(CC$1,$B10,EOMONTH($B10,0)+1,"FLAT",K10,L10)) ->  | CD10: =[2]!mGetRate(CD$1,$B10,EOMONTH($B10,0)+1,"FLAT",AE10,AF10) -> 18.45559293 | CE10: =[2]!mGetRate(CE$1,$B10,EOMONTH($B10,0)+1,"FLAT",AA10,AB10) -> 19.05804598 | CF10: =[2]!mGetRate(CF$1,$B10,EOMONTH($B10,0)+1,"FLAT",O10,P10) -> 18.75 | CG10: =+CG9+1 -> 2017 | CH10: =AVERAGEIF($CO$9:$CO$506,$CG10,CS$9:CS$506) -> 2.967401451 | CI10: =AVERAGEIF($CO$9:$CO$506,$CG10,CT$9:CT$506) -> 2.91790796 | CJ10: =AVERAGEIF($CO$9:$CO$506,$CG10,CU$9:CU$506) -> 2.967401451 | CK10: =AVERAGEIF($CO$9:$CO$506,$CG10,CR$9:CR$506) -> 2.988492469 | CL10: =AVERAGEIF($CO$9:$CO$506,$CG10,CV$9:CV$506) -> 3.016949422 | CM10: =AVERAGEIF($CO$9:$CO$506,$CG10,CQ$9:CQ$506) -> 3.228311293 | CO10: 2016 | CP10: 2016-02-01 | CQ10: =(($AI10+CQ$4)*(1/(1-CQ$2))+CQ$3) -> 2.075851776 | CR10: =(($AM10+CR$4)*(1/(1-CR$2))+CR$3) -> 1.828973573 | CS10: =(($AK10+CS$4)*(1/(1-CS$2))+CS$3) -> 1.841427712 | CT10: 1.810105659 | CU10: 1.841427712 | CV10: =(($AM10+CV$4)*(1/(1-CV$2))+CV$3) -> 1.855645552 | CW10: =(($AJ10+CW$4)*(1/(1-CW$2))+CW$3) -> 2.110864394
B11: 2016-03-01 | C11: 2016-03-31 | D11: 2016-03-01 | E11: =INDEX('ICE Prices'!$E$9:$AS$20,MATCH($C11,'ICE Prices'!$C$9:$C$20,0),MATCH(E$1,'ICE Prices'!$E$1:$AS$1,0)) -> 14.9237037 | F11: =INDEX('ICE Prices'!$E$9:$AS$20,MATCH($C11,'ICE Prices'!$C$9:$C$20,0),MATCH(F$1,'ICE Prices'!$E$1:$AS$1,0)) -> 11.02025641 | G11: =INDEX('ICE Prices'!$E$9:$AS$20,MATCH($C11,'ICE Prices'!$C$9:$C$20,0),MATCH(G$1,'ICE Prices'!$E$1:$AS$1,0)) -> 17.09888889 | H11: =INDEX('ICE Prices'!$E$9:$AS$20,MATCH($C11,'ICE Prices'!$C$9:$C$20,0),MATCH(H$1,'ICE Prices'!$E$1:$AS$1,0)) -> 14.84897436 | I11: =INDEX('ICE Prices'!$E$9:$AS$20,MATCH($C11,'ICE Prices'!$C$9:$C$20,0),MATCH(I$1,'ICE Prices'!$E$1:$AS$1,0)) -> 13.03185185 | J11: =INDEX('ICE Prices'!$E$9:$AS$20,MATCH($C11,'ICE Prices'!$C$9:$C$20,0),MATCH(J$1,'ICE Prices'!$E$1:$AS$1,0)) -> 9.364871795 | O11: =INDEX('ICE Prices'!$E$9:$AS$20,MATCH($C11,'ICE Prices'!$C$9:$C$20,0),MATCH(O$1,'ICE Prices'!$E$1:$AS$1,0)) -> 17.46296296 | P11: =INDEX('ICE Prices'!$E$9:$AS$20,MATCH($C11,'ICE Prices'!$C$9:$C$20,0),MATCH(P$1,'ICE Prices'!$E$1:$AS$1,0)) -> 18.75 | Q11: =INDEX('ICE Prices'!$E$9:$AS$20,MATCH($C11,'ICE Prices'!$C$9:$C$20,0),MATCH(Q$1,'ICE Prices'!$E$1:$AS$1,0)) -> 17.641875 | R11: =INDEX('ICE Prices'!$E$9:$AS$20,MATCH($C11,'ICE Prices'!$C$9:$C$20,0),MATCH(R$1,'ICE Prices'!$E$1:$AS$1,0)) -> 14.64772727 | AA11: =INDEX('ICE Prices'!$E$9:$AS$20,MATCH($C11,'ICE Prices'!$C$9:$C$20,0),MATCH(AA$1,'ICE Prices'!$E$1:$AS$1,0)) -> 19.20703704 | AB11: =INDEX('ICE Prices'!$E$9:$AS$20,MATCH($C11,'ICE Prices'!$C$9:$C$20,0),MATCH(AB$1,'ICE Prices'!$E$1:$AS$1,0)) -> 16.14641026 | AE11: 15.52060028 | AF11: 11.99413625 | AG11: =INDEX('ICE Prices'!$E$9:$AS$20,MATCH($C11,'ICE Prices'!$C$9:$C$20,0),MATCH(AG$1,'ICE Prices'!$E$1:$AS$1,0)) -> 1.689677419 | AH11: =INDEX('ICE Prices'!$E$9:$AS$20,MATCH($C11,'ICE Prices'!$C$9:$C$20,0),MATCH(AH$1,'ICE Prices'!$E$1:$AS$1,0)) -> 1.574354839 | AI11: =INDEX('ICE Prices'!$E$9:$AS$20,MATCH($C11,'ICE Prices'!$C$9:$C$20,0),MATCH(AI$1,'ICE Prices'!$E$1:$AS$1,0)) -> 1.509354839 | AJ11: =INDEX('ICE Prices'!$E$9:$AS$20,MATCH($C11,'ICE Prices'!$C$9:$C$20,0),MATCH(AJ$1,'ICE Prices'!$E$1:$AS$1,0)) -> 1.508709677 | AK11: =INDEX('ICE Prices'!$E$9:$AS$20,MATCH($C11,'ICE Prices'!$C$9:$C$20,0),MATCH(AK$1,'ICE Prices'!$E$1:$AS$1,0)) -> 1.490961538 | AL11: 1.565809057 | AM11: =INDEX('ICE Prices'!$E$9:$AS$20,MATCH($C11,'ICE Prices'!$C$9:$C$20,0),MATCH(AM$1,'ICE Prices'!$E$1:$AS$1,0)) -> 1.517258065 | AN11: =INDEX('ICE Prices'!$E$9:$AS$20,MATCH($C11,'ICE Prices'!$C$9:$C$20,0),MATCH(AN$1,'ICE Prices'!$E$1:$AS$1,0)) -> 1.565322581 | AO11: =INDEX('ICE Prices'!$E$9:$AS$20,MATCH($C11,'ICE Prices'!$C$9:$C$20,0),MATCH(AO$1,'ICE Prices'!$E$1:$AS$1,0)) -> 1.425806452 | AP11: =INDEX('ICE Prices'!$E$9:$AS$20,MATCH($C11,'ICE Prices'!$C$9:$C$20,0),MATCH(AP$1,'ICE Prices'!$E$1:$AS$1,0)) -> 1.392419355 | AQ11: =INDEX('ICE Prices'!$E$9:$AS$20,MATCH($C11,'ICE Prices'!$C$9:$C$20,0),MATCH(AQ$1,'ICE Prices'!$E$1:$AS$1,0)) -> 1.022709677 | AR11: 1.637993115 | AS11: 1.545357713 | AT11: 1.662167281 | AU11: 1.556091042 | AV11: 1.545357713 | AW11: 1.551111164 | AX11: 1.545212668 | AY11: 1.513544511 | AZ11: =AO11 -> 1.425806452 | BA11: =INDEX('ICE Prices'!$E$9:$AS$20,MATCH($C11,'ICE Prices'!$C$9:$C$20,0),MATCH(BA$1,'ICE Prices'!$E$1:$AS$1,0)) -> 1.296129032 | BB11: =INDEX('ICE Prices'!$E$9:$AS$20,MATCH($C11,'ICE Prices'!$C$9:$C$20,0),MATCH(BB$1,'ICE Prices'!$E$1:$AS$1,0)) -> 1.896129032 | BJ11: =AO11*(1/(1-BJ$2))+BJ$3 -> 1.475254635 | BK11: =AP11*(1/(1-BK$2))+BK$3 -> 1.441444916 | BL11: =(AO11+BL$3)*BL$5+((1/(1-BL$2)-1)*AO11+BL$4*AO11) -> 1.531386227 | BM11: =(AP11+BM$3)*BM$5+((1/(1-BM$2)-1)*AP11+BM$4*AP11) -> 1.496290438 | BN11: =(BJ11+BK11+BL11+BM11)/4 -> 1.486094054 | BP11: =AJ11*(1/(1-BP$2))+BP$3 -> 1.54309854 | BQ11: =AO11*(1/(1-BQ$2))+BQ$3 -> 1.475254635 | BR11: =AN11*(1/(1-BR$2))+BR$3 -> 1.567474587 | BS11: =AK11*(1/(1-BS$2))+BS$3 -> 1.525459325 | BT11: =AM11*(1/(1-BT$2))+BT$3 -> 1.576526985 | BU11: =AK11*(1/(1-BU$2))+BU$3 -> 1.498775698 | BV11: =AJ11*(1/(1-BV$2))+BV$3 -> 1.57592956 | BX11: =[2]!mGetRate(BX$1,$B11,EOMONTH($B11,0)+1,"FLAT",E11,F11) -> 13.28982469 | BY11: =[2]!mGetRate(BY$1,$B11,EOMONTH($B11,0)+1,"FLAT",G11,H11) -> 16.15713462 | BZ11: =[2]!mGetRate(BZ$1,$B11,EOMONTH($B11,0)+1,"FLAT",I11,J11) -> 11.49695172 | CB11: =[2]!mGetRate(CB$1,$B11,EOMONTH($B11,0)+1,"FLAT",Q11,R11) -> 16.38860455 | CD11: =[2]!mGetRate(CD$1,$B11,EOMONTH($B11,0)+1,"FLAT",AE11,AF11) -> 14.04451641 | CE11: =[2]!mGetRate(CE$1,$B11,EOMONTH($B11,0)+1,"FLAT",AA11,AB11) -> 17.92594023 | CF11: =[2]!mGetRate(CF$1,$B11,EOMONTH($B11,0)+1,"FLAT",O11,P11) -> 18.00168237 | CG11: =+CG10+1 -> 2018 | CH11: =AVERAGEIF($CO$9:$CO$506,$CG11,CS$9:CS$506) -> 2.812861526 | CI11: =AVERAGEIF($CO$9:$CO$506,$CG11,CT$9:CT$506) -> 2.765862066 | CJ11: =AVERAGEIF($CO$9:$CO$506,$CG11,CU$9:CU$506) -> 2.812861526 | CK11: =AVERAGEIF($CO$9:$CO$506,$CG11,CR$9:CR$506) -> 2.825237852 | CL11: =AVERAGEIF($CO$9:$CO$506,$CG11,CV$9:CV$506) -> 2.853443489 | CM11: =AVERAGEIF($CO$9:$CO$506,$CG11,CQ$9:CQ$506) -> 3.087983777 | CO11: 2016 | CP11: 2016-03-01 | CQ11: 1.801993969 | CR11: 1.576526985 | CS11: 1.521678424 | CT11: 1.495516621 | CU11: 1.521678424 | CV11: 1.602810345 | CW11: 1.856718689
B12: 2016-04-01 | C12: 2016-04-30 | D12: 2016-04-01 | E12: =INDEX('ICE Prices'!$E$9:$AS$20,MATCH($C12,'ICE Prices'!$C$9:$C$20,0),MATCH(E$1,'ICE Prices'!$E$1:$AS$1,0)) -> 16.09076923 | F12: =INDEX('ICE Prices'!$E$9:$AS$20,MATCH($C12,'ICE Prices'!$C$9:$C$20,0),MATCH(F$1,'ICE Prices'!$E$1:$AS$1,0)) -> 10.41447368 | G12: =INDEX('ICE Prices'!$E$9:$AS$20,MATCH($C12,'ICE Prices'!$C$9:$C$20,0),MATCH(G$1,'ICE Prices'!$E$1:$AS$1,0)) -> 18.73538462 | H12: =INDEX('ICE Prices'!$E$9:$AS$20,MATCH($C12,'ICE Prices'!$C$9:$C$20,0),MATCH(H$1,'ICE Prices'!$E$1:$AS$1,0)) -> 16.22947368 | I12: =INDEX('ICE Prices'!$E$9:$AS$20,MATCH($C12,'ICE Prices'!$C$9:$C$20,0),MATCH(I$1,'ICE Prices'!$E$1:$AS$1,0)) -> 12.13730769 | J12: =INDEX('ICE Prices'!$E$9:$AS$20,MATCH($C12,'ICE Prices'!$C$9:$C$20,0),MATCH(J$1,'ICE Prices'!$E$1:$AS$1,0)) -> 6.045526316 | O12: =INDEX('ICE Prices'!$E$9:$AS$20,MATCH($C12,'ICE Prices'!$C$9:$C$20,0),MATCH(O$1,'ICE Prices'!$E$1:$AS$1,0)) -> 18.61538462 | P12: =INDEX('ICE Prices'!$E$9:$AS$20,MATCH($C12,'ICE Prices'!$C$9:$C$20,0),MATCH(P$1,'ICE Prices'!$E$1:$AS$1,0)) -> 18.65131579 | Q12: =INDEX('ICE Prices'!$E$9:$AS$20,MATCH($C12,'ICE Prices'!$C$9:$C$20,0),MATCH(Q$1,'ICE Prices'!$E$1:$AS$1,0)) -> 19.57857143 | R12: =INDEX('ICE Prices'!$E$9:$AS$20,MATCH($C12,'ICE Prices'!$C$9:$C$20,0),MATCH(R$1,'ICE Prices'!$E$1:$AS$1,0)) -> 16.6816129 | AA12: =INDEX('ICE Prices'!$E$9:$AS$20,MATCH($C12,'ICE Prices'!$C$9:$C$20,0),MATCH(AA$1,'ICE Prices'!$E$1:$AS$1,0)) -> 19.01192308 | AB12: =INDEX('ICE Prices'!$E$9:$AS$20,MATCH($C12,'ICE Prices'!$C$9:$C$20,0),MATCH(AB$1,'ICE Prices'!$E$1:$AS$1,0)) -> 17.00631579 | AE12: =(AE24/$E24)*E12 -> 21.65447103 | AF12: =(AF24/$F24)*F12 -> 37.07909699 | AG12: =INDEX('ICE Prices'!$E$9:$AS$20,MATCH($C12,'ICE Prices'!$C$9:$C$20,0),MATCH(AG$1,'ICE Prices'!$E$1:$AS$1,0)) -> 1.893 | AH12: =INDEX('ICE Prices'!$E$9:$AS$20,MATCH($C12,'ICE Prices'!$C$9:$C$20,0),MATCH(AH$1,'ICE Prices'!$E$1:$AS$1,0)) -> 1.762833333 | AI12: =INDEX('ICE Prices'!$E$9:$AS$20,MATCH($C12,'ICE Prices'!$C$9:$C$20,0),MATCH(AI$1,'ICE Prices'!$E$1:$AS$1,0)) -> 1.694 | AJ12: =INDEX('ICE Prices'!$E$9:$AS$20,MATCH($C12,'ICE Prices'!$C$9:$C$20,0),MATCH(AJ$1,'ICE Prices'!$E$1:$AS$1,0)) -> 1.694166667 | AK12: =INDEX('ICE Prices'!$E$9:$AS$20,MATCH($C12,'ICE Prices'!$C$9:$C$20,0),MATCH(AK$1,'ICE Prices'!$E$1:$AS$1,0)) -> 1.653333333 | AL12: =(AL24/$AJ24)*AJ12 -> 1.825367589 | AM12: =INDEX('ICE Prices'!$E$9:$AS$20,MATCH($C12,'ICE Prices'!$C$9:$C$20,0),MATCH(AM$1,'ICE Prices'!$E$1:$AS$1,0)) -> 1.687833333 | AN12: =INDEX('ICE Prices'!$E$9:$AS$20,MATCH($C12,'ICE Prices'!$C$9:$C$20,0),MATCH(AN$1,'ICE Prices'!$E$1:$AS$1,0)) -> 1.7255 | AO12: =INDEX('ICE Prices'!$E$9:$AS$20,MATCH($C12,'ICE Prices'!$C$9:$C$20,0),MATCH(AO$1,'ICE Prices'!$E$1:$AS$1,0)) -> 1.531666667 | AP12: =INDEX('ICE Prices'!$E$9:$AS$20,MATCH($C12,'ICE Prices'!$C$9:$C$20,0),MATCH(AP$1,'ICE Prices'!$E$1:$AS$1,0)) -> 1.310333333 | AQ12: =INDEX('ICE Prices'!$E$9:$AS$20,MATCH($C12,'ICE Prices'!$C$9:$C$20,0),MATCH(AQ$1,'ICE Prices'!$E$1:$AS$1,0)) -> 0.8360241379 | AR12: =(AR24/$AJ24)*AJ12 -> 1.917835464 | AS12: =(AS24/$AJ24)*AJ12 -> 1.812176368 | AT12: =(AT24/$AJ24)*AJ12 -> 1.917835464 | AU12: =(AU24/$AJ24)*AJ12 -> 1.775965172 | AV12: =(AV24/$AJ24)*AJ12 -> 1.793747455 | AW12: =(AW24/AS24)*AS12 -> 1.798273855 | AX12: =(AX24/$AJ24)*AJ12 -> 1.76367923 | AY12: =(AY24/$AJ24)*AJ12 -> 1.739430662 | AZ12: 1.531666667 | BA12: =INDEX('ICE Prices'!$E$9:$AS$20,MATCH($C12,'ICE Prices'!$C$9:$C$20,0),MATCH(BA$1,'ICE Prices'!$E$1:$AS$1,0)) -> 1.419833333 | BB12: =INDEX('ICE Prices'!$E$9:$AS$20,MATCH($C12,'ICE Prices'!$C$9:$C$20,0),MATCH(BB$1,'ICE Prices'!$E$1:$AS$1,0)) -> 1.949 | BJ12: =AO12*(1/(1-BJ$2))+BJ$3 -> 1.582454852 | BK12: =AP12*(1/(1-BK$2))+BK$3 -> 1.358319831 | BL12: =(AO12+BL$3)*BL$5+((1/(1-BL$2)-1)*AO12+BL$4*AO12) -> 1.64266418 | BM12: =(AP12+BM$3)*BM$5+((1/(1-BM$2)-1)*AP12+BM$4*AP12) -> 1.410003399 | BN12: =(BJ12+BK12+BL12+BM12)/4 -> 1.498360566 | BP12: =AJ12*(1/(1-BP$2))+BP$3 -> 1.732282452 | BQ12: 1.582454852 | BR12: 1.727707249 | BS12: 1.69114483 | BT12: 1.751314636 | BU12: 1.661737117 | BV12: 1.762224879 | BX12: =[2]!mGetRate(BX$1,$B12,EOMONTH($B12,0)+1,"FLAT",E12,F12) -> 13.69411111 | BY12: =[2]!mGetRate(BY$1,$B12,EOMONTH($B12,0)+1,"FLAT",G12,H12) -> 17.67733333 | BZ12: =[2]!mGetRate(BZ$1,$B12,EOMONTH($B12,0)+1,"FLAT",I12,J12) -> 9.565222222 | CB12: =[2]!mGetRate(CB$1,$B12,EOMONTH($B12,0)+1,"FLAT",Q12,R12) -> 18.35541116 | CD12: =[2]!mGetRate(CD$1,$B12,EOMONTH($B12,0)+1,"FLAT",AE12,AF12) -> 28.16709088 | CE12: =[2]!mGetRate(CE$1,$B12,EOMONTH($B12,0)+1,"FLAT",AA12,AB12) -> 18.16511111 | CF12: =[2]!mGetRate(CF$1,$B12,EOMONTH($B12,0)+1,"FLAT",O12,P12) -> 18.63055556 | CG12: =+CG11+1 -> 2019 | CH12: =AVERAGEIF($CO$9:$CO$506,$CG12,CS$9:CS$506) -> 2.582489871 | CI12: =AVERAGEIF($CO$9:$CO$506,$CG12,CT$9:CT$506) -> 2.539208246 | CJ12: =AVERAGEIF($CO$9:$CO$506,$CG12,CU$9:CU$506) -> 2.582489871 | CK12: =AVERAGEIF($CO$9:$CO$506,$CG12,CR$9:CR$506) -> 2.594467965 | CL12: =AVERAGEIF($CO$9:$CO$506,$CG12,CV$9:CV$506) -> 2.622318352 | CM12: =AVERAGEIF($CO$9:$CO$506,$CG12,CQ$9:CQ$506) -> 2.899564187 | CO12: 2016 | CP12: 2016-04-01 | CQ12: 1.991977673 | CR12: 1.751314636 | CS12: 1.687313225 | CT12: 1.658478337 | CU12: 1.687313225 | CV12: 1.777867066 | CW12: 2.043897726
B13: 2016-05-01 | C13: 2016-05-31 | D13: 2016-05-01 | E13: =INDEX('ICE Prices'!$E$9:$AS$20,MATCH($C13,'ICE Prices'!$C$9:$C$20,0),MATCH(E$1,'ICE Prices'!$E$1:$AS$1,0)) -> 19.5088 | F13: =INDEX('ICE Prices'!$E$9:$AS$20,MATCH($C13,'ICE Prices'!$C$9:$C$20,0),MATCH(F$1,'ICE Prices'!$E$1:$AS$1,0)) -> 14.51 | G13: =INDEX('ICE Prices'!$E$9:$AS$20,MATCH($C13,'ICE Prices'!$C$9:$C$20,0),MATCH(G$1,'ICE Prices'!$E$1:$AS$1,0)) -> 18.5756 | H13: =INDEX('ICE Prices'!$E$9:$AS$20,MATCH($C13,'ICE Prices'!$C$9:$C$20,0),MATCH(H$1,'ICE Prices'!$E$1:$AS$1,0)) -> 15.22837209 | I13: =INDEX('ICE Prices'!$E$9:$AS$20,MATCH($C13,'ICE Prices'!$C$9:$C$20,0),MATCH(I$1,'ICE Prices'!$E$1:$AS$1,0)) -> 14.5772 | J13: =INDEX('ICE Prices'!$E$9:$AS$20,MATCH($C13,'ICE Prices'!$C$9:$C$20,0),MATCH(J$1,'ICE Prices'!$E$1:$AS$1,0)) -> 10.14767442 | O13: =INDEX('ICE Prices'!$E$9:$AS$20,MATCH($C13,'ICE Prices'!$C$9:$C$20,0),MATCH(O$1,'ICE Prices'!$E$1:$AS$1,0)) -> 19.54 | P13: =INDEX('ICE Prices'!$E$9:$AS$20,MATCH($C13,'ICE Prices'!$C$9:$C$20,0),MATCH(P$1,'ICE Prices'!$E$1:$AS$1,0)) -> 15.88372093 | Q13: =INDEX('ICE Prices'!$E$9:$AS$20,MATCH($C13,'ICE Prices'!$C$9:$C$20,0),MATCH(Q$1,'ICE Prices'!$E$1:$AS$1,0)) -> 18.86125 | R13: =INDEX('ICE Prices'!$E$9:$AS$20,MATCH($C13,'ICE Prices'!$C$9:$C$20,0),MATCH(R$1,'ICE Prices'!$E$1:$AS$1,0)) -> 15.86627907 | AA13: =INDEX('ICE Prices'!$E$9:$AS$20,MATCH($C13,'ICE Prices'!$C$9:$C$20,0),MATCH(AA$1,'ICE Prices'!$E$1:$AS$1,0)) -> 19.3892 | AB13: =INDEX('ICE Prices'!$E$9:$AS$20,MATCH($C13,'ICE Prices'!$C$9:$C$20,0),MATCH(AB$1,'ICE Prices'!$E$1:$AS$1,0)) -> 16.13674419 | AE13: =(AE25/$E25)*E13 -> 24.37148452 | AF13: =(AF25/$F25)*F13 -> 40.51394465 | AG13: =INDEX('ICE Prices'!$E$9:$AS$20,MATCH($C13,'ICE Prices'!$C$9:$C$20,0),MATCH(AG$1,'ICE Prices'!$E$1:$AS$1,0)) -> 1.892258065 | AH13: =INDEX('ICE Prices'!$E$9:$AS$20,MATCH($C13,'ICE Prices'!$C$9:$C$20,0),MATCH(AH$1,'ICE Prices'!$E$1:$AS$1,0)) -> 1.792580645 | AI13: =INDEX('ICE Prices'!$E$9:$AS$20,MATCH($C13,'ICE Prices'!$C$9:$C$20,0),MATCH(AI$1,'ICE Prices'!$E$1:$AS$1,0)) -> 1.713387097 | AJ13: =INDEX('ICE Prices'!$E$9:$AS$20,MATCH($C13,'ICE Prices'!$C$9:$C$20,0),MATCH(AJ$1,'ICE Prices'!$E$1:$AS$1,0)) -> 1.726612903 | AK13: =INDEX('ICE Prices'!$E$9:$AS$20,MATCH($C13,'ICE Prices'!$C$9:$C$20,0),MATCH(AK$1,'ICE Prices'!$E$1:$AS$1,0)) -> 1.6925 | AL13: =(AL25/$AJ25)*AJ13 -> 1.795496487 | AM13: =INDEX('ICE Prices'!$E$9:$AS$20,MATCH($C13,'ICE Prices'!$C$9:$C$20,0),MATCH(AM$1,'ICE Prices'!$E$1:$AS$1,0)) -> 1.735806452 | AN13: =INDEX('ICE Prices'!$E$9:$AS$20,MATCH($C13,'ICE Prices'!$C$9:$C$20,0),MATCH(AN$1,'ICE Prices'!$E$1:$AS$1,0)) -> 1.765645161 | AO13: =INDEX('ICE Prices'!$E$9:$AS$20,MATCH($C13,'ICE Prices'!$C$9:$C$20,0),MATCH(AO$1,'ICE Prices'!$E$1:$AS$1,0)) -> 1.637258065 | AP13: =INDEX('ICE Prices'!$E$9:$AS$20,MATCH($C13,'ICE Prices'!$C$9:$C$20,0),MATCH(AP$1,'ICE Prices'!$E$1:$AS$1,0)) -> 1.349193548 | AQ13: =INDEX('ICE Prices'!$E$9:$AS$20,MATCH($C13,'ICE Prices'!$C$9:$C$20,0),MATCH(AQ$1,'ICE Prices'!$E$1:$AS$1,0)) -> 0.9593225806 | AR13: =(AR25/$AJ25)*AJ13 -> 1.887513582 | AS13: =(AS25/$AJ25)*AJ13 -> 1.747678615 | AT13: =(AT25/$AJ25)*AJ13 -> 1.919822955 | AU13: =(AU25/$AJ25)*AJ13 -> 1.760020795 | AV13: =(AV25/$AJ25)*AJ13 -> 1.756014433 | AW13: =(AW25/AS25)*AS13 -> 1.706774948 | AX13: =(AX25/$AJ25)*AJ13 -> 1.747613996 | AY13: =(AY25/$AJ25)*AJ13 -> 1.723381966 | AZ13: 1.637258065 | BA13: =INDEX('ICE Prices'!$E$9:$AS$20,MATCH($C13,'ICE Prices'!$C$9:$C$20,0),MATCH(BA$1,'ICE Prices'!$E$1:$AS$1,0)) -> 1.520645161 | BB13: =INDEX('ICE Prices'!$E$9:$AS$20,MATCH($C13,'ICE Prices'!$C$9:$C$20,0),MATCH(BB$1,'ICE Prices'!$E$1:$AS$1,0)) -> 1.940483871 | BJ13: 1.68938285 | BK13: 1.397671948 | BL13: 1.753659559 | BM13: 1.450852411 | BN13: 1.572891692 | BP13: 1.765380724 | BQ13: 1.68938285 | BR13: 1.767866255 | BS13: 1.731110816 | BT13: 1.800472458 | BU13: 1.70104601 | BV13: 1.794817783 | BX13: =[2]!mGetRate(BX$1,$B13,EOMONTH($B13,0)+1,"FLAT",E13,F13) -> 17.19752688 | BY13: =[2]!mGetRate(BY$1,$B13,EOMONTH($B13,0)+1,"FLAT",G13,H13) -> 17.02795699 | BZ13: =[2]!mGetRate(BZ$1,$B13,EOMONTH($B13,0)+1,"FLAT",I13,J13) -> 12.52913978 | CB13: =[2]!mGetRate(CB$1,$B13,EOMONTH($B13,0)+1,"FLAT",Q13,R13) -> 17.47647849 | CD13: =[2]!mGetRate(CD$1,$B13,EOMONTH($B13,0)+1,"FLAT",AE13,AF13) -> 31.83520265 | CE13: =[2]!mGetRate(CE$1,$B13,EOMONTH($B13,0)+1,"FLAT",AA13,AB13) -> 17.88537634 | CF13: =[2]!mGetRate(CF$1,$B13,EOMONTH($B13,0)+1,"FLAT",O13,P13) -> 17.84946237 | CG13: 2020 | CH13: =AVERAGEIF($CO$9:$CO$506,$CG13,CS$9:CS$506) -> 2.607949765 | CI13: =AVERAGEIF($CO$9:$CO$506,$CG13,CT$9:CT$506) -> 2.564257257 | CJ13: =AVERAGEIF($CO$9:$CO$506,$CG13,CU$9:CU$506) -> 2.607949765 | CK13: =AVERAGEIF($CO$9:$CO$506,$CG13,CR$9:CR$506) -> 2.597413963 | CL13: =AVERAGEIF($CO$9:$CO$506,$CG13,CV$9:CV$506) -> 2.625268886 | CM13: =AVERAGEIF($CO$9:$CO$506,$CG13,CQ$9:CQ$506) -> 2.915383716 | CO13: 2016 | CP13: 2016-05-01 | CQ13: 2.011925298 | CR13: 1.800472458 | CS13: 1.727266981 | CT13: 1.697787302 | CU13: 1.727266981 | CV13: 1.827100562 | CW13: 2.076645239
B14: 2016-06-01 | C14: 2016-06-30 | D14: 2016-06-01 | E14: =INDEX('ICE Prices'!$E$9:$AS$20,MATCH($C14,'ICE Prices'!$C$9:$C$20,0),MATCH(E$1,'ICE Prices'!$E$1:$AS$1,0)) -> 26.56961538 | F14: =INDEX('ICE Prices'!$E$9:$AS$20,MATCH($C14,'ICE Prices'!$C$9:$C$20,0),MATCH(F$1,'ICE Prices'!$E$1:$AS$1,0)) -> 18.20078947 | G14: =INDEX('ICE Prices'!$E$9:$AS$20,MATCH($C14,'ICE Prices'!$C$9:$C$20,0),MATCH(G$1,'ICE Prices'!$E$1:$AS$1,0)) -> 30.12076923 | H14: =INDEX('ICE Prices'!$E$9:$AS$20,MATCH($C14,'ICE Prices'!$C$9:$C$20,0),MATCH(H$1,'ICE Prices'!$E$1:$AS$1,0)) -> 19.10605263 | I14: =INDEX('ICE Prices'!$E$9:$AS$20,MATCH($C14,'ICE Prices'!$C$9:$C$20,0),MATCH(I$1,'ICE Prices'!$E$1:$AS$1,0)) -> 21.70538462 | J14: =INDEX('ICE Prices'!$E$9:$AS$20,MATCH($C14,'ICE Prices'!$C$9:$C$20,0),MATCH(J$1,'ICE Prices'!$E$1:$AS$1,0)) -> 15.57921053 | O14: =INDEX('ICE Prices'!$E$9:$AS$20,MATCH($C14,'ICE Prices'!$C$9:$C$20,0),MATCH(O$1,'ICE Prices'!$E$1:$AS$1,0)) -> 25.07692308 | P14: =INDEX('ICE Prices'!$E$9:$AS$20,MATCH($C14,'ICE Prices'!$C$9:$C$20,0),MATCH(P$1,'ICE Prices'!$E$1:$AS$1,0)) -> 16.11842105 | Q14: =INDEX('ICE Prices'!$E$9:$AS$20,MATCH($C14,'ICE Prices'!$C$9:$C$20,0),MATCH(Q$1,'ICE Prices'!$E$1:$AS$1,0)) -> 35.44769231 | R14: =INDEX('ICE Prices'!$E$9:$AS$20,MATCH($C14,'ICE Prices'!$C$9:$C$20,0),MATCH(R$1,'ICE Prices'!$E$1:$AS$1,0)) -> 16.54710526 | AA14: =INDEX('ICE Prices'!$E$9:$AS$20,MATCH($C14,'ICE Prices'!$C$9:$C$20,0),MATCH(AA$1,'ICE Prices'!$E$1:$AS$1,0)) -> 33.30269231 | AB14: =INDEX('ICE Prices'!$E$9:$AS$20,MATCH($C14,'ICE Prices'!$C$9:$C$20,0),MATCH(AB$1,'ICE Prices'!$E$1:$AS$1,0)) -> 20.24921053 | AE14: =(AE26/$E26)*E14 -> 35.59012021 | AF14: =(AF26/$F26)*F14 -> 55.80529416 | AG14: =INDEX('ICE Prices'!$E$9:$AS$20,MATCH($C14,'ICE Prices'!$C$9:$C$20,0),MATCH(AG$1,'ICE Prices'!$E$1:$AS$1,0)) -> 2.520166667 | AH14: =INDEX('ICE Prices'!$E$9:$AS$20,MATCH($C14,'ICE Prices'!$C$9:$C$20,0),MATCH(AH$1,'ICE Prices'!$E$1:$AS$1,0)) -> 2.489833333 | AI14: =INDEX('ICE Prices'!$E$9:$AS$20,MATCH($C14,'ICE Prices'!$C$9:$C$20,0),MATCH(AI$1,'ICE Prices'!$E$1:$AS$1,0)) -> 2.354 | AJ14: =INDEX('ICE Prices'!$E$9:$AS$20,MATCH($C14,'ICE Prices'!$C$9:$C$20,0),MATCH(AJ$1,'ICE Prices'!$E$1:$AS$1,0)) -> 2.323333333 | AK14: =INDEX('ICE Prices'!$E$9:$AS$20,MATCH($C14,'ICE Prices'!$C$9:$C$20,0),MATCH(AK$1,'ICE Prices'!$E$1:$AS$1,0)) -> 2.288148148 | AL14: =(AL26/$AJ26)*AJ14 -> 2.411641755 | AM14: =INDEX('ICE Prices'!$E$9:$AS$20,MATCH($C14,'ICE Prices'!$C$9:$C$20,0),MATCH(AM$1,'ICE Prices'!$E$1:$AS$1,0)) -> 2.2865 | AN14: =INDEX('ICE Prices'!$E$9:$AS$20,MATCH($C14,'ICE Prices'!$C$9:$C$20,0),MATCH(AN$1,'ICE Prices'!$E$1:$AS$1,0)) -> 2.375666667 | AO14: =INDEX('ICE Prices'!$E$9:$AS$20,MATCH($C14,'ICE Prices'!$C$9:$C$20,0),MATCH(AO$1,'ICE Prices'!$E$1:$AS$1,0)) -> 2.216166667 | AP14: =INDEX('ICE Prices'!$E$9:$AS$20,MATCH($C14,'ICE Prices'!$C$9:$C$20,0),MATCH(AP$1,'ICE Prices'!$E$1:$AS$1,0)) -> 1.940166667 | AQ14: =INDEX('ICE Prices'!$E$9:$AS$20,MATCH($C14,'ICE Prices'!$C$9:$C$20,0),MATCH(AQ$1,'ICE Prices'!$E$1:$AS$1,0)) -> 1.423386667 | AR14: =(AR26/$AJ26)*AJ14 -> 2.528956592 | AS14: =(AS26/$AJ26)*AJ14 -> 2.349600254 | AT14: =(AT26/$AJ26)*AJ14 -> 2.569243281 | AU14: =(AU26/$AJ26)*AJ14 -> 2.36619837 | AV14: =(AV26/$AJ26)*AJ14 -> 2.36047766 | AW14: =(AW26/AS26)*AS14 -> 2.302787122 | AX14: =(AX26/$AJ26)*AJ14 -> 2.349519681 | AY14: =(AY26/$AJ26)*AJ14 -> 2.319304664 | AZ14: 2.216166667 | BA14: =INDEX('ICE Prices'!$E$9:$AS$20,MATCH($C14,'ICE Prices'!$C$9:$C$20,0),MATCH(BA$1,'ICE Prices'!$E$1:$AS$1,0)) -> 2.0945 | BB14: =INDEX('ICE Prices'!$E$9:$AS$20,MATCH($C14,'ICE Prices'!$C$9:$C$20,0),MATCH(BB$1,'ICE Prices'!$E$1:$AS$1,0)) -> 2.617333333 | BJ14: 2.275619409 | BK14: 1.996125738 | BL14: 2.362195677 | BM14: 2.072070486 | BN14: 2.176502828 | BP14: 2.374092782 | BQ14: 2.275619409 | BR14: 2.378098144 | BS14: 2.338915049 | BT14: 2.364765468 | BU14: 2.298857148 | BV14: 2.394235594 | BX14: =[2]!mGetRate(BX$1,$B14,EOMONTH($B14,0)+1,"FLAT",E14,F14) -> 23.03611111 | BY14: =[2]!mGetRate(BY$1,$B14,EOMONTH($B14,0)+1,"FLAT",G14,H14) -> 25.47011111 | BZ14: =[2]!mGetRate(BZ$1,$B14,EOMONTH($B14,0)+1,"FLAT",I14,J14) -> 19.11877778 | CB14: =[2]!mGetRate(CB$1,$B14,EOMONTH($B14,0)+1,"FLAT",Q14,R14) -> 27.46744444 | CD14: =[2]!mGetRate(CD$1,$B14,EOMONTH($B14,0)+1,"FLAT",AE14,AF14) -> 44.12541588 | CE14: =[2]!mGetRate(CE$1,$B14,EOMONTH($B14,0)+1,"FLAT",AA14,AB14) -> 27.79122222 | CF14: =[2]!mGetRate(CF$1,$B14,EOMONTH($B14,0)+1,"FLAT",O14,P14) -> 21.29444444 | CG14: 2021 | CH14: =AVERAGEIF($CO$9:$CO$506,$CG14,CS$9:CS$506) -> 2.671918278 | CI14: =AVERAGEIF($CO$9:$CO$506,$CG14,CT$9:CT$506) -> 2.627193419 | CJ14: =AVERAGEIF($CO$9:$CO$506,$CG14,CU$9:CU$506) -> 2.671918278 | CK14: =AVERAGEIF($CO$9:$CO$506,$CG14,CR$9:CR$506) -> 2.650570024 | CL14: =AVERAGEIF($CO$9:$CO$506,$CG14,CV$9:CV$506) -> 2.678506776 | CM14: =AVERAGEIF($CO$9:$CO$506,$CG14,CQ$9:CQ$506) -> 2.992123435 | CO14: 2016 | CP14: 2016-06-01 | CQ14: 2.671059883 | CR14: 2.364765468 | CS14: 2.334885208 | CT14: 2.29559953 | CU14: 2.334885208 | CV14: 2.39226225 | CW14: 2.678906473
B15: 2016-07-01 | C15: 2016-07-31 | D15: 2016-07-01 | E15: =INDEX('ICE Prices'!$E$9:$AS$20,MATCH($C15,'ICE Prices'!$C$9:$C$20,0),MATCH(E$1,'ICE Prices'!$E$1:$AS$1,0)) -> 36.7656 | F15: =INDEX('ICE Prices'!$E$9:$AS$20,MATCH($C15,'ICE Prices'!$C$9:$C$20,0),MATCH(F$1,'ICE Prices'!$E$1:$AS$1,0)) -> 24.09465116 | G15: =INDEX('ICE Prices'!$E$9:$AS$20,MATCH($C15,'ICE Prices'!$C$9:$C$20,0),MATCH(G$1,'ICE Prices'!$E$1:$AS$1,0)) -> 41.3992 | H15: =INDEX('ICE Prices'!$E$9:$AS$20,MATCH($C15,'ICE Prices'!$C$9:$C$20,0),MATCH(H$1,'ICE Prices'!$E$1:$AS$1,0)) -> 23.50860465 | I15: =INDEX('ICE Prices'!$E$9:$AS$20,MATCH($C15,'ICE Prices'!$C$9:$C$20,0),MATCH(I$1,'ICE Prices'!$E$1:$AS$1,0)) -> 31.152 | J15: =INDEX('ICE Prices'!$E$9:$AS$20,MATCH($C15,'ICE Prices'!$C$9:$C$20,0),MATCH(J$1,'ICE Prices'!$E$1:$AS$1,0)) -> 21.51325581 | O15: =INDEX('ICE Prices'!$E$9:$AS$20,MATCH($C15,'ICE Prices'!$C$9:$C$20,0),MATCH(O$1,'ICE Prices'!$E$1:$AS$1,0)) -> 46.9372 | P15: =INDEX('ICE Prices'!$E$9:$AS$20,MATCH($C15,'ICE Prices'!$C$9:$C$20,0),MATCH(P$1,'ICE Prices'!$E$1:$AS$1,0)) -> 22.51162791 | Q15: =INDEX('ICE Prices'!$E$9:$AS$20,MATCH($C15,'ICE Prices'!$C$9:$C$20,0),MATCH(Q$1,'ICE Prices'!$E$1:$AS$1,0)) -> 44.27 | R15: =INDEX('ICE Prices'!$E$9:$AS$20,MATCH($C15,'ICE Prices'!$C$9:$C$20,0),MATCH(R$1,'ICE Prices'!$E$1:$AS$1,0)) -> 21.44767442 | AA15: =INDEX('ICE Prices'!$E$9:$AS$20,MATCH($C15,'ICE Prices'!$C$9:$C$20,0),MATCH(AA$1,'ICE Prices'!$E$1:$AS$1,0)) -> 44.9836 | AB15: =INDEX('ICE Prices'!$E$9:$AS$20,MATCH($C15,'ICE Prices'!$C$9:$C$20,0),MATCH(AB$1,'ICE Prices'!$E$1:$AS$1,0)) -> 24.16255814 | AE15: =(AE27/$E27)*E15 -> 40.52052351 | AF15: =(AF27/$F27)*F15 -> 32.97051924 | AG15: =INDEX('ICE Prices'!$E$9:$AS$20,MATCH($C15,'ICE Prices'!$C$9:$C$20,0),MATCH(AG$1,'ICE Prices'!$E$1:$AS$1,0)) -> 2.784032258 | AH15: =INDEX('ICE Prices'!$E$9:$AS$20,MATCH($C15,'ICE Prices'!$C$9:$C$20,0),MATCH(AH$1,'ICE Prices'!$E$1:$AS$1,0)) -> 2.829032258 | AI15: =INDEX('ICE Prices'!$E$9:$AS$20,MATCH($C15,'ICE Prices'!$C$9:$C$20,0),MATCH(AI$1,'ICE Prices'!$E$1:$AS$1,0)) -> 2.587096774 | AJ15: =INDEX('ICE Prices'!$E$9:$AS$20,MATCH($C15,'ICE Prices'!$C$9:$C$20,0),MATCH(AJ$1,'ICE Prices'!$E$1:$AS$1,0)) -> 2.576935484 | AK15: =INDEX('ICE Prices'!$E$9:$AS$20,MATCH($C15,'ICE Prices'!$C$9:$C$20,0),MATCH(AK$1,'ICE Prices'!$E$1:$AS$1,0)) -> 2.5255 | AL15: =(AL27/$AJ27)*AJ15 -> 2.68626002 | AM15: =INDEX('ICE Prices'!$E$9:$AS$20,MATCH($C15,'ICE Prices'!$C$9:$C$20,0),MATCH(AM$1,'ICE Prices'!$E$1:$AS$1,0)) -> 2.522258065 | AN15: =INDEX('ICE Prices'!$E$9:$AS$20,MATCH($C15,'ICE Prices'!$C$9:$C$20,0),MATCH(AN$1,'ICE Prices'!$E$1:$AS$1,0)) -> 2.609516129 | AO15: =INDEX('ICE Prices'!$E$9:$AS$20,MATCH($C15,'ICE Prices'!$C$9:$C$20,0),MATCH(AO$1,'ICE Prices'!$E$1:$AS$1,0)) -> 2.486129032 | AP15: =INDEX('ICE Prices'!$E$9:$AS$20,MATCH($C15,'ICE Prices'!$C$9:$C$20,0),MATCH(AP$1,'ICE Prices'!$E$1:$AS$1,0)) -> 2.307580645 | AQ15: =INDEX('ICE Prices'!$E$9:$AS$20,MATCH($C15,'ICE Prices'!$C$9:$C$20,0),MATCH(AQ$1,'ICE Prices'!$E$1:$AS$1,0)) -> 1.828535484 | AR15: =(AR27/$AJ27)*AJ15 -> 2.813892077 | AS15: =(AS27/$AJ27)*AJ15 -> 2.640968426 | AT15: =(AT27/$AJ27)*AJ15 -> 2.857274829 | AU15: =(AU27/$AJ27)*AJ15 -> 2.659275948 | AV15: =(AV27/$AJ27)*AJ15 -> 2.641489019 | AW15: =(AW27/AS27)*AS15 -> 2.564180955 | AX15: =(AX27/$AJ27)*AJ15 -> 2.640794895 | AY15: =(AY27/$AJ27)*AJ15 -> 2.585612034 | AZ15: 2.486129032 | BA15: =INDEX('ICE Prices'!$E$9:$AS$20,MATCH($C15,'ICE Prices'!$C$9:$C$20,0),MATCH(BA$1,'ICE Prices'!$E$1:$AS$1,0)) -> 2.335322581 | BB15: =INDEX('ICE Prices'!$E$9:$AS$20,MATCH($C15,'ICE Prices'!$C$9:$C$20,0),MATCH(BB$1,'ICE Prices'!$E$1:$AS$1,0)) -> 2.983548387 | BJ15: 2.54899902 | BK15: 2.368190527 | BL15: 2.645974238 | BM15: 2.458288061 | BN15: 2.505362962 | BP15: 2.632791293 | BQ15: 2.54899902 | BR15: 2.612028256 | BS15: 2.581110816 | BT15: 2.606345614 | BU15: 2.5370709 | BV15: 2.648984112 | BX15: =[2]!mGetRate(BX$1,$B15,EOMONTH($B15,0)+1,"FLAT",E15,F15) -> 30.90698925 | BY15: =[2]!mGetRate(BY$1,$B15,EOMONTH($B15,0)+1,"FLAT",G15,H15) -> 33.1272043 | BZ15: =[2]!mGetRate(BZ$1,$B15,EOMONTH($B15,0)+1,"FLAT",I15,J15) -> 26.69537634 | CB15: =[2]!mGetRate(CB$1,$B15,EOMONTH($B15,0)+1,"FLAT",Q15,R15) -> 33.71774194 | CD15: =[2]!mGetRate(CD$1,$B15,EOMONTH($B15,0)+1,"FLAT",AE15,AF15) -> 37.02966132 | CE15: =[2]!mGetRate(CE$1,$B15,EOMONTH($B15,0)+1,"FLAT",AA15,AB15) -> 35.35666667 | CF15: =[2]!mGetRate(CF$1,$B15,EOMONTH($B15,0)+1,"FLAT",O15,P15) -> 35.64365591 | CG15: 2022 | CH15: =AVERAGEIF($CO$9:$CO$506,$CG15,CS$9:CS$506) -> 2.714464777 | CI15: =AVERAGEIF($CO$9:$CO$506,$CG15,CT$9:CT$506) -> 2.669053285 | CJ15: =AVERAGEIF($CO$9:$CO$506,$CG15,CU$9:CU$506) -> 2.714464777 | CK15: =AVERAGEIF($CO$9:$CO$506,$CG15,CR$9:CR$506) -> 2.682420965 | CL15: =AVERAGEIF($CO$9:$CO$506,$CG15,CV$9:CV$506) -> 2.710406749 | CM15: =AVERAGEIF($CO$9:$CO$506,$CG15,CQ$9:CQ$506) -> 3.044898069 | CO15: 2016 | CP15: 2016-07-01 | CQ15: 2.910896053 | CR15: 2.606345614 | CS15: 2.577006856 | CT15: 2.533813718 | CU15: 2.577006856 | CV15: 2.634214286 | CW15: 2.934863427
B16: 2016-08-01 | C16: 2016-08-31 | D16: 2016-08-01 | E16: =INDEX('ICE Prices'!$E$9:$AS$20,MATCH($C16,'ICE Prices'!$C$9:$C$20,0),MATCH(E$1,'ICE Prices'!$E$1:$AS$1,0)) -> 38.25074074 | F16: =INDEX('ICE Prices'!$E$9:$AS$20,MATCH($C16,'ICE Prices'!$C$9:$C$20,0),MATCH(F$1,'ICE Prices'!$E$1:$AS$1,0)) -> 25.30487179 | G16: =INDEX('ICE Prices'!$E$9:$AS$20,MATCH($C16,'ICE Prices'!$C$9:$C$20,0),MATCH(G$1,'ICE Prices'!$E$1:$AS$1,0)) -> 36.6137037 | H16: =INDEX('ICE Prices'!$E$9:$AS$20,MATCH($C16,'ICE Prices'!$C$9:$C$20,0),MATCH(H$1,'ICE Prices'!$E$1:$AS$1,0)) -> 23.48333333 | I16: =INDEX('ICE Prices'!$E$9:$AS$20,MATCH($C16,'ICE Prices'!$C$9:$C$20,0),MATCH(I$1,'ICE Prices'!$E$1:$AS$1,0)) -> 35.27222222 | J16: =INDEX('ICE Prices'!$E$9:$AS$20,MATCH($C16,'ICE Prices'!$C$9:$C$20,0),MATCH(J$1,'ICE Prices'!$E$1:$AS$1,0)) -> 23.48025641 | O16: =INDEX('ICE Prices'!$E$9:$AS$20,MATCH($C16,'ICE Prices'!$C$9:$C$20,0),MATCH(O$1,'ICE Prices'!$E$1:$AS$1,0)) -> 42.40296296 | P16: =INDEX('ICE Prices'!$E$9:$AS$20,MATCH($C16,'ICE Prices'!$C$9:$C$20,0),MATCH(P$1,'ICE Prices'!$E$1:$AS$1,0)) -> 21.56410256 | Q16: =INDEX('ICE Prices'!$E$9:$AS$20,MATCH($C16,'ICE Prices'!$C$9:$C$20,0),MATCH(Q$1,'ICE Prices'!$E$1:$AS$1,0)) -> 42.37037037 | R16: =INDEX('ICE Prices'!$E$9:$AS$20,MATCH($C16,'ICE Prices'!$C$9:$C$20,0),MATCH(R$1,'ICE Prices'!$E$1:$AS$1,0)) -> 23.17666667 | AA16: =INDEX('ICE Prices'!$E$9:$AS$20,MATCH($C16,'ICE Prices'!$C$9:$C$20,0),MATCH(AA$1,'ICE Prices'!$E$1:$AS$1,0)) -> 38.65111111 | AB16: =INDEX('ICE Prices'!$E$9:$AS$20,MATCH($C16,'ICE Prices'!$C$9:$C$20,0),MATCH(AB$1,'ICE Prices'!$E$1:$AS$1,0)) -> 24.87153846 | AE16: =(AE28/$E28)*E16 -> 40.43639845 | AF16: =(AF28/$F28)*F16 -> 27.3851347 | AG16: =INDEX('ICE Prices'!$E$9:$AS$20,MATCH($C16,'ICE Prices'!$C$9:$C$20,0),MATCH(AG$1,'ICE Prices'!$E$1:$AS$1,0)) -> 2.785322581 | AH16: =INDEX('ICE Prices'!$E$9:$AS$20,MATCH($C16,'ICE Prices'!$C$9:$C$20,0),MATCH(AH$1,'ICE Prices'!$E$1:$AS$1,0)) -> 2.798870968 | AI16: =INDEX('ICE Prices'!$E$9:$AS$20,MATCH($C16,'ICE Prices'!$C$9:$C$20,0),MATCH(AI$1,'ICE Prices'!$E$1:$AS$1,0)) -> 2.593548387 | AJ16: =INDEX('ICE Prices'!$E$9:$AS$20,MATCH($C16,'ICE Prices'!$C$9:$C$20,0),MATCH(AJ$1,'ICE Prices'!$E$1:$AS$1,0)) -> 2.597580645 | AK16: =INDEX('ICE Prices'!$E$9:$AS$20,MATCH($C16,'ICE Prices'!$C$9:$C$20,0),MATCH(AK$1,'ICE Prices'!$E$1:$AS$1,0)) -> 2.5788 | AL16: =(AL28/$AJ28)*AJ16 -> 2.70606231 | AM16: =INDEX('ICE Prices'!$E$9:$AS$20,MATCH($C16,'ICE Prices'!$C$9:$C$20,0),MATCH(AM$1,'ICE Prices'!$E$1:$AS$1,0)) -> 2.550806452 | AN16: =INDEX('ICE Prices'!$E$9:$AS$20,MATCH($C16,'ICE Prices'!$C$9:$C$20,0),MATCH(AN$1,'ICE Prices'!$E$1:$AS$1,0)) -> 2.659193548 | AO16: =INDEX('ICE Prices'!$E$9:$AS$20,MATCH($C16,'ICE Prices'!$C$9:$C$20,0),MATCH(AO$1,'ICE Prices'!$E$1:$AS$1,0)) -> 2.568387097 | AP16: =INDEX('ICE Prices'!$E$9:$AS$20,MATCH($C16,'ICE Prices'!$C$9:$C$20,0),MATCH(AP$1,'ICE Prices'!$E$1:$AS$1,0)) -> 2.504516129 | AQ16: =INDEX('ICE Prices'!$E$9:$AS$20,MATCH($C16,'ICE Prices'!$C$9:$C$20,0),MATCH(AQ$1,'ICE Prices'!$E$1:$AS$1,0)) -> 1.567774194 | AR16: =(AR28/$AJ28)*AJ16 -> 2.832652725 | AS16: =(AS28/$AJ28)*AJ16 -> 2.661388364 | AT16: =(AT28/$AJ28)*AJ16 -> 2.875362041 | AU16: =(AU28/$AJ28)*AJ16 -> 2.679924208 | AV16: =(AV28/$AJ28)*AJ16 -> 2.661730039 | AW16: =(AW28/AS28)*AS16 -> 2.602364089 | AX16: =(AX28/$AJ28)*AJ16 -> 2.661217527 | AY16: =(AY28/$AJ28)*AJ16 -> 2.606122509 | AZ16: 2.568387097 | BA16: =INDEX('ICE Prices'!$E$9:$AS$20,MATCH($C16,'ICE Prices'!$C$9:$C$20,0),MATCH(BA$1,'ICE Prices'!$E$1:$AS$1,0)) -> 2.446451613 | BB16: =INDEX('ICE Prices'!$E$9:$AS$20,MATCH($C16,'ICE Prices'!$C$9:$C$20,0),MATCH(BB$1,'ICE Prices'!$E$1:$AS$1,0)) -> 3.195806452 | BJ16: 2.632298326 | BK16: 2.567618865 | BL16: 2.732442125 | BM16: 2.665302354 | BN16: 2.649415417 | BP16: 2.653851338 | BQ16: 2.632298326 | BR16: 2.661722808 | BS16: 2.635498571 | BT16: 2.635599008 | BU16: 2.59056445 | BV16: 2.669722597 | BX16: =[2]!mGetRate(BX$1,$B16,EOMONTH($B16,0)+1,"FLAT",E16,F16) -> 32.82182796 | BY16: =[2]!mGetRate(BY$1,$B16,EOMONTH($B16,0)+1,"FLAT",G16,H16) -> 31.10741935 | BZ16: =[2]!mGetRate(BZ$1,$B16,EOMONTH($B16,0)+1,"FLAT",I16,J16) -> 30.3272043 | CB16: =[2]!mGetRate(CB$1,$B16,EOMONTH($B16,0)+1,"FLAT",Q16,R16) -> 34.32139785 | CD16: =[2]!mGetRate(CD$1,$B16,EOMONTH($B16,0)+1,"FLAT",AE16,AF16) -> 34.96328784 | CE16: =[2]!mGetRate(CE$1,$B16,EOMONTH($B16,0)+1,"FLAT",AA16,AB16) -> 32.87258065 | CF16: =[2]!mGetRate(CF$1,$B16,EOMONTH($B16,0)+1,"FLAT",O16,P16) -> 33.66408602 | CG16: 2023 | CH16: =AVERAGEIF($CO$9:$CO$506,$CG16,CS$9:CS$506) -> 3.111477596 | CI16: =AVERAGEIF($CO$9:$CO$506,$CG16,CT$9:CT$506) -> 3.059658944 | CJ16: =AVERAGEIF($CO$9:$CO$506,$CG16,CU$9:CU$506) -> 3.111477596 | CK16: =AVERAGEIF($CO$9:$CO$506,$CG16,CR$9:CR$506) -> 3.077594651 | CL16: =AVERAGEIF($CO$9:$CO$506,$CG16,CV$9:CV$506) -> 3.106188768 | CM16: =AVERAGEIF($CO$9:$CO$506,$CG16,CQ$9:CQ$506) -> 3.366699009 | CO16: 2016 | CP16: 2016-08-01 | CQ16: 2.917534198 | CR16: 2.635599008 | CS16: 2.631377967 | CT16: 2.587307365 | CU16: 2.631377967 | CV16: 2.663512713 | CW16: 2.955700288
B17: 2016-09-01 | C17: 2016-09-30 | D17: 2016-09-01 | E17: =INDEX('ICE Prices'!$E$9:$AS$20,MATCH($C17,'ICE Prices'!$C$9:$C$20,0),MATCH(E$1,'ICE Prices'!$E$1:$AS$1,0)) -> 31.096 | F17: =INDEX('ICE Prices'!$E$9:$AS$20,MATCH($C17,'ICE Prices'!$C$9:$C$20,0),MATCH(F$1,'ICE Prices'!$E$1:$AS$1,0)) -> 25.51075 | G17: =INDEX('ICE Prices'!$E$9:$AS$20,MATCH($C17,'ICE Prices'!$C$9:$C$20,0),MATCH(G$1,'ICE Prices'!$E$1:$AS$1,0)) -> 26.512 | H17: =INDEX('ICE Prices'!$E$9:$AS$20,MATCH($C17,'ICE Prices'!$C$9:$C$20,0),MATCH(H$1,'ICE Prices'!$E$1:$AS$1,0)) -> 22.44825 | I17: =INDEX('ICE Prices'!$E$9:$AS$20,MATCH($C17,'ICE Prices'!$C$9:$C$20,0),MATCH(I$1,'ICE Prices'!$E$1:$AS$1,0)) -> 28.0128 | J17: =INDEX('ICE Prices'!$E$9:$AS$20,MATCH($C17,'ICE Prices'!$C$9:$C$20,0),MATCH(J$1,'ICE Prices'!$E$1:$AS$1,0)) -> 23.99425 | O17: =INDEX('ICE Prices'!$E$9:$AS$20,MATCH($C17,'ICE Prices'!$C$9:$C$20,0),MATCH(O$1,'ICE Prices'!$E$1:$AS$1,0)) -> 27.2264 | P17: =INDEX('ICE Prices'!$E$9:$AS$20,MATCH($C17,'ICE Prices'!$C$9:$C$20,0),MATCH(P$1,'ICE Prices'!$E$1:$AS$1,0)) -> 19.975 | Q17: =INDEX('ICE Prices'!$E$9:$AS$20,MATCH($C17,'ICE Prices'!$C$9:$C$20,0),MATCH(Q$1,'ICE Prices'!$E$1:$AS$1,0)) -> 27.274 | R17: =INDEX('ICE Prices'!$E$9:$AS$20,MATCH($C17,'ICE Prices'!$C$9:$C$20,0),MATCH(R$1,'ICE Prices'!$E$1:$AS$1,0)) -> 22.025 | AA17: =INDEX('ICE Prices'!$E$9:$AS$20,MATCH($C17,'ICE Prices'!$C$9:$C$20,0),MATCH(AA$1,'ICE Prices'!$E$1:$AS$1,0)) -> 27.9336 | AB17: =INDEX('ICE Prices'!$E$9:$AS$20,MATCH($C17,'ICE Prices'!$C$9:$C$20,0),MATCH(AB$1,'ICE Prices'!$E$1:$AS$1,0)) -> 23.39 | AE17: =(AE29/$E29)*E17 -> 32.68619158 | AF17: =(AF29/$F29)*F17 -> 26.856588 | AG17: =INDEX('ICE Prices'!$E$9:$AS$20,MATCH($C17,'ICE Prices'!$C$9:$C$20,0),MATCH(AG$1,'ICE Prices'!$E$1:$AS$1,0)) -> 2.960666667 | AH17: =INDEX('ICE Prices'!$E$9:$AS$20,MATCH($C17,'ICE Prices'!$C$9:$C$20,0),MATCH(AH$1,'ICE Prices'!$E$1:$AS$1,0)) -> 2.808 | AI17: =INDEX('ICE Prices'!$E$9:$AS$20,MATCH($C17,'ICE Prices'!$C$9:$C$20,0),MATCH(AI$1,'ICE Prices'!$E$1:$AS$1,0)) -> 2.708 | AJ17: =INDEX('ICE Prices'!$E$9:$AS$20,MATCH($C17,'ICE Prices'!$C$9:$C$20,0),MATCH(AJ$1,'ICE Prices'!$E$1:$AS$1,0)) -> 2.698333333 | AK17: =INDEX('ICE Prices'!$E$9:$AS$20,MATCH($C17,'ICE Prices'!$C$9:$C$20,0),MATCH(AK$1,'ICE Prices'!$E$1:$AS$1,0)) -> 2.6542 | AL17: =(AL29/$AJ29)*AJ17 -> 2.811290965 | AM17: =INDEX('ICE Prices'!$E$9:$AS$20,MATCH($C17,'ICE Prices'!$C$9:$C$20,0),MATCH(AM$1,'ICE Prices'!$E$1:$AS$1,0)) -> 2.680166667 | AN17: =INDEX('ICE Prices'!$E$9:$AS$20,MATCH($C17,'ICE Prices'!$C$9:$C$20,0),MATCH(AN$1,'ICE Prices'!$E$1:$AS$1,0)) -> 2.7405 | AO17: =INDEX('ICE Prices'!$E$9:$AS$20,MATCH($C17,'ICE Prices'!$C$9:$C$20,0),MATCH(AO$1,'ICE Prices'!$E$1:$AS$1,0)) -> 2.661333333 | AP17: =INDEX('ICE Prices'!$E$9:$AS$20,MATCH($C17,'ICE Prices'!$C$9:$C$20,0),MATCH(AP$1,'ICE Prices'!$E$1:$AS$1,0)) -> 2.6515 | AQ17: =INDEX('ICE Prices'!$E$9:$AS$20,MATCH($C17,'ICE Prices'!$C$9:$C$20,0),MATCH(AQ$1,'ICE Prices'!$E$1:$AS$1,0)) -> 2.015533333 | AR17: =(AR29/$AJ29)*AJ17 -> 2.943223341 | AS17: =(AS29/$AJ29)*AJ17 -> 2.764789479 | AT17: =(AT29/$AJ29)*AJ17 -> 2.987764994 | AU17: =(AU29/$AJ29)*AJ17 -> 2.78394239 | AV17: =(AV29/$AJ29)*AJ17 -> 2.765145813 | AW17: =(AW29/AS29)*AS17 -> 2.700293166 | AX17: =(AX29/$AJ29)*AJ17 -> 2.76452223 | AY17: =(AY29/$AJ29)*AJ17 -> 2.707241664 | AZ17: 2.661333333 | BA17: =INDEX('ICE Prices'!$E$9:$AS$20,MATCH($C17,'ICE Prices'!$C$9:$C$20,0),MATCH(BA$1,'ICE Prices'!$E$1:$AS$1,0)) -> 2.445833333 | BB17: =INDEX('ICE Prices'!$E$9:$AS$20,MATCH($C17,'ICE Prices'!$C$9:$C$20,0),MATCH(BB$1,'ICE Prices'!$E$1:$AS$1,0)) -> 3.360833333 | BJ17: 2.726421097 | BK17: 2.716463291 | BL17: 2.830145185 | BM17: 2.819808599 | BN17: 2.773209543 | BP17: 2.756628741 | BQ17: 2.726421097 | BR17: 2.743057301 | BS17: 2.712437347 | BT17: 2.768153793 | BU17: 2.666238251 | BV17: 2.770930722 | BX17: =[2]!mGetRate(BX$1,$B17,EOMONTH($B17,0)+1,"FLAT",E17,F17) -> 28.61366667 | BY17: =[2]!mGetRate(BY$1,$B17,EOMONTH($B17,0)+1,"FLAT",G17,H17) -> 24.70588889 | BZ17: =[2]!mGetRate(BZ$1,$B17,EOMONTH($B17,0)+1,"FLAT",I17,J17) -> 26.22677778 | CA17: =IF(ValuationDate>$D17,"",[2]!mGetRate(CA$1,$B17,EOMONTH($B17,0)+1,"FLAT",M17,N17)) ->  | CB17: =[2]!mGetRate(CB$1,$B17,EOMONTH($B17,0)+1,"FLAT",Q17,R17) -> 24.94111111 | CC17: =IF(ValuationDate>$D17,"",[2]!mGetRate(CC$1,$B17,EOMONTH($B17,0)+1,"FLAT",K17,L17)) ->  | CD17: =[2]!mGetRate(CD$1,$B17,EOMONTH($B17,0)+1,"FLAT",AE17,AF17) -> 30.09525666 | CE17: =[2]!mGetRate(CE$1,$B17,EOMONTH($B17,0)+1,"FLAT",AA17,AB17) -> 25.91422222 | CF17: =[2]!mGetRate(CF$1,$B17,EOMONTH($B17,0)+1,"FLAT",O17,P17) -> 24.00355556 | CG17: =+CG16+1 -> 2024 | CH17: =AVERAGEIF($CO$9:$CO$506,$CG17,CS$9:CS$506) -> 3.662533396 | CI17: =AVERAGEIF($CO$9:$CO$506,$CG17,CT$9:CT$506) -> 3.601821573 | CJ17: =AVERAGEIF($CO$9:$CO$506,$CG17,CU$9:CU$506) -> 3.662533396 | CK17: =AVERAGEIF($CO$9:$CO$506,$CG17,CR$9:CR$506) -> 3.631134973 | CL17: =AVERAGEIF($CO$9:$CO$506,$CG17,CV$9:CV$506) -> 3.660581215 | CM17: =AVERAGEIF($CO$9:$CO$506,$CG17,CQ$9:CQ$506) -> 3.863878074 | CO17: 2016 | CP17: 2016-09-01 | CQ17: 3.035294886 | CR17: 2.768153793 | CS17: 2.708293197 | CT17: 2.662981304 | CU17: 2.708293197 | CV17: 2.796271554 | CW17: 3.057388508
B18: 2016-10-01 | C18: =EOMONTH(B18,0) -> 2016-10-31 | D18: =+B18 -> 2016-10-01 | E18: =INDEX('ICE Prices'!$E$9:$AS$20,MATCH($C18,'ICE Prices'!$C$9:$C$20,0),MATCH(E$1,'ICE Prices'!$E$1:$AS$1,0)) -> 27.48230769 | F18: =INDEX('ICE Prices'!$E$9:$AS$20,MATCH($C18,'ICE Prices'!$C$9:$C$20,0),MATCH(F$1,'ICE Prices'!$E$1:$AS$1,0)) -> 21.44512195 | G18: =INDEX('ICE Prices'!$E$9:$AS$20,MATCH($C18,'ICE Prices'!$C$9:$C$20,0),MATCH(G$1,'ICE Prices'!$E$1:$AS$1,0)) -> 26.23307692 | H18: =INDEX('ICE Prices'!$E$9:$AS$20,MATCH($C18,'ICE Prices'!$C$9:$C$20,0),MATCH(H$1,'ICE Prices'!$E$1:$AS$1,0)) -> 22.77219512 | I18: =INDEX('ICE Prices'!$E$9:$AS$20,MATCH($C18,'ICE Prices'!$C$9:$C$20,0),MATCH(I$1,'ICE Prices'!$E$1:$AS$1,0)) -> 22.98 | J18: =INDEX('ICE Prices'!$E$9:$AS$20,MATCH($C18,'ICE Prices'!$C$9:$C$20,0),MATCH(J$1,'ICE Prices'!$E$1:$AS$1,0)) -> 19.06512195 | O18: =INDEX('ICE Prices'!$E$9:$AS$20,MATCH($C18,'ICE Prices'!$C$9:$C$20,0),MATCH(O$1,'ICE Prices'!$E$1:$AS$1,0)) -> 25.09269231 | P18: =INDEX('ICE Prices'!$E$9:$AS$20,MATCH($C18,'ICE Prices'!$C$9:$C$20,0),MATCH(P$1,'ICE Prices'!$E$1:$AS$1,0)) -> 20.2804878 | Q18: =INDEX('ICE Prices'!$E$9:$AS$20,MATCH($C18,'ICE Prices'!$C$9:$C$20,0),MATCH(Q$1,'ICE Prices'!$E$1:$AS$1,0)) -> 25.49038462 | R18: =INDEX('ICE Prices'!$E$9:$AS$20,MATCH($C18,'ICE Prices'!$C$9:$C$20,0),MATCH(R$1,'ICE Prices'!$E$1:$AS$1,0)) -> 21.32317073 | AA18: =INDEX('ICE Prices'!$E$9:$AS$20,MATCH($C18,'ICE Prices'!$C$9:$C$20,0),MATCH(AA$1,'ICE Prices'!$E$1:$AS$1,0)) -> 27.455 | AB18: =INDEX('ICE Prices'!$E$9:$AS$20,MATCH($C18,'ICE Prices'!$C$9:$C$20,0),MATCH(AB$1,'ICE Prices'!$E$1:$AS$1,0)) -> 23.79121951 | AE18: =(AE30/$E30)*E18 -> 29.36404934 | AF18: =(AF30/$F30)*F18 -> 22.87821325 | AG18: =INDEX('ICE Prices'!$E$9:$AS$20,MATCH($C18,'ICE Prices'!$C$9:$C$20,0),MATCH(AG$1,'ICE Prices'!$E$1:$AS$1,0)) -> 2.928709677 | AH18: =INDEX('ICE Prices'!$E$9:$AS$20,MATCH($C18,'ICE Prices'!$C$9:$C$20,0),MATCH(AH$1,'ICE Prices'!$E$1:$AS$1,0)) -> 2.750967742 | AI18: =INDEX('ICE Prices'!$E$9:$AS$20,MATCH($C18,'ICE Prices'!$C$9:$C$20,0),MATCH(AI$1,'ICE Prices'!$E$1:$AS$1,0)) -> 2.651935484 | AJ18: =INDEX('ICE Prices'!$E$9:$AS$20,MATCH($C18,'ICE Prices'!$C$9:$C$20,0),MATCH(AJ$1,'ICE Prices'!$E$1:$AS$1,0)) -> 2.674516129 | AK18: =INDEX('ICE Prices'!$E$9:$AS$20,MATCH($C18,'ICE Prices'!$C$9:$C$20,0),MATCH(AK$1,'ICE Prices'!$E$1:$AS$1,0)) -> 2.628653846 | AL18: =(AL30/$AJ30)*AJ18 -> 2.786624772 | AM18: =INDEX('ICE Prices'!$E$9:$AS$20,MATCH($C18,'ICE Prices'!$C$9:$C$20,0),MATCH(AM$1,'ICE Prices'!$E$1:$AS$1,0)) -> 2.662419355 | AN18: =INDEX('ICE Prices'!$E$9:$AS$20,MATCH($C18,'ICE Prices'!$C$9:$C$20,0),MATCH(AN$1,'ICE Prices'!$E$1:$AS$1,0)) -> 2.723387097 | AO18: =INDEX('ICE Prices'!$E$9:$AS$20,MATCH($C18,'ICE Prices'!$C$9:$C$20,0),MATCH(AO$1,'ICE Prices'!$E$1:$AS$1,0)) -> 2.5925 | AP18: =INDEX('ICE Prices'!$E$9:$AS$20,MATCH($C18,'ICE Prices'!$C$9:$C$20,0),MATCH(AP$1,'ICE Prices'!$E$1:$AS$1,0)) -> 2.570483871 | AQ18: =INDEX('ICE Prices'!$E$9:$AS$20,MATCH($C18,'ICE Prices'!$C$9:$C$20,0),MATCH(AQ$1,'ICE Prices'!$E$1:$AS$1,0)) -> 2.328622581 | AR18: =(AR30/$AJ30)*AJ18 -> 2.917388718 | AS18: =(AS30/$AJ30)*AJ18 -> 2.740384377 | AT18: =(AT30/$AJ30)*AJ18 -> 2.961595596 | AU18: =(AU30/$AJ30)*AJ18 -> 2.759393335 | AV18: =(AV30/$AJ30)*AJ18 -> 2.740738033 | AW18: =(AW30/AS30)*AS18 -> 2.711473079 | AX18: =(AX30/$AJ30)*AJ18 -> 2.74020755 | AY18: =(AY30/$AJ30)*AJ18 -> 2.683357505 | AZ18: =AO18 -> 2.5925 | BA18: =INDEX('ICE Prices'!$E$9:$AS$20,MATCH($C18,'ICE Prices'!$C$9:$C$20,0),MATCH(BA$1,'ICE Prices'!$E$1:$AS$1,0)) -> 2.506129032 | BB18: =INDEX('ICE Prices'!$E$9:$AS$20,MATCH($C18,'ICE Prices'!$C$9:$C$20,0),MATCH(BB$1,'ICE Prices'!$E$1:$AS$1,0)) -> 3.244677419 | BJ18: =AO18*(1/(1-BJ$2))+BJ$3 -> 2.656716456 | BK18: =AP18*(1/(1-BK$2))+BK$3 -> 2.634421641 | BL18: =(AO18+BL$3)*BL$5+((1/(1-BL$2)-1)*AO18+BL$4*AO18) -> 2.757789084 | BM18: =(AP18+BM$3)*BM$5+((1/(1-BM$2)-1)*AP18+BM$4*AP18) -> 2.734646208 | BN18: =(BJ18+BK18+BL18+BM18)/4 -> 2.695893347 | BP18: =AJ18*(1/(1-BP$2))+BP$3 -> 2.732332908 | BQ18: =AO18*(1/(1-BQ$2))+BQ$3 -> 2.656716456 | BR18: =AN18*(1/(1-BR$2))+BR$3 -> 2.725938496 | BS18: =AK18*(1/(1-BS$2))+BS$3 -> 2.686369843 | BT18: =AM18*(1/(1-BT$2))+BT$3 -> 2.749968209 | BU18: =AK18*(1/(1-BU$2))+BU$3 -> 2.640599331 | BV18: =AJ18*(1/(1-BV$2))+BV$3 -> 2.747005855 | BX18: =[2]!mGetRate(BX$1,$B18,EOMONTH($B18,0)+1,"FLAT",E18,F18) -> 24.82075269 | BY18: =[2]!mGetRate(BY$1,$B18,EOMONTH($B18,0)+1,"FLAT",G18,H18) -> 24.70731183 | BZ18: =[2]!mGetRate(BZ$1,$B18,EOMONTH($B18,0)+1,"FLAT",I18,J18) -> 21.25408602 | CA18: =IF(ValuationDate>$D18,"",[2]!mGetRate(CA$1,$B18,EOMONTH($B18,0)+1,"FLAT",M18,N18)) ->  | CB18: =[2]!mGetRate(CB$1,$B18,EOMONTH($B18,0)+1,"FLAT",Q18,R18) -> 23.65322581 | CC18: =IF(ValuationDate>$D18,"",[2]!mGetRate(CC$1,$B18,EOMONTH($B18,0)+1,"FLAT",K18,L18)) ->  | CD18: =[2]!mGetRate(CD$1,$B18,EOMONTH($B18,0)+1,"FLAT",AE18,AF18) -> 26.50470225 | CE18: =[2]!mGetRate(CE$1,$B18,EOMONTH($B18,0)+1,"FLAT",AA18,AB18) -> 25.83978495 | CF18: =[2]!mGetRate(CF$1,$B18,EOMONTH($B18,0)+1,"FLAT",O18,P18) -> 22.9711828 | CG18: =+CG17+1 -> 2025 | CH18: =AVERAGEIF($CO$9:$CO$506,$CG18,CS$9:CS$506) -> 3.838465933 | CI18: =AVERAGEIF($CO$9:$CO$506,$CG18,CT$9:CT$506) -> 3.774914837 | CJ18: =AVERAGEIF($CO$9:$CO$506,$CG18,CU$9:CU$506) -> 3.838465933 | CK18: =AVERAGEIF($CO$9:$CO$506,$CG18,CR$9:CR$506) -> 3.80786073 | CL18: =AVERAGEIF($CO$9:$CO$506,$CG18,CV$9:CV$506) -> 3.837579026 | CM18: =AVERAGEIF($CO$9:$CO$506,$CG18,CQ$9:CQ$506) -> 4.092931131 | CO18: 2016 | CP18: 2016-10-01 | CQ18: 2.977609408 | CR18: 2.749968209 | CS18: 2.68223367 | CT18: 2.637342337 | CU18: 2.68223367 | CV18: 2.778057975 | CW18: 3.03335015
B19: 2016-11-01 | C19: 2016-11-30 | D19: 2016-11-01 | E19: =INDEX('ICE Prices'!$E$9:$AS$20,MATCH($C19,'ICE Prices'!$C$9:$C$20,0),MATCH(E$1,'ICE Prices'!$E$1:$AS$1,0)) -> 22.472 | F19: =INDEX('ICE Prices'!$E$9:$AS$20,MATCH($C19,'ICE Prices'!$C$9:$C$20,0),MATCH(F$1,'ICE Prices'!$E$1:$AS$1,0)) -> 18.10025 | G19: =INDEX('ICE Prices'!$E$9:$AS$20,MATCH($C19,'ICE Prices'!$C$9:$C$20,0),MATCH(G$1,'ICE Prices'!$E$1:$AS$1,0)) -> 19.754 | H19: =INDEX('ICE Prices'!$E$9:$AS$20,MATCH($C19,'ICE Prices'!$C$9:$C$20,0),MATCH(H$1,'ICE Prices'!$E$1:$AS$1,0)) -> 17.918 | I19: =INDEX('ICE Prices'!$E$9:$AS$20,MATCH($C19,'ICE Prices'!$C$9:$C$20,0),MATCH(I$1,'ICE Prices'!$E$1:$AS$1,0)) -> 19.0592 | J19: =INDEX('ICE Prices'!$E$9:$AS$20,MATCH($C19,'ICE Prices'!$C$9:$C$20,0),MATCH(J$1,'ICE Prices'!$E$1:$AS$1,0)) -> 14.81625 | O19: =INDEX('ICE Prices'!$E$9:$AS$20,MATCH($C19,'ICE Prices'!$C$9:$C$20,0),MATCH(O$1,'ICE Prices'!$E$1:$AS$1,0)) -> 22.9584 | P19: =INDEX('ICE Prices'!$E$9:$AS$20,MATCH($C19,'ICE Prices'!$C$9:$C$20,0),MATCH(P$1,'ICE Prices'!$E$1:$AS$1,0)) -> 17.55 | Q19: =INDEX('ICE Prices'!$E$9:$AS$20,MATCH($C19,'ICE Prices'!$C$9:$C$20,0),MATCH(Q$1,'ICE Prices'!$E$1:$AS$1,0)) -> 20.3708 | R19: =INDEX('ICE Prices'!$E$9:$AS$20,MATCH($C19,'ICE Prices'!$C$9:$C$20,0),MATCH(R$1,'ICE Prices'!$E$1:$AS$1,0)) -> 18.12075 | AA19: =INDEX('ICE Prices'!$E$9:$AS$20,MATCH($C19,'ICE Prices'!$C$9:$C$20,0),MATCH(AA$1,'ICE Prices'!$E$1:$AS$1,0)) -> 21.9472 | AB19: =INDEX('ICE Prices'!$E$9:$AS$20,MATCH($C19,'ICE Prices'!$C$9:$C$20,0),MATCH(AB$1,'ICE Prices'!$E$1:$AS$1,0)) -> 18.76175 | AE19: =(AE31/$E31)*E19 -> 23.68357243 | AF19: =(AF31/$F31)*F19 -> 19.31207586 | AG19: =INDEX('ICE Prices'!$E$9:$AS$20,MATCH($C19,'ICE Prices'!$C$9:$C$20,0),MATCH(AG$1,'ICE Prices'!$E$1:$AS$1,0)) -> 2.466166667 | AH19: =INDEX('ICE Prices'!$E$9:$AS$20,MATCH($C19,'ICE Prices'!$C$9:$C$20,0),MATCH(AH$1,'ICE Prices'!$E$1:$AS$1,0)) -> 2.329666667 | AI19: =INDEX('ICE Prices'!$E$9:$AS$20,MATCH($C19,'ICE Prices'!$C$9:$C$20,0),MATCH(AI$1,'ICE Prices'!$E$1:$AS$1,0)) -> 2.220333333 | AJ19: =INDEX('ICE Prices'!$E$9:$AS$20,MATCH($C19,'ICE Prices'!$C$9:$C$20,0),MATCH(AJ$1,'ICE Prices'!$E$1:$AS$1,0)) -> 2.241833333 | AK19: =INDEX('ICE Prices'!$E$9:$AS$20,MATCH($C19,'ICE Prices'!$C$9:$C$20,0),MATCH(AK$1,'ICE Prices'!$E$1:$AS$1,0)) -> 2.220333333 | AL19: =(AL31/$AJ31)*AJ19 -> 2.334329314 | AM19: =INDEX('ICE Prices'!$E$9:$AS$20,MATCH($C19,'ICE Prices'!$C$9:$C$20,0),MATCH(AM$1,'ICE Prices'!$E$1:$AS$1,0)) -> 2.229833333 | AN19: =INDEX('ICE Prices'!$E$9:$AS$20,MATCH($C19,'ICE Prices'!$C$9:$C$20,0),MATCH(AN$1,'ICE Prices'!$E$1:$AS$1,0)) -> 2.267833333 | AO19: =INDEX('ICE Prices'!$E$9:$AS$20,MATCH($C19,'ICE Prices'!$C$9:$C$20,0),MATCH(AO$1,'ICE Prices'!$E$1:$AS$1,0)) -> 2.1925 | AP19: =INDEX('ICE Prices'!$E$9:$AS$20,MATCH($C19,'ICE Prices'!$C$9:$C$20,0),MATCH(AP$1,'ICE Prices'!$E$1:$AS$1,0)) -> 2.143333333 | AQ19: =INDEX('ICE Prices'!$E$9:$AS$20,MATCH($C19,'ICE Prices'!$C$9:$C$20,0),MATCH(AQ$1,'ICE Prices'!$E$1:$AS$1,0)) -> 2.025708967 | AR19: =(AR31/$AJ31)*AJ19 -> 2.442241291 | AS19: =(AS31/$AJ31)*AJ19 -> 2.29647689 | AT19: =(AT31/$AJ31)*AJ19 -> 2.478429077 | AU19: =(AU31/$AJ31)*AJ19 -> 2.312399516 | AV19: =(AV31/$AJ31)*AJ19 -> 2.296549266 | AW19: =(AW31/AS31)*AS19 -> 2.404244116 | AX19: =(AX31/$AJ31)*AJ19 -> 2.296259763 | AY19: =(AY31/$AJ31)*AJ19 -> 2.249070891 | AZ19: 2.1925 | BA19: =INDEX('ICE Prices'!$E$9:$AS$20,MATCH($C19,'ICE Prices'!$C$9:$C$20,0),MATCH(BA$1,'ICE Prices'!$E$1:$AS$1,0)) -> 2.1185 | BB19: =INDEX('ICE Prices'!$E$9:$AS$20,MATCH($C19,'ICE Prices'!$C$9:$C$20,0),MATCH(BB$1,'ICE Prices'!$E$1:$AS$1,0)) -> 2.817666667 | BJ19: 2.251653165 | BK19: 2.201864135 | BL19: 2.337317793 | BM19: 2.285634863 | BN19: 2.269117489 | BP19: 2.290954967 | BQ19: 2.251653165 | BR19: 2.270227621 | BS19: 2.269716259 | BT19: 2.306699409 | BU19: 2.230796075 | BV19: 2.312367186 | BX19: =[2]!mGetRate(BX$1,$B19,EOMONTH($B19,0)+1,"FLAT",E19,F19) -> 20.52563141 | BY19: =[2]!mGetRate(BY$1,$B19,EOMONTH($B19,0)+1,"FLAT",G19,H19) -> 18.9365853 | BZ19: =[2]!mGetRate(BZ$1,$B19,EOMONTH($B19,0)+1,"FLAT",I19,J19) -> 17.1701751 | CA19: =IF(ValuationDate>$D19,"",[2]!mGetRate(CA$1,$B19,EOMONTH($B19,0)+1,"FLAT",M19,N19)) ->  | CB19: =[2]!mGetRate(CB$1,$B19,EOMONTH($B19,0)+1,"FLAT",Q19,R19) -> 19.36904404 | CC19: =IF(ValuationDate>$D19,"",[2]!mGetRate(CC$1,$B19,EOMONTH($B19,0)+1,"FLAT",K19,L19)) ->  | CD19: =[2]!mGetRate(CD$1,$B19,EOMONTH($B19,0)+1,"FLAT",AE19,AF19) -> 21.73731667 | CE19: =[2]!mGetRate(CE$1,$B19,EOMONTH($B19,0)+1,"FLAT",AA19,AB19) -> 20.52898994 | CF19: =[2]!mGetRate(CF$1,$B19,EOMONTH($B19,0)+1,"FLAT",O19,P19) -> 20.55049931 | CG19: 2026 | CH19: =AVERAGEIF($CO$9:$CO$506,$CG19,CS$9:CS$506) -> 3.835822185 | CI19: =AVERAGEIF($CO$9:$CO$506,$CG19,CT$9:CT$506) -> 3.772313754 | CJ19: =AVERAGEIF($CO$9:$CO$506,$CG19,CU$9:CU$506) -> 3.835822185 | CK19: =AVERAGEIF($CO$9:$CO$506,$CG19,CR$9:CR$506) -> 3.805205062 | CL19: =AVERAGEIF($CO$9:$CO$506,$CG19,CV$9:CV$506) -> 3.834919269 | CM19: =AVERAGEIF($CO$9:$CO$506,$CG19,CQ$9:CQ$506) -> 4.078963645 | CO19: 2016 | CP19: 2016-11-01 | CQ19: 2.533528587 | CR19: 2.306699409 | CS19: 2.265707594 | CT19: 2.227538334 | CU19: 2.265707594 | CV19: 2.334106804 | CW19: 2.596649711
B20: 2016-12-01 | C20: 2016-12-31 | D20: 2016-12-01 | E20: =INDEX('ICE Prices'!$E$9:$AS$23,MATCH($C20,'ICE Prices'!$C$9:$C$23,0),MATCH(E$1,'ICE Prices'!$E$1:$AS$1,0)) -> 36.17346154 | F20: =INDEX('ICE Prices'!$E$9:$AS$23,MATCH($C20,'ICE Prices'!$C$9:$C$23,0),MATCH(F$1,'ICE Prices'!$E$1:$AS$1,0)) -> 28.17682927 | G20: =INDEX('ICE Prices'!$E$9:$AS$23,MATCH($C20,'ICE Prices'!$C$9:$C$23,0),MATCH(G$1,'ICE Prices'!$E$1:$AS$1,0)) -> 28.17307692 | H20: =INDEX('ICE Prices'!$E$9:$AS$23,MATCH($C20,'ICE Prices'!$C$9:$C$23,0),MATCH(H$1,'ICE Prices'!$E$1:$AS$1,0)) -> 26.04536585 | I20: =INDEX('ICE Prices'!$E$9:$AS$23,MATCH($C20,'ICE Prices'!$C$9:$C$23,0),MATCH(I$1,'ICE Prices'!$E$1:$AS$1,0)) -> 33.74038462 | J20: =INDEX('ICE Prices'!$E$9:$AS$23,MATCH($C20,'ICE Prices'!$C$9:$C$23,0),MATCH(J$1,'ICE Prices'!$E$1:$AS$1,0)) -> 24.74121951 | O20: =INDEX('ICE Prices'!$E$9:$AS$23,MATCH($C20,'ICE Prices'!$C$9:$C$23,0),MATCH(O$1,'ICE Prices'!$E$1:$AS$1,0)) -> 31.83230769 | P20: =INDEX('ICE Prices'!$E$9:$AS$23,MATCH($C20,'ICE Prices'!$C$9:$C$23,0),MATCH(P$1,'ICE Prices'!$E$1:$AS$1,0)) -> 24.31707317 | Q20: =INDEX('ICE Prices'!$E$9:$AS$23,MATCH($C20,'ICE Prices'!$C$9:$C$23,0),MATCH(Q$1,'ICE Prices'!$E$1:$AS$1,0)) -> 29.21384615 | R20: =INDEX('ICE Prices'!$E$9:$AS$23,MATCH($C20,'ICE Prices'!$C$9:$C$23,0),MATCH(R$1,'ICE Prices'!$E$1:$AS$1,0)) -> 25.36365854 | AA20: =INDEX('ICE Prices'!$E$9:$AS$23,MATCH($C20,'ICE Prices'!$C$9:$C$23,0),MATCH(AA$1,'ICE Prices'!$E$1:$AS$1,0)) -> 29.80846154 | AB20: =INDEX('ICE Prices'!$E$9:$AS$23,MATCH($C20,'ICE Prices'!$C$9:$C$23,0),MATCH(AB$1,'ICE Prices'!$E$1:$AS$1,0)) -> 26.64585366 | AE20: =(AE32/$E32)*E20 -> 36.17407447 | AF20: =(AF32/$F32)*F20 -> 29.55938674 | AG20: =INDEX('ICE Prices'!$E$9:$AS$23,MATCH($C20,'ICE Prices'!$C$9:$C$23,0),MATCH(AG$1,'ICE Prices'!$E$1:$AS$1,0)) -> 3.566129032 | AH20: =INDEX('ICE Prices'!$E$9:$AS$23,MATCH($C20,'ICE Prices'!$C$9:$C$23,0),MATCH(AH$1,'ICE Prices'!$E$1:$AS$1,0)) -> 3.562580645 | AI20: =INDEX('ICE Prices'!$E$9:$AS$23,MATCH($C20,'ICE Prices'!$C$9:$C$23,0),MATCH(AI$1,'ICE Prices'!$E$1:$AS$1,0)) -> 3.44 | AJ20: =INDEX('ICE Prices'!$E$9:$AS$23,MATCH($C20,'ICE Prices'!$C$9:$C$23,0),MATCH(AJ$1,'ICE Prices'!$E$1:$AS$1,0)) -> 3.480322581 | AK20: =INDEX('ICE Prices'!$E$9:$AS$23,MATCH($C20,'ICE Prices'!$C$9:$C$23,0),MATCH(AK$1,'ICE Prices'!$E$1:$AS$1,0)) -> 3.438225806 | AL20: =(AL32/$AJ32)*AJ20 -> 3.616011889 | AM20: =INDEX('ICE Prices'!$E$9:$AS$23,MATCH($C20,'ICE Prices'!$C$9:$C$23,0),MATCH(AM$1,'ICE Prices'!$E$1:$AS$1,0)) -> 3.445 | AN20: =INDEX('ICE Prices'!$E$9:$AS$23,MATCH($C20,'ICE Prices'!$C$9:$C$23,0),MATCH(AN$1,'ICE Prices'!$E$1:$AS$1,0)) -> 3.497096774 | AO20: =INDEX('ICE Prices'!$E$9:$AS$23,MATCH($C20,'ICE Prices'!$C$9:$C$23,0),MATCH(AO$1,'ICE Prices'!$E$1:$AS$1,0)) -> 3.494032258 | AP20: =INDEX('ICE Prices'!$E$9:$AS$23,MATCH($C20,'ICE Prices'!$C$9:$C$23,0),MATCH(AP$1,'ICE Prices'!$E$1:$AS$1,0)) -> 3.845967742 | AQ20: =INDEX('ICE Prices'!$E$9:$AS$23,MATCH($C20,'ICE Prices'!$C$9:$C$23,0),MATCH(AQ$1,'ICE Prices'!$E$1:$AS$1,0)) -> 2.591668839 | AR20: =(AR32/$AJ32)*AJ20 -> 3.77405851 | AS20: =(AS32/$AJ32)*AJ20 -> 3.561818589 | AT20: =(AT32/$AJ32)*AJ20 -> 3.825573053 | AU20: =(AU32/$AJ32)*AJ20 -> 3.58654557 | AV20: =(AV32/$AJ32)*AJ20 -> 3.560788298 | AW20: =(AW32/AS32)*AS20 -> 3.921184047 | AX20: =(AX32/$AJ32)*AJ20 -> 3.561509502 | AY20: =(AY32/$AJ32)*AJ20 -> 3.490625489 | AZ20: 3.494032258 | BA20: =INDEX('ICE Prices'!$E$9:$AS$23,MATCH($C20,'ICE Prices'!$C$9:$C$23,0),MATCH(BA$1,'ICE Prices'!$E$1:$AS$1,0)) -> 3.329193548 | BB20: =INDEX('ICE Prices'!$E$9:$AS$23,MATCH($C20,'ICE Prices'!$C$9:$C$23,0),MATCH(BB$1,'ICE Prices'!$E$1:$AS$1,0)) -> 3.757419355 | BJ20: 3.569660514 | BK20: 3.926050878 | BL20: 3.705460165 | BM20: 4.075407083 | BN20: 3.81914466 | BP20: 3.554332757 | BQ20: 3.569660514 | BR20: 3.499915009 | BS20: 3.51246368 | BT20: 3.551874803 | BU20: 3.453111107 | BV20: 3.556454827 | BX20: =[2]!mGetRate(BX$1,$B20,EOMONTH($B20,0)+1,"FLAT",E20,F20) -> 32.64806452 | BY20: =[2]!mGetRate(BY$1,$B20,EOMONTH($B20,0)+1,"FLAT",G20,H20) -> 27.23505376 | BZ20: =[2]!mGetRate(BZ$1,$B20,EOMONTH($B20,0)+1,"FLAT",I20,J20) -> 29.77301075 | CA20: =IF(ValuationDate>$D20,"",[2]!mGetRate(CA$1,$B20,EOMONTH($B20,0)+1,"FLAT",M20,N20)) ->  | CB20: =[2]!mGetRate(CB$1,$B20,EOMONTH($B20,0)+1,"FLAT",Q20,R20) -> 27.51645161 | CC20: =IF(ValuationDate>$D20,"",[2]!mGetRate(CC$1,$B20,EOMONTH($B20,0)+1,"FLAT",K20,L20)) ->  | CD20: =[2]!mGetRate(CD$1,$B20,EOMONTH($B20,0)+1,"FLAT",AE20,AF20) -> 33.25792182 | CE20: =[2]!mGetRate(CE$1,$B20,EOMONTH($B20,0)+1,"FLAT",AA20,AB20) -> 28.41419355 | CF20: =[2]!mGetRate(CF$1,$B20,EOMONTH($B20,0)+1,"FLAT",O20,P20) -> 28.51913978 | CG20: 2027 | CH20: =AVERAGEIF($CO$9:$CO$506,$CG20,CS$9:CS$506) -> 3.983158034 | CI20: =AVERAGEIF($CO$9:$CO$506,$CG20,CT$9:CT$506) -> 3.917271836 | CJ20: =AVERAGEIF($CO$9:$CO$506,$CG20,CU$9:CU$506) -> 3.983158034 | CK20: =AVERAGEIF($CO$9:$CO$506,$CG20,CR$9:CR$506) -> 3.953205199 | CL20: =AVERAGEIF($CO$9:$CO$506,$CG20,CV$9:CV$506) -> 3.983147239 | CM20: =AVERAGEIF($CO$9:$CO$506,$CG20,CQ$9:CQ$506) -> 4.180560174 | CO20: 2016 | CP20: 2016-12-01 | CQ20: 3.788458792 | CR20: 3.551874803 | CS20: 3.508074699 | CT20: 3.449855596 | CU20: 3.508074699 | CV20: 3.581199031 | CW20: 3.846638858
B21: 2017-01-01 | C21: 2017-01-31 | D21: 2017-01-01 | E21: =INDEX('ICE Prices'!$E$9:$AS$23,MATCH($C21,'ICE Prices'!$C$9:$C$23,0),MATCH(E$1,'ICE Prices'!$E$1:$AS$1,0)) -> 34.4232 | F21: =INDEX('ICE Prices'!$E$9:$AS$23,MATCH($C21,'ICE Prices'!$C$9:$C$23,0),MATCH(F$1,'ICE Prices'!$E$1:$AS$1,0)) -> 27.84674419 | G21: =INDEX('ICE Prices'!$E$9:$AS$23,MATCH($C21,'ICE Prices'!$C$9:$C$23,0),MATCH(G$1,'ICE Prices'!$E$1:$AS$1,0)) -> 27.1688 | H21: =INDEX('ICE Prices'!$E$9:$AS$23,MATCH($C21,'ICE Prices'!$C$9:$C$23,0),MATCH(H$1,'ICE Prices'!$E$1:$AS$1,0)) -> 24.5344186 | I21: =INDEX('ICE Prices'!$E$9:$AS$23,MATCH($C21,'ICE Prices'!$C$9:$C$23,0),MATCH(I$1,'ICE Prices'!$E$1:$AS$1,0)) -> 33.5892 | J21: =INDEX('ICE Prices'!$E$9:$AS$23,MATCH($C21,'ICE Prices'!$C$9:$C$23,0),MATCH(J$1,'ICE Prices'!$E$1:$AS$1,0)) -> 25.91604651 | O21: =INDEX('ICE Prices'!$E$9:$AS$23,MATCH($C21,'ICE Prices'!$C$9:$C$23,0),MATCH(O$1,'ICE Prices'!$E$1:$AS$1,0)) -> 29.5236 | P21: =INDEX('ICE Prices'!$E$9:$AS$23,MATCH($C21,'ICE Prices'!$C$9:$C$23,0),MATCH(P$1,'ICE Prices'!$E$1:$AS$1,0)) -> 24.41860465 | Q21: =INDEX('ICE Prices'!$E$9:$AS$23,MATCH($C21,'ICE Prices'!$C$9:$C$23,0),MATCH(Q$1,'ICE Prices'!$E$1:$AS$1,0)) -> 28.1332 | R21: =INDEX('ICE Prices'!$E$9:$AS$23,MATCH($C21,'ICE Prices'!$C$9:$C$23,0),MATCH(R$1,'ICE Prices'!$E$1:$AS$1,0)) -> 24.56976744 | AA21: =INDEX('ICE Prices'!$E$9:$AS$23,MATCH($C21,'ICE Prices'!$C$9:$C$23,0),MATCH(AA$1,'ICE Prices'!$E$1:$AS$1,0)) -> 29.0732 | AB21: =INDEX('ICE Prices'!$E$9:$AS$23,MATCH($C21,'ICE Prices'!$C$9:$C$23,0),MATCH(AB$1,'ICE Prices'!$E$1:$AS$1,0)) -> 25.85604651 | AE21: =(AE33/$E33)*E21 -> 34.64502496 | AF21: =(AF33/$F33)*F21 -> 28.50343881 | AG21: =INDEX('ICE Prices'!$E$9:$AS$23,MATCH($C21,'ICE Prices'!$C$9:$C$23,0),MATCH(AG$1,'ICE Prices'!$E$1:$AS$1,0)) -> 3.31983871 | AH21: =INDEX('ICE Prices'!$E$9:$AS$23,MATCH($C21,'ICE Prices'!$C$9:$C$23,0),MATCH(AH$1,'ICE Prices'!$E$1:$AS$1,0)) -> 3.335 | AI21: =INDEX('ICE Prices'!$E$9:$AS$23,MATCH($C21,'ICE Prices'!$C$9:$C$23,0),MATCH(AI$1,'ICE Prices'!$E$1:$AS$1,0)) -> 3.182903226 | AJ21: =INDEX('ICE Prices'!$E$9:$AS$23,MATCH($C21,'ICE Prices'!$C$9:$C$23,0),MATCH(AJ$1,'ICE Prices'!$E$1:$AS$1,0)) -> 3.244677419 | AK21: =INDEX('ICE Prices'!$E$9:$AS$23,MATCH($C21,'ICE Prices'!$C$9:$C$23,0),MATCH(AK$1,'ICE Prices'!$E$1:$AS$1,0)) -> 3.1835 | AL21: =(AL33/$AJ33)*AJ21 -> 3.360629921 | AM21: =INDEX('ICE Prices'!$E$9:$AS$23,MATCH($C21,'ICE Prices'!$C$9:$C$23,0),MATCH(AM$1,'ICE Prices'!$E$1:$AS$1,0)) -> 3.17983871 | AN21: =INDEX('ICE Prices'!$E$9:$AS$23,MATCH($C21,'ICE Prices'!$C$9:$C$23,0),MATCH(AN$1,'ICE Prices'!$E$1:$AS$1,0)) -> 3.293548387 | AO21: =INDEX('ICE Prices'!$E$9:$AS$23,MATCH($C21,'ICE Prices'!$C$9:$C$23,0),MATCH(AO$1,'ICE Prices'!$E$1:$AS$1,0)) -> 3.279677419 | AP21: =INDEX('ICE Prices'!$E$9:$AS$23,MATCH($C21,'ICE Prices'!$C$9:$C$23,0),MATCH(AP$1,'ICE Prices'!$E$1:$AS$1,0)) -> 3.507741935 | AQ21: =INDEX('ICE Prices'!$E$9:$AS$23,MATCH($C21,'ICE Prices'!$C$9:$C$23,0),MATCH(AQ$1,'ICE Prices'!$E$1:$AS$1,0)) -> 2.228856742 | AR21: =(AR33/$AJ33)*AJ21 -> 3.506756642 | AS21: =(AS33/$AJ33)*AJ21 -> 3.320207854 | AT21: =(AT33/$AJ33)*AJ21 -> 3.554200383 | AU21: =(AU33/$AJ33)*AJ21 -> 3.3433604 | AV21: =(AV33/$AJ33)*AJ21 -> 3.319164092 | AW21: =(AW33/AS33)*AS21 -> 3.537215524 | AX21: =(AX33/$AJ33)*AJ21 -> 3.320018079 | AY21: =(AY33/$AJ33)*AJ21 -> 3.254166167 | AZ21: 3.279677419 | BA21: =INDEX('ICE Prices'!$E$9:$AS$23,MATCH($C21,'ICE Prices'!$C$9:$C$23,0),MATCH(BA$1,'ICE Prices'!$E$1:$AS$1,0)) -> 3.148709677 | BB21: =INDEX('ICE Prices'!$E$9:$AS$23,MATCH($C21,'ICE Prices'!$C$9:$C$23,0),MATCH(BB$1,'ICE Prices'!$E$1:$AS$1,0)) -> 3.622580645 | BJ21: =AO21*(1/(1-BJ$2))+BJ$3 -> 3.352592323 | BK21: =AP21*(1/(1-BK$2))+BK$3 -> 3.583543732 | BL21: =(AO21+BL$3)*BL$5+((1/(1-BL$2)-1)*AO21+BL$4*AO21) -> 3.480135026 | BM21: =(AP21+BM$3)*BM$5+((1/(1-BM$2)-1)*AP21+BM$4*AP21) -> 3.719871479 | BN21: =(BJ21+BK21+BL21+BM21)/4 -> 3.53403564 | BP21: =AJ21*(1/(1-BP$2))+BP$3 -> 3.313952097 | BQ21: =AO21*(1/(1-BQ$2))+BQ$3 -> 3.352592323 | BR21: =AN21*(1/(1-BR$2))+BR$3 -> 3.296296422 | BS21: =AK21*(1/(1-BS$2))+BS$3 -> 3.252539388 | BT21: =AM21*(1/(1-BT$2))+BT$3 -> 3.280165314 | BU21: =AK21*(1/(1-BU$2))+BU$3 -> 3.197460309 | BV21: =AJ21*(1/(1-BV$2))+BV$3 -> 3.319744469 | BX21: =[2]!mGetRate(BX$1,$B21,EOMONTH($B21,0)+1,"FLAT",E21,F21) -> 31.38247312 | BY21: =[2]!mGetRate(BY$1,$B21,EOMONTH($B21,0)+1,"FLAT",G21,H21) -> 25.95075269 | BZ21: =[2]!mGetRate(BZ$1,$B21,EOMONTH($B21,0)+1,"FLAT",I21,J21) -> 30.04139785 | CB21: =[2]!mGetRate(CB$1,$B21,EOMONTH($B21,0)+1,"FLAT",Q21,R21) -> 26.4855914 | CD21: =[2]!mGetRate(CD$1,$B21,EOMONTH($B21,0)+1,"FLAT",AE21,AF21) -> 31.80536685 | CE21: =[2]!mGetRate(CE$1,$B21,EOMONTH($B21,0)+1,"FLAT",AA21,AB21) -> 27.58569892 | CF21: =[2]!mGetRate(CF$1,$B21,EOMONTH($B21,0)+1,"FLAT",O21,P21) -> 27.16322581 | CG21: 2028 | CH21: =AVERAGEIF($CO$9:$CO$506,$CG21,CS$9:CS$506) -> 4.175930655 | CI21: =AVERAGEIF($CO$9:$CO$506,$CG21,CT$9:CT$506) -> 4.106933411 | CJ21: =AVERAGEIF($CO$9:$CO$506,$CG21,CU$9:CU$506) -> 4.175930655 | CK21: =AVERAGEIF($CO$9:$CO$506,$CG21,CR$9:CR$506) -> 4.146846965 | CL21: =AVERAGEIF($CO$9:$CO$506,$CG21,CV$9:CV$506) -> 4.177087099 | CM21: =AVERAGEIF($CO$9:$CO$506,$CG21,CQ$9:CQ$506) -> 4.370060123 | CO21: 2017 | CP21: 2017-01-01 | CQ21: 3.523928723 | CR21: 3.280165314 | CS21: 3.248229951 | CT21: 3.194204332 | CU21: 3.248229951 | CV21: 3.30907127 | CW21: 3.608805631
B22: 2017-02-01 | C22: 2017-02-28 | D22: 2017-02-01 | E22: =INDEX('ICE Prices'!$E$9:$AS$23,MATCH($C22,'ICE Prices'!$C$9:$C$23,0),MATCH(E$1,'ICE Prices'!$E$1:$AS$1,0)) -> 25.52875 | F22: =INDEX('ICE Prices'!$E$9:$AS$23,MATCH($C22,'ICE Prices'!$C$9:$C$23,0),MATCH(F$1,'ICE Prices'!$E$1:$AS$1,0)) -> 20.99027778 | G22: =INDEX('ICE Prices'!$E$9:$AS$23,MATCH($C22,'ICE Prices'!$C$9:$C$23,0),MATCH(G$1,'ICE Prices'!$E$1:$AS$1,0)) -> 21.64 | H22: =INDEX('ICE Prices'!$E$9:$AS$23,MATCH($C22,'ICE Prices'!$C$9:$C$23,0),MATCH(H$1,'ICE Prices'!$E$1:$AS$1,0)) -> 20.62027778 | I22: =INDEX('ICE Prices'!$E$9:$AS$23,MATCH($C22,'ICE Prices'!$C$9:$C$23,0),MATCH(I$1,'ICE Prices'!$E$1:$AS$1,0)) -> 23.01958333 | J22: =INDEX('ICE Prices'!$E$9:$AS$23,MATCH($C22,'ICE Prices'!$C$9:$C$23,0),MATCH(J$1,'ICE Prices'!$E$1:$AS$1,0)) -> 17.75305556 | O22: =INDEX('ICE Prices'!$E$9:$AS$23,MATCH($C22,'ICE Prices'!$C$9:$C$23,0),MATCH(O$1,'ICE Prices'!$E$1:$AS$1,0)) -> 22.65958333 | P22: =INDEX('ICE Prices'!$E$9:$AS$23,MATCH($C22,'ICE Prices'!$C$9:$C$23,0),MATCH(P$1,'ICE Prices'!$E$1:$AS$1,0)) -> 20.63888889 | Q22: =INDEX('ICE Prices'!$E$9:$AS$23,MATCH($C22,'ICE Prices'!$C$9:$C$23,0),MATCH(Q$1,'ICE Prices'!$E$1:$AS$1,0)) -> 22.71625 | R22: =INDEX('ICE Prices'!$E$9:$AS$23,MATCH($C22,'ICE Prices'!$C$9:$C$23,0),MATCH(R$1,'ICE Prices'!$E$1:$AS$1,0)) -> 19.45305556 | AA22: =INDEX('ICE Prices'!$E$9:$AS$23,MATCH($C22,'ICE Prices'!$C$9:$C$23,0),MATCH(AA$1,'ICE Prices'!$E$1:$AS$1,0)) -> 23.24708333 | AB22: =INDEX('ICE Prices'!$E$9:$AS$23,MATCH($C22,'ICE Prices'!$C$9:$C$23,0),MATCH(AB$1,'ICE Prices'!$E$1:$AS$1,0)) -> 21.70777778 | AE22: =(AE34/$E34)*E22 -> 26.45519657 | AF22: =(AF34/$F34)*F22 -> 22.23632226 | AG22: =INDEX('ICE Prices'!$E$9:$AS$23,MATCH($C22,'ICE Prices'!$C$9:$C$23,0),MATCH(AG$1,'ICE Prices'!$E$1:$AS$1,0)) -> 2.825535714 | AH22: =INDEX('ICE Prices'!$E$9:$AS$23,MATCH($C22,'ICE Prices'!$C$9:$C$23,0),MATCH(AH$1,'ICE Prices'!$E$1:$AS$1,0)) -> 2.7175 | AI22: =INDEX('ICE Prices'!$E$9:$AS$23,MATCH($C22,'ICE Prices'!$C$9:$C$23,0),MATCH(AI$1,'ICE Prices'!$E$1:$AS$1,0)) -> 2.582321429 | AJ22: =INDEX('ICE Prices'!$E$9:$AS$23,MATCH($C22,'ICE Prices'!$C$9:$C$23,0),MATCH(AJ$1,'ICE Prices'!$E$1:$AS$1,0)) -> 2.612321429 | AK22: =INDEX('ICE Prices'!$E$9:$AS$23,MATCH($C22,'ICE Prices'!$C$9:$C$23,0),MATCH(AK$1,'ICE Prices'!$E$1:$AS$1,0)) -> 2.574107143 | AL22: =(AL34/$AJ34)*AJ22 -> 2.706352638 | AM22: =INDEX('ICE Prices'!$E$9:$AS$23,MATCH($C22,'ICE Prices'!$C$9:$C$23,0),MATCH(AM$1,'ICE Prices'!$E$1:$AS$1,0)) -> 2.583035714 | AN22: =INDEX('ICE Prices'!$E$9:$AS$23,MATCH($C22,'ICE Prices'!$C$9:$C$23,0),MATCH(AN$1,'ICE Prices'!$E$1:$AS$1,0)) -> 2.648928571 | AO22: =INDEX('ICE Prices'!$E$9:$AS$23,MATCH($C22,'ICE Prices'!$C$9:$C$23,0),MATCH(AO$1,'ICE Prices'!$E$1:$AS$1,0)) -> 2.583571429 | AP22: =INDEX('ICE Prices'!$E$9:$AS$23,MATCH($C22,'ICE Prices'!$C$9:$C$23,0),MATCH(AP$1,'ICE Prices'!$E$1:$AS$1,0)) -> 2.571964286 | AQ22: =INDEX('ICE Prices'!$E$9:$AS$23,MATCH($C22,'ICE Prices'!$C$9:$C$23,0),MATCH(AQ$1,'ICE Prices'!$E$1:$AS$1,0)) -> 1.948073571 | AR22: =(AR34/$AJ34)*AJ22 -> 2.82479951 | AS22: =(AS34/$AJ34)*AJ22 -> 2.673437851 | AT22: =(AT34/$AJ34)*AJ22 -> 2.863431888 | AU22: =(AU34/$AJ34)*AJ22 -> 2.692058658 | AV22: =(AV34/$AJ34)*AJ22 -> 2.672665204 | AW22: =(AW34/AS34)*AS22 -> 2.688581744 | AX22: =(AX34/$AJ34)*AJ22 -> 2.673283322 | AY22: =(AY34/$AJ34)*AJ22 -> 2.620047904 | AZ22: 2.583571429 | BA22: =INDEX('ICE Prices'!$E$9:$AS$23,MATCH($C22,'ICE Prices'!$C$9:$C$23,0),MATCH(BA$1,'ICE Prices'!$E$1:$AS$1,0)) -> 2.478571429 | BB22: =INDEX('ICE Prices'!$E$9:$AS$23,MATCH($C22,'ICE Prices'!$C$9:$C$23,0),MATCH(BB$1,'ICE Prices'!$E$1:$AS$1,0)) -> 3.264464286 | BJ22: 2.647674864 | BK22: 2.635920796 | BL22: 2.748403564 | BM22: 2.736202388 | BN22: 2.692050403 | BP22: 2.66888835 | BQ22: 2.647674864 | BR22: 2.651454291 | BS22: 2.630709942 | BT22: 2.668624177 | BU22: 2.585854551 | BV22: 2.684530014 | BX22: =[2]!mGetRate(BX$1,$B22,EOMONTH($B22,0)+1,"FLAT",E22,F22) -> 23.58369048 | BY22: =[2]!mGetRate(BY$1,$B22,EOMONTH($B22,0)+1,"FLAT",G22,H22) -> 21.20297619 | BZ22: =[2]!mGetRate(BZ$1,$B22,EOMONTH($B22,0)+1,"FLAT",I22,J22) -> 20.7625 | CB22: =[2]!mGetRate(CB$1,$B22,EOMONTH($B22,0)+1,"FLAT",Q22,R22) -> 21.3177381 | CD22: =[2]!mGetRate(CD$1,$B22,EOMONTH($B22,0)+1,"FLAT",AE22,AF22) -> 24.64710758 | CE22: =[2]!mGetRate(CE$1,$B22,EOMONTH($B22,0)+1,"FLAT",AA22,AB22) -> 22.58738095 | CF22: =[2]!mGetRate(CF$1,$B22,EOMONTH($B22,0)+1,"FLAT",O22,P22) -> 21.79357143 | CG22: 2029 | CH22: =AVERAGEIF($CO$9:$CO$506,$CG22,CS$9:CS$506) -> 4.49651279 | CI22: =AVERAGEIF($CO$9:$CO$506,$CG22,CT$9:CT$506) -> 4.422341856 | CJ22: =AVERAGEIF($CO$9:$CO$506,$CG22,CU$9:CU$506) -> 4.49651279 | CK22: =AVERAGEIF($CO$9:$CO$506,$CG22,CR$9:CR$506) -> 4.468874495 | CL22: =AVERAGEIF($CO$9:$CO$506,$CG22,CV$9:CV$506) -> 4.499610361 | CM22: =AVERAGEIF($CO$9:$CO$506,$CG22,CQ$9:CQ$506) -> 4.765857015 | CO22: 2017 | CP22: 2017-02-01 | CQ22: 2.905982641 | CR22: 2.668624177 | CS22: 2.626590803 | CT22: 2.582597458 | CU22: 2.626590803 | CV22: 2.696588722 | CW22: 2.970577946
B23: 2017-03-01 | C23: 2017-03-31 | D23: 2017-03-01 | E23: =INDEX('ICE Prices'!$E$9:$AS$23,MATCH($C23,'ICE Prices'!$C$9:$C$23,0),MATCH(E$1,'ICE Prices'!$E$1:$AS$1,0)) -> 18.49703704 | F23: =INDEX('ICE Prices'!$E$9:$AS$23,MATCH($C23,'ICE Prices'!$C$9:$C$23,0),MATCH(F$1,'ICE Prices'!$E$1:$AS$1,0)) -> 12.73384615 | G23: =INDEX('ICE Prices'!$E$9:$AS$23,MATCH($C23,'ICE Prices'!$C$9:$C$23,0),MATCH(G$1,'ICE Prices'!$E$1:$AS$1,0)) -> 20.80185185 | H23: =INDEX('ICE Prices'!$E$9:$AS$23,MATCH($C23,'ICE Prices'!$C$9:$C$23,0),MATCH(H$1,'ICE Prices'!$E$1:$AS$1,0)) -> 18.44512821 | I23: =INDEX('ICE Prices'!$E$9:$AS$23,MATCH($C23,'ICE Prices'!$C$9:$C$23,0),MATCH(I$1,'ICE Prices'!$E$1:$AS$1,0)) -> 13.16888889 | J23: =INDEX('ICE Prices'!$E$9:$AS$23,MATCH($C23,'ICE Prices'!$C$9:$C$23,0),MATCH(J$1,'ICE Prices'!$E$1:$AS$1,0)) -> 7.361282051 | O23: =INDEX('ICE Prices'!$E$9:$AS$23,MATCH($C23,'ICE Prices'!$C$9:$C$23,0),MATCH(O$1,'ICE Prices'!$E$1:$AS$1,0)) -> 19.53592593 | P23: =INDEX('ICE Prices'!$E$9:$AS$23,MATCH($C23,'ICE Prices'!$C$9:$C$23,0),MATCH(P$1,'ICE Prices'!$E$1:$AS$1,0)) -> 14.7125641 | Q23: =INDEX('ICE Prices'!$E$9:$AS$23,MATCH($C23,'ICE Prices'!$C$9:$C$23,0),MATCH(Q$1,'ICE Prices'!$E$1:$AS$1,0)) -> 21.33333333 | R23: =INDEX('ICE Prices'!$E$9:$AS$23,MATCH($C23,'ICE Prices'!$C$9:$C$23,0),MATCH(R$1,'ICE Prices'!$E$1:$AS$1,0)) -> 16.99512821 | AA23: =INDEX('ICE Prices'!$E$9:$AS$23,MATCH($C23,'ICE Prices'!$C$9:$C$23,0),MATCH(AA$1,'ICE Prices'!$E$1:$AS$1,0)) -> 21.30296296 | AB23: =INDEX('ICE Prices'!$E$9:$AS$23,MATCH($C23,'ICE Prices'!$C$9:$C$23,0),MATCH(AB$1,'ICE Prices'!$E$1:$AS$1,0)) -> 19.00871795 | AE23: =(AE35/$E35)*E23 -> 19.2368546 | AF23: =(AF35/$F35)*F23 -> 13.85915899 | AG23: =INDEX('ICE Prices'!$E$9:$AS$23,MATCH($C23,'ICE Prices'!$C$9:$C$23,0),MATCH(AG$1,'ICE Prices'!$E$1:$AS$1,0)) -> 2.842419355 | AH23: =INDEX('ICE Prices'!$E$9:$AS$23,MATCH($C23,'ICE Prices'!$C$9:$C$23,0),MATCH(AH$1,'ICE Prices'!$E$1:$AS$1,0)) -> 2.622580645 | AI23: =INDEX('ICE Prices'!$E$9:$AS$23,MATCH($C23,'ICE Prices'!$C$9:$C$23,0),MATCH(AI$1,'ICE Prices'!$E$1:$AS$1,0)) -> 2.513387097 | AJ23: =INDEX('ICE Prices'!$E$9:$AS$23,MATCH($C23,'ICE Prices'!$C$9:$C$23,0),MATCH(AJ$1,'ICE Prices'!$E$1:$AS$1,0)) -> 2.544032258 | AK23: =INDEX('ICE Prices'!$E$9:$AS$23,MATCH($C23,'ICE Prices'!$C$9:$C$23,0),MATCH(AK$1,'ICE Prices'!$E$1:$AS$1,0)) -> 2.51483871 | AL23: =(AL35/$AJ35)*AJ23 -> 2.640314972 | AM23: =INDEX('ICE Prices'!$E$9:$AS$23,MATCH($C23,'ICE Prices'!$C$9:$C$23,0),MATCH(AM$1,'ICE Prices'!$E$1:$AS$1,0)) -> 2.535967742 | AN23: =INDEX('ICE Prices'!$E$9:$AS$23,MATCH($C23,'ICE Prices'!$C$9:$C$23,0),MATCH(AN$1,'ICE Prices'!$E$1:$AS$1,0)) -> 2.59 | AO23: =INDEX('ICE Prices'!$E$9:$AS$23,MATCH($C23,'ICE Prices'!$C$9:$C$23,0),MATCH(AO$1,'ICE Prices'!$E$1:$AS$1,0)) -> 2.46016129 | AP23: =INDEX('ICE Prices'!$E$9:$AS$23,MATCH($C23,'ICE Prices'!$C$9:$C$23,0),MATCH(AP$1,'ICE Prices'!$E$1:$AS$1,0)) -> 2.41 | AQ23: =INDEX('ICE Prices'!$E$9:$AS$23,MATCH($C23,'ICE Prices'!$C$9:$C$23,0),MATCH(AQ$1,'ICE Prices'!$E$1:$AS$1,0)) -> 1.95756129 | AR23: =(AR35/$AJ35)*AJ23 -> 2.762033933 | AS23: =(AS35/$AJ35)*AJ23 -> 2.605829292 | AT23: =(AT35/$AJ35)*AJ23 -> 2.802797148 | AU23: =(AU35/$AJ35)*AJ23 -> 2.62392816 | AV23: =(AV35/$AJ35)*AJ23 -> 2.605829292 | AW23: =(AW35/AS35)*AS23 -> 2.615530937 | AX23: =(AX35/$AJ35)*AJ23 -> 2.605584713 | AY23: =(AY35/$AJ35)*AJ23 -> 2.552184901 | AZ23: 2.46016129 | BA23: =INDEX('ICE Prices'!$E$9:$AS$23,MATCH($C23,'ICE Prices'!$C$9:$C$23,0),MATCH(BA$1,'ICE Prices'!$E$1:$AS$1,0)) -> 2.350967742 | BB23: =INDEX('ICE Prices'!$E$9:$AS$23,MATCH($C23,'ICE Prices'!$C$9:$C$23,0),MATCH(BB$1,'ICE Prices'!$E$1:$AS$1,0)) -> 3.140806452 | BJ23: 2.522702572 | BK23: 2.471906329 | BL23: 2.618677513 | BM23: 2.565949057 | BN23: 2.544808868 | BP23: 2.599226848 | BQ23: 2.522702572 | BR23: 2.592505396 | BS23: 2.570231949 | BT23: 2.620393854 | BU23: 2.526370895 | BV23: 2.615932153 | BX23: =[2]!mGetRate(BX$1,$B23,EOMONTH($B23,0)+1,"FLAT",E23,F23) -> 16.08471892 | BY23: =[2]!mGetRate(BY$1,$B23,EOMONTH($B23,0)+1,"FLAT",G23,H23) -> 19.81539014 | BZ23: =[2]!mGetRate(BZ$1,$B23,EOMONTH($B23,0)+1,"FLAT",I23,J23) -> 10.73797943 | CB23: =[2]!mGetRate(CB$1,$B23,EOMONTH($B23,0)+1,"FLAT",Q23,R23) -> 19.51747627 | CD23: =[2]!mGetRate(CD$1,$B23,EOMONTH($B23,0)+1,"FLAT",AE23,AF23) -> 16.98589453 | CE23: =[2]!mGetRate(CE$1,$B23,EOMONTH($B23,0)+1,"FLAT",AA23,AB23) -> 20.34265314 | CF23: =[2]!mGetRate(CF$1,$B23,EOMONTH($B23,0)+1,"FLAT",O23,P23) -> 17.5169952 | CG23: 2030 | CH23: =AVERAGEIF($CO$9:$CO$506,$CG23,CS$9:CS$506) -> 4.840565631 | CI23: =AVERAGEIF($CO$9:$CO$506,$CG23,CT$9:CT$506) -> 4.760842228 | CJ23: =AVERAGEIF($CO$9:$CO$506,$CG23,CU$9:CU$506) -> 4.840565631 | CK23: =AVERAGEIF($CO$9:$CO$506,$CG23,CR$9:CR$506) -> 4.814478553 | CL23: =AVERAGEIF($CO$9:$CO$506,$CG23,CV$9:CV$506) -> 4.845746445 | CM23: =AVERAGEIF($CO$9:$CO$506,$CG23,CQ$9:CQ$506) -> 5.187685393 | CO23: 2017 | CP23: 2017-03-01 | CQ23: 2.835055249 | CR23: 2.620393854 | CS23: 2.566131318 | CT23: 2.523113693 | CU23: 2.566131318 | CV23: 2.648284152 | CW23: 2.901654681
B24: =IF(VLOOKUP(ValuationDate,RolloverDates,2)>ValuationDate,ValuationDate+1,VLOOKUP(ValuationDate,RolloverDates,3)) -> 2017-04-27 | C24: =EOMONTH(B24,0) -> 2017-04-30 | D24: =B24 -> 2017-04-27 | E24: 13.9 | F24: 3.5 | G24: 26.8 | H24: 24.75 | I24: 10.8 | J24: 1.6 | K24: 24.15 | L24: 19 | M24: 24.75 | N24: 22.55 | O24: 17.8 | P24: 15.75 | Q24: 23.8 | R24: 18.75 | S24: 17.8 | T24: 14.75 | U24: 17.8 | V24: 15.75 | W24: 10.8 | X24: 1.6 | Y24: 20.8 | Z24: 18.75 | AA24: 30.35 | AB24: 29.2 | AC24: 16.8 | AD24: 13.75 | AE24: 18.7062 | AF24: 12.4612 | AG24: 3.14 | AH24: 2.75 | AI24: 2.61 | AJ24: 2.62 | AK24: 2.6 | AL24: 2.8229 | AM24: 2.62 | AN24: 2.72 | AO24: 2.54 | AP24: 2.3 | AQ24: 1.594 | AR24: 2.9659 | AS24: 2.8025 | AT24: 2.9659 | AU24: 2.7465 | AV24: 2.774 | AW24: 2.781 | AX24: 2.7275 | AY24: 2.69 | AZ24: 2.68 | BA24: 2.54 | BB24: 3.21 | BJ24: 2.603551899 | BK24: 2.360513924 | BL24: 2.702602227 | BM24: 2.450319452 | BN24: 2.529246875 | BP24: 2.676721229 | BQ24: 2.603551899 | BR24: 2.722550231 | BS24: 2.657131224 | BT24: 2.706501301 | BU24: 2.611841434 | BV24: 2.692243295 | BX24: =[2]!mGetRate(BX$1,$B24,EOMONTH($B24,0)+1,"FLAT",E24,F24) -> 8.588899863 | BY24: =[2]!mGetRate(BY$1,$B24,EOMONTH($B24,0)+1,"FLAT",G24,H24) -> 25.74716671 | BZ24: =[2]!mGetRate(BZ$1,$B24,EOMONTH($B24,0)+1,"FLAT",I24,J24) -> 6.088729891 | CA24: =IF(ValuationDate>$D24,"",[2]!mGetRate(CA$1,$B24,EOMONTH($B24,0)+1,"FLAT",M24,N24)) -> 23.27994825 | CB24: =[2]!mGetRate(CB$1,$B24,EOMONTH($B24,0)+1,"FLAT",Q24,R24) -> 21.22456903 | CC24: =IF(ValuationDate>$D24,"",[2]!mGetRate(CC$1,$B24,EOMONTH($B24,0)+1,"FLAT",K24,L24)) -> 21.37577535 | CD24: =[2]!mGetRate(CD$1,$B24,EOMONTH($B24,0)+1,"FLAT",AE24,AF24) -> 15.42547507 | CE24: =[2]!mGetRate(CE$1,$B24,EOMONTH($B24,0)+1,"FLAT",AA24,AB24) -> 29.74571724 | CF24: =[2]!mGetRate(CF$1,$B24,EOMONTH($B24,0)+1,"FLAT",O24,P24) -> 16.75519896 | CG24: =+CG23+1 -> 2031 | CH24: =AVERAGEIF($CO$9:$CO$506,$CG24,CS$9:CS$506) -> 5.065717795 | CI24: =AVERAGEIF($CO$9:$CO$506,$CG24,CT$9:CT$506) -> 4.982360791 | CJ24: =AVERAGEIF($CO$9:$CO$506,$CG24,CU$9:CU$506) -> 5.065717795 | CK24: =AVERAGEIF($CO$9:$CO$506,$CG24,CR$9:CR$506) -> 5.040645852 | CL24: =AVERAGEIF($CO$9:$CO$506,$CG24,CV$9:CV$506) -> 5.072261907 | CM24: =AVERAGEIF($CO$9:$CO$506,$CG24,CQ$9:CQ$506) -> 5.455897143 | CO24: 2017 | CP24: =+B24 -> 2017-04-27 | CQ24: 2.934461467 | CR24: 2.706501301 | CS24: 2.653004 | CT24: 2.608584387 | CU24: 2.653004 | CV24: 2.734524154 | CW24: 2.978327816
B25: =C24+1 -> 2017-05-01 | C25: =EOMONTH(B25,0) -> 2017-05-31 | D25: =B25 -> 2017-05-01 | E25: 16.8 | F25: 4.3 | G25: 27.25 | H25: 21.5 | I25: 12.25 | J25: 2.05 | K25: 26.5 | L25: 19.75 | M25: 26.5 | N25: 20.75 | O25: 19.25 | P25: 13.5 | Q25: 25.25 | R25: 15.5 | S25: 19.25 | T25: 13.5 | U25: 19.25 | V25: 13.5 | W25: 12.25 | X25: 2.05 | Y25: 25.25 | Z25: 15.5 | AA25: 29.6 | AB25: 25.1 | AC25: 21.25 | AD25: 14.5 | AE25: 20.9875 | AF25: 12.0062 | AG25: 3.142 | AH25: 2.752 | AI25: 2.602 | AJ25: 2.672 | AK25: 2.652 | AL25: 2.7786 | AM25: 2.6495 | AN25: 2.762 | AO25: 2.587 | AP25: 2.472 | AQ25: 2.052 | AR25: 2.921 | AS25: 2.7046 | AT25: 2.971 | AU25: 2.7237 | AV25: 2.7175 | AW25: 2.6413 | AX25: 2.7045 | AY25: 2.667 | AZ25: 2.602 | BA25: 2.4045 | BB25: 3.2795 | BJ25: 2.651146835 | BK25: 2.534691139 | BL25: 2.752007603 | BM25: 2.631122107 | BN25: 2.642241921 | BP25: 2.729766215 | BQ25: 2.651146835 | BR25: 2.764564716 | BS25: 2.710192449 | BT25: 2.736729808 | BU25: 2.664030262 | BV25: 2.744478353 | BX25: =[2]!mGetRate(BX$1,$B25,EOMONTH($B25,0)+1,"FLAT",E25,F25) -> 11.28924731 | BY25: =[2]!mGetRate(BY$1,$B25,EOMONTH($B25,0)+1,"FLAT",G25,H25) -> 24.71505376 | BZ25: =[2]!mGetRate(BZ$1,$B25,EOMONTH($B25,0)+1,"FLAT",I25,J25) -> 7.753225806 | CA25: =IF(ValuationDate>$D25,"",[2]!mGetRate(CA$1,$B25,EOMONTH($B25,0)+1,"FLAT",M25,N25)) -> 23.96505376 | CB25: =[2]!mGetRate(CB$1,$B25,EOMONTH($B25,0)+1,"FLAT",Q25,R25) -> 20.9516129 | CC25: =IF(ValuationDate>$D25,"",[2]!mGetRate(CC$1,$B25,EOMONTH($B25,0)+1,"FLAT",K25,L25)) -> 23.52419355 | CD25: =[2]!mGetRate(CD$1,$B25,EOMONTH($B25,0)+1,"FLAT",AE25,AF25) -> 17.02800215 | CE25: =[2]!mGetRate(CE$1,$B25,EOMONTH($B25,0)+1,"FLAT",AA25,AB25) -> 27.61612903 | CF25: =[2]!mGetRate(CF$1,$B25,EOMONTH($B25,0)+1,"FLAT",O25,P25) -> 16.71505376 | CG25: 2032 | CH25: =AVERAGEIF($CO$9:$CO$506,$CG25,CS$9:CS$506) -> 5.306978973 | CI25: =AVERAGEIF($CO$9:$CO$506,$CG25,CT$9:CT$506) -> 5.219728395 | CJ25: =AVERAGEIF($CO$9:$CO$506,$CG25,CU$9:CU$506) -> 5.306978973 | CK25: =AVERAGEIF($CO$9:$CO$506,$CG25,CR$9:CR$506) -> 5.282994795 | CL25: =AVERAGEIF($CO$9:$CO$506,$CG25,CV$9:CV$506) -> 5.314983924 | CM25: =AVERAGEIF($CO$9:$CO$506,$CG25,CQ$9:CQ$506) -> 5.758268786 | CO25: 2017 | CP25: 2017-05-01 | CQ25: 2.926230168 | CR25: 2.736729808 | CS25: 2.706048986 | CT25: 2.660773311 | CU25: 2.706048986 | CV25: 2.764799195 | CW25: 3.030810658
B26: 2017-06-01 | C26: 2017-06-30 | D26: =B26 -> 2017-06-01 | E26: 16.55 | F26: 4.35 | G26: 31 | H26: 24 | I26: 12 | J26: 2.1 | K26: 29 | L26: 22.05 | M26: 29.25 | N26: 23.5 | O26: 27 | P26: 20.5 | Q26: 29 | R26: 23.25 | S26: 26 | T26: 20 | U26: 27 | V26: 20.5 | W26: 12 | X26: 2.1 | Y26: 29 | Z26: 23 | AA26: 33.5 | AB26: 27.7 | AC26: 26 | AD26: 20 | AE26: 22.1688 | AF26: 13.3375 | AG26: 3.271 | AH26: 2.966 | AI26: 2.861 | AJ26: 2.8835 | AK26: 2.8635 | AL26: 2.9931 | AM26: 2.861 | AN26: 2.931 | AO26: 2.6935 | AP26: 2.676 | AQ26: 2.096 | AR26: 3.1387 | AS26: 2.9161 | AT26: 3.1887 | AU26: 2.9367 | AV26: 2.9296 | AW26: 2.858 | AX26: 2.916 | AY26: 2.8785 | AZ26: 2.7085 | BA26: 2.511 | BB26: 3.366 | BJ26: 2.758994937 | BK26: 2.741273418 | BL26: 2.863958085 | BM26: 2.845562466 | BN26: 2.802447226 | BP26: 2.945516496 | BQ26: 2.758994937 | BR26: 2.933623 | BS26: 2.926008776 | BT26: 2.953452833 | BU26: 2.876298287 | BV26: 2.956934405 | BX26: =[2]!mGetRate(BX$1,$B26,EOMONTH($B26,0)+1,"FLAT",E26,F26) -> 11.39888889 | BY26: =[2]!mGetRate(BY$1,$B26,EOMONTH($B26,0)+1,"FLAT",G26,H26) -> 28.04444444 | BZ26: =[2]!mGetRate(BZ$1,$B26,EOMONTH($B26,0)+1,"FLAT",I26,J26) -> 7.82 | CA26: =IF(ValuationDate>$D26,"",[2]!mGetRate(CA$1,$B26,EOMONTH($B26,0)+1,"FLAT",M26,N26)) -> 26.82222222 | CB26: =[2]!mGetRate(CB$1,$B26,EOMONTH($B26,0)+1,"FLAT",Q26,R26) -> 26.57222222 | CC26: =IF(ValuationDate>$D26,"",[2]!mGetRate(CC$1,$B26,EOMONTH($B26,0)+1,"FLAT",K26,L26)) -> 26.06555556 | CD26: =[2]!mGetRate(CD$1,$B26,EOMONTH($B26,0)+1,"FLAT",AE26,AF26) -> 18.44002889 | CE26: =[2]!mGetRate(CE$1,$B26,EOMONTH($B26,0)+1,"FLAT",AA26,AB26) -> 31.05111111 | CF26: =[2]!mGetRate(CF$1,$B26,EOMONTH($B26,0)+1,"FLAT",O26,P26) -> 24.25555556 | CG26: 2033 | CH26: =AVERAGEIF($CO$9:$CO$506,$CG26,CS$9:CS$506) -> 5.641961462 | CI26: =AVERAGEIF($CO$9:$CO$506,$CG26,CT$9:CT$506) -> 5.549304795 | CJ26: =AVERAGEIF($CO$9:$CO$506,$CG26,CU$9:CU$506) -> 5.641961462 | CK26: =AVERAGEIF($CO$9:$CO$506,$CG26,CR$9:CR$506) -> 5.619487605 | CL26: =AVERAGEIF($CO$9:$CO$506,$CG26,CV$9:CV$506) -> 5.651994735 | CM26: =AVERAGEIF($CO$9:$CO$506,$CG26,CQ$9:CQ$506) -> 6.15669798 | CO26: 2017 | CP26: 2017-06-01 | CQ26: 3.19271849 | CR26: 2.953452833 | CS26: 2.921799267 | CT26: 2.873041723 | CU26: 2.921799267 | CV26: 2.981855846 | CW26: 3.244274526
B27: 2017-07-01 | C27: =EOMONTH(B27,0) -> 2017-07-31 | D27: =B27 -> 2017-07-01 | E27: 29.8625 | F27: 15.785 | G27: 40.2375 | H27: 25.4625 | I27: 25.76 | J27: 11.4 | K27: 36.15 | L27: 28.13 | M27: 37.855 | N27: 28.8575 | O27: 44.9875 | P27: 25.4625 | Q27: 44.9875 | R27: 26.4625 | S27: 38.2375 | T27: 22.9625 | U27: 44.9875 | V27: 25.4625 | W27: 25.76 | X27: 11.4 | Y27: 44.9875 | Z27: 26.4625 | AA27: 44.2375 | AB27: 30.0125 | AC27: 42.2375 | AD27: 25.4625 | AE27: 32.9124 | AF27: 21.5998 | AG27: 3.35 | AH27: 3.1675 | AI27: 2.9775 | AJ27: 2.97 | AK27: 2.965 | AL27: 3.096 | AM27: 2.95 | AN27: 3.0425 | AO27: 2.7562 | AP27: 2.7675 | AQ27: 2.11 | AR27: 3.2431 | AS27: 3.0438 | AT27: 3.2931 | AU27: 3.0649 | AV27: 3.0444 | AW27: 2.9553 | AX27: 3.0436 | AY27: 2.98 | AZ27: 2.7713 | BA27: 2.5738 | BB27: 3.495 | BJ27: 2.822488608 | BK27: 2.833931646 | BL27: 2.92986696 | BM27: 2.941745274 | BN27: 2.882008122 | BP27: 3.03375479 | BQ27: 2.822488608 | BR27: 3.045161454 | BS27: 3.029580204 | BT27: 3.044650702 | BU27: 2.978166866 | BV27: 3.043825414 | BX27: =[2]!mGetRate(BX$1,$B27,EOMONTH($B27,0)+1,"FLAT",E27,F27) -> 23.35354839 | BY27: =[2]!mGetRate(BY$1,$B27,EOMONTH($B27,0)+1,"FLAT",G27,H27) -> 33.40604839 | BZ27: =[2]!mGetRate(BZ$1,$B27,EOMONTH($B27,0)+1,"FLAT",I27,J27) -> 19.12043011 | CA27: =IF(ValuationDate>$D27,"",[2]!mGetRate(CA$1,$B27,EOMONTH($B27,0)+1,"FLAT",M27,N27)) -> 33.69486559 | CB27: =[2]!mGetRate(CB$1,$B27,EOMONTH($B27,0)+1,"FLAT",Q27,R27) -> 36.42217742 | CC27: =IF(ValuationDate>$D27,"",[2]!mGetRate(CC$1,$B27,EOMONTH($B27,0)+1,"FLAT",K27,L27)) -> 32.44182796 | CD27: =[2]!mGetRate(CD$1,$B27,EOMONTH($B27,0)+1,"FLAT",AE27,AF27) -> 27.68184301 | CE27: =[2]!mGetRate(CE$1,$B27,EOMONTH($B27,0)+1,"FLAT",AA27,AB27) -> 37.66034946 | CF27: =[2]!mGetRate(CF$1,$B27,EOMONTH($B27,0)+1,"FLAT",O27,P27) -> 35.95981183 | CG27: 2034 | CH27: =AVERAGEIF($CO$9:$CO$506,$CG27,CS$9:CS$506) -> 5.925480113 | CI27: =AVERAGEIF($CO$9:$CO$506,$CG27,CT$9:CT$506) -> 5.828247903 | CJ27: =AVERAGEIF($CO$9:$CO$506,$CG27,CU$9:CU$506) -> 5.925480113 | CK27: =AVERAGEIF($CO$9:$CO$506,$CG27,CR$9:CR$506) -> 5.904284544 | CL27: =AVERAGEIF($CO$9:$CO$506,$CG27,CV$9:CV$506) -> 5.937230093 | CM27: =AVERAGEIF($CO$9:$CO$506,$CG27,CQ$9:CQ$506) -> 6.428253696 | CO27: 2017 | CP27: 2017-07-01 | CQ27: 3.312586789 | CR27: 3.044650702 | CS27: 3.025338999 | CT27: 2.974910488 | CU27: 3.025338999 | CV27: 3.073194105 | CW27: 3.331577715
B28: =C27+1 -> 2017-08-01 | C28: 2017-08-31 | D28: 2017-08-01 | E28: 33.15 | F28: 25 | G28: 38.7875 | H28: 27.3 | I28: 30.8 | J28: 22.23 | K28: 37.595 | L28: 30.45 | M28: 38.8825 | N28: 30.6425 | O28: 43.2875 | P28: 27.8 | Q28: 43.2875 | R28: 28.3 | S28: 36.7875 | T28: 25.3 | U28: 43.2875 | V28: 27.8 | W28: 30.8 | X28: 22.23 | Y28: 40.7875 | Z28: 28.8 | AA28: 42.5375 | AB28: 29.75 | AC28: 41.0375 | AD28: 27.3 | AE28: 35.0442 | AF28: 27.0552 | AG28: 3.381 | AH28: 3.246 | AI28: 3.0535 | AJ28: 3.041 | AK28: 3.036 | AL28: 3.168 | AM28: 3.006 | AN28: 3.0935 | AO28: 2.8047 | AP28: 2.8535 | AQ28: 2.156 | AR28: 3.3162 | AS28: 3.1157 | AT28: 3.3662 | AU28: 3.1374 | AV28: 3.1161 | AW28: 3.0466 | AX28: 3.1155 | AY28: 3.051 | AZ28: 2.8197 | BA28: 2.6222 | BB28: 3.541 | BJ28: 2.871602532 | BK28: 2.921020253 | BL28: 2.980849104 | BM28: 3.032146601 | BN28: 2.951404622 | BP28: 3.106181598 | BQ28: 2.871602532 | BR28: 3.096179043 | BS28: 3.102029184 | BT28: 3.10203363 | BU28: 3.049424689 | BV28: 3.115146359 | BX28: =[2]!mGetRate(BX$1,$B28,EOMONTH($B28,0)+1,"FLAT",E28,F28) -> 29.73225806 | BY28: =[2]!mGetRate(BY$1,$B28,EOMONTH($B28,0)+1,"FLAT",G28,H28) -> 33.97016129 | BZ28: =[2]!mGetRate(BZ$1,$B28,EOMONTH($B28,0)+1,"FLAT",I28,J28) -> 27.20612903 | CA28: =IF(ValuationDate>$D28,"",[2]!mGetRate(CA$1,$B28,EOMONTH($B28,0)+1,"FLAT",M28,N28)) -> 35.42701613 | CB28: =[2]!mGetRate(CB$1,$B28,EOMONTH($B28,0)+1,"FLAT",Q28,R28) -> 37.00241935 | CC28: =IF(ValuationDate>$D28,"",[2]!mGetRate(CC$1,$B28,EOMONTH($B28,0)+1,"FLAT",K28,L28)) -> 34.59870968 | CD28: =[2]!mGetRate(CD$1,$B28,EOMONTH($B28,0)+1,"FLAT",AE28,AF28) -> 31.69397419 | CE28: =[2]!mGetRate(CE$1,$B28,EOMONTH($B28,0)+1,"FLAT",AA28,AB28) -> 37.175 | CF28: =[2]!mGetRate(CF$1,$B28,EOMONTH($B28,0)+1,"FLAT",O28,P28) -> 36.79274194 | CG28: 2035 | CH28: =AVERAGEIF($CO$9:$CO$506,$CG28,CS$9:CS$506) -> 6.246529791 | CI28: =AVERAGEIF($CO$9:$CO$506,$CG28,CT$9:CT$506) -> 6.144116347 | CJ28: =AVERAGEIF($CO$9:$CO$506,$CG28,CU$9:CU$506) -> 6.246529791 | CK28: =AVERAGEIF($CO$9:$CO$506,$CG28,CR$9:CR$506) -> 6.226781726 | CL28: =AVERAGEIF($CO$9:$CO$506,$CG28,CV$9:CV$506) -> 6.26022373 | CM28: =AVERAGEIF($CO$9:$CO$506,$CG28,CQ$9:CQ$506) -> 6.726801214 | CO28: 2017 | CP28: 2017-08-01 | CQ28: 3.390784134 | CR28: 3.10203363 | CS28: 3.097765807 | CT28: 3.046168442 | CU28: 3.097765807 | CV28: 3.130665369 | CW28: 3.40323698
B29: =C28+1 -> 2017-09-01 | C29: 2017-09-30 | D29: 2017-09-01 | E29: 31.0375 | F29: 25.565 | G29: 29.725 | H29: 25.9875 | I29: 27.59 | J29: 23.37 | K29: 35.505 | L29: 28.47 | M29: 36.0125 | N29: 29.75 | O29: 33.225 | P29: 23.9875 | Q29: 32.725 | R29: 24.4875 | S29: 26.725 | T29: 24.9875 | U29: 33.225 | V29: 23.9875 | W29: 27.59 | X29: 23.37 | Y29: 31.225 | Z29: 26.9875 | AA29: 32.775 | AB29: 29.2375 | AC29: 30.725 | AD29: 23.4875 | AE29: 32.6247 | AF29: 26.9137 | AG29: 3.369 | AH29: 3.179 | AI29: 3.009 | AJ29: 3.029 | AK29: 3.024 | AL29: 3.1558 | AM29: 2.9915 | AN29: 3.089 | AO29: 2.8052 | AP29: 2.839 | AQ29: 2.1615 | AR29: 3.3039 | AS29: 3.1036 | AT29: 3.3539 | AU29: 3.1251 | AV29: 3.104 | AW29: 3.0312 | AX29: 3.1033 | AY29: 3.039 | AZ29: 2.8202 | BA29: 2.6228 | BB29: 3.524 | BJ29: 2.872108861 | BK29: 2.906336709 | BL29: 2.981374693 | BM29: 3.016904517 | BN29: 2.944181195 | BP29: 3.093940448 | BQ29: 2.872108861 | BR29: 3.091677491 | BS29: 3.089784286 | BT29: 3.087175551 | BU29: 3.037381113 | BV29: 3.103092115 | BX29: =[2]!mGetRate(BX$1,$B29,EOMONTH($B29,0)+1,"FLAT",E29,F29) -> 28.60527778 | BY29: =[2]!mGetRate(BY$1,$B29,EOMONTH($B29,0)+1,"FLAT",G29,H29) -> 28.06388889 | BZ29: =[2]!mGetRate(BZ$1,$B29,EOMONTH($B29,0)+1,"FLAT",I29,J29) -> 25.71444444 | CA29: =IF(ValuationDate>$D29,"",[2]!mGetRate(CA$1,$B29,EOMONTH($B29,0)+1,"FLAT",M29,N29)) -> 33.22916667 | CB29: =[2]!mGetRate(CB$1,$B29,EOMONTH($B29,0)+1,"FLAT",Q29,R29) -> 29.06388889 | CC29: =IF(ValuationDate>$D29,"",[2]!mGetRate(CC$1,$B29,EOMONTH($B29,0)+1,"FLAT",K29,L29)) -> 32.37833333 | CD29: =[2]!mGetRate(CD$1,$B29,EOMONTH($B29,0)+1,"FLAT",AE29,AF29) -> 30.08647778 | CE29: =[2]!mGetRate(CE$1,$B29,EOMONTH($B29,0)+1,"FLAT",AA29,AB29) -> 31.20277778 | CF29: =[2]!mGetRate(CF$1,$B29,EOMONTH($B29,0)+1,"FLAT",O29,P29) -> 29.11944444 | CG29: 2036 | CH29: =AVERAGEIF($CO$9:$CO$506,$CG29,CS$9:CS$506) -> 6.719828781 | CI29: =AVERAGEIF($CO$9:$CO$506,$CG29,CT$9:CT$506) -> 6.609777038 | CJ29: =AVERAGEIF($CO$9:$CO$506,$CG29,CU$9:CU$506) -> 6.719828781 | CK29: =AVERAGEIF($CO$9:$CO$506,$CG29,CR$9:CR$506) -> 6.70221466 | CL29: =AVERAGEIF($CO$9:$CO$506,$CG29,CV$9:CV$506) -> 6.73638855 | CM29: =AVERAGEIF($CO$9:$CO$506,$CG29,CQ$9:CQ$506) -> 7.224546181 | CO29: 2017 | CP29: 2017-09-01 | CQ29: 3.344997531 | CR29: 3.087175551 | CS29: 3.085524657 | CT29: 3.034124844 | CU29: 3.085524657 | CV29: 3.115784417 | CW29: 3.391125555
B30: =C29+1 -> 2017-10-01 | C30: =EOMONTH(B30,0) -> 2017-10-31 | D30: =B30 -> 2017-10-01 | E30: 28.5975 | F30: 24.48 | G30: 26.9775 | H30: 24.255 | I30: 25.2 | J30: 21.15 | K30: 36.8775 | L30: 30.1625 | M30: 34.225 | N30: 29.2125 | O30: 26.9775 | P30: 22.255 | Q30: 26.4775 | R30: 23.755 | S30: 23.9775 | T30: 21.755 | U30: 26.9775 | V30: 22.255 | W30: 25.2 | X30: 21.15 | Y30: 27.9775 | Z30: 25.005 | AA30: 31.8775 | AB30: 29.605 | AC30: 26.9775 | AD30: 22.755 | AE30: 30.5556 | AF30: 26.1159 | AG30: 3.385 | AH30: 3.0925 | AI30: 2.9775 | AJ30: 3.025 | AK30: 3.02 | AL30: 3.1518 | AM30: 3.0075 | AN30: 3.05 | AO30: 2.81 | AP30: 2.8725 | AQ30: 2.21 | AR30: 3.2997 | AS30: 3.0995 | AT30: 3.3497 | AU30: 3.121 | AV30: 3.0999 | AW30: 3.0668 | AX30: 3.0993 | AY30: 3.035 | AZ30: 2.825 | BA30: 2.6275 | BB30: 3.515 | BJ30: 2.87696962 | BK30: 2.940260759 | BL30: 2.986420348 | BM30: 3.052118987 | BN30: 2.963942429 | BP30: 3.089860064 | BQ30: 2.87696962 | BR30: 3.052664041 | BS30: 3.085702653 | BT30: 3.103570673 | BU30: 3.033366588 | BV30: 3.099074033 | BX30: =[2]!mGetRate(BX$1,$B30,EOMONTH($B30,0)+1,"FLAT",E30,F30) -> 26.78225806 | BY30: =[2]!mGetRate(BY$1,$B30,EOMONTH($B30,0)+1,"FLAT",G30,H30) -> 25.77725806 | BZ30: =[2]!mGetRate(BZ$1,$B30,EOMONTH($B30,0)+1,"FLAT",I30,J30) -> 23.41451613 | CA30: =IF(ValuationDate>$D30,"",[2]!mGetRate(CA$1,$B30,EOMONTH($B30,0)+1,"FLAT",M30,N30)) -> 32.01518817 | CB30: =[2]!mGetRate(CB$1,$B30,EOMONTH($B30,0)+1,"FLAT",Q30,R30) -> 25.27725806 | CC30: =IF(ValuationDate>$D30,"",[2]!mGetRate(CC$1,$B30,EOMONTH($B30,0)+1,"FLAT",K30,L30)) -> 33.91712366 | CD30: =[2]!mGetRate(CD$1,$B30,EOMONTH($B30,0)+1,"FLAT",AE30,AF30) -> 28.5983129 | CE30: =[2]!mGetRate(CE$1,$B30,EOMONTH($B30,0)+1,"FLAT",AA30,AB30) -> 30.87564516 | CF30: =[2]!mGetRate(CF$1,$B30,EOMONTH($B30,0)+1,"FLAT",O30,P30) -> 24.89553763 | CG30: 2037 | CH30: =AVERAGEIF($CO$9:$CO$506,$CG30,CS$9:CS$506) -> 6.920940686 | CI30: =AVERAGEIF($CO$9:$CO$506,$CG30,CT$9:CT$506) -> 6.807643314 | CJ30: =AVERAGEIF($CO$9:$CO$506,$CG30,CU$9:CU$506) -> 6.920940686 | CK30: =AVERAGEIF($CO$9:$CO$506,$CG30,CR$9:CR$506) -> 6.904233309 | CL30: =AVERAGEIF($CO$9:$CO$506,$CG30,CV$9:CV$506) -> 6.938718188 | CM30: =AVERAGEIF($CO$9:$CO$506,$CG30,CQ$9:CQ$506) -> 7.451447097 | CO30: 2017 | CP30: 2017-10-01 | CQ30: 3.312586789 | CR30: 3.103570673 | CS30: 3.081444273 | CT30: 3.030110311 | CU30: 3.081444273 | CV30: 3.132204778 | CW30: 3.387088413
B31: 2017-11-01 | C31: 2017-11-30 | D31: 2017-11-01 | E31: 30.4425 | F31: 24.99 | G31: 26.16 | H31: 23.5125 | I31: 27.44 | J31: 23.585 | K31: 36.8775 | L31: 31.115 | M31: 35.5 | N31: 29.8275 | O31: 24.66 | P31: 22.0125 | Q31: 25.66 | R31: 23.0125 | S31: 22.91 | T31: 21.5125 | U31: 24.66 | V31: 22.0125 | W31: 27.44 | X31: 23.585 | Y31: 27.16 | Z31: 24.0125 | AA31: 32.21 | AB31: 30.6625 | AC31: 24.66 | AD31: 22.5125 | AE31: 32.0838 | AF31: 26.6631 | AG31: 3.44 | AH31: 3.16 | AI31: 3.025 | AJ31: 3.0975 | AK31: 3.0925 | AL31: 3.2253 | AM31: 3.0575 | AN31: 3.165 | AO31: 2.915 | AP31: 3.0925 | AQ31: 2.305 | AR31: 3.3744 | AS31: 3.173 | AT31: 3.4244 | AU31: 3.195 | AV31: 3.1731 | AW31: 3.3219 | AX31: 3.1727 | AY31: 3.1075 | AZ31: 2.93 | BA31: 2.7325 | BB31: 3.59 | BJ31: 2.983298734 | BK31: 3.16304557 | BL31: 3.096794062 | BM31: 3.283378198 | BN31: 3.131629141 | BP31: 3.163817016 | BQ31: 2.983298734 | BR31: 3.167703702 | BS31: 3.159682245 | BT31: 3.154805431 | BU31: 3.106129859 | BV31: 3.171901758 | BX31: =[2]!mGetRate(BX$1,$B31,EOMONTH($B31,0)+1,"FLAT",E31,F31) -> 28.01496533 | BY31: =[2]!mGetRate(BY$1,$B31,EOMONTH($B31,0)+1,"FLAT",G31,H31) -> 24.98129334 | BZ31: =[2]!mGetRate(BZ$1,$B31,EOMONTH($B31,0)+1,"FLAT",I31,J31) -> 25.72369626 | CA31: =IF(ValuationDate>$D31,"",[2]!mGetRate(CA$1,$B31,EOMONTH($B31,0)+1,"FLAT",M31,N31)) -> 32.97451803 | CB31: =[2]!mGetRate(CB$1,$B31,EOMONTH($B31,0)+1,"FLAT",Q31,R31) -> 24.48129334 | CC31: =IF(ValuationDate>$D31,"",[2]!mGetRate(CC$1,$B31,EOMONTH($B31,0)+1,"FLAT",K31,L31)) -> 34.31194868 | CD31: =[2]!mGetRate(CD$1,$B31,EOMONTH($B31,0)+1,"FLAT",AE31,AF31) -> 29.67042316 | CE31: =[2]!mGetRate(CE$1,$B31,EOMONTH($B31,0)+1,"FLAT",AA31,AB31) -> 31.52102982 | CF31: =[2]!mGetRate(CF$1,$B31,EOMONTH($B31,0)+1,"FLAT",O31,P31) -> 23.48129334 | CG31: 2038 | CH31: =AVERAGEIF($CO$9:$CO$506,$CG31,CS$9:CS$506) -> 7.296582496 | CI31: =AVERAGEIF($CO$9:$CO$506,$CG31,CT$9:CT$506) -> 7.177222859 | CJ31: =AVERAGEIF($CO$9:$CO$506,$CG31,CU$9:CU$506) -> 7.296582496 | CK31: =AVERAGEIF($CO$9:$CO$506,$CG31,CR$9:CR$506) -> 7.28156876 | CL31: =AVERAGEIF($CO$9:$CO$506,$CG31,CV$9:CV$506) -> 7.316634513 | CM31: =AVERAGEIF($CO$9:$CO$506,$CG31,CQ$9:CQ$506) -> 7.861880269 | CO31: 2017 | CP31: 2017-11-01 | CQ31: 3.36146013 | CR31: 3.154805431 | CS31: 3.155401225 | CT31: 3.102873715 | CU31: 3.155401225 | CV31: 3.183518407 | CW31: 3.460261607
B32: 2017-12-01 | C32: 2017-12-31 | D32: 2017-12-01 | E32: 35.41 | F32: 28.73 | G32: 28.6125 | H32: 26.4825 | I32: 31.96 | J32: 25.765 | K32: 37.995 | L32: 33.9725 | M32: 37.275 | N32: 33.21 | O32: 26.6125 | P32: 24.4825 | Q32: 28.1125 | R32: 25.9825 | S32: 25.6125 | T32: 24.4825 | U32: 26.6125 | V32: 24.4825 | W32: 31.96 | X32: 25.765 | Y32: 29.6125 | Z32: 27.2325 | AA32: 33.6625 | AB32: 31.7825 | AC32: 29.1125 | AD32: 26.4825 | AE32: 35.4106 | AF32: 30.1397 | AG32: 3.568 | AH32: 3.583 | AI32: 3.353 | AJ32: 3.378 | AK32: 3.373 | AL32: 3.5097 | AM32: 3.3005 | AN32: 3.4155 | AO32: 3.098 | AP32: 3.548 | AQ32: 2.4205 | AR32: 3.6631 | AS32: 3.4571 | AT32: 3.7131 | AU32: 3.4811 | AV32: 3.4561 | AW32: 3.8059 | AX32: 3.4568 | AY32: 3.388 | AZ32: 3.113 | BA32: 2.9155 | BB32: 3.698 | BJ32: 3.16861519 | BK32: 3.624311392 | BL32: 3.289159678 | BM32: 3.76218988 | BN32: 3.461069035 | BP32: 3.449953913 | BQ32: 3.16861519 | BR32: 3.418290094 | BS32: 3.445906735 | BT32: 3.403806353 | BU32: 3.387648444 | BV32: 3.453669714 | BX32: =[2]!mGetRate(BX$1,$B32,EOMONTH($B32,0)+1,"FLAT",E32,F32) -> 32.32139785 | BY32: =[2]!mGetRate(BY$1,$B32,EOMONTH($B32,0)+1,"FLAT",G32,H32) -> 27.62766129 | BZ32: =[2]!mGetRate(BZ$1,$B32,EOMONTH($B32,0)+1,"FLAT",I32,J32) -> 29.09564516 | CA32: =IF(ValuationDate>$D32,"",[2]!mGetRate(CA$1,$B32,EOMONTH($B32,0)+1,"FLAT",M32,N32)) -> 35.39548387 | CB32: =[2]!mGetRate(CB$1,$B32,EOMONTH($B32,0)+1,"FLAT",Q32,R32) -> 27.12766129 | CC32: =IF(ValuationDate>$D32,"",[2]!mGetRate(CC$1,$B32,EOMONTH($B32,0)+1,"FLAT",K32,L32)) -> 36.13513441 | CD32: =[2]!mGetRate(CD$1,$B32,EOMONTH($B32,0)+1,"FLAT",AE32,AF32) -> 32.9735172 | CE32: =[2]!mGetRate(CE$1,$B32,EOMONTH($B32,0)+1,"FLAT",AA32,AB32) -> 32.79325269 | CF32: =[2]!mGetRate(CF$1,$B32,EOMONTH($B32,0)+1,"FLAT",O32,P32) -> 25.62766129 | CG32: 2039 | CH32: =AVERAGEIF($CO$9:$CO$506,$CG32,CS$9:CS$506) -> 7.557131988 | CI32: =AVERAGEIF($CO$9:$CO$506,$CG32,CT$9:CT$506) -> 7.433567493 | CJ32: =AVERAGEIF($CO$9:$CO$506,$CG32,CU$9:CU$506) -> 7.557131988 | CK32: =AVERAGEIF($CO$9:$CO$506,$CG32,CR$9:CR$506) -> 7.543292981 | CL32: =AVERAGEIF($CO$9:$CO$506,$CG32,CV$9:CV$506) -> 7.578761634 | CM32: =AVERAGEIF($CO$9:$CO$506,$CG32,CQ$9:CQ$506) -> 8.141933086 | CO32: 2017 | CP32: 2017-12-01 | CQ32: 3.69894341 | CR32: 3.403806353 | CS32: 3.441538122 | CT32: 3.384392814 | CU32: 3.441538122 | CV32: 3.432902644 | CW32: 3.743366169
B33: 2018-01-01 | C33: 2018-01-31 | D33: 2018-01-01 | E33: 34.14 | F33: 28.5 | G33: 29.1375 | H33: 26.26 | I33: 30.56 | J33: 25.35 | K33: 39.375 | L33: 32.24 | M33: 36.4 | N33: 31.415 | O33: 27.1375 | P33: 24.26 | Q33: 28.6375 | R33: 25.76 | S33: 25.6375 | T33: 23.76 | U33: 27.1375 | V33: 24.26 | W33: 30.56 | X33: 25.35 | Y33: 30.1375 | Z33: 27.01 | AA33: 33.0375 | AB33: 31.61 | AC33: 30.1375 | AD33: 26.26 | AE33: 34.36 | AF33: 29.1721 | AG33: 3.637 | AH33: 3.6295 | AI33: 3.397 | AJ33: 3.4195 | AK33: 3.4045 | AL33: 3.5417 | AM33: 3.3895 | AN33: 3.422 | AO33: 3.1295 | AP33: 3.4745 | AQ33: 2.477 | AR33: 3.6957 | AS33: 3.4991 | AT33: 3.7457 | AU33: 3.5235 | AV33: 3.498 | AW33: 3.7278 | AX33: 3.4989 | AY33: 3.4295 | AZ33: 3.1445 | BA33: 2.947 | BB33: 3.697 | BJ33: 3.200513924 | BK33: 3.549881013 | BL33: 3.322271792 | BM33: 3.684928281 | BN33: 3.439398752 | BP33: 3.492287892 | BQ33: 3.200513924 | BR33: 3.424792336 | BS33: 3.478049592 | BT33: 3.495004222 | BU33: 3.419262831 | BV33: 3.495357308 | BX33: =[2]!mGetRate(BX$1,$B33,EOMONTH($B33,0)+1,"FLAT",E33,F33) -> 31.65354839 | BY33: =[2]!mGetRate(BY$1,$B33,EOMONTH($B33,0)+1,"FLAT",G33,H33) -> 27.86892473 | BZ33: =[2]!mGetRate(BZ$1,$B33,EOMONTH($B33,0)+1,"FLAT",I33,J33) -> 28.26311828 | CA33: =IF(ValuationDate>$D33,"",[2]!mGetRate(CA$1,$B33,EOMONTH($B33,0)+1,"FLAT",M33,N33)) -> 34.20231183 | CB33: =[2]!mGetRate(CB$1,$B33,EOMONTH($B33,0)+1,"FLAT",Q33,R33) -> 27.36892473 | CC33: =IF(ValuationDate>$D33,"",[2]!mGetRate(CC$1,$B33,EOMONTH($B33,0)+1,"FLAT",K33,L33)) -> 36.22946237 | CD33: =[2]!mGetRate(CD$1,$B33,EOMONTH($B33,0)+1,"FLAT",AE33,AF33) -> 32.07286129 | CE33: =[2]!mGetRate(CE$1,$B33,EOMONTH($B33,0)+1,"FLAT",AA33,AB33) -> 32.40817204 | CF33: =[2]!mGetRate(CF$1,$B33,EOMONTH($B33,0)+1,"FLAT",O33,P33) -> 25.86892473 | CG33: 2040 | CH33: =AVERAGEIF($CO$9:$CO$506,$CG33,CS$9:CS$506) -> 7.834300542 | CI33: =AVERAGEIF($CO$9:$CO$506,$CG33,CT$9:CT$506) -> 7.706262984 | CJ33: =AVERAGEIF($CO$9:$CO$506,$CG33,CU$9:CU$506) -> 7.834300542 | CK33: =AVERAGEIF($CO$9:$CO$506,$CG33,CR$9:CR$506) -> 7.821711193 | CL33: =AVERAGEIF($CO$9:$CO$506,$CG33,CV$9:CV$506) -> 7.857608446 | CM33: =AVERAGEIF($CO$9:$CO$506,$CG33,CQ$9:CQ$506) -> 8.43789975 | CO33: 2018 | CP33: 2018-01-01 | CQ33: 3.744215557 | CR33: 3.495004222 | CS33: 3.473671143 | CT33: 3.416007258 | CU33: 3.473671143 | CV33: 3.524240903 | CW33: 3.785251514
B34: 2018-02-01 | C34: 2018-02-28 | D34: 2018-02-01 | E34: 31.62 | F34: 25.9 | G34: 27.245 | H34: 25.5025 | I34: 28.56 | J34: 23.69 | K34: 38.25 | L34: 31.31 | M34: 35.7 | N34: 30.5 | O34: 25.245 | P34: 23.5025 | Q34: 27.245 | R34: 25.0025 | S34: 23.745 | T34: 23.0025 | U34: 25.245 | V34: 23.5025 | W34: 28.56 | X34: 23.69 | Y34: 28.245 | Z34: 26.2525 | AA34: 31.645 | AB34: 30.2025 | AC34: 26.245 | AD34: 25.5025 | AE34: 32.7675 | AF34: 27.4375 | AG34: 3.606 | AH34: 3.5435 | AI34: 3.316 | AJ34: 3.381 | AK34: 3.366 | AL34: 3.5027 | AM34: 3.3435 | AN34: 3.381 | AO34: 3.1235 | AP34: 3.241 | AQ34: 2.506 | AR34: 3.656 | AS34: 3.4601 | AT34: 3.706 | AU34: 3.4842 | AV34: 3.4591 | AW34: 3.4797 | AX34: 3.4599 | AY34: 3.391 | AZ34: 3.1385 | BA34: 2.941 | BB34: 3.6835 | BJ34: 3.194437975 | BK34: 3.313425316 | BL34: 3.315964723 | BM34: 3.439478164 | BN34: 3.315826545 | BP34: 3.453014201 | BQ34: 3.194437975 | BR34: 3.383778196 | BS34: 3.438763878 | BT34: 3.447868245 | BU34: 3.380623025 | BV34: 3.456683275 | BX34: =[2]!mGetRate(BX$1,$B34,EOMONTH($B34,0)+1,"FLAT",E34,F34) -> 29.16857143 | BY34: =[2]!mGetRate(BY$1,$B34,EOMONTH($B34,0)+1,"FLAT",G34,H34) -> 26.49821429 | BZ34: =[2]!mGetRate(BZ$1,$B34,EOMONTH($B34,0)+1,"FLAT",I34,J34) -> 26.47285714 | CA34: =IF(ValuationDate>$D34,"",[2]!mGetRate(CA$1,$B34,EOMONTH($B34,0)+1,"FLAT",M34,N34)) -> 33.47142857 | CB34: =[2]!mGetRate(CB$1,$B34,EOMONTH($B34,0)+1,"FLAT",Q34,R34) -> 26.28392857 | CC34: =IF(ValuationDate>$D34,"",[2]!mGetRate(CC$1,$B34,EOMONTH($B34,0)+1,"FLAT",K34,L34)) -> 35.27571429 | CD34: =[2]!mGetRate(CD$1,$B34,EOMONTH($B34,0)+1,"FLAT",AE34,AF34) -> 30.48321429 | CE34: =[2]!mGetRate(CE$1,$B34,EOMONTH($B34,0)+1,"FLAT",AA34,AB34) -> 31.02678571 | CF34: =[2]!mGetRate(CF$1,$B34,EOMONTH($B34,0)+1,"FLAT",O34,P34) -> 24.49821429 | CG34: 2041 | CH34: =AVERAGEIF($CO$9:$CO$506,$CG34,CS$9:CS$506) -> 8.038362223 | CI34: =AVERAGEIF($CO$9:$CO$506,$CG34,CT$9:CT$506) -> 7.907031432 | CJ34: =AVERAGEIF($CO$9:$CO$506,$CG34,CU$9:CU$506) -> 8.038362223 | CK34: =AVERAGEIF($CO$9:$CO$506,$CG34,CR$9:CR$506) -> 8.026692919 | CL34: =AVERAGEIF($CO$9:$CO$506,$CG34,CV$9:CV$506) -> 8.062905722 | CM34: =AVERAGEIF($CO$9:$CO$506,$CG34,CQ$9:CQ$506) -> 8.650807456 | CO34: 2018 | CP34: 2018-02-01 | CQ34: 3.66087365 | CR34: 3.447868245 | CS34: 3.434397451 | CT34: 3.377367382 | CU34: 3.434397451 | CV34: 3.477032365 | CW34: 3.746394025
B35: 2018-03-01 | C35: 2018-03-31 | D35: 2018-03-01 | E35: 28.94 | F35: 23.4 | G35: 26.1675 | H35: 23.1875 | I35: 25.08 | J35: 20.01 | K35: 34.875 | L35: 29.1 | M35: 32.9 | N35: 28.985 | O35: 24.1675 | P35: 21.1875 | Q35: 26.1675 | R35: 22.6875 | S35: 24.4175 | T35: 19.6875 | U35: 24.1675 | V35: 21.1875 | W35: 25.08 | X35: 20.01 | Y35: 27.1675 | Z35: 23.9375 | AA35: 31.0175 | AB35: 29.0375 | AC35: 24.9175 | AD35: 23.1875 | AE35: 30.0975 | AF35: 25.4679 | AG35: 3.523 | AH35: 3.2605 | AI35: 3.1055 | AJ35: 3.1205 | AK35: 3.1055 | AL35: 3.2386 | AM35: 3.0705 | AN35: 3.253 | AO35: 3.0193 | AP35: 2.9855 | AQ35: 2.4255 | AR35: 3.3879 | AS35: 3.1963 | AT35: 3.4379 | AU35: 3.2185 | AV35: 3.1963 | AW35: 3.2082 | AX35: 3.196 | AY35: 3.1305 | AZ35: 3.0342 | BA35: 2.8368 | BB35: 3.593 | BJ35: 3.088918987 | BK35: 3.054691139 | BL35: 3.206431951 | BM35: 3.170902127 | BN35: 3.130236051 | BP35: 3.187279222 | BQ35: 3.088918987 | BR35: 3.255734051 | BS35: 3.172947551 | BT35: 3.168126468 | BU35: 3.119177066 | BV35: 3.195005726 | BX35: =[2]!mGetRate(BX$1,$B35,EOMONTH($B35,0)+1,"FLAT",E35,F35) -> 26.62110363 | BY35: =[2]!mGetRate(BY$1,$B35,EOMONTH($B35,0)+1,"FLAT",G35,H35) -> 24.92015141 | BZ35: =[2]!mGetRate(BZ$1,$B35,EOMONTH($B35,0)+1,"FLAT",I35,J35) -> 22.95783311 | CA35: =IF(ValuationDate>$D35,"",[2]!mGetRate(CA$1,$B35,EOMONTH($B35,0)+1,"FLAT",M35,N35)) -> 31.26128533 | CB35: =[2]!mGetRate(CB$1,$B35,EOMONTH($B35,0)+1,"FLAT",Q35,R35) -> 24.71086474 | CC35: =IF(ValuationDate>$D35,"",[2]!mGetRate(CC$1,$B35,EOMONTH($B35,0)+1,"FLAT",K35,L35)) -> 32.4577389 | CD35: =[2]!mGetRate(CD$1,$B35,EOMONTH($B35,0)+1,"FLAT",AE35,AF35) -> 28.15967281 | CE35: =[2]!mGetRate(CE$1,$B35,EOMONTH($B35,0)+1,"FLAT",AA35,AB35) -> 30.18872476 | CF35: =[2]!mGetRate(CF$1,$B35,EOMONTH($B35,0)+1,"FLAT",O35,P35) -> 22.92015141 | CG35: 2042 | CH35: =AVERAGEIF($CO$9:$CO$506,$CG35,CS$9:CS$506) -> 8.247753906 | CI35: =AVERAGEIF($CO$9:$CO$506,$CG35,CT$9:CT$506) -> 8.113043864 | CJ35: =AVERAGEIF($CO$9:$CO$506,$CG35,CU$9:CU$506) -> 8.247753906 | CK35: =AVERAGEIF($CO$9:$CO$506,$CG35,CR$9:CR$506) -> 8.237028678 | CL35: =AVERAGEIF($CO$9:$CO$506,$CG35,CV$9:CV$506) -> 8.273565274 | CM35: =AVERAGEIF($CO$9:$CO$506,$CG35,CQ$9:CQ$506) -> 8.869245567 | CO35: 2018 | CP35: 2018-03-01 | CQ35: 3.444287581 | CR35: 3.168126468 | CS35: 3.168662472 | CT35: 3.115920946 | CU35: 3.168662472 | CV35: 3.196859951 | CW35: 3.483475172
B36: 2018-04-01 | C36: 2018-04-30 | D36: 2018-04-01 | E36: 23.98 | F36: 15.3125 | G36: 22.075 | H36: 18.75 | I36: 18.53 | J36: 12 | K36: 25.2 | L36: 21.4825 | M36: 23.5225 | N36: 21 | O36: 20.075 | P36: 16.75 | Q36: 20.575 | R36: 18 | S36: 17.075 | T36: 14.75 | U36: 20.075 | V36: 16.75 | W36: 18.53 | X36: 12 | Y36: 20.575 | Z36: 16.75 | AA36: 26.675 | AB36: 24.4 | AC36: 20.575 | AD36: 17.25 | AE36: 23.1632 | AF36: 17.6313 | AG36: 2.987 | AH36: 2.617 | AI36: 2.4995 | AJ36: 2.5445 | AK36: 2.5295 | AL36: 2.6546 | AM36: 2.517 | AN36: 2.5595 | AO36: 2.422 | AP36: 2.0295 | AQ36: 1.9245 | AR36: 2.795 | AS36: 2.6128 | AT36: 2.845 | AU36: 2.631 | AV36: 2.6151 | AW36: 2.171 | AX36: 2.6126 | AY36: 2.5545 | AZ36: 2.437 | BA36: 2.2395 | BB36: 3.0945 | BJ36: 2.484058228 | BK36: 2.086589873 | BL36: 2.578563196 | BM36: 2.165975741 | BN36: 2.32879676 | BP36: 2.59970399 | BQ36: 2.484058228 | BR36: 2.561994878 | BS36: 2.585192449 | BT36: 2.600957701 | BU36: 2.541085425 | BV36: 2.616402009 | BX36: =[2]!mGetRate(BX$1,$B36,EOMONTH($B36,0)+1,"FLAT",E36,F36) -> 20.12777778 | BY36: =[2]!mGetRate(BY$1,$B36,EOMONTH($B36,0)+1,"FLAT",G36,H36) -> 20.59722222 | BZ36: =[2]!mGetRate(BZ$1,$B36,EOMONTH($B36,0)+1,"FLAT",I36,J36) -> 15.62777778 | CA36: =IF(ValuationDate>$D36,"",[2]!mGetRate(CA$1,$B36,EOMONTH($B36,0)+1,"FLAT",M36,N36)) -> 22.40138889 | CB36: =[2]!mGetRate(CB$1,$B36,EOMONTH($B36,0)+1,"FLAT",Q36,R36) -> 19.43055556 | CC36: =IF(ValuationDate>$D36,"",[2]!mGetRate(CC$1,$B36,EOMONTH($B36,0)+1,"FLAT",K36,L36)) -> 23.54777778 | CD36: =[2]!mGetRate(CD$1,$B36,EOMONTH($B36,0)+1,"FLAT",AE36,AF36) -> 20.70457778 | CE36: =[2]!mGetRate(CE$1,$B36,EOMONTH($B36,0)+1,"FLAT",AA36,AB36) -> 25.66388889 | CF36: =[2]!mGetRate(CF$1,$B36,EOMONTH($B36,0)+1,"FLAT",O36,P36) -> 18.59722222 | CG36: 2043 | CH36: =AVERAGEIF($CO$9:$CO$506,$CG36,CS$9:CS$506) -> 8.462569099 | CI36: =AVERAGEIF($CO$9:$CO$506,$CG36,CT$9:CT$506) -> 8.324392279 | CJ36: =AVERAGEIF($CO$9:$CO$506,$CG36,CU$9:CU$506) -> 8.462569099 | CK36: =AVERAGEIF($CO$9:$CO$506,$CG36,CR$9:CR$506) -> 8.452812399 | CL36: =AVERAGEIF($CO$9:$CO$506,$CG36,CV$9:CV$506) -> 8.489681174 | CM36: =AVERAGEIF($CO$9:$CO$506,$CG36,CQ$9:CQ$506) -> 9.093376994 | CO36: 2018 | CP36: 2018-04-01 | CQ36: 2.820766643 | CR36: 2.600957701 | CS36: 2.58108724 | CT36: 2.53782825 | CU36: 2.58108724 | CV36: 2.628818079 | CW36: 2.902126766
B37: 2018-05-01 | C37: 2018-05-31 | D37: 2018-05-01 | E37: 20.55 | F37: 10.4125 | G37: 24.01 | H37: 17.8125 | I37: 15.98 | J37: 8.3 | K37: 25.6875 | L37: 19.5475 | M37: 23.4075 | N37: 18.6 | O37: 22.51 | P37: 15.8125 | Q37: 24.01 | R37: 17.8125 | S37: 20.01 | T37: 12.8125 | U37: 22.51 | V37: 15.8125 | W37: 15.98 | X37: 8.3 | Y37: 22.51 | Z37: 15.8125 | AA37: 27.51 | AB37: 23.3625 | AC37: 22.51 | AD37: 15.8125 | AE37: 21.3936 | AF37: 14.0412 | AG37: 2.922 | AH37: 2.5145 | AI37: 2.4595 | AJ37: 2.427 | AK37: 2.412 | AL37: 2.5354 | AM37: 2.4095 | AN37: 2.4995 | AO37: 2.3632 | AP37: 1.987 | AQ37: 1.867 | AR37: 2.6741 | AS37: 2.4938 | AT37: 2.7241 | AU37: 2.5112 | AV37: 2.4966 | AW37: 2.1259 | AX37: 2.4936 | AY37: 2.437 | AZ37: 2.3782 | BA37: 2.1808 | BB37: 3.0545 | BJ37: 2.424513924 | BK37: 2.043551899 | BL37: 2.516753916 | BM37: 2.121300667 | BN37: 2.276530101 | BP37: 2.479842723 | BQ37: 2.424513924 | BR37: 2.501974185 | BS37: 2.46529449 | BT37: 2.490802972 | BU37: 2.423158745 | BV37: 2.498370869 | BX37: =[2]!mGetRate(BX$1,$B37,EOMONTH($B37,0)+1,"FLAT",E37,F37) -> 16.08077957 | BY37: =[2]!mGetRate(BY$1,$B37,EOMONTH($B37,0)+1,"FLAT",G37,H37) -> 21.27776882 | BZ37: =[2]!mGetRate(BZ$1,$B37,EOMONTH($B37,0)+1,"FLAT",I37,J37) -> 12.59419355 | CA37: =IF(ValuationDate>$D37,"",[2]!mGetRate(CA$1,$B37,EOMONTH($B37,0)+1,"FLAT",M37,N37)) -> 21.28806452 | CB37: =[2]!mGetRate(CB$1,$B37,EOMONTH($B37,0)+1,"FLAT",Q37,R37) -> 21.27776882 | CC37: =IF(ValuationDate>$D37,"",[2]!mGetRate(CC$1,$B37,EOMONTH($B37,0)+1,"FLAT",K37,L37)) -> 22.98061828 | CD37: =[2]!mGetRate(CD$1,$B37,EOMONTH($B37,0)+1,"FLAT",AE37,AF37) -> 18.15221935 | CE37: =[2]!mGetRate(CE$1,$B37,EOMONTH($B37,0)+1,"FLAT",AA37,AB37) -> 25.68153226 | CF37: =[2]!mGetRate(CF$1,$B37,EOMONTH($B37,0)+1,"FLAT",O37,P37) -> 19.55733871 | CG37: 2044 | CH37: =AVERAGEIF($CO$9:$CO$506,$CG37,CS$9:CS$506) -> 8.682969317 | CI37: =AVERAGEIF($CO$9:$CO$506,$CG37,CT$9:CT$506) -> 8.541235585 | CJ37: =AVERAGEIF($CO$9:$CO$506,$CG37,CU$9:CU$506) -> 8.682969317 | CK37: =AVERAGEIF($CO$9:$CO$506,$CG37,CR$9:CR$506) -> 8.674206326 | CL37: =AVERAGEIF($CO$9:$CO$506,$CG37,CV$9:CV$506) -> 8.711415917 | CM37: =AVERAGEIF($CO$9:$CO$506,$CG37,CQ$9:CQ$506) -> 9.323330349 | CO37: 2018 | CP37: 2018-05-01 | CQ37: 2.779610145 | CR37: 2.490802972 | CS37: 2.461225973 | CT37: 2.419901355 | CU37: 2.461225973 | CV37: 2.518493777 | CW37: 2.783535729
B38: 2018-06-01 | C38: 2018-06-30 | D38: 2018-06-01 | E38: 21.12 | F38: 11.025 | G38: 27.515 | H38: 21.5375 | I38: 17.75 | J38: 8.4 | K38: 27.5625 | L38: 22.37 | M38: 25.22 | N38: 21.3 | O38: 25.765 | P38: 20.0375 | Q38: 26.765 | R38: 21.0375 | S38: 24.015 | T38: 17.5375 | U38: 25.765 | V38: 20.0375 | W38: 17.75 | X38: 8.4 | Y38: 28.515 | Z38: 22.0375 | AA38: 30.015 | AB38: 24.9875 | AC38: 26.515 | AD38: 20.2875 | AE38: 22.5395 | AF38: 15.63 | AG38: 2.949 | AH38: 2.5615 | AI38: 2.4515 | AJ38: 2.4565 | AK38: 2.4415 | AL38: 2.5654 | AM38: 2.4415 | AN38: 2.5315 | AO38: 2.3902 | AP38: 1.989 | AQ38: 1.889 | AR38: 2.7044 | AS38: 2.5237 | AT38: 2.7544 | AU38: 2.5413 | AV38: 2.5263 | AW38: 2.128 | AX38: 2.5235 | AY38: 2.4665 | AZ38: 2.4052 | BA38: 2.2078 | BB38: 3.0215 | BJ38: 2.451855696 | BK38: 2.045577215 | BL38: 2.545135728 | BM38: 2.123403023 | BN38: 2.291492916 | BP38: 2.509935551 | BQ38: 2.451855696 | BR38: 2.533985221 | BS38: 2.495396531 | BT38: 2.523593217 | BU38: 2.452765869 | BV38: 2.528004219 | BX38: =[2]!mGetRate(BX$1,$B38,EOMONTH($B38,0)+1,"FLAT",E38,F38) -> 16.85766667 | BY38: =[2]!mGetRate(BY$1,$B38,EOMONTH($B38,0)+1,"FLAT",G38,H38) -> 24.99116667 | BZ38: =[2]!mGetRate(BZ$1,$B38,EOMONTH($B38,0)+1,"FLAT",I38,J38) -> 13.80222222 | CA38: =IF(ValuationDate>$D38,"",[2]!mGetRate(CA$1,$B38,EOMONTH($B38,0)+1,"FLAT",M38,N38)) -> 23.56488889 | CB38: =[2]!mGetRate(CB$1,$B38,EOMONTH($B38,0)+1,"FLAT",Q38,R38) -> 24.34672222 | CC38: =IF(ValuationDate>$D38,"",[2]!mGetRate(CC$1,$B38,EOMONTH($B38,0)+1,"FLAT",K38,L38)) -> 25.37011111 | CD38: =[2]!mGetRate(CD$1,$B38,EOMONTH($B38,0)+1,"FLAT",AE38,AF38) -> 19.62215556 | CE38: =[2]!mGetRate(CE$1,$B38,EOMONTH($B38,0)+1,"FLAT",AA38,AB38) -> 27.89227778 | CF38: =[2]!mGetRate(CF$1,$B38,EOMONTH($B38,0)+1,"FLAT",O38,P38) -> 23.34672222 | CG38: 2045 | CH38: =AVERAGEIF($CO$9:$CO$506,$CG38,CS$9:CS$506) -> 8.909099073 | CI38: =AVERAGEIF($CO$9:$CO$506,$CG38,CT$9:CT$506) -> 8.763715964 | CJ38: =AVERAGEIF($CO$9:$CO$506,$CG38,CU$9:CU$506) -> 8.909099073 | CK38: =AVERAGEIF($CO$9:$CO$506,$CG38,CR$9:CR$506) -> 8.901355624 | CL38: =AVERAGEIF($CO$9:$CO$506,$CG38,CV$9:CV$506) -> 8.938914891 | CM38: =AVERAGEIF($CO$9:$CO$506,$CG38,CQ$9:CQ$506) -> 9.559259972 | CO38: 2018 | CP38: 2018-06-01 | CQ38: 2.771378846 | CR38: 2.523593217 | CS38: =(($AK38+CS$4)*(1/(1-CS$2))+CS$3) -> 2.491318801 | CT38: 2.449508533 | CU38: 2.491318801 | CV38: 2.551334499 | CW38: 2.813309649
B39: 2018-07-01 | C39: 2018-07-31 | D39: 2018-07-01 | E39: 30.3125 | F39: 17.135 | G39: 35.4375 | H39: 24.625 | I39: 26.4 | J39: 16 | K39: 35.25 | L39: 26.76 | M39: 34.485 | N39: 26.4325 | O39: 40.1875 | P39: 25.625 | Q39: 40.4375 | R39: 25.625 | S39: 33.4375 | T39: 22.125 | U39: 40.1875 | V39: 25.625 | W39: 26.4 | X39: 16 | Y39: 37.9375 | Z39: 26.125 | AA39: 39.4375 | AB39: 27.125 | AC39: 36.9375 | AD39: 24.125 | AE39: 31.5366 | AF39: 21.1229 | AG39: 2.976 | AH39: 2.8485 | AI39: 2.6385 | AJ39: 2.5635 | AK39: 2.5485 | AL39: 2.6738 | AM39: 2.5385 | AN39: 2.606 | AO39: 2.436 | AP39: 2.241 | AQ39: 1.906 | AR39: 2.8146 | AS39: 2.6321 | AT39: 2.8646 | AU39: 2.6504 | AV39: 2.6343 | AW39: 2.3958 | AX39: 2.6319 | AY39: 2.5735 | AZ39: 2.451 | BA39: 2.2535 | BB39: 3.1785 | BJ39: 2.498235443 | BK39: 2.300767089 | BL39: 2.593279691 | BM39: 2.388299937 | BN39: 2.44514554 | BP39: 2.619085811 | BQ39: 2.498235443 | BR39: 2.608510914 | BS39: 2.604580204 | BT39: 2.622988646 | BU39: 2.560154421 | BV39: 2.635487896 | BX39: =[2]!mGetRate(BX$1,$B39,EOMONTH($B39,0)+1,"FLAT",E39,F39) -> 24.21967742 | BY39: =[2]!mGetRate(BY$1,$B39,EOMONTH($B39,0)+1,"FLAT",G39,H39) -> 30.43817204 | BZ39: =[2]!mGetRate(BZ$1,$B39,EOMONTH($B39,0)+1,"FLAT",I39,J39) -> 21.59139785 | CA39: =IF(ValuationDate>$D39,"",[2]!mGetRate(CA$1,$B39,EOMONTH($B39,0)+1,"FLAT",M39,N39)) -> 30.76180108 | CB39: =[2]!mGetRate(CB$1,$B39,EOMONTH($B39,0)+1,"FLAT",Q39,R39) -> 33.58870968 | CC39: =IF(ValuationDate>$D39,"",[2]!mGetRate(CC$1,$B39,EOMONTH($B39,0)+1,"FLAT",K39,L39)) -> 31.32451613 | CD39: =[2]!mGetRate(CD$1,$B39,EOMONTH($B39,0)+1,"FLAT",AE39,AF39) -> 26.72166344 | CE39: =[2]!mGetRate(CE$1,$B39,EOMONTH($B39,0)+1,"FLAT",AA39,AB39) -> 33.74462366 | CF39: =[2]!mGetRate(CF$1,$B39,EOMONTH($B39,0)+1,"FLAT",O39,P39) -> 33.45430108 | CG39: 2046 | CH39: =AVERAGEIF($CO$9:$CO$506,$CG39,CS$9:CS$506) ->  | CI39: =AVERAGEIF($CO$9:$CO$506,$CG39,CT$9:CT$506) ->  | CJ39: =AVERAGEIF($CO$9:$CO$506,$CG39,CU$9:CU$506) ->  | CK39: =AVERAGEIF($CO$9:$CO$506,$CG39,CR$9:CR$506) ->  | CL39: =AVERAGEIF($CO$9:$CO$506,$CG39,CV$9:CV$506) ->  | CM39: =AVERAGEIF($CO$9:$CO$506,$CG39,CQ$9:CQ$506) ->  | CO39: 2018 | CP39: 2018-07-01 | CQ39: 2.963785472 | CR39: 2.622988646 | CS39: 2.600469062 | CT39: 2.55689728 | CU39: 2.600469062 | CV39: 2.650882939 | CW39: 2.921303189
B40: 2018-08-01 | C40: 2018-08-31 | D40: 2018-08-01 | E40: 33.35 | F40: 25.25 | G40: 35.2375 | H40: 24.44 | I40: 29.95 | J40: 22.2 | K40: 36.3075 | L40: 29.4 | M40: 35.2775 | N40: 28.0675 | O40: 39.7375 | P40: 24.94 | Q40: 39.7375 | R40: 25.44 | S40: 33.2375 | T40: 22.44 | U40: 39.7375 | V40: 24.94 | W40: 29.95 | X40: 22.2 | Y40: 37.2375 | Z40: 25.94 | AA40: 38.9875 | AB40: 26.69 | AC40: 37.4875 | AD40: 24.44 | AE40: 33.4318 | AF40: 25.9571 | AG40: 2.982 | AH40: 2.862 | AI40: 2.6795 | AJ40: 2.5695 | AK40: 2.5545 | AL40: 2.6799 | AM40: 2.5445 | AN40: 2.6245 | AO40: 2.447 | AP40: 2.2345 | AQ40: 1.9095 | AR40: 2.8207 | AS40: 2.6381 | AT40: 2.8707 | AU40: 2.6565 | AV40: 2.6403 | AW40: 2.3889 | AX40: 2.6379 | AY40: 2.5795 | AZ40: 2.462 | BA40: 2.2645 | BB40: 3.192 | BJ40: 2.509374684 | BK40: 2.29418481 | BL40: 2.604842652 | BM40: 2.381467278 | BN40: 2.447467356 | BP40: 2.625206387 | BQ40: 2.509374684 | BR40: 2.627017295 | BS40: 2.610702653 | BT40: 2.629136817 | BU40: 2.566176208 | BV40: 2.641515018 | BX40: =[2]!mGetRate(BX$1,$B40,EOMONTH($B40,0)+1,"FLAT",E40,F40) -> 29.95322581 | BY40: =[2]!mGetRate(BY$1,$B40,EOMONTH($B40,0)+1,"FLAT",G40,H40) -> 30.70951613 | BZ40: =[2]!mGetRate(BZ$1,$B40,EOMONTH($B40,0)+1,"FLAT",I40,J40) -> 26.7 | CA40: =IF(ValuationDate>$D40,"",[2]!mGetRate(CA$1,$B40,EOMONTH($B40,0)+1,"FLAT",M40,N40)) -> 32.25395161 | CB40: =[2]!mGetRate(CB$1,$B40,EOMONTH($B40,0)+1,"FLAT",Q40,R40) -> 33.74177419 | CC40: =IF(ValuationDate>$D40,"",[2]!mGetRate(CC$1,$B40,EOMONTH($B40,0)+1,"FLAT",K40,L40)) -> 33.41080645 | CD40: =[2]!mGetRate(CD$1,$B40,EOMONTH($B40,0)+1,"FLAT",AE40,AF40) -> 30.29724839 | CE40: =[2]!mGetRate(CE$1,$B40,EOMONTH($B40,0)+1,"FLAT",AA40,AB40) -> 33.83048387 | CF40: =[2]!mGetRate(CF$1,$B40,EOMONTH($B40,0)+1,"FLAT",O40,P40) -> 33.53209677 | CO40: 2018 | CP40: 2018-08-01 | CQ40: 3.005970882 | CR40: 2.629136817 | CS40: 2.606589637 | CT40: 2.562919079 | CU40: 2.606589637 | CV40: 2.657040575 | CW40: 2.927358902
B41: 2018-09-01 | C41: 2018-09-30 | D41: 2018-09-01 | E41: 30.9375 | F41: 24.565 | G41: 29.075 | H41: 23.235 | I41: 26.4 | J41: 22 | K41: 34.1925 | L41: 27.44 | M41: 32.5375 | N41: 27.25 | O41: 32.575 | P41: 21.235 | Q41: 32.075 | R41: 21.735 | S41: 26.075 | T41: 22.235 | U41: 32.575 | V41: 21.235 | W41: 26.4 | X41: 22 | Y41: 30.575 | Z41: 24.235 | AA41: 31.725 | AB41: 25.685 | AC41: 30.075 | AD41: 20.735 | AE41: 30.9241 | AF41: 25.2263 | AG41: 2.957 | AH41: 2.6345 | AI41: 2.522 | AJ41: 2.542 | AK41: 2.527 | AL41: 2.652 | AM41: 2.517 | AN41: 2.5995 | AO41: 2.4295 | AP41: 2.2295 | AQ41: 1.8995 | AR41: 2.7924 | AS41: 2.6103 | AT41: 2.8424 | AU41: 2.6285 | AV41: 2.6126 | AW41: 2.3836 | AX41: 2.6101 | AY41: 2.552 | AZ41: 2.4445 | BA41: 2.247 | BB41: 3.162 | BJ41: 2.491653165 | BK41: 2.289121519 | BL41: 2.586447033 | BM41: 2.376211387 | BN41: 2.435858276 | BP41: 2.59715375 | BQ41: 2.491653165 | BR41: 2.602008673 | BS41: 2.582641429 | BT41: 2.600957701 | BU41: 2.538576347 | BV41: 2.613890708 | BX41: =[2]!mGetRate(BX$1,$B41,EOMONTH($B41,0)+1,"FLAT",E41,F41) -> 27.96366667 | BY41: =[2]!mGetRate(BY$1,$B41,EOMONTH($B41,0)+1,"FLAT",G41,H41) -> 26.34966667 | BZ41: =[2]!mGetRate(BZ$1,$B41,EOMONTH($B41,0)+1,"FLAT",I41,J41) -> 24.34666667 | CA41: =IF(ValuationDate>$D41,"",[2]!mGetRate(CA$1,$B41,EOMONTH($B41,0)+1,"FLAT",M41,N41)) -> 30.07 | CB41: =[2]!mGetRate(CB$1,$B41,EOMONTH($B41,0)+1,"FLAT",Q41,R41) -> 27.24966667 | CC41: =IF(ValuationDate>$D41,"",[2]!mGetRate(CC$1,$B41,EOMONTH($B41,0)+1,"FLAT",K41,L41)) -> 31.04133333 | CD41: =[2]!mGetRate(CD$1,$B41,EOMONTH($B41,0)+1,"FLAT",AE41,AF41) -> 28.26512667 | CE41: =[2]!mGetRate(CE$1,$B41,EOMONTH($B41,0)+1,"FLAT",AA41,AB41) -> 28.90633333 | CF41: =[2]!mGetRate(CF$1,$B41,EOMONTH($B41,0)+1,"FLAT",O41,P41) -> 27.283 | CO41: 2018 | CP41: 2018-09-01 | CQ41: 2.843917173 | CR41: 2.600957701 | CS41: 2.578537 | CT41: 2.535319167 | CU41: 2.578537 | CV41: 2.628818079 | CW41: 2.899603553
B42: 2018-10-01 | C42: 2018-10-31 | D42: 2018-10-01 | E42: 28.0975 | F42: 24.48 | G42: 25.235 | H42: 23.03 | I42: 24.18 | J42: 19.8 | K42: 34.65 | L42: 28.5 | M42: 31.275 | N42: 27.3125 | O42: 25.235 | P42: 21.03 | Q42: 24.735 | R42: 22.53 | S42: 22.235 | T42: 20.53 | U42: 25.235 | V42: 21.03 | W42: 24.18 | X42: 19.8 | Y42: 26.235 | Z42: 23.78 | AA42: 27.935 | AB42: 25.98 | AC42: 25.235 | AD42: 21.53 | AE42: 28.9044 | AF42: 25.2134 | AG42: 2.971 | AH42: 2.566 | AI42: 2.476 | AJ42: 2.5485 | AK42: 2.5335 | AL42: 2.6586 | AM42: 2.5085 | AN42: 2.6085 | AO42: 2.4473 | AP42: 2.2585 | AQ42: 1.926 | AR42: 2.7991 | AS42: 2.6169 | AT42: 2.8491 | AU42: 2.6351 | AV42: 2.6192 | AW42: 2.4144 | AX42: 2.6167 | AY42: 2.5585 | AZ42: 2.4622 | BA42: 2.2648 | BB42: 3.1935 | BJ42: 2.509678481 | BK42: 2.318488608 | BL42: 2.605158005 | BM42: 2.406695556 | BN42: 2.460005162 | BP42: 2.603784373 | BQ42: 2.509678481 | BR42: 2.611011777 | BS42: 2.589274082 | BT42: 2.592247792 | BU42: 2.545099951 | BV42: 2.62042009 | BX42: =[2]!mGetRate(BX$1,$B42,EOMONTH($B42,0)+1,"FLAT",E42,F42) -> 26.58048387 | BY42: =[2]!mGetRate(BY$1,$B42,EOMONTH($B42,0)+1,"FLAT",G42,H42) -> 24.31032258 | BZ42: =[2]!mGetRate(BZ$1,$B42,EOMONTH($B42,0)+1,"FLAT",I42,J42) -> 22.34322581 | CA42: =IF(ValuationDate>$D42,"",[2]!mGetRate(CA$1,$B42,EOMONTH($B42,0)+1,"FLAT",M42,N42)) -> 29.61330645 | CB42: =[2]!mGetRate(CB$1,$B42,EOMONTH($B42,0)+1,"FLAT",Q42,R42) -> 23.81032258 | CC42: =IF(ValuationDate>$D42,"",[2]!mGetRate(CC$1,$B42,EOMONTH($B42,0)+1,"FLAT",K42,L42)) -> 32.07096774 | CD42: =[2]!mGetRate(CD$1,$B42,EOMONTH($B42,0)+1,"FLAT",AE42,AF42) -> 27.35656129 | CE42: =[2]!mGetRate(CE$1,$B42,EOMONTH($B42,0)+1,"FLAT",AA42,AB42) -> 27.11516129 | CF42: =[2]!mGetRate(CF$1,$B42,EOMONTH($B42,0)+1,"FLAT",O42,P42) -> 23.4716129 | CO42: 2018 | CP42: 2018-10-01 | CQ42: 2.7965872 | CR42: 2.592247792 | CS42: 2.585167623 | CT42: 2.541842783 | CU42: 2.585167623 | CV42: 2.620094762 | CW42: 2.906163908
B43: 2018-11-01 | C43: 2018-11-30 | D43: 2018-11-01 | E43: 30.4425 | F43: 24.99 | G43: 24.9775 | H43: 22.625 | I43: 25.74 | J43: 22.88 | K43: 34.65 | L43: 29.4 | M43: 32.5 | N43: 27.8875 | O43: 23.4775 | P43: 21.125 | Q43: 24.4775 | R43: 22.125 | S43: 21.7275 | T43: 20.625 | U43: 23.4775 | V43: 21.125 | W43: 25.74 | X43: 22.88 | Y43: 25.9775 | Z43: 23.125 | AA43: 28.2775 | AB43: 26.925 | AC43: 23.4775 | AD43: 21.625 | AE43: 30.6588 | AF43: 25.7416 | AG43: 3.021 | AH43: 2.7385 | AI43: 2.6885 | AJ43: 2.731 | AK43: 2.716 | AL43: 2.8437 | AM43: 2.6585 | AN43: 2.8135 | AO43: 2.6085 | AP43: 2.7935 | AQ43: 2.0435 | AR43: 2.987 | AS43: 2.8017 | AT43: 3.037 | AU43: 2.8213 | AV43: 2.8033 | AW43: 3.0041 | AX43: 2.8015 | AY43: 2.741 | AZ43: 2.6235 | BA43: 2.426 | BB43: 3.2485 | BJ43: 2.672918987 | BK43: 2.860260759 | BL43: 2.774607935 | BM43: 2.969075907 | BN43: 2.819215897 | BP43: 2.789951873 | BQ43: 2.672918987 | BR43: 2.816082477 | BS43: 2.775498571 | BT43: 2.745952065 | BU43: 2.728262667 | BV43: 2.803745053 | BX43: =[2]!mGetRate(BX$1,$B43,EOMONTH($B43,0)+1,"FLAT",E43,F43) -> 28.01496533 | BY43: =[2]!mGetRate(BY$1,$B43,EOMONTH($B43,0)+1,"FLAT",G43,H43) -> 23.93013176 | BZ43: =[2]!mGetRate(BZ$1,$B43,EOMONTH($B43,0)+1,"FLAT",I43,J43) -> 24.46668516 | CA43: =IF(ValuationDate>$D43,"",[2]!mGetRate(CA$1,$B43,EOMONTH($B43,0)+1,"FLAT",M43,N43)) -> 30.44644591 | CB43: =[2]!mGetRate(CB$1,$B43,EOMONTH($B43,0)+1,"FLAT",Q43,R43) -> 23.43013176 | CC43: =IF(ValuationDate>$D43,"",[2]!mGetRate(CC$1,$B43,EOMONTH($B43,0)+1,"FLAT",K43,L43)) -> 32.31262136 | CD43: =[2]!mGetRate(CD$1,$B43,EOMONTH($B43,0)+1,"FLAT",AE43,AF43) -> 28.4695889 | CE43: =[2]!mGetRate(CE$1,$B43,EOMONTH($B43,0)+1,"FLAT",AA43,AB43) -> 27.67534674 | CF43: =[2]!mGetRate(CF$1,$B43,EOMONTH($B43,0)+1,"FLAT",O43,P43) -> 22.43013176 | CO43: 2018 | CP43: 2018-11-01 | CQ43: 3.015231094 | CR43: 2.745952065 | CS43: 2.771335123 | CT43: 2.725005833 | CU43: 2.771335123 | CV43: 2.774035649 | CW43: 3.090358498
B44: 2018-12-01 | C44: 2018-12-31 | D44: 2018-12-01 | E44: 33.21 | F44: 27.03 | G44: 27.0375 | H44: 25.145 | I44: 28.48 | J44: 23.32 | K44: 35.7 | L44: 30.9 | M44: 33.925 | N44: 30.1 | O44: 25.0375 | P44: 23.145 | Q44: 26.5375 | R44: 24.645 | S44: 24.0375 | T44: 23.145 | U44: 25.0375 | V44: 23.145 | W44: 28.48 | X44: 23.32 | Y44: 28.0375 | Z44: 25.895 | AA44: 29.7375 | AB44: 28.095 | AC44: 27.5375 | AD44: 25.145 | AE44: 32.7194 | AF44: 27.8125 | AG44: 3.157 | AH44: 3.202 | AI44: 2.877 | AJ44: 2.957 | AK44: 2.942 | AL44: 3.0728 | AM44: 2.892 | AN44: 2.962 | AO44: 2.752 | AP44: 3.2195 | AQ44: 2.182 | AR44: 3.2196 | AS44: 3.0306 | AT44: 3.2696 | AU44: 3.0518 | AV44: 3.0313 | AW44: 3.4568 | AX44: 3.0304 | AY44: 2.967 | AZ44: 2.767 | BA44: 2.5695 | BB44: 3.407 | BJ44: 2.818235443 | BK44: 3.291653165 | BL44: 2.925452011 | BM44: 3.416877833 | BN44: 3.113054613 | BP44: 3.020493544 | BQ44: 2.818235443 | BR44: 2.964633691 | BS44: 3.006110816 | BT44: 2.985218383 | BU44: 2.955083345 | BV44: 3.03076665 | BX44: =[2]!mGetRate(BX$1,$B44,EOMONTH($B44,0)+1,"FLAT",E44,F44) -> 30.35258065 | BY44: =[2]!mGetRate(BY$1,$B44,EOMONTH($B44,0)+1,"FLAT",G44,H44) -> 26.16247312 | BZ44: =[2]!mGetRate(BZ$1,$B44,EOMONTH($B44,0)+1,"FLAT",I44,J44) -> 26.09419355 | CA44: =IF(ValuationDate>$D44,"",[2]!mGetRate(CA$1,$B44,EOMONTH($B44,0)+1,"FLAT",M44,N44)) -> 32.15645161 | CB44: =[2]!mGetRate(CB$1,$B44,EOMONTH($B44,0)+1,"FLAT",Q44,R44) -> 25.66247312 | CC44: =IF(ValuationDate>$D44,"",[2]!mGetRate(CC$1,$B44,EOMONTH($B44,0)+1,"FLAT",K44,L44)) -> 33.48064516 | CD44: =[2]!mGetRate(CD$1,$B44,EOMONTH($B44,0)+1,"FLAT",AE44,AF44) -> 30.45061828 | CE44: =[2]!mGetRate(CE$1,$B44,EOMONTH($B44,0)+1,"FLAT",AA44,AB44) -> 28.97806452 | CF44: =[2]!mGetRate(CF$1,$B44,EOMONTH($B44,0)+1,"FLAT",O44,P44) -> 24.16247312 | CO44: 2018 | CP44: 2018-12-01 | CQ44: 3.209181089 | CR44: 2.985218383 | CS44: 3.001876794 | CT44: 2.951826925 | CU44: 3.001876794 | CV44: 3.013670296 | CW44: 3.318457004
B45: 2019-01-01 | C45: 2019-01-31 | D45: 2019-01-01 | E45: 29.52 | F45: 24.525 | G45: 27.3 | H45: 26.65 | I45: 26.775 | J45: 22.36 | K45: 36.225 | L45: 32.5 | M45: 33.8 | N45: 31.415 | O45: 25.3 | P45: 24.65 | Q45: 26.8 | R45: 26.15 | S45: 23.8 | T45: 24.15 | U45: 25.3 | V45: 24.65 | W45: 26.775 | X45: 22.36 | Y45: 28.3 | Z45: 27.4 | AA45: 29.55 | AB45: 28.65 | AC45: 28.3 | AD45: 26.65 | AE45: 30.815 | AF45: 27.1846 | AG45: 3.252 | AH45: 3.107 | AI45: 2.9395 | AJ45: 2.967 | AK45: 2.952 | AL45: 3.0829 | AM45: 2.927 | AN45: 2.992 | AO45: 2.7932 | AP45: 2.9695 | AQ45: 2.2345 | AR45: 3.2299 | AS45: 3.0408 | AT45: 3.2799 | AU45: 3.0619 | AV45: 3.0414 | AW45: 3.1912 | AX45: 3.0406 | AY45: 2.977 | AZ45: 2.8082 | BA45: 2.6108 | BB45: 3.342 | BJ45: 2.859956962 | BK45: 3.038488608 | BL45: 2.968760554 | BM45: 3.154083276 | BN45: 3.00532235 | BP45: 3.030694503 | BQ45: 2.859956962 | BR45: 2.994644038 | BS45: 3.016314898 | BT45: 3.021082713 | BU45: 2.965119658 | BV45: 3.040811853 | BX45: =[2]!mGetRate(BX$1,$B45,EOMONTH($B45,0)+1,"FLAT",E45,F45) -> 27.31790323 | BY45: =[2]!mGetRate(BY$1,$B45,EOMONTH($B45,0)+1,"FLAT",G45,H45) -> 27.01344086 | BZ45: =[2]!mGetRate(BZ$1,$B45,EOMONTH($B45,0)+1,"FLAT",I45,J45) -> 24.82860215 | CA45: =IF(ValuationDate>$D45,"",[2]!mGetRate(CA$1,$B45,EOMONTH($B45,0)+1,"FLAT",M45,N45)) -> 32.74854839 | CB45: =[2]!mGetRate(CB$1,$B45,EOMONTH($B45,0)+1,"FLAT",Q45,R45) -> 26.51344086 | CC45: =IF(ValuationDate>$D45,"",[2]!mGetRate(CC$1,$B45,EOMONTH($B45,0)+1,"FLAT",K45,L45)) -> 34.5827957 | CD45: =[2]!mGetRate(CD$1,$B45,EOMONTH($B45,0)+1,"FLAT",AE45,AF45) -> 29.21450108 | CE45: =[2]!mGetRate(CE$1,$B45,EOMONTH($B45,0)+1,"FLAT",AA45,AB45) -> 29.15322581 | CF45: =[2]!mGetRate(CF$1,$B45,EOMONTH($B45,0)+1,"FLAT",O45,P45) -> 25.01344086 | CO45: 2019 | CP45: 2019-01-01 | CQ45: 3.273488116 | CR45: 3.021082713 | CS45: 3.012077753 | CT45: 2.961863257 | CU45: 3.012077753 | CV45: 3.049589836 | CW45: 3.328549859
B46: 2019-02-01 | C46: 2019-02-28 | D46: 2019-02-01 | E46: 27.51 | F46: 23.45 | G46: 26.775 | H46: 26.2525 | I46: 26.01 | J46: 21.715 | K46: 35.19 | L46: 31.5625 | M46: 33.15 | N46: 30.5 | O46: 24.775 | P46: 24.2525 | Q46: 26.775 | R46: 25.7525 | S46: 23.275 | T46: 23.7525 | U46: 24.775 | V46: 24.2525 | W46: 26.01 | X46: 21.715 | Y46: 27.775 | Z46: 27.0025 | AA46: 29.125 | AB46: 28.0025 | AC46: 25.775 | AD46: 26.2525 | AE46: 29.5012 | AF46: 26.2125 | AG46: 3.23 | AH46: 3.05 | AI46: 2.9075 | AJ46: 2.9425 | AK46: 2.9275 | AL46: 3.0581 | AM46: 2.9175 | AN46: 2.975 | AO46: 2.77 | AP46: 2.755 | AQ46: 2.205 | AR46: 3.2047 | AS46: 3.016 | AT46: 3.2547 | AU46: 3.037 | AV46: 3.0167 | AW46: 2.9632 | AX46: 3.0157 | AY46: 2.9525 | AZ46: 2.785 | BA46: 2.5875 | BB46: 3.31 | BJ46: 2.836463291 | BK46: 2.821273418 | BL46: 2.944373219 | BM46: 2.928605546 | BN46: 2.882678868 | BP46: 3.005702153 | BQ46: 2.836463291 | BR46: 2.977638175 | BS46: 2.991314898 | BT46: 3.011348109 | BU46: 2.940530691 | BV46: 3.016201105 | BX46: =[2]!mGetRate(BX$1,$B46,EOMONTH($B46,0)+1,"FLAT",E46,F46) -> 25.77 | BY46: =[2]!mGetRate(BY$1,$B46,EOMONTH($B46,0)+1,"FLAT",G46,H46) -> 26.55107143 | BZ46: =[2]!mGetRate(BZ$1,$B46,EOMONTH($B46,0)+1,"FLAT",I46,J46) -> 24.16928571 | CA46: =IF(ValuationDate>$D46,"",[2]!mGetRate(CA$1,$B46,EOMONTH($B46,0)+1,"FLAT",M46,N46)) -> 32.01428571 | CB46: =[2]!mGetRate(CB$1,$B46,EOMONTH($B46,0)+1,"FLAT",Q46,R46) -> 26.33678571 | CC46: =IF(ValuationDate>$D46,"",[2]!mGetRate(CC$1,$B46,EOMONTH($B46,0)+1,"FLAT",K46,L46)) -> 33.63535714 | CD46: =[2]!mGetRate(CD$1,$B46,EOMONTH($B46,0)+1,"FLAT",AE46,AF46) -> 28.09175714 | CE46: =[2]!mGetRate(CE$1,$B46,EOMONTH($B46,0)+1,"FLAT",AA46,AB46) -> 28.64392857 | CF46: =[2]!mGetRate(CF$1,$B46,EOMONTH($B46,0)+1,"FLAT",O46,P46) -> 24.55107143 | CO46: 2019 | CP46: 2019-02-01 | CQ46: 3.240562918 | CR46: 3.011348109 | CS46: 2.987085403 | CT46: 2.937274245 | CU46: 2.987085403 | CV46: 3.039840246 | CW46: 3.303822366
B47: 2019-03-01 | C47: 2019-03-31 | D47: 2019-03-01 | E47: 25.47 | F47: 22.375 | G47: 24.675 | H47: 24.6775 | I47: 23.715 | J47: 20.425 | K47: 32.085 | L47: 29.6875 | M47: 30.55 | N47: 29.585 | O47: 22.675 | P47: 22.6775 | Q47: 24.675 | R47: 24.1775 | S47: 22.925 | T47: 21.1775 | U47: 22.675 | V47: 22.6775 | W47: 23.715 | X47: 20.425 | Y47: 25.675 | Z47: 25.4275 | AA47: 27.025 | AB47: 26.6775 | AC47: 23.425 | AD47: 24.6775 | AE47: 27.2462 | AF47: 25.2404 | AG47: 3.159 | AH47: 2.9915 | AI47: 2.8465 | AJ47: 2.824 | AK47: 2.809 | AL47: 2.938 | AM47: 2.7965 | AN47: 2.9015 | AO47: 2.6902 | AP47: 2.6665 | AQ47: 2.119 | AR47: 3.0827 | AS47: 2.8959 | AT47: 3.1327 | AU47: 2.9161 | AV47: 2.8971 | AW47: 2.8692 | AX47: 2.8957 | AY47: 2.834 | AZ47: 2.7052 | BA47: 2.5077 | BB47: 3.279 | BJ47: 2.755653165 | BK47: 2.731653165 | BL47: 2.860489197 | BM47: 2.835576273 | BN47: 2.79584295 | BP47: 2.884820791 | BQ47: 2.755653165 | BR47: 2.904112826 | BS47: 2.870396531 | BT47: 2.887359996 | BU47: 2.82160038 | BV47: 2.897165445 | BX47: =[2]!mGetRate(BX$1,$B47,EOMONTH($B47,0)+1,"FLAT",E47,F47) -> 24.10786676 | BY47: =[2]!mGetRate(BY$1,$B47,EOMONTH($B47,0)+1,"FLAT",G47,H47) -> 24.67610027 | BZ47: =[2]!mGetRate(BZ$1,$B47,EOMONTH($B47,0)+1,"FLAT",I47,J47) -> 22.26704576 | CA47: =IF(ValuationDate>$D47,"",[2]!mGetRate(CA$1,$B47,EOMONTH($B47,0)+1,"FLAT",M47,N47)) -> 30.1252961 | CB47: =[2]!mGetRate(CB$1,$B47,EOMONTH($B47,0)+1,"FLAT",Q47,R47) -> 24.45604643 | CC47: =IF(ValuationDate>$D47,"",[2]!mGetRate(CC$1,$B47,EOMONTH($B47,0)+1,"FLAT",K47,L47)) -> 31.02984186 | CD47: =[2]!mGetRate(CD$1,$B47,EOMONTH($B47,0)+1,"FLAT",AE47,AF47) -> 26.36343203 | CE47: =[2]!mGetRate(CE$1,$B47,EOMONTH($B47,0)+1,"FLAT",AA47,AB47) -> 26.87206258 | CF47: =[2]!mGetRate(CF$1,$B47,EOMONTH($B47,0)+1,"FLAT",O47,P47) -> 22.67610027 | CO47: 2019 | CP47: 2019-03-01 | CQ47: 3.177799259 | CR47: 2.887359996 | CS47: 2.866204041 | CT47: 2.818343716 | CU47: 2.866204041 | CV47: 2.915661264 | CW47: 3.184222043
B48: 2019-04-01 | C48: 2019-04-30 | D48: 2019-04-01 | E48: 21.33 | F48: 14.375 | G48: 20.25 | H48: 14.655 | I48: 20.4 | J48: 13.015 | K48: 22.05 | L48: 20.8325 | M48: 22.245 | N48: 18.55 | O48: 18.25 | P48: 12.655 | Q48: 18.75 | R48: 13.905 | S48: 15.25 | T48: 10.655 | U48: 18.25 | V48: 12.655 | W48: 20.4 | X48: 13.015 | Y48: 18.75 | Z48: 12.655 | AA48: 24.8 | AB48: 25.155 | AC48: 18.75 | AD48: 13.155 | AE48: 21.2314 | AF48: 15.9987 | AG48: 2.77 | AH48: 2.4175 | AI48: 2.3025 | AJ48: 2.3725 | AK48: 2.3575 | AL48: 2.4802 | AM48: 2.3475 | AN48: 2.3275 | AO48: 2.2188 | AP48: 1.7975 | AQ48: 1.75 | AR48: 2.618 | AS48: 2.4386 | AT48: 2.668 | AU48: 2.4556 | AV48: 2.4416 | AW48: 1.9245 | AX48: 2.4384 | AY48: 2.3825 | AZ48: 2.2337 | BA48: 2.0362 | BB48: 2.88 | BJ48: 2.278286076 | BK48: 1.851653165 | BL48: 2.36496378 | BM48: 1.922102393 | BN48: 2.104251353 | BP48: 2.424247497 | BQ48: 2.278286076 | BR48: 2.329914866 | BS48: 2.409682245 | BT48: 2.427271872 | BU48: 2.368460838 | BV48: 2.44362451 | BX48: =[2]!mGetRate(BX$1,$B48,EOMONTH($B48,0)+1,"FLAT",E48,F48) -> 18.39344444 | BY48: =[2]!mGetRate(BY$1,$B48,EOMONTH($B48,0)+1,"FLAT",G48,H48) -> 17.88766667 | BZ48: =[2]!mGetRate(BZ$1,$B48,EOMONTH($B48,0)+1,"FLAT",I48,J48) -> 17.28188889 | CA48: =IF(ValuationDate>$D48,"",[2]!mGetRate(CA$1,$B48,EOMONTH($B48,0)+1,"FLAT",M48,N48)) -> 20.68488889 | CB48: =[2]!mGetRate(CB$1,$B48,EOMONTH($B48,0)+1,"FLAT",Q48,R48) -> 16.70433333 | CC48: =IF(ValuationDate>$D48,"",[2]!mGetRate(CC$1,$B48,EOMONTH($B48,0)+1,"FLAT",K48,L48)) -> 21.53594444 | CD48: =[2]!mGetRate(CD$1,$B48,EOMONTH($B48,0)+1,"FLAT",AE48,AF48) -> 19.02203778 | CE48: =[2]!mGetRate(CE$1,$B48,EOMONTH($B48,0)+1,"FLAT",AA48,AB48) -> 24.94988889 | CF48: =[2]!mGetRate(CF$1,$B48,EOMONTH($B48,0)+1,"FLAT",O48,P48) -> 15.88766667 | CO48: 2019 | CP48: 2019-04-01 | CQ48: 2.618070892 | CR48: 2.427271872 | CS48: 2.405630747 | CT48: 2.365203348 | CU48: 2.405630747 | CV48: 2.454864877 | CW48: 2.728529673
B49: 2019-05-01 | C49: 2019-05-31 | D49: 2019-05-01 | E49: 18.95 | F49: 10.575 | G49: 20.97 | H49: 10.77 | I49: 15.64 | J49: 8.075 | K49: 22.8375 | L49: 17.0975 | M49: 22.715 | N49: 14.35 | O49: 19.47 | P49: 8.77 | Q49: 20.97 | R49: 10.77 | S49: 16.97 | T49: 5.77 | U49: 19.47 | V49: 8.77 | W49: 15.64 | X49: 8.075 | Y49: 19.47 | Z49: 8.77 | AA49: 25.02 | AB49: 20.77 | AC49: 19.47 | AD49: 8.77 | AE49: 20.2646 | AF49: 12.1038 | AG49: 2.725 | AH49: 2.3875 | AI49: 2.25 | AJ49: 2.265 | AK49: 2.25 | AL49: 2.3712 | AM49: 2.235 | AN49: 2.2775 | AO49: 2.1675 | AP49: 1.755 | AQ49: 1.6975 | AR49: 2.5073 | AS49: 2.3297 | AT49: 2.5573 | AU49: 2.346 | AV49: 2.3331 | AW49: 1.8794 | AX49: 2.3295 | AY49: 2.275 | AZ49: 2.1825 | BA49: 1.985 | BB49: 2.83 | BJ49: 2.226336709 | BK49: 1.80861519 | BL49: 2.311038337 | BM49: 1.877427318 | BN49: 2.055854388 | BP49: 2.314587189 | BQ49: 2.226336709 | BR49: 2.279897622 | BS49: 2.299988367 | BT49: 2.311993667 | BU49: 2.260570471 | BV49: 2.335638574 | BX49: =[2]!mGetRate(BX$1,$B49,EOMONTH($B49,0)+1,"FLAT",E49,F49) -> 15.2577957 | BY49: =[2]!mGetRate(BY$1,$B49,EOMONTH($B49,0)+1,"FLAT",G49,H49) -> 16.47322581 | BZ49: =[2]!mGetRate(BZ$1,$B49,EOMONTH($B49,0)+1,"FLAT",I49,J49) -> 12.30489247 | CA49: =IF(ValuationDate>$D49,"",[2]!mGetRate(CA$1,$B49,EOMONTH($B49,0)+1,"FLAT",M49,N49)) -> 19.0272043 | CB49: =[2]!mGetRate(CB$1,$B49,EOMONTH($B49,0)+1,"FLAT",Q49,R49) -> 16.47322581 | CC49: =IF(ValuationDate>$D49,"",[2]!mGetRate(CC$1,$B49,EOMONTH($B49,0)+1,"FLAT",K49,L49)) -> 20.30696237 | CD49: =[2]!mGetRate(CD$1,$B49,EOMONTH($B49,0)+1,"FLAT",AE49,AF49) -> 16.66682796 | CE49: =[2]!mGetRate(CE$1,$B49,EOMONTH($B49,0)+1,"FLAT",AA49,AB49) -> 23.14634409 | CF49: =[2]!mGetRate(CF$1,$B49,EOMONTH($B49,0)+1,"FLAT",O49,P49) -> 14.7527957 | CO49: 2019 | CP49: 2019-05-01 | CQ49: 2.564052989 | CR49: 2.311993667 | CS49: 2.295970439 | CT49: 2.257312784 | CU49: 2.295970439 | CV49: 2.339409212 | CW49: 2.62003149
B50: 2019-06-01 | C50: 2019-06-30 | D50: 2019-06-01 | E50: 19.12 | F50: 11.05 | G50: 23.13 | H50: 11.325 | I50: 14.96 | J50: 7.41 | K50: 24.4125 | L50: 17.72 | M50: 23.89 | N50: 14.35 | O50: 21.38 | P50: 9.825 | Q50: 22.38 | R50: 10.825 | S50: 19.63 | T50: 7.325 | U50: 21.38 | V50: 9.825 | W50: 14.96 | X50: 7.41 | Y50: 24.13 | Z50: 11.825 | AA50: 28.18 | AB50: 21.825 | AC50: 22.13 | AD50: 10.075 | AE50: 20.9077 | AF50: 12.3412 | AG50: 2.753 | AH50: 2.4205 | AI50: 2.283 | AJ50: 2.2855 | AK50: 2.2705 | AL50: 2.392 | AM50: 2.253 | AN50: 2.3105 | AO50: 2.1955 | AP50: 1.773 | AQ50: 1.7205 | AR50: 2.5284 | AS50: 2.3505 | AT50: 2.5784 | AU50: 2.3669 | AV50: 2.3538 | AW50: 1.8985 | AX50: 2.3503 | AY50: 2.2955 | AZ50: 2.2105 | BA50: 2.013 | BB50: 2.863 | BJ50: 2.254691139 | BK50: 1.826843038 | BL50: 2.340471327 | BM50: 1.896348526 | BN50: 2.079588508 | BP50: 2.335499154 | BQ50: 2.254691139 | BR50: 2.312909003 | BS50: 2.320906735 | BT50: 2.33043818 | BU50: 2.281144913 | BV50: 2.356231241 | BX50: =[2]!mGetRate(BX$1,$B50,EOMONTH($B50,0)+1,"FLAT",E50,F50) -> 15.53333333 | BY50: =[2]!mGetRate(BY$1,$B50,EOMONTH($B50,0)+1,"FLAT",G50,H50) -> 17.88333333 | BZ50: =[2]!mGetRate(BZ$1,$B50,EOMONTH($B50,0)+1,"FLAT",I50,J50) -> 11.60444444 | CA50: =IF(ValuationDate>$D50,"",[2]!mGetRate(CA$1,$B50,EOMONTH($B50,0)+1,"FLAT",M50,N50)) -> 19.65 | CB50: =[2]!mGetRate(CB$1,$B50,EOMONTH($B50,0)+1,"FLAT",Q50,R50) -> 17.24444444 | CC50: =IF(ValuationDate>$D50,"",[2]!mGetRate(CC$1,$B50,EOMONTH($B50,0)+1,"FLAT",K50,L50)) -> 21.43805556 | CD50: =[2]!mGetRate(CD$1,$B50,EOMONTH($B50,0)+1,"FLAT",AE50,AF50) -> 17.10036667 | CE50: =[2]!mGetRate(CE$1,$B50,EOMONTH($B50,0)+1,"FLAT",AA50,AB50) -> 25.35555556 | CF50: =[2]!mGetRate(CF$1,$B50,EOMONTH($B50,0)+1,"FLAT",O50,P50) -> 16.24444444 | CO50: 2019 | CP50: 2019-06-01 | CQ50: 2.598007099 | CR50: 2.33043818 | CS50: 2.316882404 | CT50: 2.277887264 | CU50: 2.316882404 | CV50: 2.357882118 | CW50: 2.640721841
B51: 2019-07-01 | C51: 2019-07-31 | D51: 2019-07-01 | E51: 31.3125 | F51: 15.335 | G51: 34.2375 | H51: 24.675 | I51: 27.15 | J51: 14.85 | K51: 35.75 | L51: 27.66 | M51: 34.935 | N51: 26.4325 | O51: 38.9875 | P51: 25.675 | Q51: 39.2375 | R51: 25.675 | S51: 32.2375 | T51: 22.175 | U51: 38.9875 | V51: 25.675 | W51: 27.15 | X51: 14.85 | Y51: 36.7375 | Z51: 26.175 | AA51: 37.2875 | AB51: 27.175 | AC51: 35.7375 | AD51: 24.175 | AE51: 32.2504 | AF51: 20.2229 | AG51: 2.786 | AH51: 2.656 | AI51: 2.4685 | AJ51: 2.346 | AK51: 2.331 | AL51: 2.4533 | AM51: 2.3185 | AN51: 2.401 | AO51: 2.2522 | AP51: 1.9785 | AQ51: 1.7435 | AR51: 2.5907 | AS51: 2.4117 | AT51: 2.6407 | AU51: 2.4286 | AV51: 2.4148 | AW51: 2.1169 | AX51: 2.4116 | AY51: 2.356 | AZ51: 2.2672 | BA51: 2.0698 | BB51: 3.041 | BJ51: 2.312108861 | BK51: 2.034944304 | BL51: 2.400073133 | BM51: 2.112365652 | BN51: 2.214872987 | BP51: 2.397214956 | BQ51: 2.312108861 | BR51: 2.403440214 | BS51: 2.382641429 | BT51: 2.397555713 | BU51: 2.341864608 | BV51: 2.417004721 | BX51: =[2]!mGetRate(BX$1,$B51,EOMONTH($B51,0)+1,"FLAT",E51,F51) -> 24.26865591 | BY51: =[2]!mGetRate(BY$1,$B51,EOMONTH($B51,0)+1,"FLAT",G51,H51) -> 30.02177419 | BZ51: =[2]!mGetRate(BZ$1,$B51,EOMONTH($B51,0)+1,"FLAT",I51,J51) -> 21.72741935 | CA51: =IF(ValuationDate>$D51,"",[2]!mGetRate(CA$1,$B51,EOMONTH($B51,0)+1,"FLAT",M51,N51)) -> 31.18658602 | CB51: =[2]!mGetRate(CB$1,$B51,EOMONTH($B51,0)+1,"FLAT",Q51,R51) -> 33.25833333 | CC51: =IF(ValuationDate>$D51,"",[2]!mGetRate(CC$1,$B51,EOMONTH($B51,0)+1,"FLAT",K51,L51)) -> 32.18344086 | CD51: =[2]!mGetRate(CD$1,$B51,EOMONTH($B51,0)+1,"FLAT",AE51,AF51) -> 26.94795376 | CE51: =[2]!mGetRate(CE$1,$B51,EOMONTH($B51,0)+1,"FLAT",AA51,AB51) -> 32.82930108 | CF51: =[2]!mGetRate(CF$1,$B51,EOMONTH($B51,0)+1,"FLAT",O51,P51) -> 33.11854839 | CO51: 2019 | CP51: 2019-07-01 | CQ51: 2.788870357 | CR51: 2.397555713 | CS51: 2.378598206 | CT51: 2.33860707 | CU51: 2.378598206 | CV51: 2.425102972 | CW51: 2.701783609
B52: 2019-08-01 | C52: 2019-08-31 | D52: 2019-08-01 | E52: 33.5 | F52: 22 | G52: 32.8875 | H52: 24.44 | I52: 30.45 | J52: 16.85 | K52: 36.8075 | L52: 29.9 | M52: 35.2775 | N52: 28.0675 | O52: 37.3875 | P52: 24.94 | Q52: 37.3875 | R52: 25.44 | S52: 30.8875 | T52: 22.44 | U52: 37.3875 | V52: 24.94 | W52: 30.45 | X52: 16.85 | Y52: 34.8875 | Z52: 25.94 | AA52: 35.6875 | AB52: 26.69 | AC52: 35.1375 | AD52: 24.44 | AE52: 33.5068 | AF52: 24.3321 | AG52: 2.802 | AH52: 2.672 | AI52: 2.507 | AJ52: 2.362 | AK52: 2.347 | AL52: 2.4695 | AM52: 2.3345 | AN52: 2.427 | AO52: 2.2732 | AP52: 1.997 | AQ52: 1.7595 | AR52: 2.6072 | AS52: 2.4279 | AT52: 2.6572 | AU52: 2.4449 | AV52: 2.431 | AW52: 2.1365 | AX52: 2.4278 | AY52: 2.372 | AZ52: 2.2882 | BA52: 2.0908 | BB52: 3.0545 | BJ52: 2.333374684 | BK52: 2.053678481 | BL52: 2.422147876 | BM52: 2.131812449 | BN52: 2.235253372 | BP52: 2.41353649 | BQ52: 2.333374684 | BR52: 2.429449181 | BS52: 2.398967959 | BT52: 2.413950835 | BU52: 2.357922709 | BV52: 2.433077047 | BX52: =[2]!mGetRate(BX$1,$B52,EOMONTH($B52,0)+1,"FLAT",E52,F52) -> 28.67741935 | BY52: =[2]!mGetRate(BY$1,$B52,EOMONTH($B52,0)+1,"FLAT",G52,H52) -> 29.345 | BZ52: =[2]!mGetRate(BZ$1,$B52,EOMONTH($B52,0)+1,"FLAT",I52,J52) -> 24.74677419 | CA52: =IF(ValuationDate>$D52,"",[2]!mGetRate(CA$1,$B52,EOMONTH($B52,0)+1,"FLAT",M52,N52)) -> 32.25395161 | CB52: =[2]!mGetRate(CB$1,$B52,EOMONTH($B52,0)+1,"FLAT",Q52,R52) -> 32.37725806 | CC52: =IF(ValuationDate>$D52,"",[2]!mGetRate(CC$1,$B52,EOMONTH($B52,0)+1,"FLAT",K52,L52)) -> 33.91080645 | CD52: =[2]!mGetRate(CD$1,$B52,EOMONTH($B52,0)+1,"FLAT",AE52,AF52) -> 29.65934516 | CE52: =[2]!mGetRate(CE$1,$B52,EOMONTH($B52,0)+1,"FLAT",AA52,AB52) -> 31.91435484 | CF52: =[2]!mGetRate(CF$1,$B52,EOMONTH($B52,0)+1,"FLAT",O52,P52) -> 32.16758065 | CO52: 2019 | CP52: 2019-08-01 | CQ52: 2.828483486 | CR52: 2.413950835 | CS52: 2.39491974 | CT52: 2.3546652 | CU52: 2.39491974 | CV52: 2.441523333 | CW52: 2.717932176
B53: 2019-09-01 | C53: 2019-09-30 | D53: 2019-09-01 | E53: 31.9375 | F53: 22.215 | G53: 30.525 | H53: 21.385 | I53: 27.15 | J53: 18.85 | K53: 34.6925 | L53: 27.94 | M53: 32.5375 | N53: 27.25 | O53: 34.025 | P53: 19.385 | Q53: 33.525 | R53: 19.885 | S53: 27.525 | T53: 20.385 | U53: 34.025 | V53: 19.385 | W53: 27.15 | X53: 18.85 | Y53: 32.025 | Z53: 22.385 | AA53: 32.575 | AB53: 23.135 | AC53: 31.525 | AD53: 18.885 | AE53: 31.4241 | AF53: 24.0512 | AG53: 2.8 | AH53: 2.495 | AI53: 2.4875 | AJ53: 2.3525 | AK53: 2.3375 | AL53: 2.4599 | AM53: 2.3225 | AN53: 2.43 | AO53: 2.2862 | AP53: 2.0225 | AQ53: 1.7825 | AR53: 2.5974 | AS53: 2.4183 | AT53: 2.6474 | AU53: 2.4352 | AV53: 2.4214 | AW53: 2.1636 | AX53: 2.4181 | AY53: 2.3625 | AZ53: 2.3012 | BA53: 2.1037 | BB53: 3.0425 | BJ53: 2.346539241 | BK53: 2.079501266 | BL53: 2.435813193 | BM53: 2.158617494 | BN53: 2.255117798 | BP53: 2.403845579 | BQ53: 2.346539241 | BR53: 2.432450216 | BS53: 2.389274082 | BT53: 2.401654493 | BU53: 2.348388212 | BV53: 2.423534103 | BX53: =[2]!mGetRate(BX$1,$B53,EOMONTH($B53,0)+1,"FLAT",E53,F53) -> 27.40033333 | BY53: =[2]!mGetRate(BY$1,$B53,EOMONTH($B53,0)+1,"FLAT",G53,H53) -> 26.25966667 | BZ53: =[2]!mGetRate(BZ$1,$B53,EOMONTH($B53,0)+1,"FLAT",I53,J53) -> 23.27666667 | CA53: =IF(ValuationDate>$D53,"",[2]!mGetRate(CA$1,$B53,EOMONTH($B53,0)+1,"FLAT",M53,N53)) -> 30.07 | CB53: =[2]!mGetRate(CB$1,$B53,EOMONTH($B53,0)+1,"FLAT",Q53,R53) -> 27.15966667 | CC53: =IF(ValuationDate>$D53,"",[2]!mGetRate(CC$1,$B53,EOMONTH($B53,0)+1,"FLAT",K53,L53)) -> 31.54133333 | CD53: =[2]!mGetRate(CD$1,$B53,EOMONTH($B53,0)+1,"FLAT",AE53,AF53) -> 27.98341333 | CE53: =[2]!mGetRate(CE$1,$B53,EOMONTH($B53,0)+1,"FLAT",AA53,AB53) -> 28.16966667 | CF53: =[2]!mGetRate(CF$1,$B53,EOMONTH($B53,0)+1,"FLAT",O53,P53) -> 27.193 | CO53: 2019 | CP53: 2019-09-01 | CQ53: 2.808419693 | CR53: 2.401654493 | CS53: 2.385228829 | CT53: 2.345130685 | CU53: 2.385228829 | CV53: 2.429208062 | CW53: 2.708343964
B54: 2019-10-01 | C54: 2019-10-31 | D54: 2019-10-01 | E54: 29.3475 | F54: 25.38 | G54: 26.735 | H54: 24.28 | I54: 24.68 | J54: 20.35 | K54: 34.9 | L54: 29.45 | M54: 30.875 | N54: 27.8625 | O54: 26.735 | P54: 22.28 | Q54: 26.235 | R54: 23.78 | S54: 23.735 | T54: 21.78 | U54: 26.735 | V54: 22.28 | W54: 24.68 | X54: 20.35 | Y54: 27.735 | Z54: 25.03 | AA54: 28.735 | AB54: 26.03 | AC54: 26.735 | AD54: 22.78 | AE54: 29.3394 | AF54: 25.9247 | AG54: 2.83 | AH54: 2.4225 | AI54: 2.3775 | AJ54: 2.39 | AK54: 2.375 | AL54: 2.4979 | AM54: 2.37 | AN54: 2.455 | AO54: 2.3162 | AP54: 2.055 | AQ54: 1.8175 | AR54: 2.636 | AS54: 2.4563 | AT54: 2.686 | AU54: 2.4735 | AV54: 2.4592 | AW54: 2.1981 | AX54: 2.4561 | AY54: 2.4 | AZ54: 2.3312 | BA54: 2.1338 | BB54: 3.17 | BJ54: 2.376918987 | BK54: 2.112412658 | BL54: 2.467348539 | BM54: 2.192780786 | BN54: 2.287365243 | BP54: 2.442099175 | BQ54: 2.376918987 | BR54: 2.457458838 | BS54: 2.427539388 | BT54: 2.450327513 | BU54: 2.386024386 | BV54: 2.461203616 | BX54: =[2]!mGetRate(BX$1,$B54,EOMONTH($B54,0)+1,"FLAT",E54,F54) -> 27.68370968 | BY54: =[2]!mGetRate(BY$1,$B54,EOMONTH($B54,0)+1,"FLAT",G54,H54) -> 25.70548387 | BZ54: =[2]!mGetRate(BZ$1,$B54,EOMONTH($B54,0)+1,"FLAT",I54,J54) -> 22.86419355 | CA54: =IF(ValuationDate>$D54,"",[2]!mGetRate(CA$1,$B54,EOMONTH($B54,0)+1,"FLAT",M54,N54)) -> 29.61169355 | CB54: =[2]!mGetRate(CB$1,$B54,EOMONTH($B54,0)+1,"FLAT",Q54,R54) -> 25.20548387 | CC54: =IF(ValuationDate>$D54,"",[2]!mGetRate(CC$1,$B54,EOMONTH($B54,0)+1,"FLAT",K54,L54)) -> 32.61451613 | CD54: =[2]!mGetRate(CD$1,$B54,EOMONTH($B54,0)+1,"FLAT",AE54,AF54) -> 27.90742903 | CE54: =[2]!mGetRate(CE$1,$B54,EOMONTH($B54,0)+1,"FLAT",AA54,AB54) -> 27.60064516 | CF54: =[2]!mGetRate(CF$1,$B54,EOMONTH($B54,0)+1,"FLAT",O54,P54) -> 24.86677419 | CO54: 2019 | CP54: 2019-10-01 | CQ54: 2.695239325 | CR54: 2.450327513 | CS54: 2.423482425 | CT54: 2.382766928 | CU54: 2.423482425 | CV54: 2.47795601 | CW54: 2.746192168
B55: 2019-11-01 | C55: 2019-11-30 | D55: 2019-11-01 | E55: 31.1925 | F55: 25.89 | G55: 26.4775 | H55: 23.575 | I55: 26.24 | J55: 23.43 | K55: 34.9 | L55: 30.35 | M55: 32.5 | N55: 28.4375 | O55: 24.9775 | P55: 22.075 | Q55: 25.9775 | R55: 23.075 | S55: 23.2275 | T55: 21.575 | U55: 24.9775 | V55: 22.075 | W55: 26.24 | X55: 23.43 | Y55: 27.4775 | Z55: 24.075 | AA55: 28.4775 | AB55: 25.325 | AC55: 24.9775 | AD55: 22.575 | AE55: 31.0338 | AF55: 26.4528 | AG55: 2.903 | AH55: 2.768 | AI55: 2.6655 | AJ55: 2.6105 | AK55: 2.5955 | AL55: 2.7215 | AM55: 2.538 | AN55: 2.668 | AO55: 2.4968 | AP55: 2.6055 | AQ55: 1.9655 | AR55: 2.8629 | AS55: 2.6797 | AT55: 2.9129 | AU55: 2.6984 | AV55: 2.6817 | AW55: 2.8044 | AX55: 2.6795 | AY55: 2.6205 | AZ55: 2.5118 | BA55: 2.3143 | BB55: 3.1055 | BJ55: 2.559805063 | BK55: 2.669881013 | BL55: 2.657191327 | BM55: 2.771454401 | BN55: 2.664582951 | BP55: 2.667030318 | BQ55: 2.559805063 | BR55: 2.670532297 | BS55: 2.652539388 | BT55: 2.622476299 | BU55: 2.607325093 | BV55: 2.682700352 | BX55: =[2]!mGetRate(BX$1,$B55,EOMONTH($B55,0)+1,"FLAT",E55,F55) -> 28.83174757 | BY55: =[2]!mGetRate(BY$1,$B55,EOMONTH($B55,0)+1,"FLAT",G55,H55) -> 25.18526352 | BZ55: =[2]!mGetRate(BZ$1,$B55,EOMONTH($B55,0)+1,"FLAT",I55,J55) -> 24.98894591 | CA55: =IF(ValuationDate>$D55,"",[2]!mGetRate(CA$1,$B55,EOMONTH($B55,0)+1,"FLAT",M55,N55)) -> 30.69131415 | CB55: =[2]!mGetRate(CB$1,$B55,EOMONTH($B55,0)+1,"FLAT",Q55,R55) -> 24.68526352 | CC55: =IF(ValuationDate>$D55,"",[2]!mGetRate(CC$1,$B55,EOMONTH($B55,0)+1,"FLAT",K55,L55)) -> 32.87427184 | CD55: =[2]!mGetRate(CD$1,$B55,EOMONTH($B55,0)+1,"FLAT",AE55,AF55) -> 28.99427018 | CE55: =[2]!mGetRate(CE$1,$B55,EOMONTH($B55,0)+1,"FLAT",AA55,AB55) -> 27.07395978 | CF55: =[2]!mGetRate(CF$1,$B55,EOMONTH($B55,0)+1,"FLAT",O55,P55) -> 23.68526352 | CO55: 2019 | CP55: 2019-11-01 | CQ55: 2.991566108 | CR55: 2.622476299 | CS55: 2.648413568 | CT55: 2.604068038 | CU55: 2.648413568 | CV55: 2.650369803 | CW55: 2.968739604
B56: 2019-12-01 | C56: 2019-12-31 | D56: 2019-12-01 | E56: 33.96 | F56: 27.93 | G56: 28.5375 | H56: 26.395 | I56: 28.58 | J56: 23.87 | K56: 35.95 | L56: 33.05 | M56: 34.125 | N56: 31.6 | O56: 26.5375 | P56: 24.395 | Q56: 28.0375 | R56: 25.895 | S56: 25.5375 | T56: 24.395 | U56: 26.5375 | V56: 24.395 | W56: 28.58 | X56: 23.87 | Y56: 29.5375 | Z56: 27.145 | AA56: 30.5375 | AB56: 27.645 | AC56: 29.0375 | AD56: 26.395 | AE56: 33.1894 | AF56: 28.975 | AG56: 3.048 | AH56: 2.9605 | AI56: 2.878 | AJ56: 2.833 | AK56: 2.818 | AL56: 2.9471 | AM56: 2.768 | AN56: 2.8255 | AO56: 2.6655 | AP56: 3.0005 | AQ56: 2.1455 | AR56: 3.092 | AS56: 2.905 | AT56: 3.142 | AU56: 2.9253 | AV56: 2.9062 | AW56: 3.2241 | AX56: 2.9048 | AY56: 2.843 | AZ56: 2.6805 | BA56: 2.483 | BB56: 3.2205 | BJ56: 2.730640506 | BK56: 3.069881013 | BL56: 2.834525094 | BM56: 3.186669801 | BN56: 2.955429103 | BP56: 2.894001654 | BQ56: 2.730640506 | BR56: 2.828086615 | BS56: 2.879580204 | BT56: 2.858156184 | BU56: 2.830633061 | BV56: 2.906206128 | BX56: =[2]!mGetRate(BX$1,$B56,EOMONTH($B56,0)+1,"FLAT",E56,F56) -> 31.17193548 | BY56: =[2]!mGetRate(BY$1,$B56,EOMONTH($B56,0)+1,"FLAT",G56,H56) -> 27.54688172 | BZ56: =[2]!mGetRate(BZ$1,$B56,EOMONTH($B56,0)+1,"FLAT",I56,J56) -> 26.40225806 | CA56: =IF(ValuationDate>$D56,"",[2]!mGetRate(CA$1,$B56,EOMONTH($B56,0)+1,"FLAT",M56,N56)) -> 32.95752688 | CB56: =[2]!mGetRate(CB$1,$B56,EOMONTH($B56,0)+1,"FLAT",Q56,R56) -> 27.04688172 | CC56: =IF(ValuationDate>$D56,"",[2]!mGetRate(CC$1,$B56,EOMONTH($B56,0)+1,"FLAT",K56,L56)) -> 34.60913978 | CD56: =[2]!mGetRate(CD$1,$B56,EOMONTH($B56,0)+1,"FLAT",AE56,AF56) -> 31.24080645 | CE56: =[2]!mGetRate(CE$1,$B56,EOMONTH($B56,0)+1,"FLAT",AA56,AB56) -> 29.20010753 | CF56: =[2]!mGetRate(CF$1,$B56,EOMONTH($B56,0)+1,"FLAT",O56,P56) -> 25.54688172 | CO56: 2019 | CP56: 2019-12-01 | CQ56: 3.210210001 | CR56: 2.858156184 | CS56: 2.875384904 | CT56: 2.827376415 | CU56: 2.875384904 | CV56: 2.886412496 | CW56: 3.193305612
B57: 2020-01-01 | C57: 2020-01-31 | D57: 2020-01-01 | E57: 30.12 | F57: 29.725 | G57: 29.05 | H57: 26.85 | I57: 28.475 | J57: 25.16 | K57: 37.475 | L57: 31.7 | M57: 34.8 | N57: 32.715 | O57: 27.05 | P57: 24.85 | Q57: 28.55 | R57: 26.35 | S57: 25.55 | T57: 24.35 | U57: 27.05 | V57: 24.85 | W57: 28.475 | X57: 25.16 | Y57: 30.05 | Z57: 27.6 | AA57: 31.05 | AB57: 28.85 | AC57: 30.05 | AD57: 26.85 | AE57: 31.59 | AF57: 30.4021 | AG57: 3.171 | AH57: 3.056 | AI57: 2.8985 | AJ57: 2.931 | AK57: 2.916 | AL57: 3.0464 | AM57: 2.866 | AN57: 2.9185 | AO57: 2.7372 | AP57: 2.9485 | AQ57: 2.196 | AR57: 3.1928 | AS57: 3.0043 | AT57: 3.2428 | AU57: 3.0252 | AV57: 3.0051 | AW57: 3.1688 | AX57: 3.0041 | AY57: 2.941 | AZ57: 2.7522 | BA57: 2.5548 | BB57: 3.311 | BJ57: 2.803248101 | BK57: 3.017222785 | BL57: 2.909894573 | BM57: 3.132008533 | BN57: 2.965593498 | BP57: 2.993971051 | BQ57: 2.803248101 | BR57: 2.921118689 | BS57: 2.979580204 | BT57: 2.958576309 | BU57: 2.928988931 | BV57: 3.004649121 | BX57: =[2]!mGetRate(BX$1,$B57,EOMONTH($B57,0)+1,"FLAT",E57,F57) -> 29.94586022 | BY57: =[2]!mGetRate(BY$1,$B57,EOMONTH($B57,0)+1,"FLAT",G57,H57) -> 28.08010753 | BZ57: =[2]!mGetRate(BZ$1,$B57,EOMONTH($B57,0)+1,"FLAT",I57,J57) -> 27.01354839 | CA57: =IF(ValuationDate>$D57,"",[2]!mGetRate(CA$1,$B57,EOMONTH($B57,0)+1,"FLAT",M57,N57)) -> 33.88080645 | CB57: =[2]!mGetRate(CB$1,$B57,EOMONTH($B57,0)+1,"FLAT",Q57,R57) -> 27.58010753 | CC57: =IF(ValuationDate>$D57,"",[2]!mGetRate(CC$1,$B57,EOMONTH($B57,0)+1,"FLAT",K57,L57)) -> 34.92903226 | CD57: =[2]!mGetRate(CD$1,$B57,EOMONTH($B57,0)+1,"FLAT",AE57,AF57) -> 31.06630215 | CE57: =[2]!mGetRate(CE$1,$B57,EOMONTH($B57,0)+1,"FLAT",AA57,AB57) -> 30.08010753 | CF57: =[2]!mGetRate(CF$1,$B57,EOMONTH($B57,0)+1,"FLAT",O57,P57) -> 26.08010753 | CO57: 2020 | CP57: 2020-01-01 | CQ57: 3.231302706 | CR57: 2.958576309 | CS57: 2.975354301 | CT57: 2.925732464 | CU57: 2.975354301 | CV57: 2.986987209 | CW57: 3.292215583
B58: 2020-02-01 | C58: 2020-02-29 | D58: 2020-02-01 | E58: 29.61 | F58: 28.65 | G58: 28.525 | H58: 26.0625 | I58: 27.71 | J58: 24.515 | K58: 36.44 | L58: 30.7625 | M58: 34.15 | N58: 31.8 | O58: 26.525 | P58: 24.0625 | Q58: 28.525 | R58: 25.5625 | S58: 25.025 | T58: 23.5625 | U58: 26.525 | V58: 24.0625 | W58: 27.71 | X58: 24.515 | Y58: 29.525 | Z58: 26.8125 | AA58: 30.525 | AB58: 27.8125 | AC58: 27.525 | AD58: 26.0625 | AE58: 31.0262 | AF58: 29.43 | AG58: 3.141 | AH58: 3.0135 | AI58: 2.866 | AJ58: 2.901 | AK58: 2.886 | AL58: 3.016 | AM58: 2.8535 | AN58: 2.896 | AO58: 2.7185 | AP58: 2.8585 | AQ58: 2.181 | AR58: 3.162 | AS58: 2.9739 | AT58: 3.212 | AU58: 2.9946 | AV58: 2.9748 | AW58: 3.0732 | AX58: 2.9737 | AY58: 2.911 | AZ58: 2.7335 | BA58: 2.536 | BB58: 3.281 | BJ58: 2.784311392 | BK58: 2.926083544 | BL58: 2.89023754 | BM58: 3.037402492 | BN58: 2.909508742 | BP58: 2.963368174 | BQ58: 2.784311392 | BR58: 2.898610929 | BS58: 2.948967959 | BT58: 2.94576762 | BU58: 2.898879991 | BV58: 2.974513511 | BX58: =[2]!mGetRate(BX$1,$B58,EOMONTH($B58,0)+1,"FLAT",E58,F58) -> 29.20172414 | BY58: =[2]!mGetRate(BY$1,$B58,EOMONTH($B58,0)+1,"FLAT",G58,H58) -> 27.47772989 | BZ58: =[2]!mGetRate(BZ$1,$B58,EOMONTH($B58,0)+1,"FLAT",I58,J58) -> 26.3512069 | CA58: =IF(ValuationDate>$D58,"",[2]!mGetRate(CA$1,$B58,EOMONTH($B58,0)+1,"FLAT",M58,N58)) -> 33.15057471 | CB58: =[2]!mGetRate(CB$1,$B58,EOMONTH($B58,0)+1,"FLAT",Q58,R58) -> 27.26508621 | CC58: =IF(ValuationDate>$D58,"",[2]!mGetRate(CC$1,$B58,EOMONTH($B58,0)+1,"FLAT",K58,L58)) -> 34.02543103 | CD58: =[2]!mGetRate(CD$1,$B58,EOMONTH($B58,0)+1,"FLAT",AE58,AF58) -> 30.34735632 | CE58: =[2]!mGetRate(CE$1,$B58,EOMONTH($B58,0)+1,"FLAT",AA58,AB58) -> 29.37140805 | CF58: =[2]!mGetRate(CF$1,$B58,EOMONTH($B58,0)+1,"FLAT",O58,P58) -> 25.47772989 | CO58: 2020 | CP58: 2020-02-01 | CQ58: 3.197863052 | CR58: 2.94576762 | CS58: 2.944751424 | CT58: 2.895623469 | CU58: 2.944751424 | CV58: 2.974158801 | CW58: 3.261937021
B59: 2020-03-01 | C59: 2020-03-31 | D59: 2020-03-01 | E59: 27.57 | F59: 27.575 | G59: 26.425 | H59: 24.4875 | I59: 25.415 | J59: 23.225 | K59: 33.335 | L59: 28.8875 | M59: 31.55 | N59: 30.885 | O59: 24.425 | P59: 22.4875 | Q59: 26.425 | R59: 23.9875 | S59: 24.675 | T59: 20.9875 | U59: 24.425 | V59: 22.4875 | W59: 25.415 | X59: 23.225 | Y59: 27.425 | Z59: 25.2375 | AA59: 28.425 | AB59: 26.4875 | AC59: 25.175 | AD59: 24.4875 | AE59: 28.7712 | AF59: 28.4579 | AG59: 3.079 | AH59: 2.9915 | AI59: 2.8065 | AJ59: 2.804 | AK59: 2.789 | AL59: 2.9177 | AM59: 2.744 | AN59: 2.834 | AO59: 2.6665 | AP59: 2.804 | AQ59: 2.139 | AR59: 3.0621 | AS59: 2.8757 | AT59: 3.1121 | AU59: 2.8957 | AV59: 2.877 | AW59: 3.0153 | AX59: 2.8755 | AY59: 2.814 | AZ59: 2.6815 | BA59: 2.484 | BB59: 3.2415 | BJ59: 2.731653165 | BK59: 2.870893671 | BL59: 2.835576273 | BM59: 2.980113279 | BN59: 2.854559097 | BP59: 2.864418873 | BQ59: 2.731653165 | BR59: 2.836589547 | BS59: 2.849988367 | BT59: 2.8335635 | BU59: 2.801527753 | BV59: 2.877075038 | BX59: =[2]!mGetRate(BX$1,$B59,EOMONTH($B59,0)+1,"FLAT",E59,F59) -> 27.57220054 | BY59: =[2]!mGetRate(BY$1,$B59,EOMONTH($B59,0)+1,"FLAT",G59,H59) -> 25.57229139 | BZ59: =[2]!mGetRate(BZ$1,$B59,EOMONTH($B59,0)+1,"FLAT",I59,J59) -> 24.4511642 | CA59: =IF(ValuationDate>$D59,"",[2]!mGetRate(CA$1,$B59,EOMONTH($B59,0)+1,"FLAT",M59,N59)) -> 31.2573284 | CB59: =[2]!mGetRate(CB$1,$B59,EOMONTH($B59,0)+1,"FLAT",Q59,R59) -> 25.35223755 | CC59: =IF(ValuationDate>$D59,"",[2]!mGetRate(CC$1,$B59,EOMONTH($B59,0)+1,"FLAT",K59,L59)) -> 31.37762113 | CD59: =[2]!mGetRate(CD$1,$B59,EOMONTH($B59,0)+1,"FLAT",AE59,AF59) -> 28.63331427 | CE59: =[2]!mGetRate(CE$1,$B59,EOMONTH($B59,0)+1,"FLAT",AA59,AB59) -> 27.57229139 | CF59: =[2]!mGetRate(CF$1,$B59,EOMONTH($B59,0)+1,"FLAT",O59,P59) -> 23.57229139 | CO59: 2020 | CP59: 2020-03-01 | CQ59: 3.136642762 | CR59: 2.8335635 | CS59: 2.845802123 | CT59: 2.798271053 | CU59: 2.845802123 | CV59: 2.861781954 | CW59: 3.164036334
B60: 2020-04-01 | C60: 2020-04-30 | D60: 2020-04-01 | E60: 24.83 | F60: 15.925 | G60: 23.65 | H60: 18.055 | I60: 22.8 | J60: 14.815 | K60: 26.45 | L60: 23.2325 | M60: 23.795 | N60: 22.3 | O60: 21.65 | P60: 16.055 | Q60: 22.15 | R60: 17.305 | S60: 18.65 | T60: 14.055 | U60: 21.65 | V60: 16.055 | W60: 22.8 | X60: 14.815 | Y60: 22.15 | Z60: 16.055 | AA60: 26.6 | AB60: 25.305 | AC60: 22.15 | AD60: 16.555 | AE60: 23.7176 | AF60: 18.555 | AG60: 2.754 | AH60: 2.359 | AI60: 2.359 | AJ60: 2.374 | AK60: 2.359 | AL60: 2.4817 | AM60: 2.259 | AN60: 2.319 | AO60: 2.2402 | AP60: 1.804 | AQ60: 1.8015 | AR60: 2.6195 | AS60: 2.4401 | AT60: 2.6695 | AU60: 2.4572 | AV60: 2.4431 | AW60: 1.9527 | AX60: 2.4399 | AY60: 2.384 | AZ60: 2.2553 | BA60: 2.0578 | BB60: 2.954 | BJ60: 2.299956962 | BK60: 1.858235443 | BL60: 2.387458994 | BM60: 1.928935051 | BN60: 2.118646613 | BP60: 2.425777641 | BQ60: 2.299956962 | BR60: 2.321411934 | BS60: 2.411212857 | BT60: 2.336586351 | BU60: 2.369966285 | BV60: 2.445131291 | BX60: =[2]!mGetRate(BX$1,$B60,EOMONTH($B60,0)+1,"FLAT",E60,F60) -> 21.07011111 | BY60: =[2]!mGetRate(BY$1,$B60,EOMONTH($B60,0)+1,"FLAT",G60,H60) -> 21.28766667 | BZ60: =[2]!mGetRate(BZ$1,$B60,EOMONTH($B60,0)+1,"FLAT",I60,J60) -> 19.42855556 | CA60: =IF(ValuationDate>$D60,"",[2]!mGetRate(CA$1,$B60,EOMONTH($B60,0)+1,"FLAT",M60,N60)) -> 23.16377778 | CB60: =[2]!mGetRate(CB$1,$B60,EOMONTH($B60,0)+1,"FLAT",Q60,R60) -> 20.10433333 | CC60: =IF(ValuationDate>$D60,"",[2]!mGetRate(CC$1,$B60,EOMONTH($B60,0)+1,"FLAT",K60,L60)) -> 25.0915 | CD60: =[2]!mGetRate(CD$1,$B60,EOMONTH($B60,0)+1,"FLAT",AE60,AF60) -> 21.53783556 | CE60: =[2]!mGetRate(CE$1,$B60,EOMONTH($B60,0)+1,"FLAT",AA60,AB60) -> 26.05322222 | CF60: =[2]!mGetRate(CF$1,$B60,EOMONTH($B60,0)+1,"FLAT",O60,P60) -> 19.28766667 | CO60: 2020 | CP60: 2020-04-01 | CQ60: 2.676204445 | CR60: 2.336586351 | CS60: 2.407160891 | CT60: 2.366708798 | CU60: 2.407160891 | CV60: 2.364039754 | CW60: 2.730043601
B61: 2020-05-01 | C61: 2020-05-31 | D61: 2020-05-01 | E61: 22.45 | F61: 12.125 | G61: 24.37 | H61: 14.17 | I61: 18.04 | J61: 9.875 | K61: 27.2375 | L61: 19.4975 | M61: 24.265 | N61: 18.1 | O61: 22.87 | P61: 12.17 | Q61: 24.37 | R61: 14.17 | S61: 20.37 | T61: 9.17 | U61: 22.87 | V61: 12.17 | W61: 18.04 | X61: 9.875 | Y61: 22.87 | Z61: 12.17 | AA61: 26.82 | AB61: 20.92 | AC61: 22.87 | AD61: 12.17 | AE61: 22.7509 | AF61: 14.66 | AG61: 2.743 | AH61: 2.443 | AI61: 2.338 | AJ61: 2.298 | AK61: 2.283 | AL61: 2.4047 | AM61: 2.258 | AN61: 2.3005 | AO61: 2.2218 | AP61: 1.788 | AQ61: 1.783 | AR61: 2.5413 | AS61: 2.3631 | AT61: 2.5913 | AU61: 2.3796 | AV61: 2.3664 | AW61: 1.9357 | AX61: 2.3629 | AY61: 2.308 | AZ61: 2.2367 | BA61: 2.0392 | BB61: 2.938 | BJ61: 2.281324051 | BK61: 1.842032911 | BL61: 2.368117315 | BM61: 1.912116199 | BN61: 2.100897619 | BP61: 2.348250353 | BQ61: 2.281324051 | BR61: 2.302905554 | BS61: 2.333661837 | BT61: 2.335561656 | BU61: 2.293690305 | BV61: 2.368787745 | BX61: =[2]!mGetRate(BX$1,$B61,EOMONTH($B61,0)+1,"FLAT",E61,F61) -> 17.67607527 | BY61: =[2]!mGetRate(BY$1,$B61,EOMONTH($B61,0)+1,"FLAT",G61,H61) -> 19.65387097 | BZ61: =[2]!mGetRate(BZ$1,$B61,EOMONTH($B61,0)+1,"FLAT",I61,J61) -> 14.26478495 | CA61: =IF(ValuationDate>$D61,"",[2]!mGetRate(CA$1,$B61,EOMONTH($B61,0)+1,"FLAT",M61,N61)) -> 21.41451613 | CB61: =[2]!mGetRate(CB$1,$B61,EOMONTH($B61,0)+1,"FLAT",Q61,R61) -> 19.65387097 | CC61: =IF(ValuationDate>$D61,"",[2]!mGetRate(CC$1,$B61,EOMONTH($B61,0)+1,"FLAT",K61,L61)) -> 23.65879032 | CD61: =[2]!mGetRate(CD$1,$B61,EOMONTH($B61,0)+1,"FLAT",AE61,AF61) -> 19.00994624 | CE61: =[2]!mGetRate(CE$1,$B61,EOMONTH($B61,0)+1,"FLAT",AA61,AB61) -> 24.09204301 | CF61: =[2]!mGetRate(CF$1,$B61,EOMONTH($B61,0)+1,"FLAT",O61,P61) -> 17.92268817 | CO61: 2020 | CP61: 2020-05-01 | CQ61: 2.654597284 | CR61: 2.335561656 | CS61: 2.329633603 | CT61: 2.290432678 | CU61: 2.329633603 | CV61: 2.363013481 | CW61: 2.653337909
B62: 2020-06-01 | C62: 2020-06-30 | D62: 2020-06-01 | E62: 22.62 | F62: 12.6 | G62: 26.53 | H62: 14.725 | I62: 17.36 | J62: 9.21 | K62: 28.8125 | L62: 20.12 | M62: 25.44 | N62: 18.1 | O62: 24.78 | P62: 13.225 | Q62: 25.78 | R62: 14.225 | S62: 23.03 | T62: 10.725 | U62: 24.78 | V62: 13.225 | W62: 17.36 | X62: 9.21 | Y62: 27.53 | Z62: 15.225 | AA62: 29.98 | AB62: 21.975 | AC62: 25.53 | AD62: 13.475 | AE62: 23.394 | AF62: 14.8975 | AG62: 2.776 | AH62: 2.491 | AI62: 2.3785 | AJ62: 2.326 | AK62: 2.311 | AL62: 2.433 | AM62: 2.2835 | AN62: 2.341 | AO62: 2.256 | AP62: 1.8235 | AQ62: 1.811 | AR62: 2.5701 | AS62: 2.3915 | AT62: 2.6201 | AU62: 2.4082 | AV62: 2.3947 | AW62: 1.9734 | AX62: 2.3913 | AY62: 2.336 | AZ62: 2.271 | BA62: 2.0735 | BB62: 2.9735 | BJ62: 2.315956962 | BK62: 1.877982278 | BL62: 2.40406761 | BM62: 1.949433026 | BN62: 2.136859969 | BP62: 2.376813038 | BQ62: 2.315956962 | BR62: 2.343419522 | BS62: 2.362233265 | BT62: 2.361691382 | BU62: 2.321791982 | BV62: 2.396914314 | BX62: =[2]!mGetRate(BX$1,$B62,EOMONTH($B62,0)+1,"FLAT",E62,F62) -> 18.38933333 | BY62: =[2]!mGetRate(BY$1,$B62,EOMONTH($B62,0)+1,"FLAT",G62,H62) -> 21.54566667 | BZ62: =[2]!mGetRate(BZ$1,$B62,EOMONTH($B62,0)+1,"FLAT",I62,J62) -> 13.91888889 | CA62: =IF(ValuationDate>$D62,"",[2]!mGetRate(CA$1,$B62,EOMONTH($B62,0)+1,"FLAT",M62,N62)) -> 22.34088889 | CB62: =[2]!mGetRate(CB$1,$B62,EOMONTH($B62,0)+1,"FLAT",Q62,R62) -> 20.90122222 | CC62: =IF(ValuationDate>$D62,"",[2]!mGetRate(CC$1,$B62,EOMONTH($B62,0)+1,"FLAT",K62,L62)) -> 25.14233333 | CD62: =[2]!mGetRate(CD$1,$B62,EOMONTH($B62,0)+1,"FLAT",AE62,AF62) -> 19.80658889 | CE62: =[2]!mGetRate(CE$1,$B62,EOMONTH($B62,0)+1,"FLAT",AA62,AB62) -> 26.60011111 | CF62: =[2]!mGetRate(CF$1,$B62,EOMONTH($B62,0)+1,"FLAT",O62,P62) -> 19.90122222 | CO62: 2020 | CP62: 2020-06-01 | CQ62: 2.696268237 | CR62: 2.361691382 | CS62: 2.358196288 | CT62: 2.318534407 | CU62: 2.358196288 | CV62: 2.389183432 | CW62: 2.681597901
B63: 2020-07-01 | C63: 2020-07-31 | D63: 2020-07-01 | E63: 33.0125 | F63: 18.285 | G63: 35.6875 | H63: 23.375 | I63: 28.85 | J63: 17.35 | K63: 37 | L63: 29.01 | M63: 35.635 | N63: 27.0325 | O63: 40.4375 | P63: 24.375 | Q63: 40.6875 | R63: 24.375 | S63: 33.6875 | T63: 20.875 | U63: 40.4375 | V63: 24.375 | W63: 28.85 | X63: 17.35 | Y63: 38.1875 | Z63: 24.875 | AA63: 39.6875 | AB63: 26.425 | AC63: 37.1875 | AD63: 22.875 | AE63: 33.4329 | AF63: 21.9829 | AG63: 2.811 | AH63: 2.6735 | AI63: 2.416 | AJ63: 2.3885 | AK63: 2.3735 | AL63: 2.4964 | AM63: 2.3485 | AN63: 2.4235 | AO63: 2.3098 | AP63: 2.021 | AQ63: 1.836 | AR63: 2.6344 | AS63: 2.4548 | AT63: 2.6844 | AU63: 2.4719 | AV63: 2.4577 | AW63: 2.1833 | AX63: 2.4546 | AY63: 2.3985 | AZ63: 2.3248 | BA63: 2.1272 | BB63: 3.0585 | BJ63: 2.370437975 | BK63: 2.077982278 | BL63: 2.460620999 | BM63: 2.157040726 | BN63: 2.266520495 | BP63: 2.440569031 | BQ63: 2.370437975 | BR63: 2.425947974 | BS63: 2.426008776 | BT63: 2.428296567 | BU63: 2.384518939 | BV63: 2.459696836 | BX63: =[2]!mGetRate(BX$1,$B63,EOMONTH($B63,0)+1,"FLAT",E63,F63) -> 26.51973118 | BY63: =[2]!mGetRate(BY$1,$B63,EOMONTH($B63,0)+1,"FLAT",G63,H63) -> 30.2594086 | BZ63: =[2]!mGetRate(BZ$1,$B63,EOMONTH($B63,0)+1,"FLAT",I63,J63) -> 23.78010753 | CA63: =IF(ValuationDate>$D63,"",[2]!mGetRate(CA$1,$B63,EOMONTH($B63,0)+1,"FLAT",M63,N63)) -> 31.8425 | CB63: =[2]!mGetRate(CB$1,$B63,EOMONTH($B63,0)+1,"FLAT",Q63,R63) -> 33.49596774 | CC63: =IF(ValuationDate>$D63,"",[2]!mGetRate(CC$1,$B63,EOMONTH($B63,0)+1,"FLAT",K63,L63)) -> 33.47752688 | CD63: =[2]!mGetRate(CD$1,$B63,EOMONTH($B63,0)+1,"FLAT",AE63,AF63) -> 28.38505054 | CE63: =[2]!mGetRate(CE$1,$B63,EOMONTH($B63,0)+1,"FLAT",AA63,AB63) -> 33.8405914 | CF63: =[2]!mGetRate(CF$1,$B63,EOMONTH($B63,0)+1,"FLAT",O63,P63) -> 33.3561828 | CO63: 2020 | CP63: 2020-07-01 | CQ63: 2.734852454 | CR63: 2.428296567 | CS63: 2.421952281 | CT63: 2.381261479 | CU63: 2.421952281 | CV63: 2.455891149 | CW63: 2.74467824
B64: 2020-08-01 | C64: 2020-08-31 | D64: 2020-08-01 | E64: 35.2 | F64: 24.95 | G64: 34.3375 | H64: 23.14 | I64: 32.15 | J64: 19.35 | K64: 38.0575 | L64: 31.25 | M64: 35.9775 | N64: 28.6675 | O64: 38.8375 | P64: 23.64 | Q64: 38.8375 | R64: 24.14 | S64: 32.3375 | T64: 21.14 | U64: 38.8375 | V64: 23.64 | W64: 32.15 | X64: 19.35 | Y64: 36.3375 | Z64: 24.64 | AA64: 38.0875 | AB64: 25.94 | AC64: 36.5875 | AD64: 23.14 | AE64: 34.6893 | AF64: 26.0921 | AG64: 2.836 | AH64: 2.6885 | AI64: 2.471 | AJ64: 2.4135 | AK64: 2.3985 | AL64: 2.5218 | AM64: 2.3735 | AN64: 2.4685 | AO64: 2.3448 | AP64: 2.0485 | AQ64: 1.861 | AR64: 2.6602 | AS64: 2.4801 | AT64: 2.7102 | AU64: 2.4974 | AV64: 2.4829 | AW64: 2.2125 | AX64: 2.4799 | AY64: 2.4235 | AZ64: 2.3598 | BA64: 2.1622 | BB64: 3.081 | BJ64: 2.405881013 | BK64: 2.10583038 | BL64: 2.497412237 | BM64: 2.185948128 | BN64: 2.298767939 | BP64: 2.466071428 | BQ64: 2.405881013 | BR64: 2.470963494 | BS64: 2.45151898 | BT64: 2.453913946 | BU64: 2.409609722 | BV64: 2.484809844 | BX64: =[2]!mGetRate(BX$1,$B64,EOMONTH($B64,0)+1,"FLAT",E64,F64) -> 30.6811828 | BY64: =[2]!mGetRate(BY$1,$B64,EOMONTH($B64,0)+1,"FLAT",G64,H64) -> 29.40096774 | BZ64: =[2]!mGetRate(BZ$1,$B64,EOMONTH($B64,0)+1,"FLAT",I64,J64) -> 26.50698925 | CA64: =IF(ValuationDate>$D64,"",[2]!mGetRate(CA$1,$B64,EOMONTH($B64,0)+1,"FLAT",M64,N64)) -> 32.75481183 | CB64: =[2]!mGetRate(CB$1,$B64,EOMONTH($B64,0)+1,"FLAT",Q64,R64) -> 32.35795699 | CC64: =IF(ValuationDate>$D64,"",[2]!mGetRate(CC$1,$B64,EOMONTH($B64,0)+1,"FLAT",K64,L64)) -> 35.05634409 | CD64: =[2]!mGetRate(CD$1,$B64,EOMONTH($B64,0)+1,"FLAT",AE64,AF64) -> 30.89913656 | CE64: =[2]!mGetRate(CE$1,$B64,EOMONTH($B64,0)+1,"FLAT",AA64,AB64) -> 32.73215054 | CF64: =[2]!mGetRate(CF$1,$B64,EOMONTH($B64,0)+1,"FLAT",O64,P64) -> 32.13752688 | CO64: 2020 | CP64: 2020-08-01 | CQ64: 2.791442638 | CR64: 2.453913946 | CS64: 2.447454678 | CT64: 2.406352307 | CU64: 2.447454678 | CV64: 2.481547964 | CW64: 2.769910375
B65: 2020-09-01 | C65: 2020-09-30 | D65: 2020-09-01 | E65: 33.6375 | F65: 25.165 | G65: 31.975 | H65: 20.085 | I65: 28.85 | J65: 21.35 | K65: 35.9425 | L65: 29.29 | M65: 33.2375 | N65: 27.85 | O65: 35.475 | P65: 18.085 | Q65: 34.975 | R65: 18.585 | S65: 28.975 | T65: 19.085 | U65: 35.475 | V65: 18.085 | W65: 28.85 | X65: 21.35 | Y65: 33.475 | Z65: 21.085 | AA65: 34.975 | AB65: 22.385 | AC65: 32.975 | AD65: 17.585 | AE65: 32.6066 | AF65: 25.8112 | AG65: 2.836 | AH65: 2.506 | AI65: 2.456 | AJ65: 2.4085 | AK65: 2.3935 | AL65: 2.5167 | AM65: 2.366 | AN65: 2.4735 | AO65: 2.3598 | AP65: 2.076 | AQ65: 1.886 | AR65: 2.655 | AS65: 2.475 | AT65: 2.705 | AU65: 2.4923 | AV65: 2.4779 | AW65: 2.2417 | AX65: 2.4749 | AY65: 2.4185 | AZ65: 2.3747 | BA65: 2.1772 | BB65: 3.076 | BJ65: 2.421070886 | BK65: 2.133678481 | BL65: 2.51317991 | BM65: 2.214855529 | BN65: 2.320696202 | BP65: 2.460970949 | BQ65: 2.421070886 | BR65: 2.475965218 | BS65: 2.446416939 | BT65: 2.446228732 | BU65: 2.404591566 | BV65: 2.479787243 | BX65: =[2]!mGetRate(BX$1,$B65,EOMONTH($B65,0)+1,"FLAT",E65,F65) -> 29.87194444 | BY65: =[2]!mGetRate(BY$1,$B65,EOMONTH($B65,0)+1,"FLAT",G65,H65) -> 26.69055556 | BZ65: =[2]!mGetRate(BZ$1,$B65,EOMONTH($B65,0)+1,"FLAT",I65,J65) -> 25.51666667 | CA65: =IF(ValuationDate>$D65,"",[2]!mGetRate(CA$1,$B65,EOMONTH($B65,0)+1,"FLAT",M65,N65)) -> 30.84305556 | CB65: =[2]!mGetRate(CB$1,$B65,EOMONTH($B65,0)+1,"FLAT",Q65,R65) -> 27.69055556 | CC65: =IF(ValuationDate>$D65,"",[2]!mGetRate(CC$1,$B65,EOMONTH($B65,0)+1,"FLAT",K65,L65)) -> 32.98583333 | CD65: =[2]!mGetRate(CD$1,$B65,EOMONTH($B65,0)+1,"FLAT",AE65,AF65) -> 29.58642222 | CE65: =[2]!mGetRate(CE$1,$B65,EOMONTH($B65,0)+1,"FLAT",AA65,AB65) -> 29.37944444 | CF65: =[2]!mGetRate(CF$1,$B65,EOMONTH($B65,0)+1,"FLAT",O65,P65) -> 27.74611111 | CO65: 2020 | CP65: 2020-09-01 | CQ65: 2.776008952 | CR65: 2.446228732 | CS65: 2.442354199 | CT65: 2.401334142 | CU65: 2.442354199 | CV65: 2.47385092 | CW65: 2.764863948
B66: 2020-10-01 | C66: 2020-10-31 | D66: 2020-10-01 | E66: 31.0475 | F66: 27.38 | G66: 27.235 | H66: 24.38 | I66: 26.38 | J66: 21.8 | K66: 36.15 | L66: 30.1 | M66: 31.875 | N66: 28.6125 | O66: 27.235 | P66: 22.38 | Q66: 26.735 | R66: 23.88 | S66: 24.235 | T66: 21.88 | U66: 27.235 | V66: 22.38 | W66: 26.38 | X66: 21.8 | Y66: 28.235 | Z66: 25.13 | AA66: 30.135 | AB66: 26.13 | AC66: 27.235 | AD66: 22.88 | AE66: 30.6644 | AF66: 27.2809 | AG66: 2.866 | AH66: 2.4485 | AI66: 2.461 | AJ66: 2.4435 | AK66: 2.4285 | AL66: 2.5522 | AM66: 2.4035 | AN66: 2.496 | AO66: 2.3885 | AP66: 2.3485 | AQ66: 1.921 | AR66: 2.691 | AS66: 2.5105 | AT66: 2.741 | AU66: 2.528 | AV66: 2.5132 | AW66: 2.5313 | AX66: 2.5103 | AY66: 2.4535 | AZ66: 2.4035 | BA66: 2.206 | BB66: 3.0635 | BJ66: 2.450134177 | BK66: 2.409627848 | BL66: 2.543348725 | BM66: 2.501301596 | BN66: 2.476103087 | BP66: 2.496674305 | BQ66: 2.450134177 | BR66: 2.498472978 | BS66: 2.482131224 | BT66: 2.484654801 | BU66: 2.439718662 | BV66: 2.514945455 | BX66: =[2]!mGetRate(BX$1,$B66,EOMONTH($B66,0)+1,"FLAT",E66,F66) -> 29.50951613 | BY66: =[2]!mGetRate(BY$1,$B66,EOMONTH($B66,0)+1,"FLAT",G66,H66) -> 26.03774194 | BZ66: =[2]!mGetRate(BZ$1,$B66,EOMONTH($B66,0)+1,"FLAT",I66,J66) -> 24.45935484 | CA66: =IF(ValuationDate>$D66,"",[2]!mGetRate(CA$1,$B66,EOMONTH($B66,0)+1,"FLAT",M66,N66)) -> 30.50685484 | CB66: =[2]!mGetRate(CB$1,$B66,EOMONTH($B66,0)+1,"FLAT",Q66,R66) -> 25.53774194 | CC66: =IF(ValuationDate>$D66,"",[2]!mGetRate(CC$1,$B66,EOMONTH($B66,0)+1,"FLAT",K66,L66)) -> 33.61290323 | CD66: =[2]!mGetRate(CD$1,$B66,EOMONTH($B66,0)+1,"FLAT",AE66,AF66) -> 29.2455129 | CE66: =[2]!mGetRate(CE$1,$B66,EOMONTH($B66,0)+1,"FLAT",AA66,AB66) -> 28.45548387 | CF66: =[2]!mGetRate(CF$1,$B66,EOMONTH($B66,0)+1,"FLAT",O66,P66) -> 25.19903226 | CO66: 2020 | CP66: 2020-10-01 | CQ66: 2.781153514 | CR66: 2.484654801 | CS66: 2.478057555 | CT66: 2.436461302 | CU66: 2.478057555 | CV66: 2.512336141 | CW66: 2.800188938
B67: 2020-11-01 | C67: 2020-11-30 | D67: 2020-11-01 | E67: 32.8925 | F67: 27.89 | G67: 26.9775 | H67: 23.675 | I67: 27.94 | J67: 24.88 | K67: 36.15 | L67: 31 | M67: 33.5 | N67: 29.1875 | O67: 25.4775 | P67: 22.175 | Q67: 26.4775 | R67: 23.175 | S67: 23.7275 | T67: 21.675 | U67: 25.4775 | V67: 22.175 | W67: 27.94 | X67: 24.88 | Y67: 27.9775 | Z67: 24.175 | AA67: 29.8775 | AB67: 25.425 | AC67: 25.4775 | AD67: 22.675 | AE67: 32.3587 | AF67: 27.8091 | AG67: 2.941 | AH67: 2.8385 | AI67: 2.731 | AJ67: 2.6785 | AK67: 2.6635 | AL67: 2.7904 | AM67: 2.601 | AN67: 2.721 | AO67: 2.5748 | AP67: 2.706 | AQ67: 2.0685 | AR67: 2.9329 | AS67: 2.7485 | AT67: 2.9829 | AU67: 2.7677 | AV67: 2.7503 | AW67: 2.9112 | AX67: 2.7483 | AY67: 2.6885 | AZ67: 2.5897 | BA67: 2.3922 | BB67: 3.1785 | BJ67: 2.638792405 | BK67: 2.771653165 | BL67: 2.739183229 | BM67: 2.877097813 | BN67: 2.756681653 | BP67: 2.736396839 | BQ67: 2.638792405 | BR67: 2.723550575 | BS67: 2.721927143 | BT67: 2.687032093 | BU67: 2.675572022 | BV67: 2.751007735 | BX67: =[2]!mGetRate(BX$1,$B67,EOMONTH($B67,0)+1,"FLAT",E67,F67) -> 30.55429958 | BY67: =[2]!mGetRate(BY$1,$B67,EOMONTH($B67,0)+1,"FLAT",G67,H67) -> 25.43389043 | BZ67: =[2]!mGetRate(BZ$1,$B67,EOMONTH($B67,0)+1,"FLAT",I67,J67) -> 26.50973648 | CA67: =IF(ValuationDate>$D67,"",[2]!mGetRate(CA$1,$B67,EOMONTH($B67,0)+1,"FLAT",M67,N67)) -> 31.48430999 | CB67: =[2]!mGetRate(CB$1,$B67,EOMONTH($B67,0)+1,"FLAT",Q67,R67) -> 24.93389043 | CC67: =IF(ValuationDate>$D67,"",[2]!mGetRate(CC$1,$B67,EOMONTH($B67,0)+1,"FLAT",K67,L67)) -> 33.74285714 | CD67: =[2]!mGetRate(CD$1,$B67,EOMONTH($B67,0)+1,"FLAT",AE67,AF67) -> 30.23218793 | CE67: =[2]!mGetRate(CE$1,$B67,EOMONTH($B67,0)+1,"FLAT",AA67,AB67) -> 27.79637309 | CF67: =[2]!mGetRate(CF$1,$B67,EOMONTH($B67,0)+1,"FLAT",O67,P67) -> 23.93389043 | CO67: 2020 | CP67: 2020-11-01 | CQ67: 3.058959872 | CR67: 2.687032093 | CS67: 2.717780089 | CT67: 2.672315093 | CU67: 2.717780089 | CV67: 2.715024975 | CW67: 3.037371013
B68: 2020-12-01 | C68: 2020-12-31 | D68: 2020-12-01 | E68: 35.66 | F68: 29.93 | G68: 29.0375 | H68: 26.495 | I68: 30.28 | J68: 25.32 | K68: 37.2 | L68: 33.7 | M68: 35.125 | N68: 32.35 | O68: 27.0375 | P68: 24.495 | Q68: 28.5375 | R68: 25.995 | S68: 26.0375 | T68: 24.495 | U68: 27.0375 | V68: 24.495 | W68: 30.28 | X68: 25.32 | Y68: 30.0375 | Z68: 27.245 | AA68: 31.9375 | AB68: 27.745 | AC68: 29.5375 | AD68: 26.495 | AE68: 34.5144 | AF68: 30.3313 | AG68: 3.086 | AH68: 3.0185 | AI68: 2.916 | AJ68: 2.8835 | AK68: 2.8685 | AL68: 2.9983 | AM68: 2.806 | AN68: 2.866 | AO68: 2.7022 | AP68: 3.4185 | AQ68: 2.1785 | AR68: 3.1439 | AS68: 2.9562 | AT68: 3.1939 | AU68: 2.9768 | AV68: 2.9572 | AW68: 3.6683 | AX68: 2.956 | AY68: 2.8935 | AZ68: 2.7172 | BA68: 2.5197 | BB68: 3.291 | BJ68: 2.767805063 | BK68: 3.493172152 | BL68: 2.873103335 | BM68: 3.6260623 | BN68: 3.190035713 | BP68: 2.945516496 | BQ68: 2.767805063 | BR68: 2.868600583 | BS68: 2.931110816 | BT68: 2.8970946 | BU68: 2.881316443 | BV68: 2.956934405 | BX68: =[2]!mGetRate(BX$1,$B68,EOMONTH($B68,0)+1,"FLAT",E68,F68) -> 33.13387097 | BY68: =[2]!mGetRate(BY$1,$B68,EOMONTH($B68,0)+1,"FLAT",G68,H68) -> 27.9166129 | BZ68: =[2]!mGetRate(BZ$1,$B68,EOMONTH($B68,0)+1,"FLAT",I68,J68) -> 28.09333333 | CA68: =IF(ValuationDate>$D68,"",[2]!mGetRate(CA$1,$B68,EOMONTH($B68,0)+1,"FLAT",M68,N68)) -> 33.9016129 | CB68: =[2]!mGetRate(CB$1,$B68,EOMONTH($B68,0)+1,"FLAT",Q68,R68) -> 27.4166129 | CC68: =IF(ValuationDate>$D68,"",[2]!mGetRate(CC$1,$B68,EOMONTH($B68,0)+1,"FLAT",K68,L68)) -> 35.65698925 | CD68: =[2]!mGetRate(CD$1,$B68,EOMONTH($B68,0)+1,"FLAT",AE68,AF68) -> 32.67023763 | CE68: =[2]!mGetRate(CE$1,$B68,EOMONTH($B68,0)+1,"FLAT",AA68,AB68) -> 30.08919355 | CF68: =[2]!mGetRate(CF$1,$B68,EOMONTH($B68,0)+1,"FLAT",O68,P68) -> 25.9166129 | CO68: 2020 | CP68: 2020-12-01 | CQ68: 3.249308674 | CR68: 2.8970946 | CS68: 2.926899746 | CT68: 2.878059889 | CU68: 2.926899746 | CV68: 2.925410854 | CW68: 3.244274526
B69: 2021-01-01 | C69: 2021-01-31 | D69: 2021-01-01 | E69: 31.37 | F69: 28.925 | G69: 30.8 | H69: 29.3 | I69: 30.275 | J69: 26.36 | K69: 39.375 | L69: 33.3 | M69: 36.45 | N69: 34.215 | O69: 28.8 | P69: 27.3 | Q69: 30.3 | R69: 28.8 | S69: 27.3 | T69: 26.8 | U69: 28.8 | V69: 27.3 | W69: 30.275 | X69: 26.36 | Y69: 31.8 | Z69: 30.05 | AA69: 32.8 | AB69: 31.3 | AC69: 31.8 | AD69: 29.3 | AE69: 32.9988 | AF69: 30.7146 | AG69: 3.206 | AH69: 3.1585 | AI69: 2.9335 | AJ69: 3.0085 | AK69: 2.9935 | AL69: 3.125 | AM69: 2.931 | AN69: 2.961 | AO69: 2.8035 | AP69: 3.1785 | AQ69: 2.286 | AR69: 3.2726 | AS69: 3.0828 | AT69: 3.3226 | AU69: 3.1043 | AV69: 3.0833 | AW69: 3.4132 | AX69: 3.0826 | AY69: 3.0185 | AZ69: 2.8185 | BA69: 2.621 | BB69: 3.3835 | BJ69: 2.870387342 | BK69: 3.250134177 | BL69: 2.97958769 | BM69: 3.373779525 | BN69: 3.118472183 | BP69: 3.073028482 | BQ69: 2.870387342 | BR69: 2.963633346 | BS69: 3.058661837 | BT69: 3.025181494 | BU69: 3.006770358 | BV69: 3.082499448 | BX69: =[2]!mGetRate(BX$1,$B69,EOMONTH($B69,0)+1,"FLAT",E69,F69) -> 30.23951613 | BY69: =[2]!mGetRate(BY$1,$B69,EOMONTH($B69,0)+1,"FLAT",G69,H69) -> 30.10645161 | BZ69: =[2]!mGetRate(BZ$1,$B69,EOMONTH($B69,0)+1,"FLAT",I69,J69) -> 28.46483871 | CA69: =IF(ValuationDate>$D69,"",[2]!mGetRate(CA$1,$B69,EOMONTH($B69,0)+1,"FLAT",M69,N69)) -> 35.4166129 | CB69: =[2]!mGetRate(CB$1,$B69,EOMONTH($B69,0)+1,"FLAT",Q69,R69) -> 29.60645161 | CC69: =IF(ValuationDate>$D69,"",[2]!mGetRate(CC$1,$B69,EOMONTH($B69,0)+1,"FLAT",K69,L69)) -> 36.56612903 | CD69: =[2]!mGetRate(CD$1,$B69,EOMONTH($B69,0)+1,"FLAT",AE69,AF69) -> 31.94266452 | CE69: =[2]!mGetRate(CE$1,$B69,EOMONTH($B69,0)+1,"FLAT",AA69,AB69) -> 32.10645161 | CF69: =[2]!mGetRate(CF$1,$B69,EOMONTH($B69,0)+1,"FLAT",O69,P69) -> 28.10645161 | CO69: 2021 | CP69: 2021-01-01 | CQ69: 3.267314641 | CR69: 3.025181494 | CS69: 3.054411732 | CT69: 3.003514033 | CU69: 3.054411732 | CV69: 3.053694926 | CW69: 3.370435204
B70: 2021-02-01 | C70: 2021-02-28 | D70: 2021-02-01 | E70: 30.86 | F70: 27.85 | G70: 30.275 | H70: 28.5125 | I70: 29.51 | J70: 25.715 | K70: 38.34 | L70: 32.3625 | M70: 35.8 | N70: 33.3 | O70: 28.275 | P70: 26.5125 | Q70: 30.275 | R70: 28.0125 | S70: 26.775 | T70: 26.0125 | U70: 28.275 | V70: 26.5125 | W70: 29.51 | X70: 25.715 | Y70: 31.275 | Z70: 29.2625 | AA70: 32.275 | AB70: 30.2625 | AC70: 29.275 | AD70: 28.5125 | AE70: 32.435 | AF70: 29.7425 | AG70: 3.17 | AH70: 3.1075 | AI70: 2.89 | AJ70: 2.9925 | AK70: 2.9775 | AL70: 3.1088 | AM70: 2.9325 | AN70: 2.9625 | AO70: 2.805 | AP70: 2.995 | AQ70: 2.2875 | AR70: 3.2561 | AS70: 3.0666 | AT70: 3.3061 | AU70: 3.088 | AV70: 3.0671 | AW70: 3.2183 | AX70: 3.0664 | AY70: 3.0025 | AZ70: 2.82 | BA70: 2.6225 | BB70: 3.325 | BJ70: 2.871906329 | BK70: 3.064311392 | BL70: 2.981164457 | BM70: 3.18088832 | BN70: 3.024567625 | BP70: 3.056706948 | BQ70: 2.871906329 | BR70: 2.965133864 | BS70: 3.042335306 | BT70: 3.026718537 | BU70: 2.990712257 | BV70: 3.066427122 | BX70: =[2]!mGetRate(BX$1,$B70,EOMONTH($B70,0)+1,"FLAT",E70,F70) -> 29.57 | BY70: =[2]!mGetRate(BY$1,$B70,EOMONTH($B70,0)+1,"FLAT",G70,H70) -> 29.51964286 | BZ70: =[2]!mGetRate(BZ$1,$B70,EOMONTH($B70,0)+1,"FLAT",I70,J70) -> 27.88357143 | CA70: =IF(ValuationDate>$D70,"",[2]!mGetRate(CA$1,$B70,EOMONTH($B70,0)+1,"FLAT",M70,N70)) -> 34.72857143 | CB70: =[2]!mGetRate(CB$1,$B70,EOMONTH($B70,0)+1,"FLAT",Q70,R70) -> 29.30535714 | CC70: =IF(ValuationDate>$D70,"",[2]!mGetRate(CC$1,$B70,EOMONTH($B70,0)+1,"FLAT",K70,L70)) -> 35.77821429 | CD70: =[2]!mGetRate(CD$1,$B70,EOMONTH($B70,0)+1,"FLAT",AE70,AF70) -> 31.28107143 | CE70: =[2]!mGetRate(CE$1,$B70,EOMONTH($B70,0)+1,"FLAT",AA70,AB70) -> 31.4125 | CF70: =[2]!mGetRate(CF$1,$B70,EOMONTH($B70,0)+1,"FLAT",O70,P70) -> 27.51964286 | CO70: 2021 | CP70: 2021-02-01 | CQ70: 3.22255695 | CR70: 3.026718537 | CS70: 3.038090198 | CT70: 2.987455902 | CU70: 3.038090198 | CV70: 3.055234335 | CW70: 3.354286637
B71: 2021-03-01 | C71: 2021-03-31 | D71: 2021-03-01 | E71: 28.82 | F71: 26.775 | G71: 28.175 | H71: 26.9375 | I71: 27.215 | J71: 24.425 | K71: 35.235 | L71: 30.4875 | M71: 33.2 | N71: 32.385 | O71: 26.175 | P71: 24.9375 | Q71: 28.175 | R71: 26.4375 | S71: 26.425 | T71: 23.4375 | U71: 26.175 | V71: 24.9375 | W71: 27.215 | X71: 24.425 | Y71: 29.175 | Z71: 27.6875 | AA71: 30.175 | AB71: 28.9375 | AC71: 26.925 | AD71: 26.9375 | AE71: 30.18 | AF71: 28.7704 | AG71: 3.105 | AH71: 3.04 | AI71: 2.8325 | AJ71: 2.905 | AK71: 2.89 | AL71: 3.0201 | AM71: 2.84 | AN71: 2.8625 | AO71: 2.7238 | AP71: 2.9175 | AQ71: 2.225 | AR71: 3.1661 | AS71: 2.978 | AT71: 3.2161 | AU71: 2.9987 | AV71: 2.9789 | AW71: 3.1359 | AX71: 2.9778 | AY71: 2.915 | AZ71: 2.7387 | BA71: 2.5412 | BB71: 3.3125 | BJ71: 2.789678481 | BK71: 2.98583038 | BL71: 2.895808785 | BM71: 3.099422008 | BN71: 2.942684913 | BP71: 2.967448558 | BQ71: 2.789678481 | BR71: 2.865099376 | BS71: 2.953049592 | BT71: 2.931934235 | BU71: 2.902894517 | BV71: 2.978531592 | BX71: =[2]!mGetRate(BX$1,$B71,EOMONTH($B71,0)+1,"FLAT",E71,F71) -> 27.9640175 | BY71: =[2]!mGetRate(BY$1,$B71,EOMONTH($B71,0)+1,"FLAT",G71,H71) -> 27.65701548 | BZ71: =[2]!mGetRate(BZ$1,$B71,EOMONTH($B71,0)+1,"FLAT",I71,J71) -> 26.04718035 | CA71: =IF(ValuationDate>$D71,"",[2]!mGetRate(CA$1,$B71,EOMONTH($B71,0)+1,"FLAT",M71,N71)) -> 32.85886272 | CB71: =[2]!mGetRate(CB$1,$B71,EOMONTH($B71,0)+1,"FLAT",Q71,R71) -> 27.4477288 | CC71: =IF(ValuationDate>$D71,"",[2]!mGetRate(CC$1,$B71,EOMONTH($B71,0)+1,"FLAT",K71,L71)) -> 33.24782301 | CD71: =[2]!mGetRate(CD$1,$B71,EOMONTH($B71,0)+1,"FLAT",AE71,AF71) -> 29.589979 | CE71: =[2]!mGetRate(CE$1,$B71,EOMONTH($B71,0)+1,"FLAT",AA71,AB71) -> 29.65701548 | CF71: =[2]!mGetRate(CF$1,$B71,EOMONTH($B71,0)+1,"FLAT",O71,P71) -> 25.65701548 | CO71: 2021 | CP71: 2021-03-01 | CQ71: 3.163394485 | CR71: 2.931934235 | CS71: 2.948831808 | CT71: 2.899638002 | CU71: 2.948831808 | CV71: 2.960304122 | CW71: 3.265974162
B72: 2021-04-01 | C72: 2021-04-30 | D72: 2021-04-01 | E72: 26.48 | F72: 17.625 | G72: 24.95 | H72: 19.555 | I72: 24.15 | J72: 16.215 | K72: 28.2 | L72: 25.3825 | M72: 25.445 | N72: 23.5 | O72: 22.95 | P72: 17.555 | Q72: 23.45 | R72: 18.805 | S72: 19.95 | T72: 15.555 | U72: 22.95 | V72: 17.555 | W72: 24.15 | X72: 16.215 | Y72: 23.45 | Z72: 17.555 | AA72: 27.85 | AB72: 27.555 | AC72: 23.45 | AD72: 18.055 | AE72: 25.3264 | AF72: 19.975 | AG72: 2.78 | AH72: 2.435 | AI72: 2.455 | AJ72: 2.44 | AK72: 2.425 | AL72: 2.5486 | AM72: 2.375 | AN72: 2.38 | AO72: 2.3137 | AP72: 1.8325 | AQ72: 1.8875 | AR72: 2.6874 | AS72: 2.507 | AT72: 2.7374 | AU72: 2.5245 | AV72: 2.5097 | AW72: 1.983 | AX72: 2.5068 | AY72: 2.45 | AZ72: 2.3287 | BA72: 2.1312 | BB72: 2.98 | BJ72: 2.374387342 | BK72: 1.887096203 | BL72: 2.464720594 | BM72: 1.958893631 | BN72: 2.171274442 | BP72: 2.493103969 | BQ72: 2.374387342 | BR72: 2.382432972 | BS72: 2.478559796 | BT72: 2.455450989 | BU72: 2.436205952 | BV72: 2.511429633 | BX72: =[2]!mGetRate(BX$1,$B72,EOMONTH($B72,0)+1,"FLAT",E72,F72) -> 22.74122222 | BY72: =[2]!mGetRate(BY$1,$B72,EOMONTH($B72,0)+1,"FLAT",G72,H72) -> 22.67211111 | BZ72: =[2]!mGetRate(BZ$1,$B72,EOMONTH($B72,0)+1,"FLAT",I72,J72) -> 20.79966667 | CA72: =IF(ValuationDate>$D72,"",[2]!mGetRate(CA$1,$B72,EOMONTH($B72,0)+1,"FLAT",M72,N72)) -> 24.62377778 | CB72: =[2]!mGetRate(CB$1,$B72,EOMONTH($B72,0)+1,"FLAT",Q72,R72) -> 21.48877778 | CC72: =IF(ValuationDate>$D72,"",[2]!mGetRate(CC$1,$B72,EOMONTH($B72,0)+1,"FLAT",K72,L72)) -> 27.01038889 | CD72: =[2]!mGetRate(CD$1,$B72,EOMONTH($B72,0)+1,"FLAT",AE72,AF72) -> 23.06692 | CE72: =[2]!mGetRate(CE$1,$B72,EOMONTH($B72,0)+1,"FLAT",AA72,AB72) -> 27.72544444 | CF72: =[2]!mGetRate(CF$1,$B72,EOMONTH($B72,0)+1,"FLAT",O72,P72) -> 20.67211111 | CO72: 2021 | CP72: 2021-04-01 | CQ72: 2.774980039 | CR72: 2.455450989 | CS72: 2.474487219 | CT72: 2.432948586 | CU72: 2.474487219 | CV72: 2.483087373 | CW72: 2.796656439
B73: 2021-05-01 | C73: 2021-05-31 | D73: 2021-05-01 | E73: 24.1 | F73: 13.825 | G73: 25.67 | H73: 15.67 | I73: 19.39 | J73: 11.275 | K73: 28.9875 | L73: 21.6475 | M73: 25.915 | N73: 19.3 | O73: 24.17 | P73: 13.67 | Q73: 25.67 | R73: 15.67 | S73: 21.67 | T73: 10.67 | U73: 24.17 | V73: 13.67 | W73: 19.39 | X73: 11.275 | Y73: 24.17 | Z73: 13.67 | AA73: 28.07 | AB73: 23.17 | AC73: 24.17 | AD73: 13.67 | AE73: 24.3596 | AF73: 16.08 | AG73: 2.769 | AH73: 2.464 | AI73: 2.4415 | AJ73: 2.3515 | AK73: 2.3365 | AL73: 2.4589 | AM73: 2.2865 | AN73: 2.3565 | AO73: 2.2953 | AP73: 1.8215 | AQ73: 1.874 | AR73: 2.5963 | AS73: 2.4173 | AT73: 2.6463 | AU73: 2.4342 | AV73: 2.4204 | AW73: 1.9713 | AX73: 2.4171 | AY73: 2.3615 | AZ73: 2.3102 | BA73: 2.1128 | BB73: 2.964 | BJ73: 2.35575443 | BK73: 1.875956962 | BL73: 2.445378914 | BM73: 1.94733067 | BN73: 2.156105244 | BP73: 2.402825483 | BQ73: 2.35575443 | BR73: 2.358924867 | BS73: 2.388253673 | BT73: 2.364765468 | BU73: 2.347384581 | BV73: 2.422529583 | BX73: =[2]!mGetRate(BX$1,$B73,EOMONTH($B73,0)+1,"FLAT",E73,F73) -> 19.34919355 | BY73: =[2]!mGetRate(BY$1,$B73,EOMONTH($B73,0)+1,"FLAT",G73,H73) -> 21.04634409 | BZ73: =[2]!mGetRate(BZ$1,$B73,EOMONTH($B73,0)+1,"FLAT",I73,J73) -> 15.63790323 | CA73: =IF(ValuationDate>$D73,"",[2]!mGetRate(CA$1,$B73,EOMONTH($B73,0)+1,"FLAT",M73,N73)) -> 22.85645161 | CB73: =[2]!mGetRate(CB$1,$B73,EOMONTH($B73,0)+1,"FLAT",Q73,R73) -> 21.04634409 | CC73: =IF(ValuationDate>$D73,"",[2]!mGetRate(CC$1,$B73,EOMONTH($B73,0)+1,"FLAT",K73,L73)) -> 25.59373656 | CD73: =[2]!mGetRate(CD$1,$B73,EOMONTH($B73,0)+1,"FLAT",AE73,AF73) -> 20.53139785 | CE73: =[2]!mGetRate(CE$1,$B73,EOMONTH($B73,0)+1,"FLAT",AA73,AB73) -> 25.8044086 | CF73: =[2]!mGetRate(CF$1,$B73,EOMONTH($B73,0)+1,"FLAT",O73,P73) -> 19.31516129 | CO73: 2021 | CP73: 2021-05-01 | CQ73: 2.761089721 | CR73: 2.364765468 | CS73: 2.384208733 | CT73: 2.344127052 | CU73: 2.384208733 | CV73: 2.39226225 | CW73: 2.707334679
B74: 2021-06-01 | C74: 2021-06-30 | D74: 2021-06-01 | E74: 24.27 | F74: 14.3 | G74: 27.83 | H74: 16.225 | I74: 18.71 | J74: 10.61 | K74: 30.5625 | L74: 22.27 | M74: 27.09 | N74: 19.3 | O74: 26.08 | P74: 14.725 | Q74: 27.08 | R74: 15.725 | S74: 24.33 | T74: 12.225 | U74: 26.08 | V74: 14.725 | W74: 18.71 | X74: 10.61 | Y74: 28.83 | Z74: 16.725 | AA74: 31.23 | AB74: 24.225 | AC74: 26.83 | AD74: 14.975 | AE74: 25.0027 | AF74: 16.3175 | AG74: 2.795 | AH74: 2.495 | AI74: 2.47 | AJ74: 2.39 | AK74: 2.375 | AL74: 2.4979 | AM74: 2.325 | AN74: 2.395 | AO74: 2.3225 | AP74: 1.8475 | AQ74: 1.89 | AR74: 2.636 | AS74: 2.4563 | AT74: 2.686 | AU74: 2.4735 | AV74: 2.4592 | AW74: 1.9989 | AX74: 2.4561 | AY74: 2.4 | AZ74: 2.3375 | BA74: 2.14 | BB74: 2.9925 | BJ74: 2.383298734 | BK74: 1.902286076 | BL74: 2.473970962 | BM74: 1.974661304 | BN74: 2.183554269 | BP74: 2.442099175 | BQ74: 2.383298734 | BR74: 2.397438145 | BS74: 2.427539388 | BT74: 2.404216231 | BU74: 2.386024386 | BV74: 2.461203616 | BX74: =[2]!mGetRate(BX$1,$B74,EOMONTH($B74,0)+1,"FLAT",E74,F74) -> 20.06044444 | BY74: =[2]!mGetRate(BY$1,$B74,EOMONTH($B74,0)+1,"FLAT",G74,H74) -> 22.93011111 | BZ74: =[2]!mGetRate(BZ$1,$B74,EOMONTH($B74,0)+1,"FLAT",I74,J74) -> 15.29 | CA74: =IF(ValuationDate>$D74,"",[2]!mGetRate(CA$1,$B74,EOMONTH($B74,0)+1,"FLAT",M74,N74)) -> 23.80088889 | CB74: =[2]!mGetRate(CB$1,$B74,EOMONTH($B74,0)+1,"FLAT",Q74,R74) -> 22.28566667 | CC74: =IF(ValuationDate>$D74,"",[2]!mGetRate(CC$1,$B74,EOMONTH($B74,0)+1,"FLAT",K74,L74)) -> 27.06122222 | CD74: =[2]!mGetRate(CD$1,$B74,EOMONTH($B74,0)+1,"FLAT",AE74,AF74) -> 21.33561556 | CE74: =[2]!mGetRate(CE$1,$B74,EOMONTH($B74,0)+1,"FLAT",AA74,AB74) -> 28.27233333 | CF74: =[2]!mGetRate(CF$1,$B74,EOMONTH($B74,0)+1,"FLAT",O74,P74) -> 21.28566667 | CO74: 2021 | CP74: 2021-06-01 | CQ74: 2.790413726 | CR74: 2.404216231 | CS74: 2.423482425 | CT74: 2.382766928 | CU74: 2.423482425 | CV74: 2.431773744 | CW74: 2.746192168
B75: 2021-07-01 | C75: 2021-07-31 | D75: 2021-07-01 | E75: 34.8125 | F75: 21.885 | G75: 36.8875 | H75: 24.875 | I75: 30.65 | J75: 22.25 | K75: 38.9 | L75: 30.56 | M75: 37.585 | N75: 28.0825 | O75: 41.6375 | P75: 25.875 | Q75: 41.8875 | R75: 25.875 | S75: 34.8875 | T75: 22.375 | U75: 41.6375 | V75: 25.875 | W75: 30.65 | X75: 22.25 | Y75: 39.3875 | Z75: 26.375 | AA75: 40.8875 | AB75: 28.825 | AC75: 38.3875 | AD75: 24.375 | AE75: 35.2591 | AF75: 24.2817 | AG75: 2.825 | AH75: 2.7425 | AI75: 2.5075 | AJ75: 2.43 | AK75: 2.415 | AL75: 2.5385 | AM75: 2.365 | AN75: 2.4675 | AO75: 2.3713 | AP75: 2.04 | AQ75: 1.915 | AR75: 2.6771 | AS75: 2.4968 | AT75: 2.7271 | AU75: 2.5143 | AV75: 2.4996 | AW75: 2.2035 | AX75: 2.4966 | AY75: 2.44 | AZ75: 2.3863 | BA75: 2.1888 | BB75: 3.0725 | BJ75: 2.432716456 | BK75: 2.097222785 | BL75: 2.52526846 | BM75: 2.177013113 | BN75: 2.308055203 | BP75: 2.48290301 | BQ75: 2.432716456 | BR75: 2.469963149 | BS75: 2.468355714 | BT75: 2.445204037 | BU75: 2.426169639 | BV75: 2.50138443 | BX75: =[2]!mGetRate(BX$1,$B75,EOMONTH($B75,0)+1,"FLAT",E75,F75) -> 29.11327957 | BY75: =[2]!mGetRate(BY$1,$B75,EOMONTH($B75,0)+1,"FLAT",G75,H75) -> 31.59166667 | BZ75: =[2]!mGetRate(BZ$1,$B75,EOMONTH($B75,0)+1,"FLAT",I75,J75) -> 26.94677419 | CA75: =IF(ValuationDate>$D75,"",[2]!mGetRate(CA$1,$B75,EOMONTH($B75,0)+1,"FLAT",M75,N75)) -> 33.39572581 | CB75: =[2]!mGetRate(CB$1,$B75,EOMONTH($B75,0)+1,"FLAT",Q75,R75) -> 34.82822581 | CC75: =IF(ValuationDate>$D75,"",[2]!mGetRate(CC$1,$B75,EOMONTH($B75,0)+1,"FLAT",K75,L75)) -> 35.22322581 | CD75: =[2]!mGetRate(CD$1,$B75,EOMONTH($B75,0)+1,"FLAT",AE75,AF75) -> 30.41960108 | CE75: =[2]!mGetRate(CE$1,$B75,EOMONTH($B75,0)+1,"FLAT",AA75,AB75) -> 35.56962366 | CF75: =[2]!mGetRate(CF$1,$B75,EOMONTH($B75,0)+1,"FLAT",O75,P75) -> 34.68844086 | CO75: 2021 | CP75: 2021-07-01 | CQ75: 2.828997942 | CR75: 2.445204037 | CS75: 2.46428626 | CT75: 2.422912254 | CU75: 2.46428626 | CV75: 2.472824647 | CW75: 2.786563585
B76: 2021-08-01 | C76: 2021-08-31 | D76: 2021-08-01 | E76: 37 | F76: 28.55 | G76: 35.5375 | H76: 24.64 | I76: 33.95 | J76: 24.25 | K76: 39.9575 | L76: 32.8 | M76: 37.9275 | N76: 29.7175 | O76: 40.0375 | P76: 25.14 | Q76: 40.0375 | R76: 25.64 | S76: 33.5375 | T76: 22.64 | U76: 40.0375 | V76: 25.14 | W76: 33.95 | X76: 24.25 | Y76: 37.5375 | Z76: 26.14 | AA76: 39.2875 | AB76: 28.34 | AC76: 37.7875 | AD76: 24.64 | AE76: 36.5156 | AF76: 28.3908 | AG76: 2.85 | AH76: 2.7575 | AI76: 2.5675 | AJ76: 2.455 | AK76: 2.44 | AL76: 2.5638 | AM76: 2.39 | AN76: 2.51 | AO76: 2.405 | AP76: 2.07 | AQ76: 1.94 | AR76: 2.7029 | AS76: 2.5222 | AT76: 2.7529 | AU76: 2.5398 | AV76: 2.5248 | AW76: 2.2353 | AX76: 2.522 | AY76: 2.465 | AZ76: 2.42 | BA76: 2.2225 | BB76: 3.095 | BJ76: 2.466843038 | BK76: 2.127602532 | BL76: 2.560693166 | BM76: 2.20854846 | BN76: 2.340921799 | BP76: 2.508405408 | BQ76: 2.466843038 | BR76: 2.512477806 | BS76: 2.493865918 | BT76: 2.470821416 | BU76: 2.451260422 | BV76: 2.526497438 | BX76: =[2]!mGetRate(BX$1,$B76,EOMONTH($B76,0)+1,"FLAT",E76,F76) -> 33.27473118 | BY76: =[2]!mGetRate(BY$1,$B76,EOMONTH($B76,0)+1,"FLAT",G76,H76) -> 30.73322581 | BZ76: =[2]!mGetRate(BZ$1,$B76,EOMONTH($B76,0)+1,"FLAT",I76,J76) -> 29.67365591 | CA76: =IF(ValuationDate>$D76,"",[2]!mGetRate(CA$1,$B76,EOMONTH($B76,0)+1,"FLAT",M76,N76)) -> 34.30803763 | CB76: =[2]!mGetRate(CB$1,$B76,EOMONTH($B76,0)+1,"FLAT",Q76,R76) -> 33.69021505 | CC76: =IF(ValuationDate>$D76,"",[2]!mGetRate(CC$1,$B76,EOMONTH($B76,0)+1,"FLAT",K76,L76)) -> 36.80204301 | CD76: =[2]!mGetRate(CD$1,$B76,EOMONTH($B76,0)+1,"FLAT",AE76,AF76) -> 32.93369892 | CE76: =[2]!mGetRate(CE$1,$B76,EOMONTH($B76,0)+1,"FLAT",AA76,AB76) -> 34.4611828 | CF76: =[2]!mGetRate(CF$1,$B76,EOMONTH($B76,0)+1,"FLAT",O76,P76) -> 33.46978495 | CO76: 2021 | CP76: 2021-08-01 | CQ76: 2.890732689 | CR76: 2.470821416 | CS76: 2.489788658 | CT76: 2.448003083 | CU76: 2.489788658 | CV76: 2.498481461 | CW76: 2.811795721
B77: 2021-09-01 | C77: 2021-09-30 | D77: 2021-09-01 | E77: 35.4375 | F77: 28.765 | G77: 33.175 | H77: 21.585 | I77: 30.65 | J77: 26.25 | K77: 37.8425 | L77: 30.84 | M77: 35.1875 | N77: 28.9 | O77: 36.675 | P77: 19.585 | Q77: 36.175 | R77: 20.085 | S77: 30.175 | T77: 20.585 | U77: 36.675 | V77: 19.585 | W77: 30.65 | X77: 26.25 | Y77: 34.675 | Z77: 22.585 | AA77: 36.175 | AB77: 24.785 | AC77: 34.175 | AD77: 19.085 | AE77: 34.4328 | AF77: 28.11 | AG77: 2.855 | AH77: 2.58 | AI77: 2.5525 | AJ77: 2.4725 | AK77: 2.4575 | AL77: 2.5816 | AM77: 2.4075 | AN77: 2.5275 | AO77: 2.4262 | AP77: 2.0975 | AQ77: 1.965 | AR77: 2.7209 | AS77: 2.5399 | AT77: 2.7709 | AU77: 2.5576 | AV77: 2.5425 | AW77: 2.2646 | AX77: 2.5397 | AY77: 2.4825 | AZ77: 2.4412 | BA77: 2.2438 | BB77: 3.095 | BJ77: 2.488311392 | BK77: 2.155450633 | BL77: 2.582978144 | BM77: 2.237455861 | BN77: 2.366049008 | BP77: 2.526257086 | BQ77: 2.488311392 | BR77: 2.529983841 | BS77: 2.511723061 | BT77: 2.488753581 | BU77: 2.46882397 | BV77: 2.544076544 | BX77: =[2]!mGetRate(BX$1,$B77,EOMONTH($B77,0)+1,"FLAT",E77,F77) -> 32.47194444 | BY77: =[2]!mGetRate(BY$1,$B77,EOMONTH($B77,0)+1,"FLAT",G77,H77) -> 28.02388889 | BZ77: =[2]!mGetRate(BZ$1,$B77,EOMONTH($B77,0)+1,"FLAT",I77,J77) -> 28.69444444 | CA77: =IF(ValuationDate>$D77,"",[2]!mGetRate(CA$1,$B77,EOMONTH($B77,0)+1,"FLAT",M77,N77)) -> 32.39305556 | CB77: =[2]!mGetRate(CB$1,$B77,EOMONTH($B77,0)+1,"FLAT",Q77,R77) -> 29.02388889 | CC77: =IF(ValuationDate>$D77,"",[2]!mGetRate(CC$1,$B77,EOMONTH($B77,0)+1,"FLAT",K77,L77)) -> 34.73027778 | CD77: =[2]!mGetRate(CD$1,$B77,EOMONTH($B77,0)+1,"FLAT",AE77,AF77) -> 31.62266667 | CE77: =[2]!mGetRate(CE$1,$B77,EOMONTH($B77,0)+1,"FLAT",AA77,AB77) -> 31.11277778 | CF77: =[2]!mGetRate(CF$1,$B77,EOMONTH($B77,0)+1,"FLAT",O77,P77) -> 29.07944444 | CO77: 2021 | CP77: 2021-09-01 | CQ77: 2.875299002 | CR77: 2.488753581 | CS77: 2.507640336 | CT77: 2.465566663 | CU77: 2.507640336 | CV77: 2.516441232 | CW77: =(($AJ77+CW$4)*(1/(1-CW$2))+CW$3) -> 2.829458216
B78: 2021-10-01 | C78: 2021-10-31 | D78: 2021-10-01 | E78: 33.0975 | F78: 30.23 | G78: 28.985 | H78: 26.43 | I78: 28.18 | J78: 24.55 | K78: 38.05 | L78: 31.8 | M78: 33.525 | N78: 30.3125 | O78: 28.985 | P78: 24.43 | Q78: 28.485 | R78: 25.93 | S78: 25.985 | T78: 23.93 | U78: 28.985 | V78: 24.43 | W78: 28.18 | X78: 24.55 | Y78: 29.985 | Z78: 27.18 | AA78: 31.435 | AB78: 28.28 | AC78: 28.985 | AD78: 24.93 | AE78: 32.4731 | AF78: 29.5134 | AG78: 2.885 | AH78: 2.5075 | AI78: 2.5575 | AJ78: 2.49 | AK78: 2.475 | AL78: 2.5993 | AM78: 2.425 | AN78: 2.5375 | AO78: 2.4512 | AP78: 2.545 | AQ78: 2.005 | AR78: 2.7389 | AS78: 2.5576 | AT78: 2.7889 | AU78: 2.5755 | AV78: 2.5601 | AW78: 2.7401 | AX78: 2.5574 | AY78: 2.5 | AZ78: 2.4662 | BA78: 2.2688 | BB78: 3.0825 | BJ78: 2.513627848 | BK78: 2.60861519 | BL78: 2.6092576 | BM78: 2.707858118 | BN78: 2.609839689 | BP78: 2.544108764 | BQ78: 2.513627848 | BR78: 2.53998729 | BS78: 2.529580204 | BT78: 2.506685746 | BU78: 2.486387518 | BV78: 2.56165565 | BX78: =[2]!mGetRate(BX$1,$B78,EOMONTH($B78,0)+1,"FLAT",E78,F78) -> 31.83333333 | BY78: =[2]!mGetRate(BY$1,$B78,EOMONTH($B78,0)+1,"FLAT",G78,H78) -> 27.85860215 | BZ78: =[2]!mGetRate(BZ$1,$B78,EOMONTH($B78,0)+1,"FLAT",I78,J78) -> 26.57967742 | CA78: =IF(ValuationDate>$D78,"",[2]!mGetRate(CA$1,$B78,EOMONTH($B78,0)+1,"FLAT",M78,N78)) -> 32.10873656 | CB78: =[2]!mGetRate(CB$1,$B78,EOMONTH($B78,0)+1,"FLAT",Q78,R78) -> 27.35860215 | CC78: =IF(ValuationDate>$D78,"",[2]!mGetRate(CC$1,$B78,EOMONTH($B78,0)+1,"FLAT",K78,L78)) -> 35.29462366 | CD78: =[2]!mGetRate(CD$1,$B78,EOMONTH($B78,0)+1,"FLAT",AE78,AF78) -> 31.16828602 | CE78: =[2]!mGetRate(CE$1,$B78,EOMONTH($B78,0)+1,"FLAT",AA78,AB78) -> 30.04408602 | CF78: =[2]!mGetRate(CF$1,$B78,EOMONTH($B78,0)+1,"FLAT",O78,P78) -> 26.97688172 | CO78: 2021 | CP78: 2021-10-01 | CQ78: 2.880443564 | CR78: 2.506685746 | CS78: 2.525492014 | CT78: 2.483130243 | CU78: 2.525492014 | CV78: 2.534401002 | CW78: 2.847120711
B79: 2021-11-01 | C79: 2021-11-30 | D79: 2021-11-01 | E79: 34.9425 | F79: 30.74 | G79: 28.7275 | H79: 25.725 | I79: 29.74 | J79: 27.63 | K79: 38.05 | L79: 32.7 | M79: 35.15 | N79: 30.8875 | O79: 27.2275 | P79: 24.225 | Q79: 28.2275 | R79: 25.225 | S79: 25.4775 | T79: 23.725 | U79: 27.2275 | V79: 24.225 | W79: 29.74 | X79: 27.63 | Y79: 29.7275 | Z79: 26.225 | AA79: 31.1775 | AB79: 27.575 | AC79: 27.2275 | AD79: 24.725 | AE79: 34.1675 | AF79: 30.0416 | AG79: 2.955 | AH79: 2.8475 | AI79: 2.8 | AJ79: 2.735 | AK79: 2.72 | AL79: 2.8477 | AM79: 2.6525 | AN79: 2.7525 | AO79: 2.6 | AP79: 3.0175 | AQ79: 2.0875 | AR79: 2.9911 | AS79: 2.8058 | AT79: 3.0411 | AU79: 2.8253 | AV79: 2.8073 | AW79: 3.2422 | AX79: 2.8056 | AY79: 2.745 | AZ79: 2.615 | BA79: 2.4175 | BB79: 3.2125 | BJ79: 2.664311392 | BK79: 3.087096203 | BL79: 2.76567292 | BM79: 3.204539831 | BN79: 2.930405086 | BP79: 2.794032256 | BQ79: 2.664311392 | BR79: 2.755061439 | BS79: 2.779580204 | BT79: 2.739803894 | BU79: 2.732277192 | BV79: 2.807763134 | BX79: =[2]!mGetRate(BX$1,$B79,EOMONTH($B79,0)+1,"FLAT",E79,F79) -> 33.07148405 | BY79: =[2]!mGetRate(BY$1,$B79,EOMONTH($B79,0)+1,"FLAT",G79,H79) -> 27.39074202 | BZ79: =[2]!mGetRate(BZ$1,$B79,EOMONTH($B79,0)+1,"FLAT",I79,J79) -> 28.80059639 | CA79: =IF(ValuationDate>$D79,"",[2]!mGetRate(CA$1,$B79,EOMONTH($B79,0)+1,"FLAT",M79,N79)) -> 33.25227115 | CB79: =[2]!mGetRate(CB$1,$B79,EOMONTH($B79,0)+1,"FLAT",Q79,R79) -> 26.89074202 | CC79: =IF(ValuationDate>$D79,"",[2]!mGetRate(CC$1,$B79,EOMONTH($B79,0)+1,"FLAT",K79,L79)) -> 35.66809986 | CD79: =[2]!mGetRate(CD$1,$B79,EOMONTH($B79,0)+1,"FLAT",AE79,AF79) -> 32.33058752 | CE79: =[2]!mGetRate(CE$1,$B79,EOMONTH($B79,0)+1,"FLAT",AA79,AB79) -> 29.57361304 | CF79: =[2]!mGetRate(CF$1,$B79,EOMONTH($B79,0)+1,"FLAT",O79,P79) -> 25.89074202 | CO79: 2021 | CP79: 2021-11-01 | CQ79: 3.129954831 | CR79: 2.739803894 | CS79: 2.775415506 | CT79: 2.729020366 | CU79: 2.775415506 | CV79: 2.767878013 | CW79: 3.09439564
B80: 2021-12-01 | C80: 2021-12-31 | D80: 2021-12-01 | E80: 37.71 | F80: 32.78 | G80: 30.7875 | H80: 28.545 | I80: 32.08 | J80: 28.07 | K80: 39.1 | L80: 35.4 | M80: 36.775 | N80: 34.05 | O80: 28.7875 | P80: 26.545 | Q80: 30.2875 | R80: 28.045 | S80: 27.7875 | T80: 26.545 | U80: 28.7875 | V80: 26.545 | W80: 32.08 | X80: 28.07 | Y80: 31.7875 | Z80: 29.295 | AA80: 33.2375 | AB80: 29.895 | AC80: 31.2875 | AD80: 28.545 | AE80: 36.3231 | AF80: 32.5637 | AG80: 3.1 | AH80: 3.0225 | AI80: 2.985 | AJ80: 2.9325 | AK80: 2.9175 | AL80: 3.048 | AM80: 2.855 | AN80: 2.9025 | AO80: 2.74 | AP80: 3.52 | AQ80: 2.2175 | AR80: 3.1944 | AS80: 3.0058 | AT80: 3.2444 | AU80: 3.0268 | AV80: 3.0066 | AW80: 3.7761 | AX80: 3.0056 | AY80: 2.9425 | AZ80: 2.755 | BA80: 2.5575 | BB80: 3.325 | BJ80: 2.806083544 | BK80: 3.595956962 | BL80: 2.912837872 | BM80: 3.73275689 | BN80: 3.261908817 | BP80: 2.995501195 | BQ80: 2.806083544 | BR80: 2.905113171 | BS80: 2.981110816 | BT80: 2.947304662 | BU80: 2.930494378 | BV80: 3.006155902 | BX80: =[2]!mGetRate(BX$1,$B80,EOMONTH($B80,0)+1,"FLAT",E80,F80) -> 35.53655914 | BY80: =[2]!mGetRate(BY$1,$B80,EOMONTH($B80,0)+1,"FLAT",G80,H80) -> 29.79887097 | BZ80: =[2]!mGetRate(BZ$1,$B80,EOMONTH($B80,0)+1,"FLAT",I80,J80) -> 30.31215054 | CA80: =IF(ValuationDate>$D80,"",[2]!mGetRate(CA$1,$B80,EOMONTH($B80,0)+1,"FLAT",M80,N80)) -> 35.57365591 | CB80: =[2]!mGetRate(CB$1,$B80,EOMONTH($B80,0)+1,"FLAT",Q80,R80) -> 29.29887097 | CC80: =IF(ValuationDate>$D80,"",[2]!mGetRate(CC$1,$B80,EOMONTH($B80,0)+1,"FLAT",K80,L80)) -> 37.4688172 | CD80: =[2]!mGetRate(CD$1,$B80,EOMONTH($B80,0)+1,"FLAT",AE80,AF80) -> 34.66573011 | CE80: =[2]!mGetRate(CE$1,$B80,EOMONTH($B80,0)+1,"FLAT",AA80,AB80) -> 31.76392473 | CF80: =[2]!mGetRate(CF$1,$B80,EOMONTH($B80,0)+1,"FLAT",O80,P80) -> 27.79887097 | CO80: 2021 | CP80: 2021-12-01 | CQ80: 3.320303632 | CR80: 2.947304662 | CS80: 2.976884445 | CT80: 2.927237913 | CU80: 2.976884445 | CV80: 2.97569821 | CW80: 3.293729512
B81: 2022-01-01 | C81: 2022-01-31 | D81: 2022-01-01 | E81: 33.07 | F81: 28.075 | G81: 32.55 | H81: 31.9 | I81: 31.875 | J81: 24.36 | K81: 41.125 | L81: 34.85 | M81: 37.95 | N81: 35.415 | O81: 30.55 | P81: 29.9 | Q81: 32.05 | R81: 31.4 | S81: 29.05 | T81: 29.4 | U81: 30.55 | V81: 29.9 | W81: 31.875 | X81: 24.36 | Y81: 33.55 | Z81: 32.65 | AA81: 34.55 | AB81: 33.9 | AC81: 33.55 | AD81: 31.9 | AE81: 34.5613 | AF81: 30.8596 | AG81: 3.227 | AH81: 3.2145 | AI81: 2.952 | AJ81: 3.0595 | AK81: 3.0445 | AL81: 3.1767 | AM81: 2.9795 | AN81: 3.0045 | AO81: 2.8395 | AP81: 3.1445 | AQ81: 2.3145 | AR81: 3.3251 | AS81: 3.1345 | AT81: 3.3751 | AU81: 3.1563 | AV81: 3.1347 | AW81: 3.3771 | AX81: 3.1342 | AY81: 3.0695 | AZ81: 2.8545 | BA81: 2.657 | BB81: 3.422 | BJ81: 2.906843038 | BK81: 3.215703797 | BL81: 3.017430106 | BM81: 3.338039465 | BN81: 3.119504102 | BP81: 3.125053372 | BQ81: =AO81*(1/(1-BQ$2))+BQ$3 -> 2.906843038 | BR81: =AN81*(1/(1-BR$2))+BR$3 -> 3.007148349 | BS81: =AK81*(1/(1-BS$2))+BS$3 -> 3.110702653 | BT81: =AM81*(1/(1-BT$2))+BT$3 -> 3.074879209 | BU81: =AK81*(1/(1-BU$2))+BU$3 -> 3.057955556 | BV81: =AJ81*(1/(1-BV$2))+BV$3 -> 3.133729985 | BX81: =[2]!mGetRate(BX$1,$B81,EOMONTH($B81,0)+1,"FLAT",E81,F81) -> 30.76048387 | BY81: =[2]!mGetRate(BY$1,$B81,EOMONTH($B81,0)+1,"FLAT",G81,H81) -> 32.24946237 | BZ81: =[2]!mGetRate(BZ$1,$B81,EOMONTH($B81,0)+1,"FLAT",I81,J81) -> 28.40032258 | CA81: =IF(ValuationDate>$D81,"",[2]!mGetRate(CA$1,$B81,EOMONTH($B81,0)+1,"FLAT",M81,N81)) -> 36.77790323 | CB81: =[2]!mGetRate(CB$1,$B81,EOMONTH($B81,0)+1,"FLAT",Q81,R81) -> 31.74946237 | CC81: =IF(ValuationDate>$D81,"",[2]!mGetRate(CC$1,$B81,EOMONTH($B81,0)+1,"FLAT",K81,L81)) -> 38.22365591 | CD81: =[2]!mGetRate(CD$1,$B81,EOMONTH($B81,0)+1,"FLAT",AE81,AF81) -> 32.84976129 | CE81: =[2]!mGetRate(CE$1,$B81,EOMONTH($B81,0)+1,"FLAT",AA81,AB81) -> 34.24946237 | CF81: =[2]!mGetRate(CF$1,$B81,EOMONTH($B81,0)+1,"FLAT",O81,P81) -> 30.24946237 | CO81: 2022 | CP81: 2022-01-01 | CQ81: 3.286349522 | CR81: 3.074879209 | CS81: 3.106436622 | CT81: 3.054699324 | CU81: 3.106436622 | CV81: 3.103469146 | CW81: 3.421908761
B82: 2022-02-01 | C82: 2022-02-28 | D82: 2022-02-01 | E82: 32.56 | F82: 27 | G82: 32.025 | H82: 31.1125 | I82: 31.11 | J82: 23.715 | K82: 40.09 | L82: 33.9125 | M82: 37.3 | N82: 34.5 | O82: 30.025 | P82: 29.1125 | Q82: 32.025 | R82: 30.6125 | S82: 28.525 | T82: 28.6125 | U82: 30.025 | V82: 29.1125 | W82: 31.11 | X82: 23.715 | Y82: 33.025 | Z82: 31.8625 | AA82: 34.025 | AB82: 32.8625 | AC82: 31.025 | AD82: 31.1125 | AE82: 33.9975 | AF82: 29.8875 | AG82: 3.189 | AH82: 3.1515 | AI82: 2.904 | AJ82: 3.0365 | AK82: 3.0215 | AL82: 3.1534 | AM82: 2.9765 | AN82: 2.999 | AO82: 2.8228 | AP82: 2.974 | AQ82: 2.2865 | AR82: 3.3014 | AS82: 3.1112 | AT82: 3.3514 | AU82: 3.1328 | AV82: 3.1115 | AW82: 3.1959 | AX82: 3.1109 | AY82: 3.0465 | AZ82: 2.8377 | BA82: 2.6402 | BB82: 3.369 | BJ82: =AO82*(1/(1-BJ$2))+BJ$3 -> 2.889931646 | BK82: =AP82*(1/(1-BK$2))+BK$3 -> 3.04304557 | BL82: =(AO82+BL$3)*BL$5+((1/(1-BL$2)-1)*AO82+BL$4*AO82) -> 2.99987543 | BM82: =(AP82+BM$3)*BM$5+((1/(1-BM$2)-1)*AP82+BM$4*AP82) -> 3.158813578 | BN82: =(BJ82+BK82+BL82+BM82)/4 -> 3.022916556 | BP82: =AJ82*(1/(1-BP$2))+BP$3 -> 3.101591167 | BQ82: 2.889931646 | BR82: 3.001646452 | BS82: 3.087233265 | BT82: 3.071805123 | BU82: 3.034872035 | BV82: 3.110626017 | BX82: =[2]!mGetRate(BX$1,$B82,EOMONTH($B82,0)+1,"FLAT",E82,F82) -> 30.17714286 | BY82: =[2]!mGetRate(BY$1,$B82,EOMONTH($B82,0)+1,"FLAT",G82,H82) -> 31.63392857 | BZ82: =[2]!mGetRate(BZ$1,$B82,EOMONTH($B82,0)+1,"FLAT",I82,J82) -> 27.94071429 | CA82: =IF(ValuationDate>$D82,"",[2]!mGetRate(CA$1,$B82,EOMONTH($B82,0)+1,"FLAT",M82,N82)) -> 36.1 | CB82: =[2]!mGetRate(CB$1,$B82,EOMONTH($B82,0)+1,"FLAT",Q82,R82) -> 31.41964286 | CC82: =IF(ValuationDate>$D82,"",[2]!mGetRate(CC$1,$B82,EOMONTH($B82,0)+1,"FLAT",K82,L82)) -> 37.4425 | CD82: =[2]!mGetRate(CD$1,$B82,EOMONTH($B82,0)+1,"FLAT",AE82,AF82) -> 32.23607143 | CE82: =[2]!mGetRate(CE$1,$B82,EOMONTH($B82,0)+1,"FLAT",AA82,AB82) -> 33.52678571 | CF82: =[2]!mGetRate(CF$1,$B82,EOMONTH($B82,0)+1,"FLAT",O82,P82) -> 29.63392857 | CO82: 2022 | CP82: 2022-02-01 | CQ82: 3.236961724 | CR82: 3.071805123 | CS82: 3.082974417 | CT82: 3.031615761 | CU82: 3.082974417 | CV82: 3.100390328 | CW82: 3.398695196
B83: 2022-03-01 | C83: 2022-03-31 | D83: 2022-03-01 | E83: 30.52 | F83: 25.925 | G83: 29.925 | H83: 29.5375 | I83: 28.815 | J83: 22.425 | K83: 36.985 | L83: 32.0375 | M83: 34.7 | N83: 33.585 | O83: 27.925 | P83: 27.5375 | Q83: 29.925 | R83: 29.0375 | S83: 28.175 | T83: 26.0375 | U83: 27.925 | V83: 27.5375 | W83: 28.815 | X83: 22.425 | Y83: 30.925 | Z83: 30.2875 | AA83: 31.925 | AB83: 31.5375 | AC83: 28.675 | AD83: 29.5375 | AE83: 31.7425 | AF83: 28.9154 | AG83: 3.122 | AH83: 3.082 | AI83: 2.847 | AJ83: 2.947 | AK83: 2.932 | AL83: 3.0627 | AM83: 2.8795 | AN83: 2.902 | AO83: 2.7558 | AP83: 2.8945 | AQ83: 2.2495 | AR83: 3.2093 | AS83: 3.0205 | AT83: 3.2593 | AU83: 3.0416 | AV83: 3.0212 | AW83: 3.1115 | AX83: 3.0203 | AY83: 2.957 | AZ83: 2.7707 | BA83: 2.5732 | BB83: 3.347 | BJ83: 2.822083544 | BK83: 2.962539241 | BL83: 2.929446488 | BM83: 3.075244909 | BN83: 2.947328545 | BP83: 3.010292585 | BQ83: 2.822083544 | BR83: 2.904612999 | BS83: 2.995906735 | BT83: 2.972409694 | BU83: 2.945047032 | BV83: 3.020721447 | BX83: =[2]!mGetRate(BX$1,$B83,EOMONTH($B83,0)+1,"FLAT",E83,F83) -> 28.59665545 | BY83: =[2]!mGetRate(BY$1,$B83,EOMONTH($B83,0)+1,"FLAT",G83,H83) -> 29.76280283 | BZ83: =[2]!mGetRate(BZ$1,$B83,EOMONTH($B83,0)+1,"FLAT",I83,J83) -> 26.14031629 | CA83: =IF(ValuationDate>$D83,"",[2]!mGetRate(CA$1,$B83,EOMONTH($B83,0)+1,"FLAT",M83,N83)) -> 34.23329071 | CB83: =[2]!mGetRate(CB$1,$B83,EOMONTH($B83,0)+1,"FLAT",Q83,R83) -> 29.55351615 | CC83: =IF(ValuationDate>$D83,"",[2]!mGetRate(CC$1,$B83,EOMONTH($B83,0)+1,"FLAT",K83,L83)) -> 34.91410834 | CD83: =[2]!mGetRate(CD$1,$B83,EOMONTH($B83,0)+1,"FLAT",AE83,AF83) -> 30.55915128 | CE83: =[2]!mGetRate(CE$1,$B83,EOMONTH($B83,0)+1,"FLAT",AA83,AB83) -> 31.76280283 | CF83: =[2]!mGetRate(CF$1,$B83,EOMONTH($B83,0)+1,"FLAT",O83,P83) -> 27.76280283 | CO83: 2022 | CP83: 2022-03-01 | CQ83: 3.178313715 | CR83: 2.972409694 | CS83: 2.991675835 | CT83: 2.941790594 | CU83: 2.991675835 | CV83: 3.000841888 | CW83: 3.30836415
B84: 2022-04-01 | C84: 2022-04-30 | D84: 2022-04-01 | E84: 28.58 | F84: 18.425 | G84: 26.55 | H84: 21.505 | I84: 25.9 | J84: 16.915 | K84: 28.7 | L84: 27.4325 | M84: 26.945 | N84: 24.4 | O84: 24.55 | P84: 19.505 | Q84: 25.05 | R84: 20.755 | S84: 21.55 | T84: 17.505 | U84: 24.55 | V84: 19.505 | W84: 25.9 | X84: 16.915 | Y84: 25.05 | Z84: 19.505 | AA84: 29.3 | AB84: 29.955 | AC84: 25.05 | AD84: 20.005 | AE84: 27.0889 | AF84: 20.8025 | AG84: 2.802 | AH84: 2.4795 | AI84: 2.522 | AJ84: 2.472 | AK84: 2.457 | AL84: 2.5811 | AM84: 2.392 | AN84: 2.3795 | AO84: 2.3395 | AP84: 2.1195 | AQ84: 1.9395 | AR84: 2.7204 | AS84: 2.5394 | AT84: 2.7704 | AU84: 2.5571 | AV84: 2.542 | AW84: 2.2879 | AX84: 2.5392 | AY84: 2.482 | AZ84: 2.3545 | BA84: 2.157 | BB84: 3.022 | BJ84: 2.400513924 | BK84: 2.177729114 | BL84: 2.491840992 | BM84: 2.260581782 | BN84: 2.332666453 | BP84: 2.525747038 | BQ84: 2.400513924 | BR84: 2.381932799 | BS84: 2.511212857 | BT84: 2.472870806 | BU84: 2.468322155 | BV84: 2.543574284 | BX84: =[2]!mGetRate(BX$1,$B84,EOMONTH($B84,0)+1,"FLAT",E84,F84) -> 24.29233333 | BY84: =[2]!mGetRate(BY$1,$B84,EOMONTH($B84,0)+1,"FLAT",G84,H84) -> 24.41988889 | BZ84: =[2]!mGetRate(BZ$1,$B84,EOMONTH($B84,0)+1,"FLAT",I84,J84) -> 22.10633333 | CA84: =IF(ValuationDate>$D84,"",[2]!mGetRate(CA$1,$B84,EOMONTH($B84,0)+1,"FLAT",M84,N84)) -> 25.87044444 | CB84: =[2]!mGetRate(CB$1,$B84,EOMONTH($B84,0)+1,"FLAT",Q84,R84) -> 23.23655556 | CC84: =IF(ValuationDate>$D84,"",[2]!mGetRate(CC$1,$B84,EOMONTH($B84,0)+1,"FLAT",K84,L84)) -> 28.16483333 | CD84: =[2]!mGetRate(CD$1,$B84,EOMONTH($B84,0)+1,"FLAT",AE84,AF84) -> 24.43464222 | CE84: =[2]!mGetRate(CE$1,$B84,EOMONTH($B84,0)+1,"FLAT",AA84,AB84) -> 29.57655556 | CF84: =[2]!mGetRate(CF$1,$B84,EOMONTH($B84,0)+1,"FLAT",O84,P84) -> 22.41988889 | CO84: 2022 | CP84: 2022-04-01 | CQ84: 2.843917173 | CR84: 2.472870806 | CS84: 2.507130288 | CT84: 2.465064847 | CU84: 2.507130288 | CV84: 2.500534007 | CW84: 2.828953573
B85: 2022-05-01 | C85: 2022-05-31 | D85: 2022-05-01 | E85: 26.2 | F85: 14.625 | G85: 27.27 | H85: 17.62 | I85: 21.14 | J85: 11.975 | K85: 29.4875 | L85: 23.6975 | M85: 27.415 | N85: 20.2 | O85: 25.77 | P85: 15.62 | Q85: 27.27 | R85: 17.62 | S85: 23.27 | T85: 12.62 | U85: 25.77 | V85: 15.62 | W85: 21.14 | X85: 11.975 | Y85: 25.77 | Z85: 15.62 | AA85: 29.52 | AB85: 25.57 | AC85: 25.77 | AD85: 15.62 | AE85: 26.1221 | AF85: 16.9075 | AG85: 2.792 | AH85: 2.4845 | AI85: 2.512 | AJ85: 2.387 | AK85: 2.372 | AL85: 2.4949 | AM85: 2.3095 | AN85: 2.347 | AO85: 2.3208 | AP85: 2.117 | AQ85: 1.9345 | AR85: 2.6329 | AS85: 2.4533 | AT85: 2.6829 | AU85: 2.4704 | AV85: 2.4562 | AW85: 2.2853 | AX85: 2.4531 | AY85: 2.397 | AZ85: 2.3358 | BA85: 2.1383 | BB85: 3.007 | BJ85: 2.381577215 | BK85: 2.175197468 | BL85: 2.472183959 | BM85: 2.257953836 | BN85: 2.32172812 | BP85: 2.439038887 | BQ85: 2.381577215 | BR85: 2.349421591 | BS85: 2.424478163 | BT85: 2.388333456 | BU85: 2.383013492 | BV85: 2.458190055 | BX85: =[2]!mGetRate(BX$1,$B85,EOMONTH($B85,0)+1,"FLAT",E85,F85) -> 20.84811828 | BY85: =[2]!mGetRate(BY$1,$B85,EOMONTH($B85,0)+1,"FLAT",G85,H85) -> 22.80817204 | BZ85: =[2]!mGetRate(BZ$1,$B85,EOMONTH($B85,0)+1,"FLAT",I85,J85) -> 16.90241935 | CA85: =IF(ValuationDate>$D85,"",[2]!mGetRate(CA$1,$B85,EOMONTH($B85,0)+1,"FLAT",M85,N85)) -> 24.07903226 | CB85: =[2]!mGetRate(CB$1,$B85,EOMONTH($B85,0)+1,"FLAT",Q85,R85) -> 22.80817204 | CC85: =IF(ValuationDate>$D85,"",[2]!mGetRate(CC$1,$B85,EOMONTH($B85,0)+1,"FLAT",K85,L85)) -> 26.81040323 | CD85: =[2]!mGetRate(CD$1,$B85,EOMONTH($B85,0)+1,"FLAT",AE85,AF85) -> 21.86158602 | CE85: =[2]!mGetRate(CE$1,$B85,EOMONTH($B85,0)+1,"FLAT",AA85,AB85) -> 27.69365591 | CF85: =[2]!mGetRate(CF$1,$B85,EOMONTH($B85,0)+1,"FLAT",O85,P85) -> 21.07698925 | CO85: =YEAR($CP85) -> 2022 | CP85: 2022-05-01 | CQ85: 2.833628048 | CR85: 2.388333456 | CS85: 2.420422137 | CT85: 2.379756029 | CU85: 2.420422137 | CV85: 2.415866519 | CW85: 2.743164312
B86: 2022-06-01 | C86: 2022-06-30 | D86: 2022-06-01 | E86: 26.37 | F86: 15.1 | G86: 29.43 | H86: 18.175 | I86: 20.46 | J86: 11.31 | K86: 31.0625 | L86: 24.32 | M86: 28.59 | N86: 20.2 | O86: 27.68 | P86: 16.675 | Q86: 28.68 | R86: 17.675 | S86: 25.93 | T86: 14.175 | U86: 27.68 | V86: 16.675 | W86: 20.46 | X86: 11.31 | Y86: 30.43 | Z86: 18.675 | AA86: 32.68 | AB86: 26.625 | AC86: 28.43 | AD86: 16.925 | AE86: 26.7653 | AF86: 17.145 | AG86: 2.82 | AH86: 2.5175 | AI86: 2.5425 | AJ86: 2.42 | AK86: 2.405 | AL86: 2.5284 | AM86: 2.34 | AN86: 2.3975 | AO86: 2.3512 | AP86: 2.135 | AQ86: 1.945 | AR86: 2.6669 | AS86: 2.4867 | AT86: 2.7169 | AU86: 2.5041 | AV86: 2.4895 | AW86: 2.3044 | AX86: 2.4865 | AY86: 2.43 | AZ86: 2.3662 | BA86: 2.1688 | BB86: 3.0375 | BJ86: 2.412362025 | BK86: 2.193425316 | BL86: 2.504139777 | BM86: 2.276875044 | BN86: 2.346700541 | BP86: 2.472702051 | BQ86: 2.412362025 | BR86: 2.399939007 | BS86: 2.458151633 | BT86: 2.419586658 | BU86: 2.416133326 | BV86: 2.491339227 | BX86: =[2]!mGetRate(BX$1,$B86,EOMONTH($B86,0)+1,"FLAT",E86,F86) -> 21.61155556 | BY86: =[2]!mGetRate(BY$1,$B86,EOMONTH($B86,0)+1,"FLAT",G86,H86) -> 24.67788889 | BZ86: =[2]!mGetRate(BZ$1,$B86,EOMONTH($B86,0)+1,"FLAT",I86,J86) -> 16.59666667 | CA86: =IF(ValuationDate>$D86,"",[2]!mGetRate(CA$1,$B86,EOMONTH($B86,0)+1,"FLAT",M86,N86)) -> 25.04755556 | CB86: =[2]!mGetRate(CB$1,$B86,EOMONTH($B86,0)+1,"FLAT",Q86,R86) -> 24.03344444 | CC86: =IF(ValuationDate>$D86,"",[2]!mGetRate(CC$1,$B86,EOMONTH($B86,0)+1,"FLAT",K86,L86)) -> 28.21566667 | CD86: =[2]!mGetRate(CD$1,$B86,EOMONTH($B86,0)+1,"FLAT",AE86,AF86) -> 22.70339556 | CE86: =[2]!mGetRate(CE$1,$B86,EOMONTH($B86,0)+1,"FLAT",AA86,AB86) -> 30.12344444 | CF86: =[2]!mGetRate(CF$1,$B86,EOMONTH($B86,0)+1,"FLAT",O86,P86) -> 23.03344444 | CO86: 2022 | CP86: 2022-06-01 | CQ86: =(($AI86+CQ$4)*(1/(1-CQ$2))+CQ$3) -> 2.865009878 | CR86: =(($AM86+CR$4)*(1/(1-CR$2))+CR$3) -> 2.419586658 | CS86: 2.454085301 | CT86: 2.412875923 | CU86: 2.454085301 | CV86: =(($AM86+CV$4)*(1/(1-CV$2))+CV$3) -> 2.447167833 | CW86: 2.776470731
B87: 2022-07-01 | C87: 2022-07-31 | D87: 2022-07-01 | E87: 36.6125 | F87: 26.285 | G87: 38.3875 | H87: 27.225 | I87: 32.45 | J87: 24.1 | K87: 40.65 | L87: 32.06 | M87: 39.085 | N87: 29.2825 | O87: 43.1375 | P87: 28.225 | Q87: 43.3875 | R87: 28.225 | S87: 36.3875 | T87: 24.725 | U87: 43.1375 | V87: 28.225 | W87: 32.45 | X87: 24.1 | Y87: 40.8875 | Z87: 28.725 | AA87: 42.3875 | AB87: 31.475 | AC87: 39.8875 | AD87: 26.725 | AE87: 36.8716 | AF87: 27.0517 | AG87: 2.852 | AH87: 2.767 | AI87: 2.582 | AJ87: 2.4695 | AK87: 2.4545 | AL87: 2.5785 | AM87: 2.392 | AN87: 2.462 | AO87: 2.4008 | AP87: 2.337 | AQ87: 1.9795 | AR87: 2.7178 | AS87: 2.5368 | AT87: 2.7678 | AU87: 2.5546 | AV87: 2.5394 | AW87: 2.5191 | AX87: 2.5367 | AY87: 2.4795 | AZ87: 2.4158 | BA87: 2.2182 | BB87: 3.1195 | BJ87: 2.462589873 | BK87: 2.397982278 | BL87: 2.556278217 | BM87: 2.489213046 | BN87: 2.476515854 | BP87: 2.523196798 | BQ87: 2.462589873 | BR87: 2.464461252 | BS87: 2.508661837 | BT87: 2.472870806 | BU87: 2.465813076 | BV87: 2.541062983 | BX87: =[2]!mGetRate(BX$1,$B87,EOMONTH($B87,0)+1,"FLAT",E87,F87) -> 31.83741935 | BY87: =[2]!mGetRate(BY$1,$B87,EOMONTH($B87,0)+1,"FLAT",G87,H87) -> 33.22634409 | BZ87: =[2]!mGetRate(BZ$1,$B87,EOMONTH($B87,0)+1,"FLAT",I87,J87) -> 28.58924731 | CA87: =IF(ValuationDate>$D87,"",[2]!mGetRate(CA$1,$B87,EOMONTH($B87,0)+1,"FLAT",M87,N87)) -> 34.55266129 | CB87: =[2]!mGetRate(CB$1,$B87,EOMONTH($B87,0)+1,"FLAT",Q87,R87) -> 36.37688172 | CC87: =IF(ValuationDate>$D87,"",[2]!mGetRate(CC$1,$B87,EOMONTH($B87,0)+1,"FLAT",K87,L87)) -> 36.67827957 | CD87: =[2]!mGetRate(CD$1,$B87,EOMONTH($B87,0)+1,"FLAT",AE87,AF87) -> 32.33121613 | CE87: =[2]!mGetRate(CE$1,$B87,EOMONTH($B87,0)+1,"FLAT",AA87,AB87) -> 37.34193548 | CF87: =[2]!mGetRate(CF$1,$B87,EOMONTH($B87,0)+1,"FLAT",O87,P87) -> 36.24247312 | CO87: 2022 | CP87: 2022-07-01 | CQ87: 2.905651919 | CR87: 2.472870806 | CS87: 2.504580048 | CT87: 2.462555764 | CU87: 2.504580048 | CV87: 2.500534007 | CW87: 2.826430359
B88: 2022-08-01 | C88: =EOMONTH(B88,0) -> 2022-08-31 | D88: 2022-08-01 | E88: 38.8 | F88: 32.95 | G88: 37.0375 | H88: 26.99 | I88: 35.75 | J88: 26.1 | K88: 41.7075 | L88: 34.3 | M88: 39.4275 | N88: 30.9175 | O88: 41.5375 | P88: 27.49 | Q88: 41.5375 | R88: 27.99 | S88: 35.0375 | T88: 24.99 | U88: 41.5375 | V88: 27.49 | W88: 35.75 | X88: 26.1 | Y88: 39.0375 | Z88: 28.49 | AA88: 40.7875 | AB88: 30.99 | AC88: 39.2875 | AD88: 26.99 | AE88: 38.1281 | AF88: 31.1608 | AG88: 2.88 | AH88: 2.785 | AI88: 2.645 | AJ88: 2.4975 | AK88: 2.4825 | AL88: 2.6069 | AM88: 2.42 | AN88: 2.5 | AO88: 2.4338 | AP88: 2.37 | AQ88: 2.0075 | AR88: 2.7466 | AS88: 2.5652 | AT88: 2.7966 | AU88: 2.5831 | AV88: 2.5677 | AW88: 2.5541 | AX88: 2.565 | AY88: 2.5075 | AZ88: 2.4487 | BA88: 2.2512 | BB88: 3.145 | BJ88: 2.496007595 | BK88: 2.4314 | BL88: 2.590967099 | BM88: 2.523901928 | BN88: 2.510569155 | BP88: 2.551759483 | BQ88: 2.496007595 | BR88: 2.502474357 | BS88: 2.537233265 | BT88: 2.501562271 | BU88: 2.493914753 | BV88: 2.569189553 | BX88: =[2]!mGetRate(BX$1,$B88,EOMONTH($B88,0)+1,"FLAT",E88,F88) -> 36.34677419 | BY88: =[2]!mGetRate(BY$1,$B88,EOMONTH($B88,0)+1,"FLAT",G88,H88) -> 32.82403226 | BZ88: =[2]!mGetRate(BZ$1,$B88,EOMONTH($B88,0)+1,"FLAT",I88,J88) -> 31.70322581 | CA88: =IF(ValuationDate>$D88,"",[2]!mGetRate(CA$1,$B88,EOMONTH($B88,0)+1,"FLAT",M88,N88)) -> 35.85879032 | CB88: =[2]!mGetRate(CB$1,$B88,EOMONTH($B88,0)+1,"FLAT",Q88,R88) -> 35.85629032 | CC88: =IF(ValuationDate>$D88,"",[2]!mGetRate(CC$1,$B88,EOMONTH($B88,0)+1,"FLAT",K88,L88)) -> 38.60112903 | CD88: =[2]!mGetRate(CD$1,$B88,EOMONTH($B88,0)+1,"FLAT",AE88,AF88) -> 35.20632903 | CE88: =[2]!mGetRate(CE$1,$B88,EOMONTH($B88,0)+1,"FLAT",AA88,AB88) -> 36.67887097 | CF88: =[2]!mGetRate(CF$1,$B88,EOMONTH($B88,0)+1,"FLAT",O88,P88) -> 35.6466129 | CO88: 2022 | CP88: =+B88 -> 2022-08-01 | CQ88: 2.970473403 | CR88: 2.501562271 | CS88: 2.533142733 | CT88: 2.490657492 | CU88: 2.533142733 | CV88: 2.529269639 | CW88: 2.854690351
B89: 2022-09-01 | C89: 2022-09-30 | D89: =B89 -> 2022-09-01 | E89: 37.2375 | F89: 33.165 | G89: 34.675 | H89: 23.935 | I89: 32.45 | J89: 28.1 | K89: 39.5925 | L89: 32.34 | M89: 36.6875 | N89: 30.1 | O89: 38.175 | P89: 21.935 | Q89: 37.675 | R89: 22.435 | S89: 31.675 | T89: 22.935 | U89: 38.175 | V89: 21.935 | W89: 32.45 | X89: 28.1 | Y89: 36.175 | Z89: 24.935 | AA89: 37.675 | AB89: 27.435 | AC89: 35.675 | AD89: 21.435 | AE89: 36.0453 | AF89: 30.88 | AG89: 2.885 | AH89: 2.6075 | AI89: 2.625 | AJ89: 2.5075 | AK89: 2.4925 | AL89: 2.6171 | AM89: 2.4275 | AN89: 2.525 | AO89: 2.455 | AP89: 2.3875 | AQ89: 2.025 | AR89: 2.7569 | AS89: 2.5753 | AT89: 2.8069 | AU89: 2.5933 | AV89: 2.5778 | AW89: 2.5727 | AX89: 2.5751 | AY89: 2.5175 | AZ89: 2.47 | BA89: 2.2725 | BB89: 3.145 | BJ89: 2.517475949 | BK89: 2.449121519 | BL89: 2.613252077 | BM89: 2.542297547 | BN89: 2.530536773 | BP89: 2.561960442 | BQ89: 2.517475949 | BR89: 2.527482979 | BS89: 2.547437347 | BT89: 2.509247484 | BU89: 2.503951067 | BV89: 2.579234756 | BX89: =[2]!mGetRate(BX$1,$B89,EOMONTH($B89,0)+1,"FLAT",E89,F89) -> 35.4275 | BY89: =[2]!mGetRate(BY$1,$B89,EOMONTH($B89,0)+1,"FLAT",G89,H89) -> 29.90166667 | BZ89: =[2]!mGetRate(BZ$1,$B89,EOMONTH($B89,0)+1,"FLAT",I89,J89) -> 30.51666667 | CA89: =IF(ValuationDate>$D89,"",[2]!mGetRate(CA$1,$B89,EOMONTH($B89,0)+1,"FLAT",M89,N89)) -> 33.75972222 | CB89: =[2]!mGetRate(CB$1,$B89,EOMONTH($B89,0)+1,"FLAT",Q89,R89) -> 30.90166667 | CC89: =IF(ValuationDate>$D89,"",[2]!mGetRate(CC$1,$B89,EOMONTH($B89,0)+1,"FLAT",K89,L89)) -> 36.36916667 | CD89: =[2]!mGetRate(CD$1,$B89,EOMONTH($B89,0)+1,"FLAT",AE89,AF89) -> 33.74961111 | CE89: =[2]!mGetRate(CE$1,$B89,EOMONTH($B89,0)+1,"FLAT",AA89,AB89) -> 33.12388889 | CF89: =[2]!mGetRate(CF$1,$B89,EOMONTH($B89,0)+1,"FLAT",O89,P89) -> 30.95722222 | CO89: 2022 | CP89: 2022-09-01 | CQ89: 2.949895154 | CR89: 2.509247484 | CS89: 2.543343692 | CT89: 2.500693824 | CU89: 2.543343692 | CV89: 2.536966683 | CW89: 2.864783205
B90: =C89+1 -> 2022-10-01 | C90: 2022-10-31 | D90: 2022-10-01 | E90: 34.8975 | F90: 32.23 | G90: 30.735 | H90: 28.78 | I90: 29.98 | J90: 26.25 | K90: 39.8 | L90: 33.3 | M90: 35.025 | N90: 31.7125 | O90: 30.735 | P90: 26.78 | Q90: 30.235 | R90: 28.28 | S90: 27.735 | T90: 26.28 | U90: 30.735 | V90: 26.78 | W90: 29.98 | X90: 26.25 | Y90: 31.735 | Z90: 29.53 | AA90: 33.035 | AB90: 31.03 | AC90: 30.735 | AD90: 27.28 | AE90: 34.0856 | AF90: 31.1784 | AG90: 2.913 | AH90: 2.533 | AI90: 2.633 | AJ90: 2.5305 | AK90: 2.5155 | AL90: 2.6404 | AM90: 2.453 | AN90: 2.5305 | AO90: 2.4805 | AP90: 2.623 | AQ90: 2.0705 | AR90: 2.7806 | AS90: 2.5986 | AT90: 2.8306 | AU90: 2.6168 | AV90: 2.601 | AW90: 2.823 | AX90: 2.5984 | AY90: 2.5405 | AZ90: 2.4955 | BA90: 2.298 | BB90: 3.1305 | BJ90: 2.543298734 | BK90: 2.687602532 | BL90: 2.640057122 | BM90: 2.78985002 | BN90: 2.665202102 | BP90: 2.585422647 | BQ90: 2.543298734 | BR90: 2.532984876 | BS90: 2.570906735 | BT90: 2.535377211 | BU90: 2.527034587 | BV90: 2.602338724 | BX90: =[2]!mGetRate(BX$1,$B90,EOMONTH($B90,0)+1,"FLAT",E90,F90) -> 33.72150538 | BY90: =[2]!mGetRate(BY$1,$B90,EOMONTH($B90,0)+1,"FLAT",G90,H90) -> 29.87311828 | BZ90: =[2]!mGetRate(BZ$1,$B90,EOMONTH($B90,0)+1,"FLAT",I90,J90) -> 28.3355914 | CA90: =IF(ValuationDate>$D90,"",[2]!mGetRate(CA$1,$B90,EOMONTH($B90,0)+1,"FLAT",M90,N90)) -> 33.56465054 | CB90: =[2]!mGetRate(CB$1,$B90,EOMONTH($B90,0)+1,"FLAT",Q90,R90) -> 29.37311828 | CC90: =IF(ValuationDate>$D90,"",[2]!mGetRate(CC$1,$B90,EOMONTH($B90,0)+1,"FLAT",K90,L90)) -> 36.9344086 | CD90: =[2]!mGetRate(CD$1,$B90,EOMONTH($B90,0)+1,"FLAT",AE90,AF90) -> 32.80393118 | CE90: =[2]!mGetRate(CE$1,$B90,EOMONTH($B90,0)+1,"FLAT",AA90,AB90) -> 32.15107527 | CF90: =[2]!mGetRate(CF$1,$B90,EOMONTH($B90,0)+1,"FLAT",O90,P90) -> 28.99139785 | CO90: 2022 | CP90: 2022-10-01 | CQ90: 2.958126453 | CR90: 2.535377211 | CS90: 2.566805897 | CT90: 2.523777386 | CU90: 2.566805897 | CV90: 2.563136634 | CW90: 2.88799677
B91: 2022-11-01 | C91: 2022-11-30 | D91: 2022-11-01 | E91: 36.7425 | F91: 32.74 | G91: 30.4775 | H91: 28.075 | I91: 31.54 | J91: 29.33 | K91: 39.8 | L91: 34.2 | M91: 36.65 | N91: 32.2875 | O91: 28.9775 | P91: 26.575 | Q91: 29.9775 | R91: 27.575 | S91: 27.2275 | T91: 26.075 | U91: 28.9775 | V91: 26.575 | W91: 31.54 | X91: 29.33 | Y91: 31.4775 | Z91: 28.575 | AA91: 32.7775 | AB91: 30.325 | AC91: 28.9775 | AD91: 27.075 | AE91: 35.78 | AF91: 31.7066 | AG91: 2.983 | AH91: 2.888 | AI91: 2.733 | AJ91: 2.7955 | AK91: 2.7805 | AL91: 2.9091 | AM91: 2.7005 | AN91: 2.7805 | AO91: 2.6493 | AP91: 3.0455 | AQ91: 2.158 | AR91: 3.0534 | AS91: 2.8671 | AT91: 3.1034 | AU91: 2.887 | AV91: 2.8684 | AW91: 3.2719 | AX91: 2.8668 | AY91: 2.8055 | AZ91: 2.6642 | BA91: 2.4668 | BB91: 3.2705 | BJ91: 2.714235443 | BK91: 3.115450633 | BL91: 2.817496007 | BM91: 3.233972821 | BN91: 2.970288726 | BP91: 2.855748058 | BQ91: 2.714235443 | BR91: 2.783071096 | BS91: 2.841314898 | BT91: 2.788989261 | BU91: 2.792996887 | BV91: 2.868536615 | BX91: =[2]!mGetRate(BX$1,$B91,EOMONTH($B91,0)+1,"FLAT",E91,F91) -> 34.96052705 | BY91: =[2]!mGetRate(BY$1,$B91,EOMONTH($B91,0)+1,"FLAT",G91,H91) -> 29.40787101 | BZ91: =[2]!mGetRate(BZ$1,$B91,EOMONTH($B91,0)+1,"FLAT",I91,J91) -> 30.5560749 | CA91: =IF(ValuationDate>$D91,"",[2]!mGetRate(CA$1,$B91,EOMONTH($B91,0)+1,"FLAT",M91,N91)) -> 34.70774965 | CB91: =[2]!mGetRate(CB$1,$B91,EOMONTH($B91,0)+1,"FLAT",Q91,R91) -> 28.90787101 | CC91: =IF(ValuationDate>$D91,"",[2]!mGetRate(CC$1,$B91,EOMONTH($B91,0)+1,"FLAT",K91,L91)) -> 37.30679612 | CD91: =[2]!mGetRate(CD$1,$B91,EOMONTH($B91,0)+1,"FLAT",AE91,AF91) -> 33.9664613 | CE91: =[2]!mGetRate(CE$1,$B91,EOMONTH($B91,0)+1,"FLAT",AA91,AB91) -> 31.68561026 | CF91: =[2]!mGetRate(CF$1,$B91,EOMONTH($B91,0)+1,"FLAT",O91,P91) -> 27.90787101 | CO91: 2022 | CP91: 2022-11-01 | CQ91: 3.061017697 | CR91: 2.788989261 | CS91: 2.837131308 | CT91: 2.789740171 | CU91: 2.837131308 | CV91: 2.817139097 | CW91: 3.155457408
B92: 2022-12-01 | C92: 2022-12-31 | D92: 2022-12-01 | E92: 39.51 | F92: 34.78 | G92: 32.5375 | H92: 30.895 | I92: 33.88 | J92: 29.77 | K92: 40.85 | L92: 36.9 | M92: 38.275 | N92: 35.45 | O92: 30.5375 | P92: 28.895 | Q92: 32.0375 | R92: 30.395 | S92: 29.5375 | T92: 28.895 | U92: 30.5375 | V92: 28.895 | W92: 33.88 | X92: 29.77 | Y92: 33.5375 | Z92: 31.645 | AA92: 34.8375 | AB92: 32.645 | AC92: 33.0375 | AD92: 30.895 | AE92: 37.9356 | AF92: 34.2287 | AG92: 3.128 | AH92: 3.063 | AI92: 3.1105 | AJ92: 2.9805 | AK92: 2.9655 | AL92: 3.0966 | AM92: 2.888 | AN92: 2.9305 | AO92: 2.788 | AP92: 3.398 | AQ92: 2.2855 | AR92: 3.2438 | AS92: 3.0544 | AT92: 3.2938 | AU92: 3.0757 | AV92: 3.055 | AW92: 3.6465 | AX92: 3.0542 | AY92: 2.9905 | AZ92: 2.803 | BA92: 2.6055 | BB92: 3.383 | BJ92: 2.854691139 | BK92: 3.472412658 | BL92: 2.963294427 | BM92: 3.604513146 | BN92: 3.223727843 | BP92: 3.044465797 | BQ92: 2.854691139 | BR92: 2.933122828 | BS92: 3.030090408 | BT92: 2.981119602 | BU92: 2.978668681 | BV92: 3.054372878 | BX92: =[2]!mGetRate(BX$1,$B92,EOMONTH($B92,0)+1,"FLAT",E92,F92) -> 37.42473118 | BY92: =[2]!mGetRate(BY$1,$B92,EOMONTH($B92,0)+1,"FLAT",G92,H92) -> 31.8133871 | BZ92: =[2]!mGetRate(BZ$1,$B92,EOMONTH($B92,0)+1,"FLAT",I92,J92) -> 32.06806452 | CA92: =IF(ValuationDate>$D92,"",[2]!mGetRate(CA$1,$B92,EOMONTH($B92,0)+1,"FLAT",M92,N92)) -> 37.02956989 | CB92: =[2]!mGetRate(CB$1,$B92,EOMONTH($B92,0)+1,"FLAT",Q92,R92) -> 31.3133871 | CC92: =IF(ValuationDate>$D92,"",[2]!mGetRate(CC$1,$B92,EOMONTH($B92,0)+1,"FLAT",K92,L92)) -> 39.10860215 | CD92: =[2]!mGetRate(CD$1,$B92,EOMONTH($B92,0)+1,"FLAT",AE92,AF92) -> 36.30137527 | CE92: =[2]!mGetRate(CE$1,$B92,EOMONTH($B92,0)+1,"FLAT",AA92,AB92) -> 33.87091398 | CF92: =[2]!mGetRate(CF$1,$B92,EOMONTH($B92,0)+1,"FLAT",O92,P92) -> 29.8133871 | CO92: 2022 | CP92: 2022-12-01 | CQ92: 3.449432143 | CR92: 2.981119602 | CS92: 3.025849047 | CT92: 2.975412305 | CU92: 3.025849047 | CV92: 3.009565205 | CW92: 3.342175212
B93: 2023-01-01 | C93: 2023-01-31 | D93: 2023-01-01 | E93: 36.12 | F93: 32.325 | G93: 33.8 | H93: 32.3 | I93: 33.875 | J93: 29.36 | K93: 42.375 | L93: 35.5 | M93: 39.2 | N93: 36.165 | O93: 31.8 | P93: 30.3 | Q93: 33.3 | R93: 31.8 | S93: 30.3 | T93: 29.8 | U93: 31.8 | V93: 30.3 | W93: 33.875 | X93: 29.36 | Y93: 34.8 | Z93: 33.05 | AA93: 35.8 | AB93: 34.3 | AC93: 34.8 | AD93: 32.3 | AE93: 36.68 | AF93: 33.3409 | AG93: 3.268 | AH93: 3.2905 | AI93: 2.958 | AJ93: 3.1105 | AK93: 3.0955 | AL93: 3.2284 | AM93: 3.0155 | AN93: 3.0455 | AO93: 2.8905 | AP93: 3.2305 | AQ93: 2.3755 | AR93: 3.3776 | AS93: 3.1861 | AT93: 3.4276 | AU93: 3.2083 | AV93: 3.1862 | AW93: 3.4685 | AX93: 3.1859 | AY93: 3.1205 | AZ93: 2.9055 | BA93: 2.708 | BB93: 3.493 | BJ93: 2.958488608 | BK93: 3.302792405 | BL93: 3.071040196 | BM93: 3.428440793 | BN93: 3.1901905 | BP93: 3.177078263 | BQ93: 2.958488608 | BR93: 3.048162489 | BS93: 3.162743469 | BT93: 3.111768234 | BU93: 3.109140753 | BV93: 3.184960522 | BX93: =[2]!mGetRate(BX$1,$B93,EOMONTH($B93,0)+1,"FLAT",E93,F93) -> 34.36532258 | BY93: =[2]!mGetRate(BY$1,$B93,EOMONTH($B93,0)+1,"FLAT",G93,H93) -> 33.10645161 | BZ93: =[2]!mGetRate(BZ$1,$B93,EOMONTH($B93,0)+1,"FLAT",I93,J93) -> 31.78741935 | CA93: =IF(ValuationDate>$D93,"",[2]!mGetRate(CA$1,$B93,EOMONTH($B93,0)+1,"FLAT",M93,N93)) -> 37.79672043 | CB93: =[2]!mGetRate(CB$1,$B93,EOMONTH($B93,0)+1,"FLAT",Q93,R93) -> 32.60645161 | CC93: =IF(ValuationDate>$D93,"",[2]!mGetRate(CC$1,$B93,EOMONTH($B93,0)+1,"FLAT",K93,L93)) -> 39.19623656 | CD93: =[2]!mGetRate(CD$1,$B93,EOMONTH($B93,0)+1,"FLAT",AE93,AF93) -> 35.13611505 | CE93: =[2]!mGetRate(CE$1,$B93,EOMONTH($B93,0)+1,"FLAT",AA93,AB93) -> 35.10645161 | CF93: =[2]!mGetRate(CF$1,$B93,EOMONTH($B93,0)+1,"FLAT",O93,P93) -> 31.10645161 | CO93: 2023 | CP93: 2023-01-01 | CQ93: 3.292522996 | CR93: 3.111768234 | CS93: 3.158461513 | CT93: 3.105884614 | CU93: 3.158461513 | CV93: 3.140414959 | CW93: 3.473382317
B94: 2023-02-01 | C94: 2023-02-28 | D94: 2023-02-01 | E94: 35.61 | F94: 31.25 | G94: 33.275 | H94: 31.5125 | I94: 33.11 | J94: 28.715 | K94: 41.34 | L94: 34.5625 | M94: 38.55 | N94: 35.25 | O94: 31.275 | P94: 29.5125 | Q94: 33.275 | R94: 31.0125 | S94: 29.775 | T94: 29.0125 | U94: 31.275 | V94: 29.5125 | W94: 33.11 | X94: 28.715 | Y94: 34.275 | Z94: 32.2625 | AA94: 35.275 | AB94: 33.2625 | AC94: 32.275 | AD94: 31.5125 | AE94: 36.1163 | AF94: 32.3687 | AG94: 3.228 | AH94: 3.1805 | AI94: 2.913 | AJ94: 3.093 | AK94: 3.078 | AL94: 3.2107 | AM94: 3.018 | AN94: 3.038 | AO94: 2.873 | AP94: 3.053 | AQ94: 2.348 | AR94: 3.3596 | AS94: 3.1684 | AT94: 3.4096 | AU94: 3.1905 | AV94: 3.1685 | AW94: 3.2799 | AX94: 3.1682 | AY94: 3.103 | AZ94: 2.888 | BA94: 2.6905 | BB94: 3.438 | BJ94: 2.940767089 | BK94: 3.12304557 | BL94: 3.052644577 | BM94: 3.241856658 | BN94: 3.089578473 | BP94: 3.159226585 | BQ94: 2.940767089 | BR94: 3.040659902 | BS94: 3.144886327 | BT94: 3.114329972 | BU94: 3.091577205 | BV94: 3.167381416 | BX94: =[2]!mGetRate(BX$1,$B94,EOMONTH($B94,0)+1,"FLAT",E94,F94) -> 33.74142857 | BY94: =[2]!mGetRate(BY$1,$B94,EOMONTH($B94,0)+1,"FLAT",G94,H94) -> 32.51964286 | BZ94: =[2]!mGetRate(BZ$1,$B94,EOMONTH($B94,0)+1,"FLAT",I94,J94) -> 31.22642857 | CA94: =IF(ValuationDate>$D94,"",[2]!mGetRate(CA$1,$B94,EOMONTH($B94,0)+1,"FLAT",M94,N94)) -> 37.13571429 | CB94: =[2]!mGetRate(CB$1,$B94,EOMONTH($B94,0)+1,"FLAT",Q94,R94) -> 32.30535714 | CC94: =IF(ValuationDate>$D94,"",[2]!mGetRate(CC$1,$B94,EOMONTH($B94,0)+1,"FLAT",K94,L94)) -> 38.43535714 | CD94: =[2]!mGetRate(CD$1,$B94,EOMONTH($B94,0)+1,"FLAT",AE94,AF94) -> 34.51018571 | CE94: =[2]!mGetRate(CE$1,$B94,EOMONTH($B94,0)+1,"FLAT",AA94,AB94) -> 34.4125 | CF94: =[2]!mGetRate(CF$1,$B94,EOMONTH($B94,0)+1,"FLAT",O94,P94) -> 30.51964286 | CO94: 2023 | CP94: 2023-02-01 | CQ94: 3.246221936 | CR94: 3.114329972 | CS94: 3.140609835 | CT94: 3.088321034 | CU94: 3.140609835 | CV94: 3.14298064 | CW94: 3.455719822
B95: 2023-03-01 | C95: 2023-03-31 | D95: 2023-03-01 | E95: 33.57 | F95: 30.175 | G95: 31.175 | H95: 29.9375 | I95: 30.815 | J95: 27.425 | K95: 38.235 | L95: 32.6875 | M95: 35.95 | N95: 34.335 | O95: 29.175 | P95: 27.9375 | Q95: 31.175 | R95: 29.4375 | S95: 29.425 | T95: 26.4375 | U95: 29.175 | V95: 27.9375 | W95: 30.815 | X95: 27.425 | Y95: 32.175 | Z95: 30.6875 | AA95: 33.175 | AB95: 31.9375 | AC95: 29.925 | AD95: 29.9375 | AE95: 33.8612 | AF95: 31.3966 | AG95: 3.158 | AH95: 2.958 | AI95: 2.848 | AJ95: 3.0005 | AK95: 2.9855 | AL95: 3.1169 | AM95: 2.918 | AN95: 2.938 | AO95: 2.803 | AP95: 2.9755 | AQ95: 2.308 | AR95: 3.2644 | AS95: 3.0747 | AT95: 3.3144 | AU95: 3.0961 | AV95: 3.0752 | AW95: 3.1975 | AX95: 3.0745 | AY95: 3.0105 | AZ95: 2.818 | BA95: 2.6205 | BB95: 3.413 | BJ95: 2.869881013 | BK95: 3.044564557 | BL95: 2.979062101 | BM95: 3.160390345 | BN95: 3.013474504 | BP95: 3.064867715 | BQ95: 2.869881013 | BR95: 2.940625414 | BS95: 3.050498571 | BT95: 3.011860457 | BU95: 2.998741308 | BV95: 3.074463285 | BX95: =[2]!mGetRate(BX$1,$B95,EOMONTH($B95,0)+1,"FLAT",E95,F95) -> 32.14894347 | BY95: =[2]!mGetRate(BY$1,$B95,EOMONTH($B95,0)+1,"FLAT",G95,H95) -> 30.65701548 | BZ95: =[2]!mGetRate(BZ$1,$B95,EOMONTH($B95,0)+1,"FLAT",I95,J95) -> 29.39603634 | CA95: =IF(ValuationDate>$D95,"",[2]!mGetRate(CA$1,$B95,EOMONTH($B95,0)+1,"FLAT",M95,N95)) -> 35.27400404 | CB95: =[2]!mGetRate(CB$1,$B95,EOMONTH($B95,0)+1,"FLAT",Q95,R95) -> 30.4477288 | CC95: =IF(ValuationDate>$D95,"",[2]!mGetRate(CC$1,$B95,EOMONTH($B95,0)+1,"FLAT",K95,L95)) -> 35.91296433 | CD95: =[2]!mGetRate(CD$1,$B95,EOMONTH($B95,0)+1,"FLAT",AE95,AF95) -> 32.82958412 | CE95: =[2]!mGetRate(CE$1,$B95,EOMONTH($B95,0)+1,"FLAT",AA95,AB95) -> 32.65701548 | CF95: =[2]!mGetRate(CF$1,$B95,EOMONTH($B95,0)+1,"FLAT",O95,P95) -> 28.65701548 | CO95: 2023 | CP95: 2023-03-01 | CQ95: 3.179342628 | CR95: 3.011860457 | CS95: 3.046250965 | CT95: 2.995484968 | CU95: 3.046250965 | CV95: 3.040353383 | CW95: 3.36236092
B96: 2023-04-01 | C96: 2023-04-30 | D96: 2023-04-01 | E96: 25.63 | F96: 18.875 | G96: 29.3 | H96: 27.005 | I96: 27.5 | J96: 20.015 | K96: 31.35 | L96: 28.8325 | M96: 28.195 | N96: 28.45 | O96: 27.3 | P96: 25.005 | Q96: 27.8 | R96: 26.255 | S96: 24.3 | T96: 23.005 | U96: 27.3 | V96: 25.005 | W96: 27.5 | X96: 20.015 | Y96: 27.8 | Z96: 25.005 | AA96: 31.3 | AB96: 29.005 | AC96: 27.8 | AD96: 25.505 | AE96: 26.2076 | AF96: 22.9513 | AG96: 2.848 | AH96: 2.5155 | AI96: 2.583 | AJ96: 2.5205 | AK96: 2.5055 | AL96: 2.6302 | AM96: 2.443 | AN96: 2.4255 | AO96: 2.3955 | AP96: 2.2005 | AQ96: 2.0055 | AR96: 2.7703 | AS96: 2.5885 | AT96: 2.8203 | AU96: 2.6066 | AV96: 2.5909 | AW96: 2.374 | AX96: 2.5883 | AY96: 2.5305 | AZ96: 2.4105 | BA96: 2.213 | BB96: 3.098 | BJ96: 2.457222785 | BK96: 2.25975443 | BL96: 2.550706973 | BM96: 2.345727218 | BN96: 2.403352852 | BP96: 2.575221688 | BQ96: 2.457222785 | BR96: 2.427948664 | BS96: 2.560702653 | BT96: 2.525130259 | BU96: 2.516998274 | BV96: 2.592293521 | BX96: =[2]!mGetRate(BX$1,$B96,EOMONTH($B96,0)+1,"FLAT",E96,F96) -> 22.62777778 | BY96: =[2]!mGetRate(BY$1,$B96,EOMONTH($B96,0)+1,"FLAT",G96,H96) -> 28.28 | BZ96: =[2]!mGetRate(BZ$1,$B96,EOMONTH($B96,0)+1,"FLAT",I96,J96) -> 24.17333333 | CA96: =IF(ValuationDate>$D96,"",[2]!mGetRate(CA$1,$B96,EOMONTH($B96,0)+1,"FLAT",M96,N96)) -> 28.30833333 | CB96: =[2]!mGetRate(CB$1,$B96,EOMONTH($B96,0)+1,"FLAT",Q96,R96) -> 27.11333333 | CC96: =IF(ValuationDate>$D96,"",[2]!mGetRate(CC$1,$B96,EOMONTH($B96,0)+1,"FLAT",K96,L96)) -> 30.23111111 | CD96: =[2]!mGetRate(CD$1,$B96,EOMONTH($B96,0)+1,"FLAT",AE96,AF96) -> 24.76035556 | CE96: =[2]!mGetRate(CE$1,$B96,EOMONTH($B96,0)+1,"FLAT",AA96,AB96) -> 30.28 | CF96: =[2]!mGetRate(CF$1,$B96,EOMONTH($B96,0)+1,"FLAT",O96,P96) -> 26.28 | CO96: 2023 | CP96: 2023-04-01 | CQ96: 2.906680831 | CR96: 2.525130259 | CS96: 2.556604938 | CT96: 2.513741055 | CU96: 2.556604938 | CV96: 2.552873908 | CW96: 2.877903916
B97: 2023-05-01 | C97: 2023-05-31 | D97: 2023-05-01 | E97: 27.49611 | F97: 18.70901 | G97: 27.84431 | H97: 21.65359 | I97: 23.70363 | J97: 16.16652 | K97: 30.40282 | L97: 25.27316 | M97: 27.15918 | N97: 20.87647 | O97: 26.34431 | P97: 19.65359 | Q97: 27.84431 | R97: 21.65359 | S97: 23.84431 | T97: 16.65359 | U97: 26.34431 | V97: 19.65359 | W97: 23.70363 | X97: 16.16652 | Y97: 26.34431 | Z97: 19.65359 | AA97: 29.34431 | AB97: 23.15359 | AC97: 26.34431 | AD97: 19.65359 | AE97: 26.20453 | AF97: 20.14782 | AG97: 3.3379 | AH97: 3.0192 | AI97: 2.9377 | AJ97: 2.9577 | AK97: 2.9427 | AL97: 3.0664 | AM97: 2.8802 | AN97: 2.8616 | AO97: 2.8231 | AP97: 2.645 | AQ97: 2.4269 | AR97: 3.2053 | AS97: 3.0248 | AT97: 3.2553 | AU97: 3.0423 | AV97: 3.0275 | AW97: 2.8184 | AX97: 3.0246 | AY97: 2.9677 | AZ97: 2.8381 | BA97: 2.6206 | BB97: 3.5829 | BJ97: 2.890235443 | BK97: 2.709881013 | BL97: 3.000190783 | BM97: 2.812975941 | BN97: 2.853320795 | BP97: 3.021207611 | BQ97: 2.890235443 | BR97: 2.864199065 | BS97: 3.006825102 | BT97: 2.97312698 | BU97: 2.955785887 | BV97: 3.031469814 | BX97: =[2]!mGetRate(BX$1,$B97,EOMONTH($B97,0)+1,"FLAT",E97,F97) -> 23.6222272 | BY97: =[2]!mGetRate(BY$1,$B97,EOMONTH($B97,0)+1,"FLAT",G97,H97) -> 25.11506785 | BZ97: =[2]!mGetRate(BZ$1,$B97,EOMONTH($B97,0)+1,"FLAT",I97,J97) -> 20.38081806 | CA97: =IF(ValuationDate>$D97,"",[2]!mGetRate(CA$1,$B97,EOMONTH($B97,0)+1,"FLAT",M97,N97)) -> 24.38938312 | CB97: =[2]!mGetRate(CB$1,$B97,EOMONTH($B97,0)+1,"FLAT",Q97,R97) -> 25.11506785 | CC97: =IF(ValuationDate>$D97,"",[2]!mGetRate(CC$1,$B97,EOMONTH($B97,0)+1,"FLAT",K97,L97)) -> 28.14135699 | CD97: =[2]!mGetRate(CD$1,$B97,EOMONTH($B97,0)+1,"FLAT",AE97,AF97) -> 23.53436753 | CE97: =[2]!mGetRate(CE$1,$B97,EOMONTH($B97,0)+1,"FLAT",AA97,AB97) -> 26.61506785 | CF97: =[2]!mGetRate(CF$1,$B97,EOMONTH($B97,0)+1,"FLAT",O97,P97) -> 23.39463774 | CO97: 2023 | CP97: 2023-05-01 | CQ97: 3.271636074 | CR97: 2.97312698 | CS97: 3.002590861 | CT97: 2.952529469 | CU97: 3.002590861 | CV97: 3.001560279 | CW97: 3.319163504
B98: 2023-06-01 | C98: 2023-06-30 | D98: 2023-06-01 | E98: 28.89705 | F98: 20.08852 | G98: 29.76917 | H98: 22.56447 | I98: 24.5842 | J98: 16.98746 | K98: 32.6079 | L98: 26.74809 | M98: 29.12268 | N98: 22.11395 | O98: 28.01917 | P98: 21.06447 | Q98: 29.01917 | R98: 22.06447 | S98: 26.26917 | T98: 18.56447 | U98: 28.01917 | V98: 21.06447 | W98: 24.5842 | X98: 16.98746 | Y98: 30.76917 | Z98: 23.06447 | AA98: 32.26917 | AB98: 24.56447 | AC98: 28.76917 | AD98: 21.31447 | AE98: 28.4082 | AF98: 21.87126 | AG98: 3.3646 | AH98: 3.042 | AI98: 2.9657 | AJ98: 2.9869 | AK98: 2.9719 | AL98: 3.0961 | AM98: 2.9069 | AN98: 2.8297 | AO98: 2.7685 | AP98: 2.6413 | AQ98: 2.4258 | AR98: 3.2355 | AS98: 3.0544 | AT98: 3.2855 | AU98: 3.0722 | AV98: 3.057 | AW98: 2.8154 | AX98: 3.0542 | AY98: 2.9969 | AZ98: 2.7835 | BA98: 2.6395 | BB98: 3.6121 | BJ98: 2.834944304 | BK98: 2.706134177 | BL98: 2.942796452 | BM98: 2.809086581 | BN98: 2.823240379 | BP98: 3.050994411 | BQ98: 2.834944304 | BR98: 2.832288064 | BS98: 3.03662102 | BT98: 3.000486341 | BU98: 2.985091922 | BV98: 3.060801808 | BX98: =[2]!mGetRate(BX$1,$B98,EOMONTH($B98,0)+1,"FLAT",E98,F98) -> 25.17789289 | BY98: =[2]!mGetRate(BY$1,$B98,EOMONTH($B98,0)+1,"FLAT",G98,H98) -> 26.72718556 | BZ98: =[2]!mGetRate(BZ$1,$B98,EOMONTH($B98,0)+1,"FLAT",I98,J98) -> 21.37668756 | CA98: =IF(ValuationDate>$D98,"",[2]!mGetRate(CA$1,$B98,EOMONTH($B98,0)+1,"FLAT",M98,N98)) -> 26.16343844 | CB98: =[2]!mGetRate(CB$1,$B98,EOMONTH($B98,0)+1,"FLAT",Q98,R98) -> 26.08274111 | CC98: =IF(ValuationDate>$D98,"",[2]!mGetRate(CC$1,$B98,EOMONTH($B98,0)+1,"FLAT",K98,L98)) -> 30.133758 | CD98: =[2]!mGetRate(CD$1,$B98,EOMONTH($B98,0)+1,"FLAT",AE98,AF98) -> 25.64815867 | CE98: =[2]!mGetRate(CE$1,$B98,EOMONTH($B98,0)+1,"FLAT",AA98,AB98) -> 29.01607444 | CF98: =[2]!mGetRate(CF$1,$B98,EOMONTH($B98,0)+1,"FLAT",O98,P98) -> 25.08274111 | CO98: 2023 | CP98: 2023-06-01 | CQ98: 3.300445622 | CR98: 3.000486341 | CS98: 3.032377661 | CT98: 2.981835557 | CU98: 3.032377661 | CV98: 3.028961757 | CW98: 3.348634639
B99: 2023-07-01 | C99: 2023-07-31 | D99: 2023-07-01 | E99: 40.17984 | F99: 30.47301 | G99: 40.80908 | H99: 30.46187 | I99: 37.41477 | J99: 28.24406 | K99: 44.00956 | L99: 34.97614 | M99: 41.15607 | N99: 31.54043 | O99: 45.55908 | P99: 31.46187 | Q99: 45.80908 | R99: 31.46187 | S99: 38.80908 | T99: 27.96187 | U99: 45.55908 | V99: 31.46187 | W99: 37.41477 | X99: 28.24406 | Y99: 43.30908 | Z99: 31.96187 | AA99: 44.80908 | AB99: 32.96187 | AC99: 42.30908 | AD99: 29.96187 | AE99: 41.53017 | AF99: 30.67576 | AG99: 3.3997 | AH99: 3.2493 | AI99: 3.0679 | AJ99: 3.018 | AK99: 3.003 | AL99: 3.1278 | AM99: 2.9405 | AN99: 2.9762 | AO99: 2.8631 | AP99: 2.8439 | AQ99: 2.5065 | AR99: 3.2679 | AS99: 3.086 | AT99: 3.3179 | AU99: 3.1041 | AV99: 3.0885 | AW99: 3.0313 | AX99: 3.0859 | AY99: 3.028 | AZ99: 2.8781 | BA99: 2.7352 | BB99: 3.6972 | BJ99: 2.930741772 | BK99: 2.911298734 | BL99: 3.042237912 | BM99: 3.02205529 | BN99: 2.976583427 | BP99: 3.082719393 | BQ99: 2.930741772 | BR99: 2.978838589 | BS99: 3.068355714 | BT99: 3.034916098 | BU99: 3.016304856 | BV99: 3.092042391 | BX99: =[2]!mGetRate(BX$1,$B99,EOMONTH($B99,0)+1,"FLAT",E99,F99) -> 35.69173581 | BY99: =[2]!mGetRate(BY$1,$B99,EOMONTH($B99,0)+1,"FLAT",G99,H99) -> 36.02488613 | BZ99: =[2]!mGetRate(BZ$1,$B99,EOMONTH($B99,0)+1,"FLAT",I99,J99) -> 33.17454925 | CA99: =IF(ValuationDate>$D99,"",[2]!mGetRate(CA$1,$B99,EOMONTH($B99,0)+1,"FLAT",M99,N99)) -> 36.71012892 | CB99: =[2]!mGetRate(CB$1,$B99,EOMONTH($B99,0)+1,"FLAT",Q99,R99) -> 39.17542376 | CC99: =IF(ValuationDate>$D99,"",[2]!mGetRate(CC$1,$B99,EOMONTH($B99,0)+1,"FLAT",K99,L99)) -> 39.83281742 | CD99: =[2]!mGetRate(CD$1,$B99,EOMONTH($B99,0)+1,"FLAT",AE99,AF99) -> 36.5114643 | CE99: =[2]!mGetRate(CE$1,$B99,EOMONTH($B99,0)+1,"FLAT",AA99,AB99) -> 39.33133774 | CF99: =[2]!mGetRate(CF$1,$B99,EOMONTH($B99,0)+1,"FLAT",O99,P99) -> 39.04101516 | CO99: 2023 | CP99: 2023-07-01 | CQ99: 3.405600473 | CR99: 3.034916098 | CS99: 3.064102643 | CT99: 3.013048548 | CU99: 3.064102643 | CV99: 3.063444516 | CW99: 3.380023415
B100: 2023-08-01 | C100: 2023-08-31 | D100: 2023-08-01 | E100: 42.37915 | F100: 34.00501 | G100: 41.24326 | H100: 31.03856 | I100: 40.6526 | J100: 30.26153 | K100: 46.11478 | L100: 36.74833 | M100: 43.41616 | N100: 33.61747 | O100: 45.74326 | P100: 31.53856 | Q100: 45.74326 | R100: 32.03856 | S100: 39.24326 | T100: 29.03856 | U100: 45.74326 | V100: 31.53856 | W100: 40.6526 | X100: 30.26153 | Y100: 43.24326 | Z100: 32.53856 | AA100: 44.99326 | AB100: 33.28856 | AC100: 43.49326 | AD100: 31.03856 | AE100: 42.7244 | AF100: 34.80233 | AG100: 3.4263 | AH100: 3.2837 | AI100: 3.1121 | AJ100: 3.0574 | AK100: 3.0424 | AL100: 3.1676 | AM100: 2.9799 | AN100: 3.065 | AO100: 2.9494 | AP100: 2.9048 | AQ100: 2.5332 | AR100: 3.3081 | AS100: 3.1258 | AT100: 3.3581 | AU100: 3.1441 | AV100: 3.1281 | AW100: 3.0942 | AX100: 3.1256 | AY100: 3.0674 | AZ100: 2.9644 | BA100: 2.7669 | BB100: 3.7213 | BJ100: 3.018134177 | BK100: 2.97296962 | BL100: 3.132954593 | BM100: 3.086072044 | BN100: 3.052532609 | BP100: 3.122911171 | BQ100: 3.018134177 | BR100: 3.067669214 | BS100: 3.108559796 | BT100: 3.075289087 | BU100: 3.05584793 | BV100: 3.131620492 | BX100: =[2]!mGetRate(BX$1,$B100,EOMONTH($B100,0)+1,"FLAT",E100,F100) -> 38.86741387 | BY100: =[2]!mGetRate(BY$1,$B100,EOMONTH($B100,0)+1,"FLAT",G100,H100) -> 36.96386968 | BZ100: =[2]!mGetRate(BZ$1,$B100,EOMONTH($B100,0)+1,"FLAT",I100,J100) -> 36.29505452 | CA100: =IF(ValuationDate>$D100,"",[2]!mGetRate(CA$1,$B100,EOMONTH($B100,0)+1,"FLAT",M100,N100)) -> 39.30703194 | CB100: =[2]!mGetRate(CB$1,$B100,EOMONTH($B100,0)+1,"FLAT",Q100,R100) -> 39.99612774 | CC100: =IF(ValuationDate>$D100,"",[2]!mGetRate(CC$1,$B100,EOMONTH($B100,0)+1,"FLAT",K100,L100)) -> 42.18691387 | CD100: =[2]!mGetRate(CD$1,$B100,EOMONTH($B100,0)+1,"FLAT",AE100,AF100) -> 39.40224161 | CE100: =[2]!mGetRate(CE$1,$B100,EOMONTH($B100,0)+1,"FLAT",AA100,AB100) -> 40.08483742 | CF100: =[2]!mGetRate(CF$1,$B100,EOMONTH($B100,0)+1,"FLAT",O100,P100) -> 39.78645032 | CO100: 2023 | CP100: 2023-08-01 | CQ100: 3.451078403 | CR100: 3.075289087 | CS100: 3.104294421 | CT100: 3.052591694 | CU100: 3.104294421 | CV100: 3.103879655 | CW100: 3.419789261
B101: 2023-09-01 | C101: 2023-09-30 | D101: 2023-09-01 | E101: 38.87262 | F101: 33.11214 | G101: 36.67116 | H101: 27.90737 | I101: 37.41338 | J101: 31.1592 | K101: 42.35905 | L101: 34.65131 | M101: 39.82209 | N101: 31.94513 | O101: 40.17116 | P101: 25.90737 | Q101: 39.67116 | R101: 26.40737 | S101: 33.67116 | T101: 26.90737 | U101: 40.17116 | V101: 25.90737 | W101: 37.41338 | X101: 31.1592 | Y101: 38.17116 | Z101: 28.90737 | AA101: 39.67116 | AB101: 29.65737 | AC101: 37.67116 | AD101: 25.40737 | AE101: 40.70248 | AF101: 33.4192 | AG101: 3.4415 | AH101: 3.1886 | AI101: 3.0704 | AJ101: 3.0561 | AK101: 3.0411 | AL101: 3.1664 | AM101: 2.9761 | AN101: 3.0204 | AO101: 2.9219 | AP101: 2.8691 | AQ101: 2.6371 | AR101: 3.307 | AS101: 3.1246 | AT101: 3.357 | AU101: 3.1429 | AV101: 3.1268 | AW101: 3.0597 | AX101: 3.1244 | AY101: 3.0661 | AZ101: 2.9369 | BA101: 2.8746 | BB101: 3.7315 | BJ101: 2.990286076 | BK101: 2.936817722 | BL101: 3.104047192 | BM101: 3.048544982 | BN101: 3.019923993 | BP101: 3.121585046 | BQ101: 2.990286076 | BR101: 3.023053832 | BS101: 3.107233265 | BT101: 3.071395245 | BU101: 3.054543209 | BV101: 3.130314616 | BX101: =[2]!mGetRate(BX$1,$B101,EOMONTH($B101,0)+1,"FLAT",E101,F101) -> 36.31240667 | BY101: =[2]!mGetRate(BY$1,$B101,EOMONTH($B101,0)+1,"FLAT",G101,H101) -> 32.77614222 | BZ101: =[2]!mGetRate(BZ$1,$B101,EOMONTH($B101,0)+1,"FLAT",I101,J101) -> 34.63374444 | CA101: =IF(ValuationDate>$D101,"",[2]!mGetRate(CA$1,$B101,EOMONTH($B101,0)+1,"FLAT",M101,N101)) -> 36.32121889 | CB101: =[2]!mGetRate(CB$1,$B101,EOMONTH($B101,0)+1,"FLAT",Q101,R101) -> 33.77614222 | CC101: =IF(ValuationDate>$D101,"",[2]!mGetRate(CC$1,$B101,EOMONTH($B101,0)+1,"FLAT",K101,L101)) -> 38.93338778 | CD101: =[2]!mGetRate(CD$1,$B101,EOMONTH($B101,0)+1,"FLAT",AE101,AF101) -> 37.46546667 | CE101: =[2]!mGetRate(CE$1,$B101,EOMONTH($B101,0)+1,"FLAT",AA101,AB101) -> 35.22058667 | CF101: =[2]!mGetRate(CF$1,$B101,EOMONTH($B101,0)+1,"FLAT",O101,P101) -> 33.83169778 | CO101: 2023 | CP101: 2023-09-01 | CQ101: 3.408172754 | CR101: 3.071395245 | CS101: 3.102968296 | CT101: 3.051286971 | CU101: 3.102968296 | CV101: 3.099979819 | CW101: 3.41847719
B102: 2023-10-01 | C102: 2023-10-31 | D102: 2023-10-01 | E102: 36.1867 | F102: 33.06245 | G102: 34.2956 | H102: 31.18689 | I102: 34.81393 | J102: 30.08499 | K102: 41.38006 | L102: 36.47876 | M102: 38.66984 | N102: 35.63099 | O102: 34.2956 | P102: 29.18689 | Q102: 33.7956 | R102: 30.68689 | S102: 31.2956 | T102: 28.68689 | U102: 34.2956 | V102: 29.18689 | W102: 34.81393 | X102: 30.08499 | Y102: 35.2956 | Z102: 31.93689 | AA102: 36.2956 | AB102: 32.93689 | AC102: 34.2956 | AD102: 29.68689 | AE102: 38.61333 | AF102: 35.13219 | AG102: 3.4682 | AH102: 3.1577 | AI102: 3.068 | AJ102: 3.1183 | AK102: 3.1033 | AL102: 3.229 | AM102: 3.0408 | AN102: 3.0739 | AO102: 2.9981 | AP102: 3.1265 | AQ102: 2.6599 | AR102: 3.3701 | AS102: 3.1872 | AT102: 3.4201 | AU102: 3.2058 | AV102: 3.1894 | AW102: 3.3268 | AX102: 3.187 | AY102: 3.1283 | AZ102: 3.0131 | BA102: 2.8774 | BB102: 3.7157 | BJ102: 3.067450633 | BK102: 3.197475949 | BL102: 3.184146973 | BM102: 3.319118257 | BN102: 3.192047953 | BP102: 3.185035011 | BQ102: 3.067450633 | BR102: 3.076572283 | BS102: 3.170702653 | BT102: 3.137693022 | BU102: 3.116969077 | BV102: 3.192795781 | BX102: =[2]!mGetRate(BX$1,$B102,EOMONTH($B102,0)+1,"FLAT",E102,F102) -> 34.80934247 | BY102: =[2]!mGetRate(BY$1,$B102,EOMONTH($B102,0)+1,"FLAT",G102,H102) -> 32.92509344 | BZ102: =[2]!mGetRate(BZ$1,$B102,EOMONTH($B102,0)+1,"FLAT",I102,J102) -> 32.72912849 | CA102: =IF(ValuationDate>$D102,"",[2]!mGetRate(CA$1,$B102,EOMONTH($B102,0)+1,"FLAT",M102,N102)) -> 37.33013194 | CB102: =[2]!mGetRate(CB$1,$B102,EOMONTH($B102,0)+1,"FLAT",Q102,R102) -> 32.42509344 | CC102: =IF(ValuationDate>$D102,"",[2]!mGetRate(CC$1,$B102,EOMONTH($B102,0)+1,"FLAT",K102,L102)) -> 39.21927183 | CD102: =[2]!mGetRate(CD$1,$B102,EOMONTH($B102,0)+1,"FLAT",AE102,AF102) -> 37.07863387 | CE102: =[2]!mGetRate(CE$1,$B102,EOMONTH($B102,0)+1,"FLAT",AA102,AB102) -> 34.81487839 | CF102: =[2]!mGetRate(CF$1,$B102,EOMONTH($B102,0)+1,"FLAT",O102,P102) -> 32.04337301 | CO102: 2023 | CP102: 2023-10-01 | CQ102: 3.405703365 | CR102: 3.137693022 | CS102: =(($AK102+CS$4)*(1/(1-CS$2))+CS$3) -> 3.166418261 | CT102: 3.113712953 | CU102: 3.166418261 | CV102: 3.166379655 | CW102: 3.481254744
B103: 2023-11-01 | C103: 2023-11-30 | D103: 2023-11-01 | E103: 38.73476 | F103: 34.48201 | G103: 34.93176 | H103: 31.5589 | I103: 36.08146 | J103: 32.38372 | K103: 42.90773 | L103: 38.16711 | M103: 40.77003 | N103: 37.06478 | O103: 33.43176 | P103: 30.0589 | Q103: 34.43176 | R103: 31.0589 | S103: 31.68176 | T103: 29.5589 | U103: 33.43176 | V103: 30.0589 | W103: 36.08146 | X103: 32.38372 | Y103: 35.93176 | Z103: 32.0589 | AA103: 36.93176 | AB103: 33.3089 | AC103: 33.43176 | AD103: 30.5589 | AE103: 40.01526 | AF103: 34.87902 | AG103: 3.5477 | AH103: 3.4494 | AI103: 3.2513 | AJ103: 3.3143 | AK103: 3.2993 | AL103: 3.4292 | AM103: 3.2193 | AN103: 3.2624 | AO103: 3.1777 | AP103: 3.4837 | AQ103: 2.8432 | AR103: 3.5749 | AS103: 3.3871 | AT103: 3.6249 | AU103: 3.4077 | AV103: 3.388 | AW103: 3.7058 | AX103: 3.3868 | AY103: 3.3243 | AZ103: 3.1927 | BA103: 3.152 | BB103: 3.8302 | BJ103: 3.249324051 | BK103: 3.559197468 | BL103: 3.372938583 | BM103: 3.69459912 | BN103: 3.469014805 | BP103: 3.384973805 | BQ103: 3.249324051 | BR103: 3.265137293 | BS103: 3.370702653 | BT103: 3.320601107 | BU103: 3.313680816 | BV103: 3.389681768 | BX103: =[2]!mGetRate(BX$1,$B103,EOMONTH($B103,0)+1,"FLAT",E103,F103) -> 36.841372 | BY103: =[2]!mGetRate(BY$1,$B103,EOMONTH($B103,0)+1,"FLAT",G103,H103) -> 33.43011221 | BZ103: =[2]!mGetRate(BZ$1,$B103,EOMONTH($B103,0)+1,"FLAT",I103,J103) -> 34.43517076 | CA103: =IF(ValuationDate>$D103,"",[2]!mGetRate(CA$1,$B103,EOMONTH($B103,0)+1,"FLAT",M103,N103)) -> 39.1203972 | CB103: =[2]!mGetRate(CB$1,$B103,EOMONTH($B103,0)+1,"FLAT",Q103,R103) -> 32.93011221 | CC103: =IF(ValuationDate>$D103,"",[2]!mGetRate(CC$1,$B103,EOMONTH($B103,0)+1,"FLAT",K103,L103)) -> 40.79713497 | CD103: =[2]!mGetRate(CD$1,$B103,EOMONTH($B103,0)+1,"FLAT",AE103,AF103) -> 37.72852902 | CE103: =[2]!mGetRate(CE$1,$B103,EOMONTH($B103,0)+1,"FLAT",AA103,AB103) -> 35.31880846 | CF103: =[2]!mGetRate(CF$1,$B103,EOMONTH($B103,0)+1,"FLAT",O103,P103) -> 31.93011221 | CO103: 2023 | CP103: 2023-11-01 | CQ103: 3.594303015 | CR103: 3.320601107 | CS103: 3.366357055 | CT103: 3.310425051 | CU103: 3.366357055 | CV103: 3.34956931 | CW103: 3.679074687
B104: 2023-12-01 | C104: 2023-12-31 | D104: 2023-12-01 | E104: 41.58392 | F104: 36.52109 | G104: 36.6008 | H104: 33.89737 | I104: 37.8213 | J104: 33.23395 | K104: 44.08207 | L104: 40.26515 | M104: 42.13934 | N104: 39.3825 | O104: 34.6008 | P104: 31.89737 | Q104: 36.1008 | R104: 33.39737 | S104: 33.6008 | T104: 31.89737 | U104: 34.6008 | V104: 31.89737 | W104: 37.8213 | X104: 33.23395 | Y104: 37.6008 | Z104: 34.64737 | AA104: 38.6008 | AB104: 35.14737 | AC104: 37.1008 | AD104: 33.89737 | AE104: 41.5707 | AF104: 37.81145 | AG104: 3.7407 | AH104: 3.6892 | AI104: 3.586 | AJ104: 3.5401 | AK104: 3.5251 | AL104: 3.6576 | AM104: 3.4476 | AN104: 3.4643 | AO104: 3.374 | AP104: 3.8313 | AQ104: 2.9831 | AR104: 3.8062 | AS104: 3.6153 | AT104: 3.8562 | AU104: 3.6372 | AV104: 3.6155 | AW104: 4.0739 | AX104: 3.6151 | AY104: 3.5501 | AZ104: 3.389 | BA104: 3.3044 | BB104: 4.0107 | BJ104: 3.448108861 | BK104: 3.911197468 | BL104: 3.579284869 | BM104: 4.059988672 | BN104: 3.749644968 | BP104: 3.615311457 | BQ104: 3.448108861 | BR104: 3.467106924 | BS104: 3.601110816 | BT104: 3.55453901 | BU104: 3.540300768 | BV104: 3.616502461 | BX104: =[2]!mGetRate(BX$1,$B104,EOMONTH($B104,0)+1,"FLAT",E104,F104) -> 39.24304161 | BY104: =[2]!mGetRate(BY$1,$B104,EOMONTH($B104,0)+1,"FLAT",G104,H104) -> 35.35082699 | BZ104: =[2]!mGetRate(BZ$1,$B104,EOMONTH($B104,0)+1,"FLAT",I104,J104) -> 35.7002672 | CA104: =IF(ValuationDate>$D104,"",[2]!mGetRate(CA$1,$B104,EOMONTH($B104,0)+1,"FLAT",M104,N104)) -> 40.86467204 | CB104: =[2]!mGetRate(CB$1,$B104,EOMONTH($B104,0)+1,"FLAT",Q104,R104) -> 34.85082699 | CC104: =IF(ValuationDate>$D104,"",[2]!mGetRate(CC$1,$B104,EOMONTH($B104,0)+1,"FLAT",K104,L104)) -> 42.31725753 | CD104: =[2]!mGetRate(CD$1,$B104,EOMONTH($B104,0)+1,"FLAT",AE104,AF104) -> 39.83255215 | CE104: =[2]!mGetRate(CE$1,$B104,EOMONTH($B104,0)+1,"FLAT",AA104,AB104) -> 37.0040528 | CF104: =[2]!mGetRate(CF$1,$B104,EOMONTH($B104,0)+1,"FLAT",O104,P104) -> 33.35082699 | CO104: 2023 | CP104: 2023-12-01 | CQ104: 3.938680008 | CR104: 3.55453901 | CS104: 3.596694707 | CT104: 3.537045416 | CU104: 3.596694707 | CV104: 3.58386734 | CW104: 3.906971336
B105: 2024-01-01 | C105: 2024-01-31 | D105: 2024-01-01 | E105: 41.0298 | F105: 35.89193 | G105: 37.75856 | H105: 34.78128 | I105: 38.72562 | J105: 33.41695 | K105: 45.65879 | L105: 39.86917 | M105: 43.30968 | N105: 39.96118 | O105: 35.75856 | P105: 32.78128 | Q105: 37.25856 | R105: 34.28128 | S105: 34.25856 | T105: 32.28128 | U105: 35.75856 | V105: 32.78128 | W105: 38.72562 | X105: 33.41695 | Y105: 38.75856 | Z105: 35.53128 | AA105: 39.75856 | AB105: 36.78128 | AC105: 38.75856 | AD105: 34.78128 | AE105: 40.28062 | AF105: 36.45035 | AG105: 3.8326 | AH105: 3.8048 | AI105: 3.5215 | AJ105: 3.6043 | AK105: 3.5893 | AL105: 3.7221 | AM105: 3.5093 | AN105: 3.5783 | AO105: 3.4748 | AP105: 3.7228 | AQ105: 3.0676 | AR105: 3.8711 | AS105: 3.6798 | AT105: 3.9211 | AU105: 3.7006 | AV105: 3.6799 | AW105: 3.964 | AX105: 3.6795 | AY105: 3.6143 | AZ105: 3.4898 | BA105: 3.3801 | BB105: 4.0576 | BJ105: 3.55018481 | BK105: 3.801324051 | BL105: 3.685243634 | BM105: 3.945935835 | BN105: 3.745672082 | BP105: 3.680801613 | BQ105: 3.55018481 | BR105: 3.58114624 | BS105: 3.66662102 | BT105: 3.617762701 | BU105: 3.604733899 | BV105: 3.680992667 | BX105: =[2]!mGetRate(BX$1,$B105,EOMONTH($B105,0)+1,"FLAT",E105,F105) -> 38.76471753 | BY105: =[2]!mGetRate(BY$1,$B105,EOMONTH($B105,0)+1,"FLAT",G105,H105) -> 36.4459957 | BZ105: =[2]!mGetRate(BZ$1,$B105,EOMONTH($B105,0)+1,"FLAT",I105,J105) -> 36.3852386 | CA105: =IF(ValuationDate>$D105,"",[2]!mGetRate(CA$1,$B105,EOMONTH($B105,0)+1,"FLAT",M105,N105)) -> 41.83345957 | CB105: =[2]!mGetRate(CB$1,$B105,EOMONTH($B105,0)+1,"FLAT",Q105,R105) -> 35.9459957 | CC105: =IF(ValuationDate>$D105,"",[2]!mGetRate(CC$1,$B105,EOMONTH($B105,0)+1,"FLAT",K105,L105)) -> 43.10637688 | CD105: =[2]!mGetRate(CD$1,$B105,EOMONTH($B105,0)+1,"FLAT",AE105,AF105) -> 38.59200634 | CE105: =[2]!mGetRate(CE$1,$B105,EOMONTH($B105,0)+1,"FLAT",AA105,AB105) -> 38.4459957 | CF105: =[2]!mGetRate(CF$1,$B105,EOMONTH($B105,0)+1,"FLAT",O105,P105) -> 34.4459957 | CO105: 2024 | CP105: 2024-01-01 | CQ105: 3.872315156 | CR105: 3.617762701 | CS105: 3.662184863 | CT105: 3.601478665 | CU105: 3.662184863 | CV105: 3.647188358 | CW105: 3.971767461
B106: 2024-02-01 | C106: 2024-02-29 | D106: 2024-02-01 | E106: 40.03444 | F106: 35.39378 | G106: 38.10109 | H106: 35.35349 | I106: 39.37859 | J106: 34.42699 | K106: 45.33429 | L106: 40.04057 | M106: 43.4763 | N106: 40.3951 | O106: 36.10109 | P106: 33.35349 | Q106: 38.10109 | R106: 34.85349 | S106: 34.60109 | T106: 32.85349 | U106: 36.10109 | V106: 33.35349 | W106: 39.37859 | X106: 34.42699 | Y106: 39.10109 | Z106: 36.10349 | AA106: 40.10109 | AB106: 37.10349 | AC106: 37.10109 | AD106: 35.35349 | AE106: 41.13479 | AF106: 37.13319 | AG106: 3.8256 | AH106: 3.7629 | AI106: 3.5055 | AJ106: 3.5955 | AK106: 3.5805 | AL106: 3.7119 | AM106: 3.5205 | AN106: 3.607 | AO106: 3.4985 | AP106: 3.5885 | AQ106: 3.0409 | AR106: 3.8594 | AS106: 3.6697 | AT106: 3.9094 | AU106: 3.6901 | AV106: 3.6702 | AW106: 3.8182 | AX106: 3.6695 | AY106: 3.6055 | AZ106: 3.5135 | BA106: 3.3634 | BB106: 4.0356 | BJ106: 3.57418481 | BK106: 3.665324051 | BL106: 3.710156558 | BM106: 3.804762599 | BN106: 3.688607004 | BP106: 3.671824769 | BQ106: 3.57418481 | BR106: 3.609856138 | BS106: 3.657641429 | BT106: 3.629239287 | BU106: 3.595901943 | BV106: 3.672152888 | BX106: =[2]!mGetRate(BX$1,$B106,EOMONTH($B106,0)+1,"FLAT",E106,F106) -> 38.06082598 | BY106: =[2]!mGetRate(BY$1,$B106,EOMONTH($B106,0)+1,"FLAT",G106,H106) -> 36.93257046 | BZ106: =[2]!mGetRate(BZ$1,$B106,EOMONTH($B106,0)+1,"FLAT",I106,J106) -> 37.27273713 | CA106: =IF(ValuationDate>$D106,"",[2]!mGetRate(CA$1,$B106,EOMONTH($B106,0)+1,"FLAT",M106,N106)) -> 42.1659046 | CB106: =[2]!mGetRate(CB$1,$B106,EOMONTH($B106,0)+1,"FLAT",Q106,R106) -> 36.71992678 | CC106: =IF(ValuationDate>$D106,"",[2]!mGetRate(CC$1,$B106,EOMONTH($B106,0)+1,"FLAT",K106,L106)) -> 43.08293782 | CD106: =[2]!mGetRate(CD$1,$B106,EOMONTH($B106,0)+1,"FLAT",AE106,AF106) -> 39.43296011 | CE106: =[2]!mGetRate(CE$1,$B106,EOMONTH($B106,0)+1,"FLAT",AA106,AB106) -> 38.82624862 | CF106: =[2]!mGetRate(CF$1,$B106,EOMONTH($B106,0)+1,"FLAT",O106,P106) -> 34.93257046 | CO106: 2024 | CP106: 2024-02-01 | CQ106: 3.855852557 | CR106: 3.629239287 | CS106: 3.653208019 | CT106: 3.592646693 | CU106: 3.653208019 | CV106: 3.658682611 | CW106: 3.962885749
B107: 2024-03-01 | C107: 2024-03-31 | D107: 2024-03-01 | E107: 36.52145 | F107: 33.97893 | G107: 34.29153 | H107: 32.73698 | I107: 34.4669 | J107: 31.64637 | K107: 40.88174 | L107: 37.39268 | M107: 38.87209 | N107: 38.02776 | O107: 32.29153 | P107: 30.73698 | Q107: 34.29153 | R107: 32.23698 | S107: 32.54153 | T107: 29.23698 | U107: 32.29153 | V107: 30.73698 | W107: 34.4669 | X107: 31.64637 | Y107: 35.29153 | Z107: 33.48698 | AA107: 36.29153 | AB107: 34.73698 | AC107: 33.04153 | AD107: 32.73698 | AE107: 36.2632 | AF107: 34.67047 | AG107: 3.7386 | AH107: 3.567 | AI107: 3.3885 | AJ107: 3.4712 | AK107: 3.4562 | AL107: 3.586 | AM107: 3.3887 | AN107: 3.5635 | AO107: 3.47 | AP107: 3.5107 | AQ107: 2.9363 | AR107: 3.7317 | AS107: 3.5439 | AT107: 3.7817 | AU107: 3.5633 | AV107: 3.5449 | AW107: 3.7353 | AX107: 3.5437 | AY107: 3.4812 | AZ107: 3.485 | BA107: 3.2288 | BB107: 3.9936 | BJ107: 3.545324051 | BK107: 3.586539241 | BL107: 3.680197979 | BM107: 3.722980933 | BN107: 3.633760551 | BP107: 3.54502685 | BQ107: 3.545324051 | BR107: 3.566341136 | BS107: 3.530804694 | BT107: 3.494184466 | BU107: 3.47115057 | BV107: 3.54729101 | BX107: =[2]!mGetRate(BX$1,$B107,EOMONTH($B107,0)+1,"FLAT",E107,F107) -> 35.40246744 | BY107: =[2]!mGetRate(BY$1,$B107,EOMONTH($B107,0)+1,"FLAT",G107,H107) -> 33.60736062 | BZ107: =[2]!mGetRate(BZ$1,$B107,EOMONTH($B107,0)+1,"FLAT",I107,J107) -> 33.22556311 | CA107: =IF(ValuationDate>$D107,"",[2]!mGetRate(CA$1,$B107,EOMONTH($B107,0)+1,"FLAT",M107,N107)) -> 38.50049389 | CB107: =[2]!mGetRate(CB$1,$B107,EOMONTH($B107,0)+1,"FLAT",Q107,R107) -> 33.38730678 | CC107: =IF(ValuationDate>$D107,"",[2]!mGetRate(CC$1,$B107,EOMONTH($B107,0)+1,"FLAT",K107,L107)) -> 39.34617793 | CD107: =[2]!mGetRate(CD$1,$B107,EOMONTH($B107,0)+1,"FLAT",AE107,AF107) -> 35.56222731 | CE107: =[2]!mGetRate(CE$1,$B107,EOMONTH($B107,0)+1,"FLAT",AA107,AB107) -> 35.60736062 | CF107: =[2]!mGetRate(CF$1,$B107,EOMONTH($B107,0)+1,"FLAT",O107,P107) -> 31.60736062 | CO107: 2024 | CP107: 2024-03-01 | CQ107: 3.735469801 | CR107: 3.494184466 | CS107: 3.5264101 | CT107: 3.467895092 | CU107: 3.5264101 | CV107: 3.523419885 | CW107: 3.83743157
B108: 2024-04-01 | C108: 2024-04-30 | D108: 2024-04-01 | E108: 29.62521 | F108: 24.62905 | G108: 29.79264 | H108: 27.31538 | I108: 29.38482 | J108: 23.91265 | K108: 33.17509 | L108: 30.89654 | M108: 28.76887 | N108: 27.30964 | O108: 27.79264 | P108: 25.31538 | Q108: 28.29264 | R108: 26.56538 | S108: 24.79264 | T108: 23.31538 | U108: 27.79264 | V108: 25.31538 | W108: 29.38482 | X108: 23.91265 | Y108: 28.29264 | Z108: 25.31538 | AA108: 31.79264 | AB108: 29.31538 | AC108: 28.29264 | AD108: 25.81538 | AE108: 28.09242 | AF108: 26.84895 | AG108: 3.4275 | AH108: 3.1051 | AI108: 3.0088 | AJ108: 3.0751 | AK108: 3.0601 | AL108: 3.1838 | AM108: 2.9976 | AN108: 2.943 | AO108: 2.9085 | AP108: 2.7134 | AQ108: 2.5379 | AR108: 3.3227 | AS108: 3.1421 | AT108: 3.3727 | AU108: 3.1589 | AV108: 3.1448 | AW108: 2.8887 | AX108: 3.1419 | AY108: 3.0851 | AZ108: 2.9235 | BA108: 2.7254 | BB108: 3.6775 | BJ108: 2.976716456 | BK108: 2.779146835 | BL108: 3.089961404 | BM108: 2.884876531 | BN108: 2.932675307 | BP108: 3.140966868 | BQ108: 2.976716456 | BR108: 2.945627139 | BS108: 3.12662102 | BT108: 3.093426191 | BU108: 3.073612204 | BV108: 3.149400502 | BX108: =[2]!mGetRate(BX$1,$B108,EOMONTH($B108,0)+1,"FLAT",E108,F108) -> 27.51572022 | BY108: =[2]!mGetRate(BY$1,$B108,EOMONTH($B108,0)+1,"FLAT",G108,H108) -> 28.74668578 | BZ108: =[2]!mGetRate(BZ$1,$B108,EOMONTH($B108,0)+1,"FLAT",I108,J108) -> 27.07434822 | CA108: =IF(ValuationDate>$D108,"",[2]!mGetRate(CA$1,$B108,EOMONTH($B108,0)+1,"FLAT",M108,N108)) -> 28.15275067 | CB108: =[2]!mGetRate(CB$1,$B108,EOMONTH($B108,0)+1,"FLAT",Q108,R108) -> 27.56335244 | CC108: =IF(ValuationDate>$D108,"",[2]!mGetRate(CC$1,$B108,EOMONTH($B108,0)+1,"FLAT",K108,L108)) -> 32.21303556 | CD108: =[2]!mGetRate(CD$1,$B108,EOMONTH($B108,0)+1,"FLAT",AE108,AF108) -> 27.56739933 | CE108: =[2]!mGetRate(CE$1,$B108,EOMONTH($B108,0)+1,"FLAT",AA108,AB108) -> 30.74668578 | CF108: =[2]!mGetRate(CF$1,$B108,EOMONTH($B108,0)+1,"FLAT",O108,P108) -> 26.74668578 | CO108: 2024 | CP108: 2024-04-01 | CQ108: 3.344791748 | CR108: 3.093426191 | CS108: 3.122350118 | CT108: 3.070356001 | CU108: 3.122350118 | CV108: 3.12204468 | CW108: 3.437653613
B109: 2024-05-01 | C109: 2024-05-31 | D109: 2024-05-01 | E109: 28.79222 | F109: 22.79303 | G109: 28.41863 | H109: 25.68718 | I109: 26.26726 | J109: 20.35804 | K109: 31.31814 | L109: 26.84883 | M109: 26.90336 | N109: 21.55294 | O109: 26.91863 | P109: 23.68718 | Q109: 28.41863 | R109: 25.68718 | S109: 24.41863 | T109: 20.68718 | U109: 26.91863 | V109: 23.68718 | W109: 26.26726 | X109: 20.35804 | Y109: 26.91863 | Z109: 23.68718 | AA109: 29.91863 | AB109: 27.18718 | AC109: 26.91863 | AD109: 23.68718 | AE109: 28.76816 | AF109: 24.33924 | AG109: 3.8838 | AH109: 3.5538 | AI109: 3.3635 | AJ109: 3.5285 | AK109: 3.5135 | AL109: 3.6372 | AM109: 3.451 | AN109: 3.3762 | AO109: 3.3254 | AP109: 3.1731 | AQ109: 2.9192 | AR109: 3.7761 | AS109: 3.5955 | AT109: 3.8261 | AU109: 3.613 | AV109: 3.5982 | AW109: 3.3464 | AX109: 3.5953 | AY109: 3.5385 | AZ109: 3.3404 | BA109: 3.113 | BB109: 4.1288 | BJ109: 3.398893671 | BK109: 3.244665823 | BL109: 3.528197607 | BM109: 3.368103163 | BN109: 3.384965066 | BP109: 3.603478344 | BQ109: 3.398893671 | BR109: 3.37897654 | BS109: 3.589274082 | BT109: 3.558022974 | BU109: 3.528658645 | BV109: 3.604850025 | BX109: =[2]!mGetRate(BX$1,$B109,EOMONTH($B109,0)+1,"FLAT",E109,F109) -> 26.14741581 | BY109: =[2]!mGetRate(BY$1,$B109,EOMONTH($B109,0)+1,"FLAT",G109,H109) -> 27.21444237 | BZ109: =[2]!mGetRate(BZ$1,$B109,EOMONTH($B109,0)+1,"FLAT",I109,J109) -> 23.66212 | CA109: =IF(ValuationDate>$D109,"",[2]!mGetRate(CA$1,$B109,EOMONTH($B109,0)+1,"FLAT",M109,N109)) -> 24.54457269 | CB109: =[2]!mGetRate(CB$1,$B109,EOMONTH($B109,0)+1,"FLAT",Q109,R109) -> 27.21444237 | CC109: =IF(ValuationDate>$D109,"",[2]!mGetRate(CC$1,$B109,EOMONTH($B109,0)+1,"FLAT",K109,L109)) -> 29.34779903 | CD109: =[2]!mGetRate(CD$1,$B109,EOMONTH($B109,0)+1,"FLAT",AE109,AF109) -> 26.81562538 | CE109: =[2]!mGetRate(CE$1,$B109,EOMONTH($B109,0)+1,"FLAT",AA109,AB109) -> 28.71444237 | CF109: =[2]!mGetRate(CF$1,$B109,EOMONTH($B109,0)+1,"FLAT",O109,P109) -> 25.49401226 | CO109: 2024 | CP109: 2024-05-01 | CQ109: 3.70974699 | CR109: 3.558022974 | CS109: 3.584861594 | CT109: 3.525403272 | CU109: 3.584861594 | CV109: 3.587356667 | CW109: 3.895263625
B110: 2024-06-01 | C110: 2024-06-30 | D110: 2024-06-01 | E110: 31.4241 | F110: 25.07704 | G110: 30.10835 | H110: 26.95395 | I110: 28.7084 | J110: 22.66492 | K110: 34.1533 | L110: 29.17618 | M110: 29.65536 | N110: 24.02789 | O110: 28.35835 | P110: 25.45395 | Q110: 29.35835 | R110: 26.45395 | S110: 26.60835 | T110: 22.95395 | U110: 28.35835 | V110: 25.45395 | W110: 28.7084 | X110: 22.66492 | Y110: 31.10835 | Z110: 27.45395 | AA110: 32.60835 | AB110: 28.95395 | AC110: 29.10835 | AD110: 25.70395 | AE110: 32.5324 | AF110: 27.54872 | AG110: 3.9092 | AH110: 3.5665 | AI110: 3.3888 | AJ110: 3.5538 | AK110: 3.5388 | AL110: 3.663 | AM110: 3.4738 | AN110: 3.2619 | AO110: 3.1858 | AP110: 3.1477 | AQ110: 2.9065 | AR110: 3.8024 | AS110: 3.6213 | AT110: 3.8524 | AU110: 3.6391 | AV110: 3.6239 | AW110: 3.3217 | AX110: 3.6211 | AY110: 3.5638 | AZ110: 3.2008 | BA110: 3.1203 | BB110: 4.1567 | BJ110: 3.257526582 | BK110: 3.218944304 | BL110: 3.381453126 | BM110: 3.341403236 | BN110: 3.299831812 | BP110: 3.62928677 | BQ110: 3.257526582 | BR110: 3.26463712 | BS110: 3.615090408 | BT110: 3.581386023 | BU110: 3.554050517 | BV110: 3.63026439 | BX110: =[2]!mGetRate(BX$1,$B110,EOMONTH($B110,0)+1,"FLAT",E110,F110) -> 28.60318444 | BY110: =[2]!mGetRate(BY$1,$B110,EOMONTH($B110,0)+1,"FLAT",G110,H110) -> 28.70639444 | BZ110: =[2]!mGetRate(BZ$1,$B110,EOMONTH($B110,0)+1,"FLAT",I110,J110) -> 26.02240889 | CA110: =IF(ValuationDate>$D110,"",[2]!mGetRate(CA$1,$B110,EOMONTH($B110,0)+1,"FLAT",M110,N110)) -> 27.15426222 | CB110: =[2]!mGetRate(CB$1,$B110,EOMONTH($B110,0)+1,"FLAT",Q110,R110) -> 28.06750556 | CC110: =IF(ValuationDate>$D110,"",[2]!mGetRate(CC$1,$B110,EOMONTH($B110,0)+1,"FLAT",K110,L110)) -> 31.94124667 | CD110: =[2]!mGetRate(CD$1,$B110,EOMONTH($B110,0)+1,"FLAT",AE110,AF110) -> 30.31743111 | CE110: =[2]!mGetRate(CE$1,$B110,EOMONTH($B110,0)+1,"FLAT",AA110,AB110) -> 30.98417222 | CF110: =[2]!mGetRate(CF$1,$B110,EOMONTH($B110,0)+1,"FLAT",O110,P110) -> 27.06750556 | CO110: 2024 | CP110: 2024-06-01 | CQ110: 3.735778475 | CR110: 3.581386023 | CS110: 3.61067002 | CT110: 3.550795191 | CU110: 3.61067002 | CV110: 3.610755681 | CW110: 3.920798547
B111: 2024-07-01 | C111: 2024-07-31 | D111: 2024-07-01 | E111: 43.74718 | F111: 34.66103 | G111: 43.23066 | H111: 33.69874 | I111: 42.37954 | J111: 32.38813 | K111: 47.36912 | L111: 37.89227 | M111: 43.22713 | N111: 33.79836 | O111: 47.98066 | P111: 34.69874 | Q111: 48.23066 | R111: 34.69874 | S111: 41.23066 | T111: 31.19874 | U111: 47.98066 | V111: 34.69874 | W111: 42.37954 | X111: 32.38813 | Y111: 45.73066 | Z111: 35.19874 | AA111: 47.23066 | AB111: 36.19874 | AC111: 44.73066 | AD111: 33.19874 | AE111: 46.49494 | AF111: 34.81983 | AG111: 3.9473 | AH111: 3.7315 | AI111: 3.5538 | AJ111: 3.5665 | AK111: 3.5515 | AL111: 3.6763 | AM111: 3.489 | AN111: 3.4904 | AO111: 3.3254 | AP111: 3.3508 | AQ111: 3.0335 | AR111: 3.8164 | AS111: 3.6346 | AT111: 3.8664 | AU111: 3.6527 | AV111: 3.637 | AW111: 3.5382 | AX111: 3.6344 | AY111: 3.5765 | AZ111: 3.3404 | BA111: 3.2622 | BB111: 4.2448 | BJ111: 3.398893671 | BK111: 3.42461519 | BL111: 3.528197607 | BM111: 3.554897534 | BN111: 3.476651 | BP111: 3.642241988 | BQ111: 3.398893671 | BR111: 3.493215925 | BS111: 3.628049592 | BT111: 3.596961389 | BU111: 3.566796635 | BV111: 3.643021798 | BX111: =[2]!mGetRate(BX$1,$B111,EOMONTH($B111,0)+1,"FLAT",E111,F111) -> 39.74145796 | BY111: =[2]!mGetRate(BY$1,$B111,EOMONTH($B111,0)+1,"FLAT",G111,H111) -> 39.0284157 | BZ111: =[2]!mGetRate(BZ$1,$B111,EOMONTH($B111,0)+1,"FLAT",I111,J111) -> 37.97472484 | CA111: =IF(ValuationDate>$D111,"",[2]!mGetRate(CA$1,$B111,EOMONTH($B111,0)+1,"FLAT",M111,N111)) -> 39.07036043 | CB111: =[2]!mGetRate(CB$1,$B111,EOMONTH($B111,0)+1,"FLAT",Q111,R111) -> 42.26497484 | CC111: =IF(ValuationDate>$D111,"",[2]!mGetRate(CC$1,$B111,EOMONTH($B111,0)+1,"FLAT",K111,L111)) -> 43.19115387 | CD111: =[2]!mGetRate(CD$1,$B111,EOMONTH($B111,0)+1,"FLAT",AE111,AF111) -> 41.34784849 | CE111: =[2]!mGetRate(CE$1,$B111,EOMONTH($B111,0)+1,"FLAT",AA111,AB111) -> 42.36712538 | CF111: =[2]!mGetRate(CF$1,$B111,EOMONTH($B111,0)+1,"FLAT",O111,P111) -> 42.12518989 | CO111: 2024 | CP111: 2024-07-01 | CQ111: 3.905549028 | CR111: 3.596961389 | CS111: 3.623625238 | CT111: 3.563541332 | CU111: 3.623625238 | CV111: 3.626355025 | CW111: 3.933616472
B112: 2024-08-01 | C112: 2024-08-31 | D112: 2024-08-01 | E112: 45.95831 | F112: 35.06002 | G112: 45.44901 | H112: 35.08711 | I112: 45.55519 | J112: 34.42306 | K112: 50.52206 | L112: 39.19666 | M112: 47.40481 | N112: 36.31745 | O112: 49.94901 | P112: 35.58711 | Q112: 49.94901 | R112: 36.08711 | S112: 43.44901 | T112: 33.08711 | U112: 49.94901 | V112: 35.58711 | W112: 45.55519 | X112: 34.42306 | Y112: 47.44901 | Z112: 36.58711 | AA112: 49.19901 | AB112: 37.33711 | AC112: 47.69901 | AD112: 35.08711 | AE112: 47.62699 | AF112: 38.96386 | AG112: 3.9727 | AH112: 3.7823 | AI112: 3.5792 | AJ112: 3.6173 | AK112: 3.6023 | AL112: 3.7275 | AM112: 3.5398 | AN112: 3.63 | AO112: 3.465 | AP112: 3.4396 | AQ112: 3.0588 | AR112: 3.868 | AS112: 3.6857 | AT112: 3.918 | AU112: 3.704 | AV112: 3.688 | AW112: 3.629 | AX112: 3.6855 | AY112: 3.6273 | AZ112: 3.48 | BA112: 3.2926 | BB112: 4.2677 | BJ112: 3.540260759 | BK112: 3.514539241 | BL112: 3.674942087 | BM112: 3.648242161 | BN112: 3.594496062 | BP112: 3.694062859 | BQ112: 3.540260759 | BR112: 3.63286407 | BS112: 3.679886327 | BT112: 3.649015903 | BU112: 3.617781106 | BV112: 3.694051431 | BX112: =[2]!mGetRate(BX$1,$B112,EOMONTH($B112,0)+1,"FLAT",E112,F112) -> 41.38805935 | BY112: =[2]!mGetRate(BY$1,$B112,EOMONTH($B112,0)+1,"FLAT",G112,H112) -> 41.1036971 | BZ112: =[2]!mGetRate(BZ$1,$B112,EOMONTH($B112,0)+1,"FLAT",I112,J112) -> 40.88687742 | CA112: =IF(ValuationDate>$D112,"",[2]!mGetRate(CA$1,$B112,EOMONTH($B112,0)+1,"FLAT",M112,N112)) -> 42.75527194 | CB112: =[2]!mGetRate(CB$1,$B112,EOMONTH($B112,0)+1,"FLAT",Q112,R112) -> 44.13595516 | CC112: =IF(ValuationDate>$D112,"",[2]!mGetRate(CC$1,$B112,EOMONTH($B112,0)+1,"FLAT",K112,L112)) -> 45.77269871 | CD112: =[2]!mGetRate(CD$1,$B112,EOMONTH($B112,0)+1,"FLAT",AE112,AF112) -> 43.99406452 | CE112: =[2]!mGetRate(CE$1,$B112,EOMONTH($B112,0)+1,"FLAT",AA112,AB112) -> 44.22466484 | CF112: =[2]!mGetRate(CF$1,$B112,EOMONTH($B112,0)+1,"FLAT",O112,P112) -> 43.92627774 | CO112: 2024 | CP112: 2024-08-01 | CQ112: 3.931683404 | CR112: 3.649015903 | CS112: 3.675446109 | CT112: 3.614525896 | CU112: 3.675446109 | CV112: 3.678489672 | CW112: 3.984888171
B113: 2024-09-01 | C113: 2024-09-30 | D113: 2024-09-01 | E113: 40.50773 | F113: 33.05928 | G113: 38.66732 | H113: 31.87973 | I113: 42.37676 | J113: 34.2184 | K113: 45.12561 | L113: 36.96262 | M113: 42.95668 | N113: 33.79026 | O113: 42.16732 | P113: 29.87973 | Q113: 41.66732 | R113: 30.37973 | S113: 35.66732 | T113: 30.87973 | U113: 42.16732 | V113: 29.87973 | W113: 42.37676 | X113: 34.2184 | Y113: 40.16732 | Z113: 32.87973 | AA113: 41.66732 | AB113: 33.62973 | AC113: 39.66732 | AD113: 29.37973 | AE113: 45.66586 | AF113: 36.4784 | AG113: 3.9981 | AH113: 3.7696 | AI113: 3.5158 | AJ113: 3.6046 | AK113: 3.5896 | AL113: 3.7149 | AM113: 3.5246 | AN113: 3.5158 | AO113: 3.3888 | AP113: 3.3508 | AQ113: 3.2492 | AR113: 3.8556 | AS113: 3.6731 | AT113: 3.9056 | AU113: 3.6915 | AV113: 3.6754 | AW113: 3.5414 | AX113: 3.6729 | AY113: 3.6146 | AZ113: 3.4038 | BA113: 3.4867 | BB113: 4.2881 | BJ113: 3.463096203 | BK113: 3.42461519 | BL113: 3.594842307 | BM113: 3.554897534 | BN113: 3.509362808 | BP113: 3.681107642 | BQ113: 3.463096203 | BR113: 3.518624685 | BS113: 3.666927143 | BT113: 3.633440537 | BU113: 3.605034988 | BV113: 3.681294023 | BX113: =[2]!mGetRate(BX$1,$B113,EOMONTH($B113,0)+1,"FLAT",E113,F113) -> 37.03178667 | BY113: =[2]!mGetRate(BY$1,$B113,EOMONTH($B113,0)+1,"FLAT",G113,H113) -> 35.499778 | BZ113: =[2]!mGetRate(BZ$1,$B113,EOMONTH($B113,0)+1,"FLAT",I113,J113) -> 38.56952533 | CA113: =IF(ValuationDate>$D113,"",[2]!mGetRate(CA$1,$B113,EOMONTH($B113,0)+1,"FLAT",M113,N113)) -> 38.67901733 | CB113: =[2]!mGetRate(CB$1,$B113,EOMONTH($B113,0)+1,"FLAT",Q113,R113) -> 36.399778 | CC113: =IF(ValuationDate>$D113,"",[2]!mGetRate(CC$1,$B113,EOMONTH($B113,0)+1,"FLAT",K113,L113)) -> 41.31621467 | CD113: =[2]!mGetRate(CD$1,$B113,EOMONTH($B113,0)+1,"FLAT",AE113,AF113) -> 41.37837867 | CE113: =[2]!mGetRate(CE$1,$B113,EOMONTH($B113,0)+1,"FLAT",AA113,AB113) -> 37.91644467 | CF113: =[2]!mGetRate(CF$1,$B113,EOMONTH($B113,0)+1,"FLAT",O113,P113) -> 36.43311133 | CO113: 2024 | CP113: 2024-09-01 | CQ113: 3.866450355 | CR113: 3.633440537 | CS113: 3.662490892 | CT113: 3.601779755 | CU113: 3.662490892 | CV113: 3.662890328 | CW113: 3.972070246
B114: 2024-10-01 | C114: 2024-10-31 | D114: 2024-10-01 | E114: 37.47589 | F114: 33.8949 | G114: 37.8562 | H114: 33.59378 | I114: 39.64787 | J114: 33.91998 | K114: 42.96012 | L114: 39.65752 | M114: 42.31468 | N114: 39.54947 | O114: 37.8562 | P114: 31.59378 | Q114: 37.3562 | R114: 33.09378 | S114: 34.8562 | T114: 31.09378 | U114: 37.8562 | V114: 31.59378 | W114: 39.64787 | X114: 33.91998 | Y114: 38.8562 | Z114: 34.34378 | AA114: 39.8562 | AB114: 35.34378 | AC114: 37.8562 | AD114: 32.09378 | AE114: 43.44727 | AF114: 38.96718 | AG114: 4.0235 | AH114: 3.7823 | AI114: 3.5031 | AJ114: 3.7062 | AK114: 3.6912 | AL114: 3.8169 | AM114: 3.6287 | AN114: 3.6173 | AO114: 3.5158 | AP114: 3.63 | AQ114: 3.2492 | AR114: 3.958 | AS114: 3.775 | AT114: 4.008 | AU114: 3.7936 | AV114: 3.7772 | AW114: 3.8303 | AX114: 3.7748 | AY114: 3.7162 | AZ114: 3.5308 | BA114: 3.4667 | BB114: 4.271 | BJ114: 3.591703797 | BK114: 3.707349367 | BL114: 3.728341941 | BM114: 3.848386495 | BN114: 3.7189454 | BP114: 3.784749384 | BQ114: 3.591703797 | BR114: 3.62015969 | BS114: 3.770600612 | BT114: 3.740111302 | BU114: 3.707003931 | BV114: 3.78335329 | BX114: =[2]!mGetRate(BX$1,$B114,EOMONTH($B114,0)+1,"FLAT",E114,F114) -> 35.97418452 | BY114: =[2]!mGetRate(BY$1,$B114,EOMONTH($B114,0)+1,"FLAT",G114,H114) -> 36.06873355 | BZ114: =[2]!mGetRate(BZ$1,$B114,EOMONTH($B114,0)+1,"FLAT",I114,J114) -> 37.24585161 | CA114: =IF(ValuationDate>$D114,"",[2]!mGetRate(CA$1,$B114,EOMONTH($B114,0)+1,"FLAT",M114,N114)) -> 41.15507581 | CB114: =[2]!mGetRate(CB$1,$B114,EOMONTH($B114,0)+1,"FLAT",Q114,R114) -> 35.56873355 | CC114: =IF(ValuationDate>$D114,"",[2]!mGetRate(CC$1,$B114,EOMONTH($B114,0)+1,"FLAT",K114,L114)) -> 41.57515871 | CD114: =[2]!mGetRate(CD$1,$B114,EOMONTH($B114,0)+1,"FLAT",AE114,AF114) -> 41.56852258 | CE114: =[2]!mGetRate(CE$1,$B114,EOMONTH($B114,0)+1,"FLAT",AA114,AB114) -> 37.96389484 | CF114: =[2]!mGetRate(CF$1,$B114,EOMONTH($B114,0)+1,"FLAT",O114,P114) -> 35.23002387 | CO114: 2024 | CP114: 2024-10-01 | CQ114: 3.853383167 | CR114: 3.740111302 | CS114: 3.766132634 | CT114: 3.703748883 | CU114: 3.766132634 | CV114: 3.769725304 | CW114: 4.074613646
B115: 2024-11-01 | C115: 2024-11-30 | D115: 2024-11-01 | E115: 40.72703 | F115: 36.22403 | G115: 39.38602 | H115: 35.0428 | I115: 40.62292 | J115: 35.43744 | K115: 46.01545 | L115: 42.13423 | M115: 44.89007 | N115: 41.84206 | O115: 37.88602 | P115: 33.5428 | Q115: 38.88602 | R115: 34.5428 | S115: 36.13602 | T115: 33.0428 | U115: 37.88602 | V115: 33.5428 | W115: 40.62292 | X115: 35.43744 | Y115: 40.38602 | Z115: 35.5428 | AA115: 41.38602 | AB115: 36.7928 | AC115: 37.88602 | AD115: 34.0428 | AE115: 44.55662 | AF115: 37.93274 | AG115: 4.1123 | AH115: 4.0108 | AI115: 3.7696 | AJ115: 3.8331 | AK115: 3.8181 | AL115: 3.9479 | AM115: 3.7381 | AN115: 3.7442 | AO115: 3.7062 | AP115: 3.9219 | AQ115: 3.5285 | AR115: 4.0937 | AS115: 3.9058 | AT115: 4.1437 | AU115: 3.9265 | AV115: 3.9068 | AW115: 4.144 | AX115: 3.9056 | AY115: 3.8431 | AZ115: 3.7212 | BA115: 3.8372 | BB115: 4.3948 | BJ115: 3.784513924 | BK115: 4.002944304 | BL115: 3.928486276 | BM115: 4.15522542 | BN115: 3.967792481 | BP115: 3.914199552 | BQ115: 3.784513924 | BR115: 3.747103456 | BS115: 3.900090408 | BT115: 3.852212952 | BU115: 3.834364745 | BV115: 3.910826921 | BX115: =[2]!mGetRate(BX$1,$B115,EOMONTH($B115,0)+1,"FLAT",E115,F115) -> 38.72222695 | BY115: =[2]!mGetRate(BY$1,$B115,EOMONTH($B115,0)+1,"FLAT",G115,H115) -> 37.4523534 | BZ115: =[2]!mGetRate(BZ$1,$B115,EOMONTH($B115,0)+1,"FLAT",I115,J115) -> 38.31426663 | CA115: =IF(ValuationDate>$D115,"",[2]!mGetRate(CA$1,$B115,EOMONTH($B115,0)+1,"FLAT",M115,N115)) -> 43.53305029 | CB115: =[2]!mGetRate(CB$1,$B115,EOMONTH($B115,0)+1,"FLAT",Q115,R115) -> 36.9523534 | CC115: =IF(ValuationDate>$D115,"",[2]!mGetRate(CC$1,$B115,EOMONTH($B115,0)+1,"FLAT",K115,L115)) -> 44.28747272 | CD115: =[2]!mGetRate(CD$1,$B115,EOMONTH($B115,0)+1,"FLAT",AE115,AF115) -> 41.6075694 | CE115: =[2]!mGetRate(CE$1,$B115,EOMONTH($B115,0)+1,"FLAT",AA115,AB115) -> 39.34104965 | CF115: =[2]!mGetRate(CF$1,$B115,EOMONTH($B115,0)+1,"FLAT",O115,P115) -> 35.9523534 | CO115: 2024 | CP115: 2024-11-01 | CQ115: 4.127588332 | CR115: 3.852212952 | CS115: 3.895582802 | CT115: 3.83110993 | CU115: 3.895582802 | CV115: 3.881999524 | CW115: 4.202691966
B116: 2024-12-01 | C116: 2024-12-31 | D116: 2024-12-01 | E116: 43.65784 | F116: 38.26218 | G116: 40.66409 | H116: 36.89973 | I116: 41.76261 | J116: 36.6979 | K116: 47.31414 | L116: 43.6303 | M116: 46.00367 | N116: 43.31501 | O116: 38.66409 | P116: 34.89973 | Q116: 40.16409 | R116: 36.39973 | S116: 37.66409 | T116: 34.89973 | U116: 38.66409 | V116: 34.89973 | W116: 41.76261 | X116: 36.6979 | Y116: 41.66409 | Z116: 37.64973 | AA116: 42.66409 | AB116: 38.14973 | AC116: 41.16409 | AD116: 36.89973 | AE116: 45.51201 | AF116: 41.2754 | AG116: 4.3535 | AH116: 4.3154 | AI116: 4.0615 | AJ116: 4.0996 | AK116: 4.0846 | AL116: 4.2171 | AM116: 4.0071 | AN116: 3.9981 | AO116: 3.96 | AP116: 4.2646 | AQ116: 3.6808 | AR116: 4.3658 | AS116: 4.1748 | AT116: 4.4158 | AU116: 4.1968 | AV116: 4.175 | AW116: 4.5072 | AX116: 4.1746 | AY116: 4.1096 | AZ116: 3.975 | BA116: 4.002 | BB116: 4.6235 | BJ116: 4.041526582 | BK116: 4.349982278 | BL116: 4.19527531 | BM116: 4.515464198 | BN116: 4.275562092 | BP116: 4.186055107 | BQ116: 4.041526582 | BR116: 4.00109102 | BS116: 4.172029184 | BT116: 4.127855948 | BU116: 4.101832492 | BV116: 4.178531592 | BX116: =[2]!mGetRate(BX$1,$B116,EOMONTH($B116,0)+1,"FLAT",E116,F116) -> 41.16307247 | BY116: =[2]!mGetRate(BY$1,$B116,EOMONTH($B116,0)+1,"FLAT",G116,H116) -> 38.92357946 | BZ116: =[2]!mGetRate(BZ$1,$B116,EOMONTH($B116,0)+1,"FLAT",I116,J116) -> 39.42086237 | CA116: =IF(ValuationDate>$D116,"",[2]!mGetRate(CA$1,$B116,EOMONTH($B116,0)+1,"FLAT",M116,N116)) -> 44.76052613 | CB116: =[2]!mGetRate(CB$1,$B116,EOMONTH($B116,0)+1,"FLAT",Q116,R116) -> 38.42357946 | CC116: =IF(ValuationDate>$D116,"",[2]!mGetRate(CC$1,$B116,EOMONTH($B116,0)+1,"FLAT",K116,L116)) -> 45.61085914 | CD116: =[2]!mGetRate(CD$1,$B116,EOMONTH($B116,0)+1,"FLAT",AE116,AF116) -> 43.55314731 | CE116: =[2]!mGetRate(CE$1,$B116,EOMONTH($B116,0)+1,"FLAT",AA116,AB116) -> 40.57680527 | CF116: =[2]!mGetRate(CF$1,$B116,EOMONTH($B116,0)+1,"FLAT",O116,P116) -> 36.92357946 | CO116: 2024 | CP116: 2024-12-01 | CQ116: 4.427927873 | CR116: 4.127855948 | CS116: 4.167438357 | CT116: 4.098578165 | CU116: 4.167438357 | CV116: 4.158066847 | CW116: 4.471666532
B117: 2025-01-01 | C117: 2025-01-31 | D117: 2025-01-01 | E117: 45.93959 | F117: 39.45887 | G117: 41.71711 | H117: 37.26257 | I117: 43.57624 | J117: 37.47391 | K117: 48.94258 | L117: 44.23835 | M117: 47.41937 | N117: 43.75736 | O117: 39.71711 | P117: 35.26257 | Q117: 41.21711 | R117: 36.76257 | S117: 38.21711 | T117: 34.76257 | U117: 39.71711 | V117: 35.26257 | W117: 43.57624 | X117: 37.47391 | Y117: 42.71711 | Z117: 38.01257 | AA117: 43.71711 | AB117: 39.26257 | AC117: 42.71711 | AD117: 37.26257 | AE117: 45.13124 | AF117: 40.50731 | AG117: 4.3973 | AH117: 4.3192 | AI117: 4.085 | AJ117: 4.098 | AK117: 4.083 | AL117: 4.2158 | AM117: 4.003 | AN117: 4.111 | AO117: 4.059 | AP117: 4.2151 | AQ117: 3.7598 | AR117: 4.3649 | AS117: 4.1735 | AT117: 4.4149 | AU117: 4.1944 | AV117: 4.1736 | AW117: 4.4563 | AX117: 4.1733 | AY117: 4.108 | AZ117: 4.074 | BA117: 4.0723 | BB117: 4.6223 | BJ117: 4.141779747 | BK117: 4.299855696 | BL117: 4.299341955 | BM117: 4.463430876 | BN117: 4.301102069 | BP117: 4.184422953 | BQ117: 4.141779747 | BR117: 4.114029957 | BS117: 4.170396531 | BT117: 4.123654698 | BU117: 4.100226682 | BV117: 4.17692436 | BX117: =[2]!mGetRate(BX$1,$B117,EOMONTH($B117,0)+1,"FLAT",E117,F117) -> 43.08249839 | BY117: =[2]!mGetRate(BY$1,$B117,EOMONTH($B117,0)+1,"FLAT",G117,H117) -> 39.75328054 | BZ117: =[2]!mGetRate(BZ$1,$B117,EOMONTH($B117,0)+1,"FLAT",I117,J117) -> 40.88596548 | CA117: =IF(ValuationDate>$D117,"",[2]!mGetRate(CA$1,$B117,EOMONTH($B117,0)+1,"FLAT",M117,N117)) -> 45.80493548 | CB117: =[2]!mGetRate(CB$1,$B117,EOMONTH($B117,0)+1,"FLAT",Q117,R117) -> 39.25328054 | CC117: =IF(ValuationDate>$D117,"",[2]!mGetRate(CC$1,$B117,EOMONTH($B117,0)+1,"FLAT",K117,L117)) -> 46.86867215 | CD117: =[2]!mGetRate(CD$1,$B117,EOMONTH($B117,0)+1,"FLAT",AE117,AF117) -> 43.09273323 | CE117: =[2]!mGetRate(CE$1,$B117,EOMONTH($B117,0)+1,"FLAT",AA117,AB117) -> 41.75328054 | CF117: =[2]!mGetRate(CF$1,$B117,EOMONTH($B117,0)+1,"FLAT",O117,P117) -> 37.75328054 | CO117: 2025 | CP117: 2025-01-01 | CQ117: 4.452107316 | CR117: 4.123654698 | CS117: 4.165806203 | CT117: 4.096972352 | CU117: 4.165806203 | CV117: 4.15385913 | CW117: 4.470051675
B118: 2025-02-01 | C118: 2025-02-28 | D118: 2025-02-01 | E118: 44.45887 | F118: 39.53757 | G118: 42.92719 | H118: 39.19448 | I118: 45.64718 | J118: 40.13898 | K118: 49.32859 | L118: 45.51864 | M118: 48.4026 | N118: 45.5402 | O118: 40.92719 | P118: 37.19448 | Q118: 42.92719 | R118: 38.69448 | S118: 39.42719 | T118: 36.69448 | U118: 40.92719 | V118: 37.19448 | W118: 45.64718 | X118: 40.13898 | Y118: 43.92719 | Z118: 39.94448 | AA118: 44.92719 | AB118: 40.94448 | AC118: 41.92719 | AD118: 39.19448 | AE118: 47.40348 | AF118: 42.84528 | AG118: 4.4233 | AH118: 4.3452 | AI118: 4.098 | AJ118: 4.098 | AK118: 4.083 | AL118: 4.2145 | AM118: 4.023 | AN118: 4.1761 | AO118: 4.1241 | AP118: 4.1241 | AQ118: 3.7338 | AR118: 4.3619 | AS118: 4.1722 | AT118: 4.4119 | AU118: 4.1926 | AV118: 4.1728 | AW118: 4.3538 | AX118: 4.172 | AY118: 4.108 | AZ118: 4.1391 | BA118: 4.0563 | BB118: 4.6333 | BJ118: 4.207703797 | BK118: 4.207703797 | BL118: 4.367773657 | BM118: 4.367773657 | BN118: 4.287738727 | BP118: 4.184422953 | BQ118: 4.207703797 | BR118: 4.179152409 | BS118: 4.170396531 | BT118: 4.144148601 | BU118: 4.100226682 | BV118: 4.17692436 | BX118: =[2]!mGetRate(BX$1,$B118,EOMONTH($B118,0)+1,"FLAT",E118,F118) -> 42.34974143 | BY118: =[2]!mGetRate(BY$1,$B118,EOMONTH($B118,0)+1,"FLAT",G118,H118) -> 41.32745714 | BZ118: =[2]!mGetRate(BZ$1,$B118,EOMONTH($B118,0)+1,"FLAT",I118,J118) -> 43.28652286 | CA118: =IF(ValuationDate>$D118,"",[2]!mGetRate(CA$1,$B118,EOMONTH($B118,0)+1,"FLAT",M118,N118)) -> 47.17585714 | CB118: =[2]!mGetRate(CB$1,$B118,EOMONTH($B118,0)+1,"FLAT",Q118,R118) -> 41.11317143 | CC118: =IF(ValuationDate>$D118,"",[2]!mGetRate(CC$1,$B118,EOMONTH($B118,0)+1,"FLAT",K118,L118)) -> 47.69575429 | CD118: =[2]!mGetRate(CD$1,$B118,EOMONTH($B118,0)+1,"FLAT",AE118,AF118) -> 45.44996571 | CE118: =[2]!mGetRate(CE$1,$B118,EOMONTH($B118,0)+1,"FLAT",AA118,AB118) -> 43.22031429 | CF118: =[2]!mGetRate(CF$1,$B118,EOMONTH($B118,0)+1,"FLAT",O118,P118) -> 39.32745714 | CO118: 2025 | CP118: 2025-02-01 | CQ118: 4.465483177 | CR118: 4.144148601 | CS118: 4.165806203 | CT118: 4.096972352 | CU118: 4.165806203 | CV118: 4.174384581 | CW118: 4.470051675
B119: 2025-03-01 | C119: 2025-03-31 | D119: 2025-03-01 | E119: 39.47289 | F119: 37.78286 | G119: 37.40805 | H119: 35.53645 | I119: 38.1188 | J119: 35.86774 | K119: 43.52848 | L119: 42.09787 | M119: 41.79417 | N119: 41.72053 | O119: 35.40805 | P119: 33.53645 | Q119: 37.40805 | R119: 35.03645 | S119: 35.65805 | T119: 32.03645 | U119: 35.40805 | V119: 33.53645 | W119: 38.1188 | X119: 35.86774 | Y119: 38.40805 | Z119: 36.28645 | AA119: 39.40805 | AB119: 37.53645 | AC119: 36.15805 | AD119: 35.53645 | AE119: 39.9151 | AF119: 38.89184 | AG119: 4.3192 | AH119: 4.1761 | AI119: 3.9289 | AJ119: 3.9419 | AK119: 3.9269 | AL119: 4.0567 | AM119: 3.8594 | AN119: 4.1891 | AO119: 4.1371 | AP119: 4.046 | AQ119: 3.5646 | AR119: 4.2024 | AS119: 4.0146 | AT119: 4.2524 | AU119: 4.034 | AV119: 4.0156 | AW119: 4.2705 | AX119: 4.0144 | AY119: 3.9519 | AZ119: 4.1521 | BA119: 3.8571 | BB119: 4.5742 | BJ119: 4.220868354 | BK119: 4.12861519 | BL119: 4.381438974 | BM119: 4.285676638 | BN119: 4.254149789 | BP119: 4.025185985 | BQ119: 4.220868354 | BR119: 4.192156892 | BS119: 4.011110816 | BT119: 3.976508474 | BU119: 3.943559833 | BV119: 4.020118734 | BX119: =[2]!mGetRate(BX$1,$B119,EOMONTH($B119,0)+1,"FLAT",E119,F119) -> 38.72909483 | BY119: =[2]!mGetRate(BY$1,$B119,EOMONTH($B119,0)+1,"FLAT",G119,H119) -> 36.58434448 | BZ119: =[2]!mGetRate(BZ$1,$B119,EOMONTH($B119,0)+1,"FLAT",I119,J119) -> 37.12809122 | CA119: =IF(ValuationDate>$D119,"",[2]!mGetRate(CA$1,$B119,EOMONTH($B119,0)+1,"FLAT",M119,N119)) -> 41.76176047 | CB119: =[2]!mGetRate(CB$1,$B119,EOMONTH($B119,0)+1,"FLAT",Q119,R119) -> 36.36429065 | CC119: =IF(ValuationDate>$D119,"",[2]!mGetRate(CC$1,$B119,EOMONTH($B119,0)+1,"FLAT",K119,L119)) -> 42.89885756 | CD119: =[2]!mGetRate(CD$1,$B119,EOMONTH($B119,0)+1,"FLAT",AE119,AF119) -> 39.46475542 | CE119: =[2]!mGetRate(CE$1,$B119,EOMONTH($B119,0)+1,"FLAT",AA119,AB119) -> 38.58434448 | CF119: =[2]!mGetRate(CF$1,$B119,EOMONTH($B119,0)+1,"FLAT",O119,P119) -> 34.58434448 | CO119: 2025 | CP119: 2025-03-01 | CQ119: 4.291494084 | CR119: 3.976508474 | CS119: 4.006569235 | CT119: 3.940305217 | CU119: 4.006569235 | CV119: 4.006486388 | CW119: 4.31250222
B120: 2025-04-01 | C120: 2025-04-30 | D120: 2025-04-01 | E120: 33.62042 | F120: 30.38309 | G120: 30.28529 | H120: 27.62576 | I120: 31.26964 | J120: 27.8103 | K120: 35.00018 | L120: 32.96057 | M120: 29.34274 | N120: 26.16928 | O120: 28.28529 | P120: 25.62576 | Q120: 28.78529 | R120: 26.87576 | S120: 25.28529 | T120: 23.62576 | U120: 28.28529 | V120: 25.62576 | W120: 31.26964 | X120: 27.8103 | Y120: 28.78529 | Z120: 25.62576 | AA120: 32.28529 | AB120: 29.62576 | AC120: 28.78529 | AD120: 26.12576 | AE120: 29.97724 | AF120: 30.7465 | AG120: 4.007 | AH120: 3.6947 | AI120: 3.4345 | AJ120: 3.6297 | AK120: 3.6147 | AL120: 3.7384 | AM120: 3.5522 | AN120: 3.4606 | AO120: 3.4215 | AP120: 3.2264 | AQ120: 3.0703 | AR120: 3.8773 | AS120: 3.6967 | AT120: 3.9273 | AU120: 3.7134 | AV120: 3.6994 | AW120: 3.4016 | AX120: 3.6965 | AY120: 3.6397 | AZ120: 3.4365 | BA120: 3.2578 | BB120: 4.257 | BJ120: 3.496210127 | BK120: 3.298640506 | BL120: 3.629215835 | BM120: 3.424130962 | BN120: 3.462049357 | BP120: 3.706712048 | BQ120: 3.496210127 | BR120: 3.463405648 | BS120: 3.692539388 | BT120: 3.661722123 | BU120: 3.630226135 | BV120: 3.706507484 | BX120: =[2]!mGetRate(BX$1,$B120,EOMONTH($B120,0)+1,"FLAT",E120,F120) -> 32.25354733 | BY120: =[2]!mGetRate(BY$1,$B120,EOMONTH($B120,0)+1,"FLAT",G120,H120) -> 29.16237733 | BZ120: =[2]!mGetRate(BZ$1,$B120,EOMONTH($B120,0)+1,"FLAT",I120,J120) -> 29.80902978 | CA120: =IF(ValuationDate>$D120,"",[2]!mGetRate(CA$1,$B120,EOMONTH($B120,0)+1,"FLAT",M120,N120)) -> 28.00283467 | CB120: =[2]!mGetRate(CB$1,$B120,EOMONTH($B120,0)+1,"FLAT",Q120,R120) -> 27.979044 | CC120: =IF(ValuationDate>$D120,"",[2]!mGetRate(CC$1,$B120,EOMONTH($B120,0)+1,"FLAT",K120,L120)) -> 34.13901133 | CD120: =[2]!mGetRate(CD$1,$B120,EOMONTH($B120,0)+1,"FLAT",AE120,AF120) -> 30.30203867 | CE120: =[2]!mGetRate(CE$1,$B120,EOMONTH($B120,0)+1,"FLAT",AA120,AB120) -> 31.16237733 | CF120: =[2]!mGetRate(CF$1,$B120,EOMONTH($B120,0)+1,"FLAT",O120,P120) -> 27.16237733 | CO120: 2025 | CP120: 2025-04-01 | CQ120: 3.782799774 | CR120: 3.661722123 | CS120: 3.688095298 | CT120: 3.626970947 | CU120: 3.688095298 | CV120: 3.691215452 | CW120: 3.99740331
B121: 2025-05-01 | C121: 2025-05-31 | D121: 2025-05-01 | E121: 31.11203 | F121: 25.50069 | G121: 29.52135 | H121: 26.91048 | I121: 28.48498 | J121: 22.94555 | K121: 33.97284 | L121: 29.65514 | M121: 28.89693 | N121: 23.80733 | O121: 28.02135 | P121: 24.91048 | Q121: 29.52135 | R121: 26.91048 | S121: 25.52135 | T121: 21.91048 | U121: 28.02135 | V121: 24.91048 | W121: 28.48498 | X121: 22.94555 | Y121: 28.02135 | Z121: 24.91048 | AA121: 31.02135 | AB121: 28.41048 | AC121: 28.02135 | AD121: 24.91048 | AE121: 30.98588 | AF121: 26.92675 | AG121: 4.007 | AH121: 3.6687 | AI121: 3.4476 | AJ121: 3.5776 | AK121: 3.5626 | AL121: 3.6864 | AM121: 3.5001 | AN121: 3.4866 | AO121: 3.4345 | AP121: 3.2914 | AQ121: 3.2784 | AR121: 3.8252 | AS121: 3.6447 | AT121: 3.8752 | AU121: 3.6622 | AV121: 3.6474 | AW121: 3.4648 | AX121: 3.6445 | AY121: 3.5876 | AZ121: 3.4495 | BA121: 3.4722 | BB121: 4.252 | BJ121: 3.509374684 | BK121: 3.364463291 | BL121: 3.642881152 | BM121: 3.492457547 | BN121: 3.502294168 | BP121: 3.653565053 | BQ121: 3.509374684 | BR121: 3.489414615 | BS121: 3.639376122 | BT121: 3.608335506 | BU121: 3.577936943 | BV121: 3.654171974 | BX121: =[2]!mGetRate(BX$1,$B121,EOMONTH($B121,0)+1,"FLAT",E121,F121) -> 28.63821344 | BY121: =[2]!mGetRate(BY$1,$B121,EOMONTH($B121,0)+1,"FLAT",G121,H121) -> 28.37032129 | BZ121: =[2]!mGetRate(BZ$1,$B121,EOMONTH($B121,0)+1,"FLAT",I121,J121) -> 26.0428657 | CA121: =IF(ValuationDate>$D121,"",[2]!mGetRate(CA$1,$B121,EOMONTH($B121,0)+1,"FLAT",M121,N121)) -> 26.65312785 | CB121: =[2]!mGetRate(CB$1,$B121,EOMONTH($B121,0)+1,"FLAT",Q121,R121) -> 28.37032129 | CC121: =IF(ValuationDate>$D121,"",[2]!mGetRate(CC$1,$B121,EOMONTH($B121,0)+1,"FLAT",K121,L121)) -> 32.06933785 | CD121: =[2]!mGetRate(CD$1,$B121,EOMONTH($B121,0)+1,"FLAT",AE121,AF121) -> 29.19637108 | CE121: =[2]!mGetRate(CE$1,$B121,EOMONTH($B121,0)+1,"FLAT",AA121,AB121) -> 29.87032129 | CF121: =[2]!mGetRate(CF$1,$B121,EOMONTH($B121,0)+1,"FLAT",O121,P121) -> 26.64989118 | CO121: 2025 | CP121: 2025-05-01 | CQ121: 3.796278527 | CR121: 3.608335506 | CS121: 3.634948303 | CT121: 3.57468166 | CU121: 3.634948303 | CV121: 3.63774665 | CW121: 3.94481954
B122: 2025-06-01 | C122: 2025-06-30 | D122: 2025-06-01 | E122: 34.03319 | F122: 27.05579 | G122: 32.18066 | H122: 28.04782 | I122: 31.15768 | J122: 24.45973 | K122: 37.4981 | L122: 31.45129 | M122: 32.51232 | N122: 25.83633 | O122: 30.43066 | P122: 26.54782 | Q122: 31.43066 | R122: 27.54782 | S122: 28.68066 | T122: 24.04782 | U122: 30.43066 | V122: 26.54782 | W122: 31.15768 | X122: 24.45973 | Y122: 33.18066 | Z122: 28.54782 | AA122: 34.68066 | AB122: 30.04782 | AC122: 31.18066 | AD122: 26.79782 | AE122: 34.98168 | AF122: 29.34343 | AG122: 4.033 | AH122: 3.6817 | AI122: 3.4736 | AJ122: 3.5646 | AK122: 3.5496 | AL122: 3.6738 | AM122: 3.4846 | AN122: 3.3565 | AO122: 3.3044 | AP122: 3.2654 | AQ122: 3.2654 | AR122: 3.8132 | AS122: 3.6321 | AT122: 3.8632 | AU122: 3.6499 | AV122: 3.6347 | AW122: 3.4394 | AX122: 3.6319 | AY122: 3.5746 | AZ122: 3.3194 | BA122: 3.4792 | BB122: 4.2805 | BJ122: 3.377627848 | BK122: 3.338134177 | BL122: 3.506122864 | BM122: 3.465126913 | BN122: 3.421752951 | BP122: 3.640303806 | BQ122: 3.377627848 | BR122: 3.359269746 | BS122: 3.626110816 | BT122: 3.592452731 | BU122: 3.564889736 | BV122: 3.641113209 | BX122: =[2]!mGetRate(BX$1,$B122,EOMONTH($B122,0)+1,"FLAT",E122,F122) -> 30.93212333 | BY122: =[2]!mGetRate(BY$1,$B122,EOMONTH($B122,0)+1,"FLAT",G122,H122) -> 30.34384222 | BZ122: =[2]!mGetRate(BZ$1,$B122,EOMONTH($B122,0)+1,"FLAT",I122,J122) -> 28.18081333 | CA122: =IF(ValuationDate>$D122,"",[2]!mGetRate(CA$1,$B122,EOMONTH($B122,0)+1,"FLAT",M122,N122)) -> 29.54521333 | CB122: =[2]!mGetRate(CB$1,$B122,EOMONTH($B122,0)+1,"FLAT",Q122,R122) -> 29.70495333 | CC122: =IF(ValuationDate>$D122,"",[2]!mGetRate(CC$1,$B122,EOMONTH($B122,0)+1,"FLAT",K122,L122)) -> 34.81062889 | CD122: =[2]!mGetRate(CD$1,$B122,EOMONTH($B122,0)+1,"FLAT",AE122,AF122) -> 32.47579111 | CE122: =[2]!mGetRate(CE$1,$B122,EOMONTH($B122,0)+1,"FLAT",AA122,AB122) -> 32.62162 | CF122: =[2]!mGetRate(CF$1,$B122,EOMONTH($B122,0)+1,"FLAT",O122,P122) -> 28.70495333 | CO122: 2025 | CP122: 2025-06-01 | CQ122: 3.82303025 | CR122: 3.592452731 | CS122: 3.621687056 | CT122: 3.561634429 | CU122: 3.621687056 | CV122: 3.621839425 | CW122: 3.931698829
B123: 2025-07-01 | C123: 2025-07-31 | D123: 2025-07-01 | E123: 46.03292 | F123: 36.2536 | G123: 45.02811 | H123: 35.24253 | I123: 44.58935 | J123: 33.93718 | K123: 50.80637 | L123: 40.43935 | M123: 45.96996 | N123: 35.7323 | O123: 49.77811 | P123: 36.24253 | Q123: 50.02811 | R123: 36.24253 | S123: 43.02811 | T123: 32.74253 | U123: 49.77811 | V123: 36.24253 | W123: 44.58935 | X123: 33.93718 | Y123: 47.52811 | Z123: 36.74253 | AA123: 49.02811 | AB123: 37.74253 | AC123: 46.52811 | AD123: 34.74253 | AE123: 48.70475 | AF123: 36.36888 | AG123: 4.059 | AH123: 3.8639 | AI123: 3.6297 | AJ123: 3.5776 | AK123: 3.5626 | AL123: 3.6874 | AM123: 3.5001 | AN123: 3.6297 | AO123: 3.4606 | AP123: 3.4996 | AQ123: 3.3175 | AR123: 3.8275 | AS123: 3.6457 | AT123: 3.8775 | AU123: 3.6638 | AV123: 3.6481 | AW123: 3.687 | AX123: 3.6455 | AY123: 3.5876 | AZ123: 3.4756 | BA123: 3.5462 | BB123: 4.3565 | BJ123: 3.535805063 | BK123: 3.575298734 | BL123: 3.670316903 | BM123: 3.711312854 | BN123: 3.623183389 | BP123: 3.653565053 | BQ123: 3.535805063 | BR123: 3.632563967 | BS123: 3.639376122 | BT123: 3.608335506 | BU123: 3.577936943 | BV123: 3.654171974 | BX123: =[2]!mGetRate(BX$1,$B123,EOMONTH($B123,0)+1,"FLAT",E123,F123) -> 41.72160688 | BY123: =[2]!mGetRate(BY$1,$B123,EOMONTH($B123,0)+1,"FLAT",G123,H123) -> 40.7140371 | BZ123: =[2]!mGetRate(BZ$1,$B123,EOMONTH($B123,0)+1,"FLAT",I123,J123) -> 39.89323204 | CA123: =IF(ValuationDate>$D123,"",[2]!mGetRate(CA$1,$B123,EOMONTH($B123,0)+1,"FLAT",M123,N123)) -> 41.45658301 | CB123: =[2]!mGetRate(CB$1,$B123,EOMONTH($B123,0)+1,"FLAT",Q123,R123) -> 43.95059624 | CC123: =IF(ValuationDate>$D123,"",[2]!mGetRate(CC$1,$B123,EOMONTH($B123,0)+1,"FLAT",K123,L123)) -> 46.23596333 | CD123: =[2]!mGetRate(CD$1,$B123,EOMONTH($B123,0)+1,"FLAT",AE123,AF123) -> 43.2663557 | CE123: =[2]!mGetRate(CE$1,$B123,EOMONTH($B123,0)+1,"FLAT",AA123,AB123) -> 44.05274677 | CF123: =[2]!mGetRate(CF$1,$B123,EOMONTH($B123,0)+1,"FLAT",O123,P123) -> 43.81081129 | CO123: 2025 | CP123: 2025-07-01 | CQ123: 3.983643482 | CR123: 3.608335506 | CS123: 3.634948303 | CT123: 3.57468166 | CU123: 3.634948303 | CV123: 3.63774665 | CW123: 3.94481954
B124: 2025-08-01 | C124: 2025-08-31 | D124: 2025-08-01 | E124: 49.67867 | F124: 38.22243 | G124: 48.72015 | H124: 37.61572 | I124: 48.69038 | J124: 37.12928 | K124: 55.55723 | L124: 43.65041 | M124: 51.42292 | N124: 39.49298 | O124: 53.22015 | P124: 38.11572 | Q124: 53.22015 | R124: 38.61572 | S124: 46.72015 | T124: 35.61572 | U124: 53.22015 | V124: 38.11572 | W124: 48.69038 | X124: 37.12928 | Y124: 50.72015 | Z124: 39.11572 | AA124: 52.47015 | AB124: 39.86572 | AC124: 50.97015 | AD124: 37.61572 | AE124: 50.76218 | AF124: 41.67008 | AG124: 4.085 | AH124: 3.9419 | AI124: 3.6557 | AJ124: 3.6557 | AK124: 3.6407 | AL124: 3.7659 | AM124: 3.5782 | AN124: 3.7468 | AO124: 3.5516 | AP124: 3.5386 | AQ124: 3.2914 | AR124: 3.9064 | AS124: 3.7241 | AT124: 3.9564 | AU124: 3.7424 | AV124: 3.7264 | AW124: 3.728 | AX124: 3.7239 | AY124: 3.6657 | AZ124: 3.5666 | BA124: 3.5252 | BB124: 4.38 | BJ124: 3.627956962 | BK124: 3.614792405 | BL124: 3.765974122 | BM124: 3.752308805 | BN124: 3.690258074 | BP124: 3.733234541 | BQ124: 3.627956962 | BR124: 3.749704352 | BS124: 3.71907 | BT124: 3.688364197 | BU124: 3.656320549 | BV124: 3.732625013 | BX124: =[2]!mGetRate(BX$1,$B124,EOMONTH($B124,0)+1,"FLAT",E124,F124) -> 44.62806957 | BY124: =[2]!mGetRate(BY$1,$B124,EOMONTH($B124,0)+1,"FLAT",G124,H124) -> 43.8246486 | BZ124: =[2]!mGetRate(BZ$1,$B124,EOMONTH($B124,0)+1,"FLAT",I124,J124) -> 43.59355097 | CA124: =IF(ValuationDate>$D124,"",[2]!mGetRate(CA$1,$B124,EOMONTH($B124,0)+1,"FLAT",M124,N124)) -> 46.16348409 | CB124: =[2]!mGetRate(CB$1,$B124,EOMONTH($B124,0)+1,"FLAT",Q124,R124) -> 46.78163785 | CC124: =IF(ValuationDate>$D124,"",[2]!mGetRate(CC$1,$B124,EOMONTH($B124,0)+1,"FLAT",K124,L124)) -> 50.30798677 | CD124: =[2]!mGetRate(CD$1,$B124,EOMONTH($B124,0)+1,"FLAT",AE124,AF124) -> 46.75383484 | CE124: =[2]!mGetRate(CE$1,$B124,EOMONTH($B124,0)+1,"FLAT",AA124,AB124) -> 46.91335828 | CF124: =[2]!mGetRate(CF$1,$B124,EOMONTH($B124,0)+1,"FLAT",O124,P124) -> 46.56120774 | CO124: 2025 | CP124: 2025-08-01 | CQ124: 4.010395205 | CR124: 3.688364197 | CS124: 3.714617791 | CT124: 3.653065409 | CU124: 3.714617791 | CV124: 3.717898539 | CW124: 4.023644732
